Workbook

Sheet Dateneingabe
A1: Verzeichnis des Umlaufvermögens und der Finanzbestände
C3: Eingabefelder: | D3: xxx | H3: In diese Felder musst du betriebliche Daten eingeben!
D5: xxx | H5: Die hier enthaltenen Daten kannst du in betriebliche Werte verändern! | S5: Gruppe | T5: =IF(O9="","",O9) -> 20
D7: xxx | H7: Hier kannst du die Kalkulation um betriebsspezifische Werte ergänzen! | S7: Spalte | T7: Spalte
N9: Gruppe | O9: 20 | S9: E | T9: O
B12: Aktuelles Jahr | D12: =YEAR(TODAY()) -> 2024
B14: Viehart | D14: RINDER
E16: Bestand am 01. 01. | K16: Bestand am 31. 12. | V16: Gruppe | W16: 1 | X16: 2 | Y16: 3 | Z16: 4 | AA16: 5 | AB16: 6 | AC16: 7 | AD16: 8 | AE16: 9 | AF16: 10 | AG16: 11 | AH16: 12 | AI16: 13 | AJ16: 14 | AK16: 15 | AL16: 16 | AM16: 17 | AN16: 18 | AO16: 19 | AP16: 20 | AQ16: 21 | AR16: 22 | AS16: 23 | AT16: 24 | AU16: 25 | AV16: 26 | AW16: 27 | AX16: 28 | AY16: 29 | AZ16: 30
E17: Menge | I17: €/Einheit | K17: Menge | O17: €/Einheit | V17: % | W17: AV | X17: 0.14 | Y17: 0.08 | Z17: 0.11 | AA17: -0.02 | AB17: -0.09 | AC17: -0.16 | AD17: -0.05 | AE17: 0.06 | AF17: 0.05 | AG17: 0.24 | AH17: -0.03 | AI17: -0.12 | AJ17: -0.21 | AK17: -0.08 | AL17: 0.07 | AM17: 0.17 | AN17: 0.09 | AO17: -0.04 | AP17: -0.11 | AQ17: 0.22 | AR17: -0.09 | AS17: 0.14 | AT17: 0.16 | AU17: -0.13 | AV17: 0.11 | AW17: -0.12 | AX17: -0.17 | AY17: 0.06 | AZ17: -0.15
B18: 1 | C18: Kühe | E18: 9 | F18: Stk | I18: 1145 | J18: € | K18: 10 | L18: Stk | O18: 1146 | P18: € | S18: =IF(OR($I18="",$E18=""),"",VLOOKUP($C18,$V$16:$AZ$73,1+$O$9,0)) -> 1019 | T18: =IF(OR(S18="",K18=""),"",ROUND(S18+S18*U18,0)) -> 1020 | U18: 0.001 | V18: =C18 -> Kühe | W18: =IF(I18="","",I18) -> 1145 | X18: =IF($W18="","",ROUND($W18*(1+X$17),0)) -> 1305 | Y18: =IF($W18="","",ROUND($W18*(1+Y$17),0)) -> 1237 | Z18: 1271 | AA18: 1122 | AB18: 1042 | AC18: 962 | AD18: 1088 | AE18: 1214 | AF18: 1202 | AG18: 1420 | AH18: 1111 | AI18: 1008 | AJ18: 905 | AK18: 1053 | AL18: 1225 | AM18: 1340 | AN18: 1248 | AO18: =IF($W18="","",ROUND($W18*(1+AO$17),0)) -> 1099 | AP18: 1019 | AQ18: 1397 | AR18: 1042 | AS18: 1305 | AT18: 1328 | AU18: 996 | AV18: 1271 | AW18: 1008 | AX18: 950 | AY18: 1214 | AZ18: 973
B20: 2 | C20: Kalbinnen | E20: 6 | F20: Stk | I20: 1253 | J20: € | K20: 4 | L20: Stk | O20: 1249 | P20: € | S20: =IF(OR($I20="",$E20=""),"",VLOOKUP($C20,$V$16:$AZ$73,1+$O$9,0)) -> 1115 | T20: =IF(OR(S20="",K20=""),"",ROUND(S20+S20*U20,0)) -> 1112 | U20: -0.003 | V20: =C20 -> Kalbinnen | W20: =IF(I20="","",I20) -> 1253 | X20: =IF($W20="","",ROUND($W20*(1+X$17),0)) -> 1428 | Y20: 1353 | Z20: 1391 | AA20: 1228 | AB20: 1140 | AC20: 1053 | AD20: 1190 | AE20: 1328 | AF20: 1316 | AG20: 1554 | AH20: 1215 | AI20: =IF($W20="","",ROUND($W20*(1+AI$17),0)) -> 1103 | AJ20: 990 | AK20: 1153 | AL20: 1341 | AM20: 1466 | AN20: 1366 | AO20: 1203 | AP20: 1115 | AQ20: 1529 | AR20: 1140 | AS20: 1428 | AT20: 1453 | AU20: 1090 | AV20: 1391 | AW20: 1103 | AX20: 1040 | AY20: 1328 | AZ20: 1065
B22: 3 | C22: Jungvieh 1 - 2 J. | E22: 4 | F22: Stk | I22: 800 | J22: € | K22: 5 | L22: Stk | O22: 798 | P22: € | S22: =IF(OR($I22="",$E22=""),"",VLOOKUP($C22,$V$16:$AZ$73,1+$O$9,0)) -> 712 | T22: =IF(OR(S22="",K22=""),"",ROUND(S22+S22*U22,0)) -> 711 | U22: -0.002 | V22: =C22 -> Jungvieh 1 - 2 J. | W22: =IF(I22="","",I22) -> 800 | X22: =IF($W22="","",ROUND($W22*(1+X$17),0)) -> 912 | Y22: 864 | Z22: 888 | AA22: 784 | AB22: 728 | AC22: 672 | AD22: 760 | AE22: 848 | AF22: 840 | AG22: 992 | AH22: 776 | AI22: 704 | AJ22: 632 | AK22: 736 | AL22: 856 | AM22: 936 | AN22: 872 | AO22: 768 | AP22: 712 | AQ22: 976 | AR22: 728 | AS22: 912 | AT22: 928 | AU22: 696 | AV22: 888 | AW22: 704 | AX22: 664 | AY22: 848 | AZ22: 680
B24: 4 | C24: Jungvieh bis 1 J. | E24: 5 | F24: Stk | I24: 591 | J24: € | K24: 6 | L24: Stk | O24: 590 | P24: € | S24: =IF(OR($I24="",$E24=""),"",VLOOKUP($C24,$V$16:$AZ$73,1+$O$9,0)) -> 526 | T24: =IF(OR(S24="",K24=""),"",ROUND(S24+S24*U24,0)) -> 525 | U24: -0.001 | V24: =C24 -> Jungvieh bis 1 J. | W24: =IF(I24="","",I24) -> 591 | X24: =IF($W24="","",ROUND($W24*(1+X$17),0)) -> 674 | Y24: 638 | Z24: 656 | AA24: 579 | AB24: 538 | AC24: 496 | AD24: 561 | AE24: 626 | AF24: 621 | AG24: 733 | AH24: 573 | AI24: 520 | AJ24: 467 | AK24: 544 | AL24: 632 | AM24: 691 | AN24: 644 | AO24: 567 | AP24: 526 | AQ24: 721 | AR24: 538 | AS24: 674 | AT24: 686 | AU24: 514 | AV24: 656 | AW24: 520 | AX24: 491 | AY24: 626 | AZ24: 502
B26: 5 | C26: Kälber weib. | E26: 4 | F26: Stk | I26: 331 | J26: € | K26: 4 | L26: Stk | O26: 332 | P26: € | S26: =IF(OR($I26="",$E26=""),"",VLOOKUP($C26,$V$16:$AZ$73,1+$O$9,0)) -> 295 | T26: =IF(OR(S26="",K26=""),"",ROUND(S26+S26*U26,0)) -> 296 | U26: 0.004 | V26: =C26 -> Kälber weib. | W26: =IF(I26="","",I26) -> 331 | X26: =IF($W26="","",ROUND($W26*(1+X$17),0)) -> 377 | Y26: 357 | Z26: 367 | AA26: 324 | AB26: 301 | AC26: 278 | AD26: 314 | AE26: 351 | AF26: 348 | AG26: 410 | AH26: 321 | AI26: 291 | AJ26: 261 | AK26: 305 | AL26: 354 | AM26: 387 | AN26: 361 | AO26: 318 | AP26: 295 | AQ26: 404 | AR26: 301 | AS26: 377 | AT26: 384 | AU26: 288 | AV26: 367 | AW26: 291 | AX26: 275 | AY26: 351 | AZ26: 281
B28: 6 | C28: Kälber männ. | E28: 3 | F28: Stk | I28: 201 | J28: € | K28: 2 | L28: Stk | O28: 201 | P28: € | S28: =IF(OR($I28="",$E28=""),"",VLOOKUP($C28,$V$16:$AZ$73,1+$O$9,0)) -> 179 | T28: =IF(OR(S28="",K28=""),"",ROUND(S28+S28*U28,0)) -> 179 | U28: 0.001 | V28: =C28 -> Kälber männ. | W28: =IF(I28="","",I28) -> 201 | X28: =IF($W28="","",ROUND($W28*(1+X$17),0)) -> 229 | Y28: 217 | Z28: 223 | AA28: 197 | AB28: 183 | AC28: 169 | AD28: 191 | AE28: 213 | AF28: 211 | AG28: 249 | AH28: 195 | AI28: =IF($W28="","",ROUND($W28*(1+AI$17),0)) -> 177 | AJ28: 159 | AK28: 185 | AL28: 215 | AM28: 235 | AN28: 219 | AO28: 193 | AP28: 179 | AQ28: 245 | AR28: 183 | AS28: 229 | AT28: 233 | AU28: 175 | AV28: 223 | AW28: 177 | AX28: 167 | AY28: 213 | AZ28: 171
B30: 7 | F30: Stk | J30: € | L30: Stk | P30: € | S30: =IF(OR($I30="",$E30=""),"",VLOOKUP($C30,$V$16:$AZ$73,1+$O$9,0)) ->  | T30: =IF(OR(S30="",K30=""),"",ROUND(S30+S30*U30,0)) ->  | U30: 0 | V30: =C30 -> 0 | W30: =IF(I30="","",I30) ->  | X30: =IF($W30="","",ROUND($W30*(1+X$17),0)) -> 
B32: Viehart | D32: Schweine
E34: Bestand am 01. 01. | K34: Bestand am 31. 12.
E35: Menge | I35: €/Einheit | K35: Menge | O35: €/Einheit
B36: 1 | C36: Mastsauen | E36: 2 | F36: Stk | I36: 167 | J36: € | K36: 7 | L36: Stk | O36: 167 | P36: € | S36: =IF(OR($I36="",$E36=""),"",VLOOKUP($C36,$V$16:$AZ$73,1+$O$9,0)) -> 148.63 | T36: =IF(OR(S36="",K36=""),"",ROUND(S36+S36*U36,0)) -> 149 | U36: 0 | V36: =C36 -> Mastsauen | W36: =IF(I36="","",I36) -> 167 | X36: =IF($W36="","",ROUND($W36*(1+X$17),2)) -> 190.38 | Y36: 180.36 | Z36: 185.37 | AA36: 163.66 | AB36: 151.97 | AC36: 140.28 | AD36: 158.65 | AE36: 177.02 | AF36: 175.35 | AG36: 207.08 | AH36: 161.99 | AI36: =IF($W36="","",ROUND($W36*(1+AI$17),2)) -> 146.96 | AJ36: 131.93 | AK36: 153.64 | AL36: 178.69 | AM36: 195.39 | AN36: 182.03 | AO36: 160.32 | AP36: 148.63 | AQ36: 203.74 | AR36: 151.97 | AS36: 190.38 | AT36: 193.72 | AU36: 145.29 | AV36: 185.37 | AW36: 146.96 | AX36: 138.61 | AY36: 177.02 | AZ36: 141.95
B38: 2 | C38: Ferkel | E38: 2 | F38: Stk | I38: 62 | J38: € | K38: 4 | L38: Stk | O38: 62 | P38: € | S38: =IF(OR($I38="",$E38=""),"",VLOOKUP($C38,$V$16:$AZ$73,1+$O$9,0)) -> 55.18 | T38: =IF(OR(S38="",K38=""),"",ROUND(S38+S38*U38,0)) -> 55 | U38: 0 | V38: =C38 -> Ferkel | W38: =IF(I38="","",I38) -> 62 | X38: =IF($W38="","",ROUND($W38*(1+X$17),2)) -> 70.68 | Y38: 66.96 | Z38: 68.82 | AA38: 60.76 | AB38: 56.42 | AC38: 52.08 | AD38: 58.9 | AE38: 65.72 | AF38: 65.1 | AG38: 76.88 | AH38: 60.14 | AI38: 54.56 | AJ38: 48.98 | AK38: 57.04 | AL38: 66.34 | AM38: 72.54 | AN38: 67.58 | AO38: 59.52 | AP38: 55.18 | AQ38: 75.64 | AR38: 56.42 | AS38: 70.68 | AT38: 71.92 | AU38: 53.94 | AV38: 68.82 | AW38: 54.56 | AX38: 51.46 | AY38: 65.72 | AZ38: 52.7
B40: 3 | F40: Stk | J40: € | L40: Stk | P40: € | S40: =IF(OR($I40="",$E40=""),"",VLOOKUP($C40,$V$16:$AZ$73,1+$O$9,0)) ->  | T40: =IF(OR(S40="",K40=""),"",ROUND(S40+S40*U40,0)) ->  | U40: 0.002 | V40: =C40 -> 0 | W40: =IF(I40="","",I40) ->  | X40: =IF($W40="","",ROUND($W40*(1+X$17),0)) -> 
B42: 4 | F42: Stk | J42: € | L42: Stk | P42: € | S42: =IF(OR($I42="",$E42=""),"",VLOOKUP($C42,$V$16:$AZ$73,1+$O$9,0)) ->  | T42: =IF(OR(S42="",K42=""),"",ROUND(S42+S42*U42,0)) ->  | U42: 0.008 | V42: =C42 -> 0 | W42: =IF(I42="","",I42) ->  | X42: =IF($W42="","",ROUND($W42*(1+X$17),0)) -> 
B44: 5 | F44: Stk | J44: € | L44: Stk | P44: € | S44: =IF(OR($I44="",$E44=""),"",VLOOKUP($C44,$V$16:$AZ$73,1+$O$9,0)) ->  | T44: =IF(OR(S44="",K44=""),"",ROUND(S44+S44*U44,0)) ->  | U44: -0.003 | V44: =C44 -> 0 | W44: =IF(I44="","",I44) ->  | X44: =IF($W44="","",ROUND($W44*(1+X$17),0)) -> 
B46: Vorratsart | D46: Selbst erzeugte Vorräte
E48: Bestand am 01. 01. | K48: Bestand am 31. 12.
E49: Menge | I49: €/Einheit | K49: Menge | O49: €/Einheit
B50: 1 | C50: Gerste | E50: 100 | G50: kg | I50: 0.14 | J50: € | K50: 800 | M50: kg | O50: 0.16 | P50: € | S50: =IF(OR($I50="",$E50=""),"",VLOOKUP($C50,$V$16:$AZ$73,1+$O$9,0)) -> 0.12 | T50: =IF(OR(S50="",K50=""),"",ROUND(S50+S50*U50,2)) -> 0.13 | U50: 0.12 | V50: =C50 -> Gerste | W50: =IF(I50="","",I50) -> 0.14 | X50: =IF($W50="","",ROUND($W50*(1+X$17),2)) -> 0.16 | Y50: 0.15 | Z50: 0.16 | AA50: 0.14 | AB50: 0.13 | AC50: 0.12 | AD50: 0.13 | AE50: 0.15 | AF50: 0.15 | AG50: 0.17 | AH50: 0.14 | AI50: 0.12 | AJ50: 0.11 | AK50: 0.13 | AL50: 0.15 | AM50: 0.16 | AN50: 0.15 | AO50: 0.13 | AP50: 0.12 | AQ50: 0.17 | AR50: 0.13 | AS50: 0.16 | AT50: 0.16 | AU50: 0.12 | AV50: 0.16 | AW50: 0.12 | AX50: 0.12 | AY50: 0.15 | AZ50: 0.12
B52: 2 | C52: Futterkartoffeln | E52: 1350 | G52: kg | I52: 0.08 | J52: € | K52: 1500 | M52: kg | O52: 0.07 | P52: € | S52: =IF(OR($I52="",$E52=""),"",VLOOKUP($C52,$V$16:$AZ$73,1+$O$9,0)) -> 0.07 | T52: =IF(OR(S52="",K52=""),"",ROUND(S52+S52*U52,2)) -> 0.06 | U52: -0.13 | V52: =C52 -> Futterkartoffeln | W52: =IF(I52="","",I52) -> 0.08 | X52: =IF($W52="","",ROUND($W52*(1+X$17),2)) -> 0.09 | Y52: 0.09 | Z52: 0.09 | AA52: 0.08 | AB52: 0.07 | AC52: 0.07 | AD52: 0.08 | AE52: 0.08 | AF52: 0.08 | AG52: 0.1 | AH52: 0.08 | AI52: 0.07 | AJ52: 0.06 | AK52: 0.07 | AL52: 0.09 | AM52: 0.09 | AN52: 0.09 | AO52: 0.08 | AP52: 0.07 | AQ52: 0.1 | AR52: 0.07 | AS52: 0.09 | AT52: 0.09 | AU52: 0.07 | AV52: 0.09 | AW52: 0.07 | AX52: 0.07 | AY52: 0.08 | AZ52: 0.07
B54: 3 | C54: Brennholz | E54: 30 | I54: 27.5 | J54: € | K54: 4 | O54: 29.7 | P54: € | S54: =IF(OR($I54="",$E54=""),"",VLOOKUP($C54,$V$16:$AZ$73,1+$O$9,0)) -> 24.48 | T54: =IF(OR(S54="",K54=""),"",ROUND(S54+S54*U54,2)) -> 26.44 | U54: 0.08 | V54: =C54 -> Brennholz | W54: =IF(I54="","",I54) -> 27.5 | X54: =IF($W54="","",ROUND($W54*(1+X$17),2)) -> 31.35 | Y54: 29.7 | Z54: 30.53 | AA54: 26.95 | AB54: 25.03 | AC54: 23.1 | AD54: 26.13 | AE54: 29.15 | AF54: 28.88 | AG54: 34.1 | AH54: 26.68 | AI54: 24.2 | AJ54: 21.73 | AK54: 25.3 | AL54: 29.43 | AM54: 32.18 | AN54: 29.98 | AO54: 26.4 | AP54: 24.48 | AQ54: 33.55 | AR54: 25.03 | AS54: 31.35 | AT54: 31.9 | AU54: 23.93 | AV54: 30.53 | AW54: 24.2 | AX54: 22.83 | AY54: 29.15 | AZ54: 23.38
B56: 4 | J56: € | P56: € | S56: =IF(OR($I56="",$E56=""),"",VLOOKUP($C56,$V$16:$AZ$73,1+$O$9,0)) ->  | T56: =IF(OR(S56="",K56=""),"",ROUND(S56+S56*U56,2)) ->  | U56: 0 | V56: =C56 -> 0 | W56: =IF(I56="","",I56) ->  | X56: =IF($W56="","",ROUND($W56*(1+X$17),2)) -> 
B58: 5 | J58: € | P58: € | S58: =IF(OR($I58="",$E58=""),"",VLOOKUP($C58,$V$16:$AZ$73,1+$O$9,0)) ->  | T58: =IF(OR(S58="",K58=""),"",ROUND(S58+S58*U58,2)) ->  | U58: -0.09 | V58: =C58 -> 0 | W58: =IF(I58="","",I58) ->  | X58: =IF($W58="","",ROUND($W58*(1+X$17),2)) -> 
B60: Vorratsart | D60: Zugekaufte Vorräte
E62: Bestand am 01. 01. | K62: Bestand am 31. 12.
E63: Menge | I63: €/Einheit | K63: Menge | O63: €/Einheit
B64: 1 | C64: Milchkraftfutter | E64: 650 | G64: kg | I64: 0.25 | J64: € | K64: 1500 | M64: kg | O64: 0.26 | P64: € | S64: =IF(OR($I64="",$E64=""),"",VLOOKUP($C64,$V$16:$AZ$73,1+$O$9,0)) -> 0.22 | T64: =IF(OR(S64="",K64=""),"",ROUND(S64+S64*U64,2)) -> 0.23 | U64: 0.04 | V64: =C64 -> Milchkraftfutter | W64: =IF(I64="","",I64) -> 0.25 | X64: =IF($W64="","",ROUND($W64*(1+X$17),2)) -> 0.29 | Y64: 0.27 | Z64: 0.28 | AA64: 0.25 | AB64: 0.23 | AC64: 0.21 | AD64: 0.24 | AE64: 0.27 | AF64: 0.26 | AG64: 0.31 | AH64: 0.24 | AI64: 0.22 | AJ64: 0.2 | AK64: 0.23 | AL64: 0.27 | AM64: 0.29 | AN64: 0.27 | AO64: 0.24 | AP64: 0.22 | AQ64: 0.31 | AR64: 0.23 | AS64: 0.29 | AT64: 0.29 | AU64: 0.22 | AV64: 0.28 | AW64: 0.22 | AX64: 0.21 | AY64: 0.27 | AZ64: 0.21
B66: 2 | C66: Weizenschrot | E66: 350 | G66: kg | I66: 0.23 | J66: € | K66: 500 | M66: kg | O66: 0.21 | P66: € | S66: =IF(OR($I66="",$E66=""),"",VLOOKUP($C66,$V$16:$AZ$73,1+$O$9,0)) -> 0.2 | T66: =IF(OR(S66="",K66=""),"",ROUND(S66+S66*U66,2)) -> 0.19 | U66: -0.07 | V66: =C66 -> Weizenschrot | W66: =IF(I66="","",I66) -> 0.23 | X66: =IF($W66="","",ROUND($W66*(1+X$17),2)) -> 0.26 | Y66: 0.25 | Z66: 0.26 | AA66: 0.23 | AB66: 0.21 | AC66: 0.19 | AD66: 0.22 | AE66: 0.24 | AF66: 0.24 | AG66: 0.29 | AH66: 0.22 | AI66: 0.2 | AJ66: 0.18 | AK66: 0.21 | AL66: 0.25 | AM66: 0.27 | AN66: 0.25 | AO66: 0.22 | AP66: 0.2 | AQ66: 0.28 | AR66: 0.21 | AS66: 0.26 | AT66: 0.27 | AU66: 0.2 | AV66: 0.26 | AW66: 0.2 | AX66: 0.19 | AY66: 0.24 | AZ66: 0.2
B68: 3 | C68: Erbsenschrot | E68: 75 | G68: kg | I68: 0.22 | J68: € | K68: 300 | M68: kg | O68: 0.22 | P68: € | S68: =IF(OR($I68="",$E68=""),"",VLOOKUP($C68,$V$16:$AZ$73,1+$O$9,0)) -> 0.2 | T68: =IF(OR(S68="",K68=""),"",ROUND(S68+S68*U68,2)) -> 0.2 | U68: 0 | V68: =C68 -> Erbsenschrot | W68: =IF(I68="","",I68) -> 0.22 | X68: =IF($W68="","",ROUND($W68*(1+X$17),2)) -> 0.25 | Y68: 0.24 | Z68: 0.24 | AA68: 0.22 | AB68: 0.2 | AC68: 0.18 | AD68: 0.21 | AE68: 0.23 | AF68: 0.23 | AG68: 0.27 | AH68: 0.21 | AI68: 0.19 | AJ68: 0.17 | AK68: 0.2 | AL68: 0.24 | AM68: 0.26 | AN68: 0.24 | AO68: 0.21 | AP68: 0.2 | AQ68: 0.27 | AR68: 0.2 | AS68: 0.25 | AT68: 0.26 | AU68: 0.19 | AV68: 0.24 | AW68: 0.19 | AX68: 0.18 | AY68: 0.23 | AZ68: 0.19
B70: 4 | J70: € | P70: € | S70: =IF(OR($I70="",$E70=""),"",VLOOKUP($C70,$V$16:$AZ$73,1+$O$9,0)) ->  | T70: =IF(OR(S70="",K70=""),"",ROUND(S70+S70*U70,2)) ->  | U70: 0 | V70: =C70 -> 0 | W70: =IF(I70="","",I70) ->  | X70: =IF($W70="","",ROUND($W70*(1+X$17),2)) -> 
B72: 5 | J72: € | P72: € | S72: =IF(OR($I72="",$E72=""),"",VLOOKUP($C72,$V$16:$AZ$73,1+$O$9,0)) ->  | T72: =IF(OR(S72="",K72=""),"",ROUND(S72+S72*U72,2)) ->  | U72: 0.09 | V72: =C72 -> 0 | W72: =IF(I72="","",I72) ->  | X72: =IF($W72="","",ROUND($W72*(1+X$17),2)) -> 
A74: © Mag. Wolfgang Harasleben | Q74: Version: 2024.02.26.022
A77: Einheiten | C77: Jahr | E77: Ankreuzen
A78: kg | C78: =C79-1 -> 2021 | E78: x
A79: Stk. | C79: =C80-1 -> 2022
A80: Sack | C80: =C81-1 -> 2023
C81: =YEAR(TODAY()) -> 2024
C82: =C81+1 -> 2025
C83: =C82+1 -> 2026
C84: =C83+1 -> 2027

Sheet Berechnungen
B1: Modell - Bewertung von Umlaufvermögen | M1: Anzeigen! | Q1: =Dateneingabe!O9 -> 20
D3: Bestand am 01. 01. | F3: =IF(Dateneingabe!D12="","",Dateneingabe!D12) -> 2024 | G3: Bestand am 31. 12. | I3: =IF(Dateneingabe!D12="","",Dateneingabe!D12) -> 2024 | J3: Mehr- Minderwert
D4: Menge | E4: €/Stück | F4: Gesamt | G4: Menge | H4: €/Stück | I4: Gesamt
B5: V IEHBESTAND | M5: Pkte | N5: / | O5: Ges.
B6: =IF(Dateneingabe!D14="","",Dateneingabe!D14) -> RINDER | T6: AB | U6: SB | V6: MW+/-
B7: =IF(Dateneingabe!C18="","",Dateneingabe!C18) -> Kühe | D7: =IF(Dateneingabe!E18="","",Dateneingabe!E18) -> 9 | E7: =IF(Dateneingabe!S18="","",Dateneingabe!S18) -> 1019 | G7: =IF(Dateneingabe!K18="","",Dateneingabe!K18) -> 10 | H7: =IF(Dateneingabe!T18="","",Dateneingabe!T18) -> 1020 | M7: =IF(AND(F7="",I7="",J7=""),"",SUM(T7:V7)) ->  | N7: / | O7: =SUM(COUNTIF(T7:V7,1),COUNTIF(T7:V7,0)) -> 3 | T7: =IF(Korrektur!$J10="","",Korrektur!$J10) -> 0 | U7: =IF(Korrektur!$J42="","",Korrektur!$J42) -> 0 | V7: =IF(Korrektur!$J74="","",Korrektur!$J74) -> 0
B8: =IF(Dateneingabe!C20="","",Dateneingabe!C20) -> Kalbinnen | D8: =IF(Dateneingabe!E20="","",Dateneingabe!E20) -> 6 | E8: =IF(Dateneingabe!S20="","",Dateneingabe!S20) -> 1115 | G8: =IF(Dateneingabe!K20="","",Dateneingabe!K20) -> 4 | H8: =IF(Dateneingabe!T20="","",Dateneingabe!T20) -> 1112 | M8: =IF(AND(F8="",I8="",J8=""),"",SUM(T8:V8)) ->  | N8: / | O8: =SUM(COUNTIF(T8:V8,1),COUNTIF(T8:V8,0)) -> 3 | T8: =IF(Korrektur!$J11="","",Korrektur!$J11) -> 0 | U8: =IF(Korrektur!$J43="","",Korrektur!$J43) -> 0 | V8: =IF(Korrektur!$J75="","",Korrektur!$J75) -> 0
B9: =IF(Dateneingabe!C22="","",Dateneingabe!C22) -> Jungvieh 1 - 2 J. | D9: =IF(Dateneingabe!E22="","",Dateneingabe!E22) -> 4 | E9: =IF(Dateneingabe!S22="","",Dateneingabe!S22) -> 712 | G9: =IF(Dateneingabe!K22="","",Dateneingabe!K22) -> 5 | H9: =IF(Dateneingabe!T22="","",Dateneingabe!T22) -> 711 | N9: / | O9: 3 | T9: =IF(Korrektur!$J12="","",Korrektur!$J12) -> 0 | U9: =IF(Korrektur!$J44="","",Korrektur!$J44) -> 0 | V9: =IF(Korrektur!$J76="","",Korrektur!$J76) -> 0
B10: =IF(Dateneingabe!C24="","",Dateneingabe!C24) -> Jungvieh bis 1 J. | D10: =IF(Dateneingabe!E24="","",Dateneingabe!E24) -> 5 | E10: =IF(Dateneingabe!S24="","",Dateneingabe!S24) -> 526 | G10: =IF(Dateneingabe!K24="","",Dateneingabe!K24) -> 6 | H10: =IF(Dateneingabe!T24="","",Dateneingabe!T24) -> 525 | N10: / | O10: 3 | T10: =IF(Korrektur!$J13="","",Korrektur!$J13) -> 0 | U10: =IF(Korrektur!$J45="","",Korrektur!$J45) -> 0 | V10: =IF(Korrektur!$J77="","",Korrektur!$J77) -> 0
B11: =IF(Dateneingabe!C26="","",Dateneingabe!C26) -> Kälber weib. | D11: =IF(Dateneingabe!E26="","",Dateneingabe!E26) -> 4 | E11: =IF(Dateneingabe!S26="","",Dateneingabe!S26) -> 295 | G11: =IF(Dateneingabe!K26="","",Dateneingabe!K26) -> 4 | H11: =IF(Dateneingabe!T26="","",Dateneingabe!T26) -> 296 | N11: / | O11: 3 | T11: =IF(Korrektur!$J14="","",Korrektur!$J14) -> 0 | U11: =IF(Korrektur!$J46="","",Korrektur!$J46) -> 0 | V11: =IF(Korrektur!$J78="","",Korrektur!$J78) -> 0
B12: =IF(Dateneingabe!C28="","",Dateneingabe!C28) -> Kälber männ. | D12: =IF(Dateneingabe!E28="","",Dateneingabe!E28) -> 3 | E12: =IF(Dateneingabe!S28="","",Dateneingabe!S28) -> 179 | G12: =IF(Dateneingabe!K28="","",Dateneingabe!K28) -> 2 | H12: =IF(Dateneingabe!T28="","",Dateneingabe!T28) -> 179 | N12: / | O12: 3 | T12: =IF(Korrektur!$J15="","",Korrektur!$J15) -> 0 | U12: =IF(Korrektur!$J47="","",Korrektur!$J47) -> 0 | V12: =IF(Korrektur!$J79="","",Korrektur!$J79) -> 0
B13: =IF(Dateneingabe!C30="","",Dateneingabe!C30) ->  | D13: =IF(Dateneingabe!E30="","",Dateneingabe!E30) ->  | E13: =IF(Dateneingabe!S30="","",Dateneingabe!S30) ->  | G13: =IF(Dateneingabe!K30="","",Dateneingabe!K30) ->  | H13: =IF(Dateneingabe!T30="","",Dateneingabe!T30) ->  | N13: / | O13: 0 | T13: =IF(Korrektur!$J16="","",Korrektur!$J16) -> - | U13: =IF(Korrektur!$J48="","",Korrektur!$J48) -> - | V13: =IF(Korrektur!$J80="","",Korrektur!$J80) -> -
B14: ="Summe "&B6 -> Summe RINDER | N14: / | O14: =SUM(COUNTIF(T14:V14,1),COUNTIF(T14:V14,0)) -> 3 | T14: =IF(Korrektur!$J17="","",Korrektur!$J17) -> 0 | U14: =IF(Korrektur!$J49="","",Korrektur!$J49) -> 0 | V14: =IF(Korrektur!$J81="","",Korrektur!$J81) -> 0
B16: Kreuze zutreffendes an! (ACHTUNG: Nur eine Antwort ist richtig!!) | D16: Mehrwert | F16: =IF(U16<>"","... in Höhe von:","") ->  | G16: =IF(J14>0,J14,"") ->  | N16: / | O16: =SUM(COUNTIF(T16:V16,1),COUNTIF(T16:V16,0)) -> 1 | T16: =IF(Korrektur!$J106="","",Korrektur!$J106) -> 0 | U16: =IF(AND(G16="",Hilfe!G16<>""),0,IF(Hilfe!G16="","",IF(G16=Hilfe!G16,1,0))) -> 
D18: gleich geblieben | I18: =IF(C20<>"","ACHTUNG: Wert ohne (Minus) '-' übernehemen!","") -> 
D20: Minderwert | F20: =IF(U20<>"","... in Höhe von:","") -> ... in Höhe von: | G20: =IF(J14<0,-J14,"") ->  | M20: =IF(AND(F20="",I20="",J20=""),"",SUM(T20:V20)) -> 0 | N20: / | O20: =SUM(COUNTIF(R20:T20,1),COUNTIF(R20:T20,0)) -> 0 | U20: =IF(AND(G20="",Hilfe!G20<>""),0,IF(Hilfe!G20="","",IF(G20=Hilfe!G20,1,0))) -> 0
B22: =IF(Dateneingabe!D32="","",UPPER(Dateneingabe!D32)) -> SCHWEINE
B23: =IF(Dateneingabe!C36="","",Dateneingabe!C36) -> Mastsauen | D23: =IF(Dateneingabe!E36="","",Dateneingabe!E36) -> 2 | E23: =IF(Dateneingabe!S36="","",Dateneingabe!S36) -> 148.63 | G23: =IF(Dateneingabe!K36="","",Dateneingabe!K36) -> 7 | H23: =IF(Dateneingabe!T36="","",Dateneingabe!T36) -> 149
B24: =IF(Dateneingabe!C38="","",Dateneingabe!C38) -> Ferkel | D24: =IF(Dateneingabe!E38="","",Dateneingabe!E38) -> 2 | E24: =IF(Dateneingabe!S38="","",Dateneingabe!S38) -> 55.18 | G24: =IF(Dateneingabe!K38="","",Dateneingabe!K38) -> 4 | H24: =IF(Dateneingabe!T38="","",Dateneingabe!T38) -> 55
B25: =IF(Dateneingabe!C40="","",Dateneingabe!C40) ->  | D25: =IF(Dateneingabe!E40="","",Dateneingabe!E40) ->  | E25: =IF(Dateneingabe!S40="","",Dateneingabe!S40) ->  | G25: =IF(Dateneingabe!K40="","",Dateneingabe!K40) ->  | H25: =IF(Dateneingabe!T40="","",Dateneingabe!T40) -> 
B26: =IF(Dateneingabe!C42="","",Dateneingabe!C42) ->  | D26: =IF(Dateneingabe!E42="","",Dateneingabe!E42) ->  | E26: =IF(Dateneingabe!S42="","",Dateneingabe!S42) ->  | G26: =IF(Dateneingabe!K42="","",Dateneingabe!K42) ->  | H26: =IF(Dateneingabe!T42="","",Dateneingabe!T42) -> 
B27: =IF(Dateneingabe!C44="","",Dateneingabe!C44) ->  | D27: =IF(Dateneingabe!E44="","",Dateneingabe!E44) ->  | E27: =IF(Dateneingabe!S44="","",Dateneingabe!S44) ->  | G27: =IF(Dateneingabe!K44="","",Dateneingabe!K44) ->  | H27: =IF(Dateneingabe!T44="","",Dateneingabe!T44) -> 
B28: ="Summe "&B22 -> Summe SCHWEINE
D30: Mehrwert | F30: Kreuze zutreffendes an! (ACHTUNG: Nur eine Antwort ist richtig!!)
D32: gleich geblieben
D34: Minderwert
B36: VORRÄTE
B37: Selbst erzeugte Vorräte
B38: =IF(Dateneingabe!C50="","",Dateneingabe!C50) -> Gerste | D38: =IF(Dateneingabe!E50="","",Dateneingabe!E50) -> 100 | E38: =IF(Dateneingabe!S50="","",Dateneingabe!S50) -> 0.12 | G38: =IF(Dateneingabe!K50="","",Dateneingabe!K50) -> 800 | H38: =IF(Dateneingabe!T50="","",Dateneingabe!T50) -> 0.13
B39: =IF(Dateneingabe!C52="","",Dateneingabe!C52) -> Futterkartoffeln | D39: =IF(Dateneingabe!E52="","",Dateneingabe!E52) -> 1350 | E39: =IF(Dateneingabe!S52="","",Dateneingabe!S52) -> 0.07 | G39: =IF(Dateneingabe!K52="","",Dateneingabe!K52) -> 1500 | H39: =IF(Dateneingabe!T52="","",Dateneingabe!T52) -> 0.06
B40: =IF(Dateneingabe!C54="","",Dateneingabe!C54) -> Brennholz | D40: =IF(Dateneingabe!E54="","",Dateneingabe!E54) -> 30 | E40: =IF(Dateneingabe!S54="","",Dateneingabe!S54) -> 24.48 | G40: =IF(Dateneingabe!K54="","",Dateneingabe!K54) -> 4 | H40: =IF(Dateneingabe!T54="","",Dateneingabe!T54) -> 26.44
B41: =IF(Dateneingabe!C56="","",Dateneingabe!C56) ->  | D41: =IF(Dateneingabe!E56="","",Dateneingabe!E56) ->  | E41: =IF(Dateneingabe!S56="","",Dateneingabe!S56) ->  | G41: =IF(Dateneingabe!K56="","",Dateneingabe!K56) ->  | H41: =IF(Dateneingabe!T56="","",Dateneingabe!T56) -> 
B42: =IF(Dateneingabe!C58="","",Dateneingabe!C58) ->  | D42: =IF(Dateneingabe!E58="","",Dateneingabe!E58) ->  | E42: =IF(Dateneingabe!S58="","",Dateneingabe!S58) ->  | G42: =IF(Dateneingabe!K58="","",Dateneingabe!K58) ->  | H42: =IF(Dateneingabe!T58="","",Dateneingabe!T58) -> 
B43: Summe selbst erzeugte Vorräte
D45: Mehrwert | F45: Kreuze zutreffendes an! (ACHTUNG: Nur eine Antwort ist richtig!!)
D47: gleich geblieben
D49: Minderwert
B51: Zugekaufte Vorräte
B52: =IF(Dateneingabe!C64="","",Dateneingabe!C64) -> Milchkraftfutter | D52: =IF(Dateneingabe!E64="","",Dateneingabe!E64) -> 650 | E52: =IF(Dateneingabe!S64="","",Dateneingabe!S64) -> 0.22 | G52: =IF(Dateneingabe!K64="","",Dateneingabe!K64) -> 1500 | H52: =IF(Dateneingabe!T64="","",Dateneingabe!T64) -> 0.23
B53: =IF(Dateneingabe!C66="","",Dateneingabe!C66) -> Weizenschrot | D53: =IF(Dateneingabe!E66="","",Dateneingabe!E66) -> 350 | E53: =IF(Dateneingabe!S66="","",Dateneingabe!S66) -> 0.2 | G53: =IF(Dateneingabe!K66="","",Dateneingabe!K66) -> 500 | H53: =IF(Dateneingabe!T66="","",Dateneingabe!T66) -> 0.19
B54: =IF(Dateneingabe!C68="","",Dateneingabe!C68) -> Erbsenschrot | D54: =IF(Dateneingabe!E68="","",Dateneingabe!E68) -> 75 | E54: =IF(Dateneingabe!S68="","",Dateneingabe!S68) -> 0.2 | G54: =IF(Dateneingabe!K68="","",Dateneingabe!K68) -> 300 | H54: =IF(Dateneingabe!T68="","",Dateneingabe!T68) -> 0.2
B55: =IF(Dateneingabe!C70="","",Dateneingabe!C70) ->  | D55: =IF(Dateneingabe!E70="","",Dateneingabe!E70) ->  | E55: =IF(Dateneingabe!S70="","",Dateneingabe!S70) ->  | G55: =IF(Dateneingabe!K70="","",Dateneingabe!K70) ->  | H55: =IF(Dateneingabe!T70="","",Dateneingabe!T70) -> 
B56: =IF(Dateneingabe!C72="","",Dateneingabe!C72) ->  | D56: =IF(Dateneingabe!E72="","",Dateneingabe!E72) ->  | E56: =IF(Dateneingabe!S72="","",Dateneingabe!S72) ->  | G56: =IF(Dateneingabe!K72="","",Dateneingabe!K72) ->  | H56: =IF(Dateneingabe!T72="","",Dateneingabe!T72) -> 
B57: Summe zugekaufte Vorräte
D59: Mehrwert | F59: Kreuze zutreffendes an! (ACHTUNG: Nur eine Antwort ist richtig!!)
D61: gleich geblieben
D63: Minderwert
L65: Gesamtpunkte: | M65: =SUM(M7:M64) -> 0 | N65: / | O65: =SUM(O7:O64) -> 22
A67: =$A$1999 -> NACHNAME Vorname
A68: ="KNr. "&TEXT($A$2000,"00") -> KNr. 01
A1999: NACHNAME Vorname
A2000: 1
A2001: BSP - BEWvUV

Sheet Korrektur
A1: Korrekturblatt | J1: Kalkulation fertig? | L1: x | M1: Berechnen? | P1: x
N2: =N3 -> x
B3: unabhängige Ergebnisse | N3: =IF($L$1="","",$L$1) -> x
N4: =N3 -> x
B5: abhängige Ergebnisse (werden wenn die Formel korrekt ist, als Folgefehler mit 0,5 Punkten bewertet) | N5: =IF($L$1="","",$L$1) -> x
N6: =N5 -> x
A7: Umlaufvermögen | D7: Ergebnis | F7: Formel- prüfung | H7: Deine Be-rechnung | I7: ="Fehler" -> Fehler | J7: Punkte | N7: =IF($L$1="","",$L$1) -> x
A8: 1. | B8: Wert 1. Jänner | N8: =IF($L$1="","",$L$1) -> x
B9: =IF(Berechnungen!B6="","-",Berechnungen!B6) -> RINDER | N9: x
B10: =IF(Berechnungen!B7="","-",Berechnungen!B7) -> Kühe | C10: =MID($B$8,1,11)&"." -> Wert 1. Jän. | D10: =IF(Hilfe!$F7="","",Hilfe!$F7) -> 9171 | H10: =IF(Berechnungen!$F7="","",Berechnungen!$F7) ->  | I10: =IF(OR(B10="-",AND(D10="",H10="")),"",IF(H10=D10,"Richtig!",IF(H10="","Fehlt","Falsch"))) -> Fehlt | J10: =IF(OR(B10="-",N10="",AND(D10="",H10="")),"-",IF(I10="Richtig!",1,IF(I10="Formel: OK",0.5,IF(OR(I10="Falsch",I10="Fehlt"),0,"")))) -> 0 | K10: =IF(L10="","","│") -> │ | L10: =IF(OR(B10="-",N10="",AND(D10="",H10="")),"",1) -> 1 | N10: x
B11: =IF(Berechnungen!B8="","-",Berechnungen!B8) -> Kalbinnen | C11: Wert 1. Jän. | D11: =IF(Hilfe!$F8="","",Hilfe!$F8) -> 6690 | H11: =IF(Berechnungen!$F8="","",Berechnungen!$F8) ->  | I11: Fehlt | J11: 0 | K11: │ | L11: 1 | N11: x
B12: =IF(Berechnungen!B9="","-",Berechnungen!B9) -> Jungvieh 1 - 2 J. | C12: Wert 1. Jän. | D12: =IF(Hilfe!$F9="","",Hilfe!$F9) -> 2848 | H12: =IF(Berechnungen!$F9="","",Berechnungen!$F9) ->  | I12: Fehlt | J12: 0 | K12: │ | L12: 1 | N12: x
B13: =IF(Berechnungen!B10="","-",Berechnungen!B10) -> Jungvieh bis 1 J. | C13: Wert 1. Jän. | D13: =IF(Hilfe!$F10="","",Hilfe!$F10) -> 2630 | H13: =IF(Berechnungen!$F10="","",Berechnungen!$F10) ->  | I13: Fehlt | J13: 0 | K13: │ | L13: 1 | N13: x
B14: =IF(Berechnungen!B11="","-",Berechnungen!B11) -> Kälber weib. | C14: Wert 1. Jän. | D14: =IF(Hilfe!$F11="","",Hilfe!$F11) -> 1180 | H14: =IF(Berechnungen!$F11="","",Berechnungen!$F11) ->  | I14: Fehlt | J14: 0 | K14: │ | L14: 1 | N14: x
B15: =IF(Berechnungen!B12="","-",Berechnungen!B12) -> Kälber männ. | C15: Wert 1. Jän. | D15: =IF(Hilfe!$F12="","",Hilfe!$F12) -> 537 | H15: =IF(Berechnungen!$F12="","",Berechnungen!$F12) ->  | I15: Fehlt | J15: 0 | K15: │ | L15: 1 | N15: x
B16: =IF(Berechnungen!B13="","-",Berechnungen!B13) -> - | C16: Wert 1. Jän. | D16: =IF(Hilfe!$F13="","",Hilfe!$F13) ->  | H16: =IF(Berechnungen!$F13="","",Berechnungen!$F13) ->  | J16: - | N16: x
B17: =IF(Berechnungen!B14="","-",Berechnungen!B14) -> Summe RINDER | C17: Wert 1. Jän. | D17: =IF(Hilfe!$F14="","",Hilfe!$F14) -> 23056 | F17: =IF(AND(H10="",H11="",H12="",H13="",H14="",H15="",H16=""),"-",SUM(H10:H16)) -> - | H17: =IF(Berechnungen!$F14="","",Berechnungen!$F14) ->  | I17: =IF(B17="-","",IF(H17=D17,"Richtig!",IF(AND(D17<>H17,F17=H17),"Formel: OK",IF(H17="","Fehlt","Falsch")))) -> Fehlt | J17: 0 | K17: │ | L17: 1 | N17: x
B18: =IF(Berechnungen!B22="","-",Berechnungen!B22) -> SCHWEINE | N18: x
B19: =IF(Berechnungen!B23="","-",Berechnungen!B23) -> Mastsauen | C19: =MID($B$8,1,11)&"." -> Wert 1. Jän. | D19: =IF(Hilfe!$F23="","",Hilfe!$F23) -> 297.26 | H19: =IF(Berechnungen!$F23="","",Berechnungen!$F23) ->  | I19: =IF(OR(B19="-",AND(D19="",H19="")),"",IF(H19=D19,"Richtig!",IF(H19="","Fehlt","Falsch"))) -> Fehlt | J19: =IF(OR(B19="-",N19="",AND(D19="",H19="")),"-",IF(I19="Richtig!",1,IF(I19="Formel: OK",0.5,IF(OR(I19="Falsch",I19="Fehlt"),0,"")))) -> 0 | K19: =IF(L19="","","│") -> │ | L19: =IF(OR(B19="-",N19="",AND(D19="",H19="")),"",1) -> 1 | N19: x
B20: =IF(Berechnungen!B24="","-",Berechnungen!B24) -> Ferkel | C20: Wert 1. Jän. | D20: =IF(Hilfe!$F24="","",Hilfe!$F24) -> 110.36 | H20: =IF(Berechnungen!$F24="","",Berechnungen!$F24) ->  | I20: =IF(OR(B20="-",AND(D20="",H20="")),"",IF(H20=D20,"Richtig!",IF(H20="","Fehlt","Falsch"))) -> Fehlt | J20: 0 | K20: │ | L20: =IF(OR(B20="-",N20="",AND(D20="",H20="")),"",1) -> 1 | N20: x
B21: =IF(Berechnungen!B25="","-",Berechnungen!B25) -> - | C21: Wert 1. Jän. | D21: =IF(Hilfe!$F25="","",Hilfe!$F25) ->  | H21: =IF(Berechnungen!$F25="","",Berechnungen!$F25) ->  | I21: =IF(OR(B21="-",AND(D21="",H21="")),"",IF(H21=D21,"Richtig!",IF(H21="","Fehlt","Falsch"))) ->  | J21: - | N21: x
B22: =IF(Berechnungen!B26="","-",Berechnungen!B26) -> - | C22: Wert 1. Jän. | D22: =IF(Hilfe!$F26="","",Hilfe!$F26) ->  | H22: =IF(Berechnungen!$F26="","",Berechnungen!$F26) ->  | I22: =IF(OR(B22="-",AND(D22="",H22="")),"",IF(H22=D22,"Richtig!",IF(H22="","Fehlt","Falsch"))) ->  | J22: - | N22: x
B23: =IF(Berechnungen!B27="","-",Berechnungen!B27) -> - | C23: Wert 1. Jän. | D23: =IF(Hilfe!$F27="","",Hilfe!$F27) ->  | H23: =IF(Berechnungen!$F27="","",Berechnungen!$F27) ->  | I23: =IF(OR(B23="-",AND(D23="",H23="")),"",IF(H23=D23,"Richtig!",IF(H23="","Fehlt","Falsch"))) ->  | J23: - | N23: x
B24: =IF(Berechnungen!B28="","-",Berechnungen!B28) -> Summe SCHWEINE | C24: Wert 1. Jän. | D24: =IF(Hilfe!$F28="","",Hilfe!$F28) -> 407.62 | F24: =IF(AND(H19="",H20="",H21="",H22="",H23=""),"-",SUM(H19:H23)) -> - | H24: =IF(Berechnungen!$F28="","",Berechnungen!$F28) ->  | I24: =IF(B24="-","",IF(H24=D24,"Richtig!",IF(AND(D24<>H24,F24=H24),"Formel: OK",IF(H24="","Fehlt","Falsch")))) -> Fehlt | J24: 0 | K24: │ | L24: 1 | N24: x
B25: =IF(Berechnungen!B37="","-",Berechnungen!B37) -> Selbst erzeugte Vorräte | N25: x
B26: =IF(Berechnungen!B38="","-",Berechnungen!B38) -> Gerste | C26: =MID($B$8,1,11)&"." -> Wert 1. Jän. | D26: =IF(Hilfe!$F38="","",Hilfe!$F38) -> 12 | H26: =IF(Berechnungen!$F38="","",Berechnungen!$F38) ->  | I26: =IF(OR(B26="-",AND(D26="",H26="")),"",IF(H26=D26,"Richtig!",IF(H26="","Fehlt","Falsch"))) -> Fehlt | J26: =IF(OR(B26="-",N26="",AND(D26="",H26="")),"-",IF(I26="Richtig!",1,IF(I26="Formel: OK",0.5,IF(OR(I26="Falsch",I26="Fehlt"),0,"")))) -> 0 | K26: =IF(L26="","","│") -> │ | L26: =IF(OR(B26="-",N26="",AND(D26="",H26="")),"",1) -> 1 | N26: x
B27: =IF(Berechnungen!B39="","-",Berechnungen!B39) -> Futterkartoffeln | C27: Wert 1. Jän. | D27: =IF(Hilfe!$F39="","",Hilfe!$F39) -> 94.5 | H27: =IF(Berechnungen!$F39="","",Berechnungen!$F39) ->  | I27: =IF(OR(B27="-",AND(D27="",H27="")),"",IF(H27=D27,"Richtig!",IF(H27="","Fehlt","Falsch"))) -> Fehlt | J27: 0 | K27: │ | L27: 1 | N27: x
B28: =IF(Berechnungen!B40="","-",Berechnungen!B40) -> Brennholz | C28: Wert 1. Jän. | D28: =IF(Hilfe!$F40="","",Hilfe!$F40) -> 734.4 | H28: =IF(Berechnungen!$F40="","",Berechnungen!$F40) ->  | I28: =IF(OR(B28="-",AND(D28="",H28="")),"",IF(H28=D28,"Richtig!",IF(H28="","Fehlt","Falsch"))) -> Fehlt | J28: 0 | K28: │ | L28: 1 | N28: x
B29: =IF(Berechnungen!B41="","-",Berechnungen!B41) -> - | C29: Wert 1. Jän. | D29: =IF(Hilfe!$F41="","",Hilfe!$F41) ->  | H29: =IF(Berechnungen!$F41="","",Berechnungen!$F41) ->  | I29: =IF(OR(B29="-",AND(D29="",H29="")),"",IF(H29=D29,"Richtig!",IF(H29="","Fehlt","Falsch"))) ->  | J29: - | N29: x
B30: =IF(Berechnungen!B42="","-",Berechnungen!B42) -> - | C30: Wert 1. Jän. | D30: =IF(Hilfe!$F42="","",Hilfe!$F42) ->  | H30: =IF(Berechnungen!$F42="","",Berechnungen!$F42) ->  | I30: =IF(OR(B30="-",AND(D30="",H30="")),"",IF(H30=D30,"Richtig!",IF(H30="","Fehlt","Falsch"))) ->  | J30: - | N30: x
B31: =IF(Berechnungen!B43="","-",Berechnungen!B43) -> Summe selbst erzeugte Vorräte | C31: Wert 1. Jän. | D31: =IF(Hilfe!$F43="","",Hilfe!$F43) -> 840.9 | F31: =IF(AND(H26="",H27="",H28="",H29="",H30=""),"-",SUM(H26:H30)) -> - | H31: =IF(Berechnungen!$F43="","",Berechnungen!$F43) ->  | I31: =IF(B31="-","",IF(H31=D31,"Richtig!",IF(AND(D31<>H31,F31=H31),"Formel: OK",IF(H31="","Fehlt","Falsch")))) -> Fehlt | J31: 0 | K31: │ | L31: 1 | N31: x
B32: =IF(Berechnungen!B51="","-",Berechnungen!B51) -> Zugekaufte Vorräte | D32: =IF(Hilfe!$F51="","",Hilfe!$F51) ->  | H32: =IF(Berechnungen!$F51="","",Berechnungen!$F51) ->  | N32: x
B33: =IF(Berechnungen!B52="","-",Berechnungen!B52) -> Milchkraftfutter | C33: =MID($B$8,1,11)&"." -> Wert 1. Jän. | D33: =IF(Hilfe!$F52="","",Hilfe!$F52) -> 143 | H33: =IF(Berechnungen!$F52="","",Berechnungen!$F52) ->  | I33: =IF(OR(B33="-",AND(D33="",H33="")),"",IF(H33=D33,"Richtig!",IF(H33="","Fehlt","Falsch"))) -> Fehlt | J33: =IF(OR(B33="-",N33="",AND(D33="",H33="")),"-",IF(I33="Richtig!",1,IF(I33="Formel: OK",0.5,IF(OR(I33="Falsch",I33="Fehlt"),0,"")))) -> 0 | K33: │ | L33: 1 | N33: x
B34: =IF(Berechnungen!B53="","-",Berechnungen!B53) -> Weizenschrot | C34: Wert 1. Jän. | D34: =IF(Hilfe!$F53="","",Hilfe!$F53) -> 70 | H34: =IF(Berechnungen!$F53="","",Berechnungen!$F53) ->  | I34: =IF(OR(B34="-",AND(D34="",H34="")),"",IF(H34=D34,"Richtig!",IF(H34="","Fehlt","Falsch"))) -> Fehlt | J34: 0 | K34: │ | L34: 1 | N34: x
B35: =IF(Berechnungen!B54="","-",Berechnungen!B54) -> Erbsenschrot | C35: Wert 1. Jän. | D35: =IF(Hilfe!$F54="","",Hilfe!$F54) -> 15 | H35: =IF(Berechnungen!$F54="","",Berechnungen!$F54) ->  | I35: =IF(OR(B35="-",AND(D35="",H35="")),"",IF(H35=D35,"Richtig!",IF(H35="","Fehlt","Falsch"))) -> Fehlt | J35: 0 | K35: │ | L35: 1 | N35: x
B36: =IF(Berechnungen!B55="","-",Berechnungen!B55) -> - | C36: Wert 1. Jän. | D36: =IF(Hilfe!$F55="","",Hilfe!$F55) ->  | H36: =IF(Berechnungen!$F55="","",Berechnungen!$F55) ->  | I36: =IF(OR(B36="-",AND(D36="",H36="")),"",IF(H36=D36,"Richtig!",IF(H36="","Fehlt","Falsch"))) ->  | J36: - | N36: x
B37: =IF(Berechnungen!B56="","-",Berechnungen!B56) -> - | C37: Wert 1. Jän. | D37: =IF(Hilfe!$F56="","",Hilfe!$F56) ->  | H37: =IF(Berechnungen!$F56="","",Berechnungen!$F56) ->  | I37: =IF(OR(B37="-",AND(D37="",H37="")),"",IF(H37=D37,"Richtig!",IF(H37="","Fehlt","Falsch"))) ->  | J37: - | N37: x
B38: =IF(Berechnungen!B57="","-",Berechnungen!B57) -> Summe zugekaufte Vorräte | C38: Wert 1. Jän. | D38: =IF(Hilfe!$F57="","",Hilfe!$F57) -> 228 | F38: =IF(AND(H33="",H34="",H35="",H36="",H37=""),"-",SUM(H33:H37)) -> - | H38: =IF(Berechnungen!$F57="","",Berechnungen!$F57) ->  | I38: =IF(B38="-","",IF(H38=D38,"Richtig!",IF(AND(D38<>H38,F38=H38),"Formel: OK",IF(H38="","Fehlt","Falsch")))) -> Fehlt | J38: 0 | K38: │ | L38: 1 | N38: x
N39: x
A40: 2. | B40: Wert 31. Dezember | N40: x
B41: =IF(Berechnungen!B6="","-",Berechnungen!B6) -> RINDER | N41: x
B42: =IF(Berechnungen!B7="","-",Berechnungen!B7) -> Kühe | C42: =MID($B$40,1,12)&"." -> Wert 31. Dez. | D42: =IF(Hilfe!$I7="","",Hilfe!$I7) -> 10200 | H42: =IF(Berechnungen!$I7="","",Berechnungen!$I7) ->  | I42: =IF(OR(B42="-",AND(D42="",H42="")),"",IF(H42=D42,"Richtig!",IF(H42="","Fehlt","Falsch"))) -> Fehlt | J42: =IF(OR(B42="-",N42="",AND(D42="",H42="")),"-",IF(I42="Richtig!",1,IF(I42="Formel: OK",0.5,IF(OR(I42="Falsch",I42="Fehlt"),0,"")))) -> 0 | K42: =IF(L42="","","│") -> │ | L42: =IF(OR(B42="-",N42="",AND(D42="",H42="")),"",1) -> 1 | N42: x
B43: =IF(Berechnungen!B8="","-",Berechnungen!B8) -> Kalbinnen | C43: Wert 31. Dez. | D43: =IF(Hilfe!$I8="","",Hilfe!$I8) -> 4448 | H43: =IF(Berechnungen!$I8="","",Berechnungen!$I8) ->  | I43: Fehlt | J43: 0 | K43: │ | L43: 1 | N43: x
B44: =IF(Berechnungen!B9="","-",Berechnungen!B9) -> Jungvieh 1 - 2 J. | C44: Wert 31. Dez. | D44: =IF(Hilfe!$I9="","",Hilfe!$I9) -> 3555 | H44: =IF(Berechnungen!$I9="","",Berechnungen!$I9) ->  | I44: Fehlt | J44: 0 | K44: │ | L44: 1 | N44: x
B45: =IF(Berechnungen!B10="","-",Berechnungen!B10) -> Jungvieh bis 1 J. | C45: Wert 31. Dez. | D45: =IF(Hilfe!$I10="","",Hilfe!$I10) -> 3150 | H45: =IF(Berechnungen!$I10="","",Berechnungen!$I10) ->  | I45: Fehlt | J45: 0 | K45: │ | L45: 1 | N45: x
B46: =IF(Berechnungen!B11="","-",Berechnungen!B11) -> Kälber weib. | C46: Wert 31. Dez. | D46: =IF(Hilfe!$I11="","",Hilfe!$I11) -> 1184 | H46: =IF(Berechnungen!$I11="","",Berechnungen!$I11) ->  | I46: Fehlt | J46: 0 | K46: │ | L46: 1 | N46: x
B47: =IF(Berechnungen!B12="","-",Berechnungen!B12) -> Kälber männ. | C47: Wert 31. Dez. | D47: =IF(Hilfe!$I12="","",Hilfe!$I12) -> 358 | H47: =IF(Berechnungen!$I12="","",Berechnungen!$I12) ->  | I47: Fehlt | J47: 0 | K47: │ | L47: 1 | N47: x
B48: =IF(Berechnungen!B13="","-",Berechnungen!B13) -> - | C48: Wert 31. Dez. | D48: =IF(Hilfe!$I13="","",Hilfe!$I13) ->  | H48: =IF(Berechnungen!$I13="","",Berechnungen!$I13) ->  | J48: - | N48: x
B49: =IF(Berechnungen!B14="","-",Berechnungen!B14) -> Summe RINDER | C49: Wert 31. Dez. | D49: =IF(Hilfe!$I14="","",Hilfe!$I14) -> 22895 | F49: =IF(AND(H42="",H43="",H44="",H45="",H46="",H47="",H48=""),"-",SUM(H42:H48)) -> - | H49: =IF(Berechnungen!$I14="","",Berechnungen!$I14) ->  | I49: =IF(B49="-","",IF(H49=D49,"Richtig!",IF(AND(D49<>H49,F49=H49),"Formel: OK",IF(H49="","Fehlt","Falsch")))) -> Fehlt | J49: 0 | K49: │ | L49: 1 | N49: x
B50: =IF(Berechnungen!B22="","-",Berechnungen!B22) -> SCHWEINE | N50: x
B51: =IF(Berechnungen!B23="","-",Berechnungen!B23) -> Mastsauen | C51: =MID($B$40,1,12)&"." -> Wert 31. Dez. | D51: =IF(Hilfe!$I23="","",Hilfe!$I23) -> 1043 | H51: =IF(Berechnungen!$I23="","",Berechnungen!$I23) ->  | I51: =IF(OR(B51="-",AND(D51="",H51="")),"",IF(H51=D51,"Richtig!",IF(H51="","Fehlt","Falsch"))) -> Fehlt | J51: =IF(OR(B51="-",N51="",AND(D51="",H51="")),"-",IF(I51="Richtig!",1,IF(I51="Formel: OK",0.5,IF(OR(I51="Falsch",I51="Fehlt"),0,"")))) -> 0 | K51: =IF(L51="","","│") -> │ | L51: =IF(OR(B51="-",N51="",AND(D51="",H51="")),"",1) -> 1 | N51: x
B52: =IF(Berechnungen!B24="","-",Berechnungen!B24) -> Ferkel | C52: Wert 31. Dez. | D52: =IF(Hilfe!$I24="","",Hilfe!$I24) -> 220 | H52: =IF(Berechnungen!$I24="","",Berechnungen!$I24) ->  | I52: =IF(OR(B52="-",AND(D52="",H52="")),"",IF(H52=D52,"Richtig!",IF(H52="","Fehlt","Falsch"))) -> Fehlt | J52: 0 | K52: │ | L52: 1 | N52: x
B53: =IF(Berechnungen!B25="","-",Berechnungen!B25) -> - | C53: Wert 31. Dez. | D53: =IF(Hilfe!$I25="","",Hilfe!$I25) ->  | H53: =IF(Berechnungen!$I25="","",Berechnungen!$I25) ->  | I53: =IF(OR(B53="-",AND(D53="",H53="")),"",IF(H53=D53,"Richtig!",IF(H53="","Fehlt","Falsch"))) ->  | J53: - | N53: x
B54: =IF(Berechnungen!B26="","-",Berechnungen!B26) -> - | C54: Wert 31. Dez. | D54: =IF(Hilfe!$I26="","",Hilfe!$I26) ->  | H54: =IF(Berechnungen!$I26="","",Berechnungen!$I26) ->  | I54: =IF(OR(B54="-",AND(D54="",H54="")),"",IF(H54=D54,"Richtig!",IF(H54="","Fehlt","Falsch"))) ->  | J54: - | N54: x
B55: =IF(Berechnungen!B27="","-",Berechnungen!B27) -> - | C55: Wert 31. Dez. | D55: =IF(Hilfe!$I27="","",Hilfe!$I27) ->  | H55: =IF(Berechnungen!$I27="","",Berechnungen!$I27) ->  | I55: =IF(OR(B55="-",AND(D55="",H55="")),"",IF(H55=D55,"Richtig!",IF(H55="","Fehlt","Falsch"))) ->  | J55: - | N55: x
B56: =IF(Berechnungen!B28="","-",Berechnungen!B28) -> Summe SCHWEINE | C56: Wert 31. Dez. | D56: =IF(Hilfe!$I28="","",Hilfe!$I28) -> 1263 | F56: =IF(AND(H51="",H52="",H53="",H54="",H55=""),"-",SUM(H51:H55)) -> - | H56: =IF(Berechnungen!$I28="","",Berechnungen!$I28) ->  | I56: =IF(B56="-","",IF(H56=D56,"Richtig!",IF(AND(D56<>H56,F56=H56),"Formel: OK",IF(H56="","Fehlt","Falsch")))) -> Fehlt | J56: 0 | K56: │ | L56: 1 | N56: x
B57: =IF(Berechnungen!B37="","-",Berechnungen!B37) -> Selbst erzeugte Vorräte | N57: x
B58: =IF(Berechnungen!B38="","-",Berechnungen!B38) -> Gerste | C58: =MID($B$40,1,12)&"." -> Wert 31. Dez. | D58: =IF(Hilfe!$I38="","",Hilfe!$I38) -> 104 | H58: =IF(Berechnungen!$I38="","",Berechnungen!$I38) ->  | I58: =IF(OR(B58="-",AND(D58="",H58="")),"",IF(H58=D58,"Richtig!",IF(H58="","Fehlt","Falsch"))) -> Fehlt | J58: =IF(OR(B58="-",N58="",AND(D58="",H58="")),"-",IF(I58="Richtig!",1,IF(I58="Formel: OK",0.5,IF(OR(I58="Falsch",I58="Fehlt"),0,"")))) -> 0 | K58: =IF(L58="","","│") -> │ | L58: =IF(OR(B58="-",N58="",AND(D58="",H58="")),"",1) -> 1 | N58: x
B59: =IF(Berechnungen!B39="","-",Berechnungen!B39) -> Futterkartoffeln | C59: Wert 31. Dez. | D59: =IF(Hilfe!$I39="","",Hilfe!$I39) -> 90 | H59: =IF(Berechnungen!$I39="","",Berechnungen!$I39) ->  | I59: =IF(OR(B59="-",AND(D59="",H59="")),"",IF(H59=D59,"Richtig!",IF(H59="","Fehlt","Falsch"))) -> Fehlt | J59: 0 | K59: │ | L59: 1 | N59: x
B60: =IF(Berechnungen!B40="","-",Berechnungen!B40) -> Brennholz | C60: Wert 31. Dez. | D60: =IF(Hilfe!$I40="","",Hilfe!$I40) -> 105.76 | H60: =IF(Berechnungen!$I40="","",Berechnungen!$I40) ->  | I60: =IF(OR(B60="-",AND(D60="",H60="")),"",IF(H60=D60,"Richtig!",IF(H60="","Fehlt","Falsch"))) -> Fehlt | J60: 0 | K60: │ | L60: 1 | N60: x
B61: =IF(Berechnungen!B41="","-",Berechnungen!B41) -> - | C61: Wert 31. Dez. | D61: =IF(Hilfe!$I41="","",Hilfe!$I41) ->  | H61: =IF(Berechnungen!$I41="","",Berechnungen!$I41) ->  | I61: =IF(OR(B61="-",AND(D61="",H61="")),"",IF(H61=D61,"Richtig!",IF(H61="","Fehlt","Falsch"))) ->  | J61: - | N61: x
B62: =IF(Berechnungen!B42="","-",Berechnungen!B42) -> - | C62: Wert 31. Dez. | D62: =IF(Hilfe!$I42="","",Hilfe!$I42) ->  | H62: =IF(Berechnungen!$I42="","",Berechnungen!$I42) ->  | I62: =IF(OR(B62="-",AND(D62="",H62="")),"",IF(H62=D62,"Richtig!",IF(H62="","Fehlt","Falsch"))) ->  | J62: - | N62: x
B63: =IF(Berechnungen!B43="","-",Berechnungen!B43) -> Summe selbst erzeugte Vorräte | C63: Wert 31. Dez. | D63: =IF(Hilfe!$I43="","",Hilfe!$I43) -> 299.76 | F63: =IF(AND(H58="",H59="",H60="",H61="",H62=""),"-",SUM(H58:H62)) -> - | H63: =IF(Berechnungen!$I43="","",Berechnungen!$I43) ->  | I63: =IF(B63="-","",IF(H63=D63,"Richtig!",IF(AND(D63<>H63,F63=H63),"Formel: OK",IF(H63="","Fehlt","Falsch")))) -> Fehlt | J63: 0 | K63: │ | L63: 1 | N63: x
B64: =IF(Berechnungen!B51="","-",Berechnungen!B51) -> Zugekaufte Vorräte | D64: =IF(Hilfe!$I51="","",Hilfe!$I51) ->  | H64: =IF(Berechnungen!$I51="","",Berechnungen!$I51) ->  | N64: x
B65: =IF(Berechnungen!B52="","-",Berechnungen!B52) -> Milchkraftfutter | C65: =MID($B$40,1,12)&"." -> Wert 31. Dez. | D65: =IF(Hilfe!$I52="","",Hilfe!$I52) -> 345 | H65: =IF(Berechnungen!$I52="","",Berechnungen!$I52) ->  | I65: =IF(OR(B65="-",AND(D65="",H65="")),"",IF(H65=D65,"Richtig!",IF(H65="","Fehlt","Falsch"))) -> Fehlt | J65: =IF(OR(B65="-",N65="",AND(D65="",H65="")),"-",IF(I65="Richtig!",1,IF(I65="Formel: OK",0.5,IF(OR(I65="Falsch",I65="Fehlt"),0,"")))) -> 0 | K65: │ | L65: 1 | N65: x
B66: =IF(Berechnungen!B53="","-",Berechnungen!B53) -> Weizenschrot | C66: Wert 31. Dez. | D66: =IF(Hilfe!$I53="","",Hilfe!$I53) -> 95 | H66: =IF(Berechnungen!$I53="","",Berechnungen!$I53) ->  | I66: =IF(OR(B66="-",AND(D66="",H66="")),"",IF(H66=D66,"Richtig!",IF(H66="","Fehlt","Falsch"))) -> Fehlt | J66: 0 | K66: │ | L66: 1 | N66: x
B67: =IF(Berechnungen!B54="","-",Berechnungen!B54) -> Erbsenschrot | C67: Wert 31. Dez. | D67: =IF(Hilfe!$I54="","",Hilfe!$I54) -> 60 | H67: =IF(Berechnungen!$I54="","",Berechnungen!$I54) ->  | I67: =IF(OR(B67="-",AND(D67="",H67="")),"",IF(H67=D67,"Richtig!",IF(H67="","Fehlt","Falsch"))) -> Fehlt | J67: 0 | K67: │ | L67: 1 | N67: x
B68: =IF(Berechnungen!B55="","-",Berechnungen!B55) -> - | C68: Wert 31. Dez. | D68: =IF(Hilfe!$I55="","",Hilfe!$I55) ->  | H68: =IF(Berechnungen!$I55="","",Berechnungen!$I55) ->  | I68: =IF(OR(B68="-",AND(D68="",H68="")),"",IF(H68=D68,"Richtig!",IF(H68="","Fehlt","Falsch"))) ->  | J68: - | N68: x
B69: =IF(Berechnungen!B56="","-",Berechnungen!B56) -> - | C69: Wert 31. Dez. | D69: =IF(Hilfe!$I56="","",Hilfe!$I56) ->  | H69: =IF(Berechnungen!$I56="","",Berechnungen!$I56) ->  | I69: =IF(OR(B69="-",AND(D69="",H69="")),"",IF(H69=D69,"Richtig!",IF(H69="","Fehlt","Falsch"))) ->  | J69: - | N69: x
B70: =IF(Berechnungen!B57="","-",Berechnungen!B57) -> Summe zugekaufte Vorräte | C70: Wert 31. Dez. | D70: =IF(Hilfe!$I57="","",Hilfe!$I57) -> 500 | F70: =IF(AND(H65="",H66="",H67="",H68="",H69=""),"-",SUM(H65:H69)) -> - | H70: =IF(Berechnungen!$I57="","",Berechnungen!$I57) ->  | I70: =IF(B70="-","",IF(H70=D70,"Richtig!",IF(AND(D70<>H70,F70=H70),"Formel: OK",IF(H70="","Fehlt","Falsch")))) -> Fehlt | J70: 0 | K70: │ | L70: 1 | N70: x
N71: x
A72: 3. | B72: Mehrwert/Minderwert | N72: =IF($L$1="","",$L$1) -> x
B73: =IF(Berechnungen!B6="","-",Berechnungen!B6) -> RINDER | N73: x
B74: =IF(Berechnungen!B7="","-",Berechnungen!B7) -> Kühe | C74: =MID($B$72,1,5)&"./"&MID($B$72,10,7)&"." -> Mehrw./Minderw. | D74: =IF(Hilfe!$J7="","",Hilfe!$J7) -> 1029 | F74: =IF(OR(H42="",H10=""),"-",H42-H10) -> - | H74: =IF(Berechnungen!$J7="","",Berechnungen!$J7) ->  | I74: =IF(B74="-","",IF(H74=D74,"Richtig!",IF(AND(D74<>H74,F74=H74),"Formel: OK",IF(H74="","Fehlt","Falsch")))) -> Fehlt | J74: =IF(OR(B74="-",N74="",AND(D74="",H74="")),"-",IF(I74="Richtig!",1,IF(I74="Formel: OK",0.5,IF(OR(I74="Falsch",I74="Fehlt"),0,"")))) -> 0 | K74: =IF(L74="","","│") -> │ | L74: =IF(OR(B74="-",N74="",AND(D74="",H74="")),"",1) -> 1 | N74: x
B75: =IF(Berechnungen!B8="","-",Berechnungen!B8) -> Kalbinnen | C75: Mehrw./Minderw. | D75: =IF(Hilfe!$J8="","",Hilfe!$J8) -> -2242 | F75: =IF(OR(H43="",H11=""),"-",H43-H11) -> - | H75: =IF(Berechnungen!$J8="","",Berechnungen!$J8) ->  | I75: =IF(B75="-","",IF(H75=D75,"Richtig!",IF(AND(D75<>H75,F75=H75),"Formel: OK",IF(H75="","Fehlt","Falsch")))) -> Fehlt | J75: 0 | K75: │ | L75: 1 | N75: x
B76: =IF(Berechnungen!B9="","-",Berechnungen!B9) -> Jungvieh 1 - 2 J. | C76: Mehrw./Minderw. | D76: =IF(Hilfe!$J9="","",Hilfe!$J9) -> 707 | F76: - | H76: =IF(Berechnungen!$J9="","",Berechnungen!$J9) ->  | I76: Fehlt | J76: 0 | K76: │ | L76: 1 | N76: x
B77: =IF(Berechnungen!B10="","-",Berechnungen!B10) -> Jungvieh bis 1 J. | C77: Mehrw./Minderw. | D77: =IF(Hilfe!$J10="","",Hilfe!$J10) -> 520 | F77: - | H77: =IF(Berechnungen!$J10="","",Berechnungen!$J10) ->  | I77: Fehlt | J77: 0 | K77: │ | L77: 1 | N77: x
B78: =IF(Berechnungen!B11="","-",Berechnungen!B11) -> Kälber weib. | C78: Mehrw./Minderw. | D78: =IF(Hilfe!$J11="","",Hilfe!$J11) -> 4 | F78: - | H78: =IF(Berechnungen!$J11="","",Berechnungen!$J11) ->  | I78: Fehlt | J78: 0 | K78: │ | L78: 1 | N78: x
B79: =IF(Berechnungen!B12="","-",Berechnungen!B12) -> Kälber männ. | C79: Mehrw./Minderw. | D79: =IF(Hilfe!$J12="","",Hilfe!$J12) -> -179 | F79: - | H79: =IF(Berechnungen!$J12="","",Berechnungen!$J12) ->  | I79: Fehlt | J79: 0 | K79: │ | L79: 1 | N79: x
B80: =IF(Berechnungen!B13="","-",Berechnungen!B13) -> - | C80: Mehrw./Minderw. | D80: =IF(Hilfe!$J13="","",Hilfe!$J13) ->  | F80: - | H80: =IF(Berechnungen!$J13="","",Berechnungen!$J13) ->  | J80: - | N80: x
B81: =IF(Berechnungen!B14="","-",Berechnungen!B14) -> Summe RINDER | C81: Mehrw./Minderw. | D81: =IF(Hilfe!$J14="","",Hilfe!$J14) -> -161 | F81: - | H81: =IF(Berechnungen!$J14="","",Berechnungen!$J14) ->  | I81: Fehlt | J81: 0 | K81: │ | L81: 1 | N81: x
B82: =IF(Berechnungen!B22="","-",Berechnungen!B22) -> SCHWEINE | N82: x
B83: =IF(Berechnungen!B23="","-",Berechnungen!B23) -> Mastsauen | C83: =MID($B$72,1,5)&"./"&MID($B$72,10,7)&"." -> Mehrw./Minderw. | D83: =IF(Hilfe!$J23="","",Hilfe!$J23) -> 745.74 | F83: =IF(AND(H51="",H19=""),"-",H51-H19) -> - | H83: =IF(Berechnungen!$J23="","",Berechnungen!$J23) ->  | I83: =IF(B83="-","",IF(H83=D83,"Richtig!",IF(AND(D83<>H83,F83=H83),"Formel: OK",IF(H83="","Fehlt","Falsch")))) -> Fehlt | J83: =IF(OR(B83="-",N83="",AND(D83="",H83="")),"-",IF(I83="Richtig!",1,IF(I83="Formel: OK",0.5,IF(OR(I83="Falsch",I83="Fehlt"),0,"")))) -> 0 | K83: =IF(L83="","","│") -> │ | L83: =IF(OR(B83="-",N83="",AND(D83="",H83="")),"",1) -> 1 | N83: x
B84: =IF(Berechnungen!B24="","-",Berechnungen!B24) -> Ferkel | C84: Mehrw./Minderw. | D84: =IF(Hilfe!$J24="","",Hilfe!$J24) -> 109.64 | F84: =IF(AND(H52="",H20=""),"-",H52-H20) -> - | H84: =IF(Berechnungen!$J24="","",Berechnungen!$J24) ->  | I84: Fehlt | J84: 0 | K84: │ | L84: 1 | N84: x
B85: =IF(Berechnungen!B25="","-",Berechnungen!B25) -> - | C85: Mehrw./Minderw. | D85: =IF(Hilfe!$J25="","",Hilfe!$J25) ->  | F85: =IF(AND(H53="",H21=""),"-",H53-H21) -> - | H85: =IF(Berechnungen!$J25="","",Berechnungen!$J25) ->  | J85: - | N85: x
B86: =IF(Berechnungen!B26="","-",Berechnungen!B26) -> - | C86: Mehrw./Minderw. | D86: =IF(Hilfe!$J26="","",Hilfe!$J26) ->  | F86: =IF(AND(H54="",H22=""),"-",H54-H22) -> - | H86: =IF(Berechnungen!$J26="","",Berechnungen!$J26) ->  | J86: - | N86: x
B87: =IF(Berechnungen!B27="","-",Berechnungen!B27) -> - | C87: Mehrw./Minderw. | D87: =IF(Hilfe!$J27="","",Hilfe!$J27) ->  | F87: =IF(AND(H55="",H23=""),"-",H55-H23) -> - | H87: =IF(Berechnungen!$J27="","",Berechnungen!$J27) ->  | J87: - | N87: x
B88: =IF(Berechnungen!B28="","-",Berechnungen!B28) -> Summe SCHWEINE | C88: Mehrw./Minderw. | D88: =IF(Hilfe!$J28="","",Hilfe!$J28) -> 855.38 | F88: =IF(AND(H83="",H84="",H85="",H86="",H87=""),"-",SUM(H83:H87)) -> - | H88: =IF(Berechnungen!$J28="","",Berechnungen!$J28) ->  | I88: Fehlt | J88: 0 | K88: │ | L88: 1 | N88: x
B89: =IF(Berechnungen!B37="","-",Berechnungen!B37) -> Selbst erzeugte Vorräte | N89: x
B90: =IF(Berechnungen!B38="","-",Berechnungen!B38) -> Gerste | C90: =MID($B$72,1,5)&"./"&MID($B$72,10,7)&"." -> Mehrw./Minderw. | D90: =IF(Hilfe!$J38="","",Hilfe!$J38) -> 92 | F90: =IF(AND(H58="",H26=""),"-",H58-H26) -> - | H90: =IF(Berechnungen!$J38="","",Berechnungen!$J38) ->  | I90: =IF(B90="-","",IF(H90=D90,"Richtig!",IF(AND(D90<>H90,F90=H90),"Formel: OK",IF(H90="","Fehlt","Falsch")))) -> Fehlt | J90: =IF(OR(B90="-",N90="",AND(D90="",H90="")),"-",IF(I90="Richtig!",1,IF(I90="Formel: OK",0.5,IF(OR(I90="Falsch",I90="Fehlt"),0,"")))) -> 0 | K90: =IF(L90="","","│") -> │ | L90: =IF(OR(B90="-",N90="",AND(D90="",H90="")),"",1) -> 1 | N90: x
B91: =IF(Berechnungen!B39="","-",Berechnungen!B39) -> Futterkartoffeln | C91: Mehrw./Minderw. | D91: =IF(Hilfe!$J39="","",Hilfe!$J39) -> -4.5 | F91: =IF(AND(H59="",H27=""),"-",H59-H27) -> - | H91: =IF(Berechnungen!$J39="","",Berechnungen!$J39) ->  | I91: Fehlt | J91: 0 | K91: │ | L91: 1 | N91: x
B92: =IF(Berechnungen!B40="","-",Berechnungen!B40) -> Brennholz | C92: Mehrw./Minderw. | D92: =IF(Hilfe!$J40="","",Hilfe!$J40) -> -628.64 | F92: =IF(AND(H60="",H28=""),"-",H60-H28) -> - | H92: =IF(Berechnungen!$J40="","",Berechnungen!$J40) ->  | I92: Fehlt | J92: 0 | K92: │ | L92: 1 | N92: x
B93: =IF(Berechnungen!B41="","-",Berechnungen!B41) -> - | C93: Mehrw./Minderw. | D93: =IF(Hilfe!$J41="","",Hilfe!$J41) ->  | F93: =IF(AND(H61="",H29=""),"-",H61-H29) -> - | H93: =IF(Berechnungen!$J41="","",Berechnungen!$J41) ->  | J93: - | N93: x
B94: =IF(Berechnungen!B42="","-",Berechnungen!B42) -> - | C94: Mehrw./Minderw. | D94: =IF(Hilfe!$J42="","",Hilfe!$J42) ->  | F94: =IF(AND(H62="",H30=""),"-",H62-H30) -> - | H94: =IF(Berechnungen!$J42="","",Berechnungen!$J42) ->  | J94: - | N94: x
B95: =IF(Berechnungen!B43="","-",Berechnungen!B43) -> Summe selbst erzeugte Vorräte | C95: Mehrw./Minderw. | D95: =IF(Hilfe!$J43="","",Hilfe!$J43) -> -541.14 | F95: =IF(AND(H90="",H91="",H92="",H93="",H94=""),"-",SUM(H90:H94)) -> - | H95: =IF(Berechnungen!$J43="","",Berechnungen!$J43) ->  | I95: Fehlt | J95: 0 | K95: │ | L95: 1 | N95: x
B96: =IF(Berechnungen!B51="","-",Berechnungen!B51) -> Zugekaufte Vorräte | D96: =IF(Hilfe!$J51="","",Hilfe!$J51) ->  | H96: =IF(Berechnungen!$J51="","",Berechnungen!$J51) ->  | N96: x
B97: =IF(Berechnungen!B52="","-",Berechnungen!B52) -> Milchkraftfutter | C97: =MID($B$72,1,5)&"./"&MID($B$72,10,7)&"." -> Mehrw./Minderw. | D97: =IF(Hilfe!$J52="","",Hilfe!$J52) -> 202 | F97: =IF(AND(H65="",H33=""),"-",H65-H33) -> - | H97: =IF(Berechnungen!$J52="","",Berechnungen!$J52) ->  | I97: =IF(B97="-","",IF(H97=D97,"Richtig!",IF(AND(D97<>H97,F97=H97),"Formel: OK",IF(H97="","Fehlt","Falsch")))) -> Fehlt | J97: =IF(OR(B97="-",N97="",AND(D97="",H97="")),"-",IF(I97="Richtig!",1,IF(I97="Formel: OK",0.5,IF(OR(I97="Falsch",I97="Fehlt"),0,"")))) -> 0 | K97: │ | L97: 1 | N97: x
B98: =IF(Berechnungen!B53="","-",Berechnungen!B53) -> Weizenschrot | C98: Mehrw./Minderw. | D98: =IF(Hilfe!$J53="","",Hilfe!$J53) -> 25 | F98: =IF(AND(H66="",H34=""),"-",H66-H34) -> - | H98: =IF(Berechnungen!$J53="","",Berechnungen!$J53) ->  | I98: Fehlt | J98: 0 | K98: │ | L98: 1 | N98: x
B99: =IF(Berechnungen!B54="","-",Berechnungen!B54) -> Erbsenschrot | C99: Mehrw./Minderw. | D99: =IF(Hilfe!$J54="","",Hilfe!$J54) -> 45 | F99: =IF(AND(H67="",H35=""),"-",H67-H35) -> - | H99: =IF(Berechnungen!$J54="","",Berechnungen!$J54) ->  | I99: Fehlt | J99: 0 | K99: │ | L99: 1 | N99: x
B100: =IF(Berechnungen!B55="","-",Berechnungen!B55) -> - | C100: Mehrw./Minderw. | D100: =IF(Hilfe!$J55="","",Hilfe!$J55) ->  | F100: =IF(AND(H68="",H36=""),"-",H68-H36) -> - | H100: =IF(Berechnungen!$J55="","",Berechnungen!$J55) ->  | J100: - | N100: x
B101: =IF(Berechnungen!B56="","-",Berechnungen!B56) -> - | C101: Mehrw./Minderw. | D101: =IF(Hilfe!$J56="","",Hilfe!$J56) ->  | F101: =IF(AND(H69="",H37=""),"-",H69-H37) -> - | H101: =IF(Berechnungen!$J56="","",Berechnungen!$J56) ->  | J101: - | N101: x
B102: =IF(Berechnungen!B57="","-",Berechnungen!B57) -> Summe zugekaufte Vorräte | C102: Mehrw./Minderw. | D102: =IF(Hilfe!$J57="","",Hilfe!$J57) -> 272 | F102: =IF(AND(H97="",H98="",H99="",H100="",H101=""),"-",SUM(H97:H101)) -> - | H102: =IF(Berechnungen!$J57="","",Berechnungen!$J57) ->  | I102: Fehlt | J102: 0 | K102: │ | L102: 1 | N102: x
N103: x
A104: 4. | B104: Mehrwert/Minderwert | N104: x
B105: =IF(Berechnungen!B6="","-",Berechnungen!B6) -> RINDER | N105: x
B106: =IF(Berechnungen!D16="","-",Berechnungen!D16) -> Mehrwert | C106: Kreuze an! | D106: =IF(Hilfe!$C16="","",Hilfe!$C16) ->  | F106: =IF(H81="","-",IF(H81>0,"x","")) -> - | H106: =IF(Berechnungen!$C16="","",Berechnungen!$C16) ->  | I106: =IF(AND(B106="",B107="",B108=""),"",IF(AND(H106=D106,H107=D107,H108=D108),"Richtig!",IF(AND(D106<>H106,F106=H106,D107<>H107,F107=H107,D108<>H108,F108=H108),"Formel: OK",IF(AND(H106="",H107="",H108=""),"Fehlt","Falsch")))) -> Fehlt | J106: =IF(OR(N106<>"x",B106="-"),"-",IF(I106="Richtig!",1,IF(I106="Formel: OK",0.5,IF(OR(I106="Falsch",I106="Fehlt"),0,"")))) -> 0 | K106: │ | L106: =IF(OR(N106<>"x",B106=""),"-",1) -> 1 | N106: x
B107: =IF(Berechnungen!D18="","-",Berechnungen!D18) -> gleich geblieben | C107: Kreuze an! | D107: =IF(Hilfe!$C18="","",Hilfe!$C18) ->  | F107: =IF(H81="","-",IF(H81=0,"x","")) -> - | H107: =IF(Berechnungen!$C18="","",Berechnungen!$C18) ->  | N107: x
B108: =IF(Berechnungen!D20="","-",Berechnungen!D20) -> Minderwert | C108: Kreuze an! | D108: =IF(Hilfe!$C20="","",Hilfe!$C20) -> x | F108: =IF(H81="","-",IF(H81<0,"x","")) -> - | H108: =IF(Berechnungen!$C20="","",Berechnungen!$C20) ->  | N108: x
B109: =IF(Berechnungen!B22="","-",Berechnungen!B22) -> SCHWEINE | N109: x
B110: =IF(Berechnungen!D30="","-",Berechnungen!D30) -> Mehrwert | C110: Kreuze an! | D110: =IF(Hilfe!$C30="","",Hilfe!$C30) -> x | F110: =IF(H95="","-",IF(H95>0,"x","")) -> - | H110: =IF(Berechnungen!$C30="","",Berechnungen!$C30) ->  | I110: =IF(AND(B110="",B111="",B112=""),"",IF(AND(H110=D110,H111=D111,H112=D112),"Richtig!",IF(AND(D110<>H110,F110=H110,D111<>H111,F111=H111,D112<>H112,F112=H112),"Formel: OK",IF(AND(H110="",H111="",H112=""),"Fehlt","Falsch")))) -> Fehlt | J110: =IF(OR(N110<>"x",B110="-"),"-",IF(I110="Richtig!",1,IF(I110="Formel: OK",0.5,IF(OR(I110="Falsch",I110="Fehlt"),0,"")))) -> 0 | K110: │ | L110: =IF(OR(N110<>"x",B110=""),"-",1) -> 1 | N110: x
B111: =IF(Berechnungen!D32="","-",Berechnungen!D32) -> gleich geblieben | C111: Kreuze an! | D111: =IF(Hilfe!$C32="","",Hilfe!$C32) ->  | F111: =IF(H95="","-",IF(H95=0,"x","")) -> - | H111: =IF(Berechnungen!$C32="","",Berechnungen!$C32) ->  | N111: x
B112: =IF(Berechnungen!D34="","-",Berechnungen!D34) -> Minderwert | C112: Kreuze an! | D112: =IF(Hilfe!$C34="","",Hilfe!$C34) ->  | F112: =IF(H95="","-",IF(H95<0,"x","")) -> - | H112: =IF(Berechnungen!$C34="","",Berechnungen!$C34) ->  | N112: x
B113: =IF(Berechnungen!B37="","-",Berechnungen!B37) -> Selbst erzeugte Vorräte | N113: x
B114: =IF(Berechnungen!D45="","-",Berechnungen!D45) -> Mehrwert | C114: Kreuze an! | D114: =IF(Hilfe!$C45="","",Hilfe!$C45) ->  | F114: =IF(H95="","-",IF(H95>0,"x","")) -> - | H114: =IF(Berechnungen!$C45="","",Berechnungen!$C45) ->  | I114: =IF(AND(B114="",B115="",B116=""),"",IF(AND(H114=D114,H115=D115,H116=D116),"Richtig!",IF(AND(D114<>H114,F114=H114,D115<>H115,F115=H115,D116<>H116,F116=H116),"Formel: OK",IF(AND(H114="",H115="",H116=""),"Fehlt","Falsch")))) -> Fehlt | J114: =IF(OR(N114<>"x",B114="-"),"-",IF(I114="Richtig!",1,IF(I114="Formel: OK",0.5,IF(OR(I114="Falsch",I114="Fehlt"),0,"")))) -> 0 | K114: │ | L114: =IF(OR(N114<>"x",B114=""),"-",1) -> 1 | N114: x
B115: =IF(Berechnungen!D47="","-",Berechnungen!D47) -> gleich geblieben | C115: Kreuze an! | D115: =IF(Hilfe!$C47="","",Hilfe!$C47) ->  | F115: =IF(H95="","-",IF(H95=0,"x","")) -> - | H115: =IF(Berechnungen!$C47="","",Berechnungen!$C47) ->  | N115: x
B116: =IF(Berechnungen!D49="","-",Berechnungen!D49) -> Minderwert | C116: Kreuze an! | D116: =IF(Hilfe!$C49="","",Hilfe!$C49) -> x | F116: =IF(H95="","-",IF(H95<0,"x","")) -> - | H116: =IF(Berechnungen!$C49="","",Berechnungen!$C49) ->  | N116: x
B117: =IF(Berechnungen!B51="","-",Berechnungen!B51) -> Zugekaufte Vorräte | N117: x
B118: =IF(Berechnungen!D59="","-",Berechnungen!D59) -> Mehrwert | C118: Kreuze an! | D118: =IF(Hilfe!$C59="","",Hilfe!$C59) -> x | F118: =IF(H109="","-",IF(H109>0,"x","")) -> - | H118: =IF(Berechnungen!$C59="","",Berechnungen!$C59) ->  | I118: =IF(AND(B118="",B119="",B120=""),"",IF(AND(H118=D118,H119=D119,H120=D120),"Richtig!",IF(AND(D118<>H118,F118=H118,D119<>H119,F119=H119,D120<>H120,F120=H120),"Formel: OK",IF(AND(H118="",H119="",H120=""),"Fehlt","Falsch")))) -> Fehlt | J118: =IF(OR(N118<>"x",B118="-"),"-",IF(I118="Richtig!",1,IF(I118="Formel: OK",0.5,IF(OR(I118="Falsch",I118="Fehlt"),0,"")))) -> 0 | K118: │ | L118: =IF(OR(N118<>"x",B118=""),"-",1) -> 1 | N118: x
B119: =IF(Berechnungen!D61="","-",Berechnungen!D61) -> gleich geblieben | C119: Kreuze an! | D119: =IF(Hilfe!$C61="","",Hilfe!$C61) ->  | F119: =IF(H109="","-",IF(H109=0,"x","")) -> - | H119: =IF(Berechnungen!$C61="","",Berechnungen!$C61) ->  | N119: x
B120: =IF(Berechnungen!D63="","-",Berechnungen!D63) -> Minderwert | C120: Kreuze an! | D120: =IF(Hilfe!$C63="","",Hilfe!$C63) ->  | F120: =IF(H109="","-",IF(H109<0,"x","")) -> - | H120: =IF(Berechnungen!$C63="","",Berechnungen!$C63) ->  | N120: x
N121: x
A122: Gesamtpunktezahl | D122: =SUM(COUNT(D10:D120),COUNTIF(D10:D120,"x")) -> 58 | H122: =SUM(COUNT(H10:H120),COUNTIF(H10:H120,"x")) -> 0 | J122: =Berechnungen!M65 -> 0 | K122: =IF(L122="","","│") -> │ | L122: =Berechnungen!O65 -> 22 | N122: x
N123: =N122 -> x
A124: =Berechnungen!A1999 -> NACHNAME Vorname | L124: ="KNr.: "&TEXT(Berechnungen!Q1,"00") -> KNr.: 20
A125: Note | C125: =IF(L122=0,"",J122/L122) -> 0
B126: =C126-I130+J129 -> 22 | C126: =L122 -> 22 | D126: =IF(AND(J122>=B126-0.5,J122<=C126),"u","j") -> j | E126: =IF(OR(J122=B126-0.5,J122=B126),"-","") -> 
B127: =C127-I130+J129 -> 21 | C127: =B126-1 -> 21 | D127: =IF(AND(J122>=B127-0.5,J122<=C127),"v","k") -> k | E127: =IF(OR(J122=B127-0.5,J122=B127),"-",IF(OR(J122=C127-0.5,J122=C127),"+","")) -> 
B128: =C128-I130 -> 17 | C128: =B127-1 -> 20 | D128: =IF(AND(J122>=B128-0.5,J122<=C128),"w","l") -> l | E128: =IF(OR(J122=B128-0.5,J122=B128),"-",IF(OR(J122=C128-0.5,J122=C128),"+","")) ->  | I128: Abstufung 1 | J128: Abstufung 2
B129: =C129-I130 -> 13 | C129: =B128-1 -> 16 | D129: =IF(AND(J122>=B129-0.5,J122<=C129),"x","m") -> m | E129: =IF(OR(J122=B129-0.5,J122=B129),"-",IF(OR(J122=C129-0.5,J122=C129),"+","")) ->  | G129: Abstufung: | I129: 0.13 | J129: 3
B130: 0 | C130: =B129-1 -> 12 | D130: =IF(L122=0,"",IF(AND(J122>=B130-0.5,J122<=C130),"y","n")) -> y | E130: =IF(OR(J122=C130-1,J122=C130-0.5,J122=C130),"+","") ->  | I130: =ROUND(L122*I129,0) -> 3
B133: Schüler
A134: 1 | B134: Achenrainer Christoph
A135: 2 | B135: Auer Thomas
A136: 3 | B136: Drexel Dominik
A137: 4 | B137: Egger Christian
A138: 5 | B138: Falkner Mario
A139: 6 | B139: Föger Martin
A140: 7 | B140: Gapp Benjamin
A141: 8 | B141: Gaßler Bernhard
A142: 9 | B142: Grissemann Daniel
A143: 10 | B143: Gufler Michael
A144: 11 | B144: Haslwanter Christoph
A145: 12 | B145: Holzknecht Johannes
A146: 13 | B146: Holzknecht Raffael
A147: 14 | B147: Jenewein Mario
A148: 15 | B148: Juen Matthäus
A149: 16 | B149: Knittel Marcus
A150: 17 | B150: Knittel Pirmin
A151: 18 | B151: Köfler Andreas
A152: 19 | B152: Köhle Christian
A153: 20 | B153: Schimpfößl Johannes
A154: 21
A155: 22 | B155: Krug Markus
A156: 23 | B156: Kuprian Renè
A157: 24 | B157: Kuprian Sandro
A158: 25 | B158: Maaß Matthäus
A159: 26 | B159: Muigg Simon
A160: 27 | B160: Neuner Wendelin
A161: 28 | B161: Neururer Bernhard
A162: 29 | B162: Ostermann Christoph
A163: 30 | B163: Pedroß Matthias
A164: 31 | B164: Pfeifer Gregor
A165: 32 | B165: Pichler Fabian
A166: 33 | B166: Regensburger Thomas
A167: 34 | B167: Rief Christian
A168: 35 | B168: Schaffenrath Sandro
A169: 36 | B169: Scheiber Michael
A170: 37 | B170: Schöpf Florian
A171: 38 | B171: Schuster Michael
A172: 39 | B172: Weiß Patrick
A173: 40 | B173: Weistreicher Christoph
A174: 41 | B174: Zangerl Alexander
A175: 42 | B175: Zöhrer Stefan
A176: 43
A177: 44
A178: 45
A179: 46
A180: 47
A181: 48
A182: 49
A183: 50

Sheet Hilfe
B1: Modell - Bewertung von Umlaufvermögen | V1: Notizen
D3: Bestand am 01. 01. | F3: =IF(Dateneingabe!D12="","",Dateneingabe!D12) -> 2024 | G3: Bestand am 31. 12. | I3: =IF(Dateneingabe!D12="","",Dateneingabe!D12) -> 2024 | J3: Mehr- Minderwert
D4: Menge | E4: €/Stück | F4: Gesamt | G4: Menge | H4: €/Stück | I4: Gesamt
B5: V IEHBESTAND | M5: =D3&" "&F3 -> Bestand am 01. 01. 2024
B6: =IF(Dateneingabe!D14="","",Dateneingabe!D14) -> RINDER | M6: Gesamt1.1. = Menge1.1. x €/Stück1.1.
B7: =IF(Dateneingabe!C18="","",Dateneingabe!C18) -> Kühe | D7: =IF(Dateneingabe!E18="","",Dateneingabe!E18) -> 9 | E7: =IF(Dateneingabe!S18="","",Dateneingabe!S18) -> 1019 | F7: =IF(OR(D7="",E7=""),"",D7*E7) -> 9171 | G7: =IF(Dateneingabe!K18="","",Dateneingabe!K18) -> 10 | H7: =IF(Dateneingabe!T18="","",Dateneingabe!T18) -> 1020 | I7: =IF(OR(G7="",H7=""),"",G7*H7) -> 10200 | J7: =IF(AND(F7="",I7=""),"",I7-F7) -> 1029 | M7: =IF(B7="","",MID(M6,1,6)) -> Gesamt | N7: =IF(B7="","","1.1.("&B7&")") -> 1.1.(Kühe) | P7: =IF(B7="","","= "&FIXED(D7,0)&" x "&DOLLAR(E7,2)&" = "&DOLLAR(D7*E7,2)) -> = 9 x € 1 019,00 = € 9 171,00
B8: =IF(Dateneingabe!C20="","",Dateneingabe!C20) -> Kalbinnen | D8: =IF(Dateneingabe!E20="","",Dateneingabe!E20) -> 6 | E8: =IF(Dateneingabe!S20="","",Dateneingabe!S20) -> 1115 | F8: 6690 | G8: =IF(Dateneingabe!K20="","",Dateneingabe!K20) -> 4 | H8: =IF(Dateneingabe!T20="","",Dateneingabe!T20) -> 1112 | I8: 4448 | J8: -2242 | M8: =IF(B8="","",MID(M6,1,6)) -> Gesamt | N8: 1.1.(Kalbinnen) | P8: = 6 x € 1 115,00 = € 6 690,00
B9: =IF(Dateneingabe!C22="","",Dateneingabe!C22) -> Jungvieh 1 - 2 J. | D9: =IF(Dateneingabe!E22="","",Dateneingabe!E22) -> 4 | E9: =IF(Dateneingabe!S22="","",Dateneingabe!S22) -> 712 | F9: 2848 | G9: =IF(Dateneingabe!K22="","",Dateneingabe!K22) -> 5 | H9: =IF(Dateneingabe!T22="","",Dateneingabe!T22) -> 711 | I9: 3555 | J9: 707 | M9: =IF(B9="","",MID(M6,1,6)) -> Gesamt | N9: 1.1.(Jungvieh 1 - 2 J.) | P9: = 4 x € 712,00 = € 2 848,00
B10: =IF(Dateneingabe!C24="","",Dateneingabe!C24) -> Jungvieh bis 1 J. | D10: =IF(Dateneingabe!E24="","",Dateneingabe!E24) -> 5 | E10: =IF(Dateneingabe!S24="","",Dateneingabe!S24) -> 526 | F10: 2630 | G10: =IF(Dateneingabe!K24="","",Dateneingabe!K24) -> 6 | H10: =IF(Dateneingabe!T24="","",Dateneingabe!T24) -> 525 | I10: 3150 | J10: 520 | M10: =IF(B10="","",MID(M6,1,6)) -> Gesamt | N10: 1.1.(Jungvieh bis 1 J.) | P10: = 5 x € 526,00 = € 2 630,00
B11: =IF(Dateneingabe!C26="","",Dateneingabe!C26) -> Kälber weib. | D11: =IF(Dateneingabe!E26="","",Dateneingabe!E26) -> 4 | E11: =IF(Dateneingabe!S26="","",Dateneingabe!S26) -> 295 | F11: 1180 | G11: =IF(Dateneingabe!K26="","",Dateneingabe!K26) -> 4 | H11: =IF(Dateneingabe!T26="","",Dateneingabe!T26) -> 296 | I11: 1184 | J11: 4 | M11: =IF(B11="","",MID(M6,1,6)) -> Gesamt | N11: 1.1.(Kälber weib.) | P11: = 4 x € 295,00 = € 1 180,00
B12: =IF(Dateneingabe!C28="","",Dateneingabe!C28) -> Kälber männ. | D12: =IF(Dateneingabe!E28="","",Dateneingabe!E28) -> 3 | E12: =IF(Dateneingabe!S28="","",Dateneingabe!S28) -> 179 | F12: 537 | G12: =IF(Dateneingabe!K28="","",Dateneingabe!K28) -> 2 | H12: =IF(Dateneingabe!T28="","",Dateneingabe!T28) -> 179 | I12: 358 | J12: -179 | M12: =IF(B12="","",MID(M6,1,6)) -> Gesamt | N12: 1.1.(Kälber männ.) | P12: = 3 x € 179,00 = € 537,00
B13: =IF(Dateneingabe!C30="","",Dateneingabe!C30) ->  | D13: =IF(Dateneingabe!E30="","",Dateneingabe!E30) ->  | E13: =IF(Dateneingabe!S30="","",Dateneingabe!S30) ->  | G13: =IF(Dateneingabe!K30="","",Dateneingabe!K30) ->  | H13: =IF(Dateneingabe!T30="","",Dateneingabe!T30) ->  | M13: =IF(B13="","",MID(M6,1,6)) -> 
B14: ="Summe "&B6 -> Summe RINDER | F14: =IF(SUM(F7:F13)=0,"",SUM(F7:F13)) -> 23056 | I14: =IF(SUM(I7:I13)=0,"",SUM(I7:I13)) -> 22895 | J14: -161
C16: =IF(J14>0,"x","") ->  | D16: Mehrwert | F16: =IF(J14>0,"... in Höhe von:","") ->  | G16: =IF(J14>0,J14,"") -> 
C18: =IF(J14=0,"x","") ->  | D18: gleich geblieben | I18: =IF(C20<>"","ACHTUNG: Wert ohne (Minus) '-' übernehemen!","") -> ACHTUNG: Wert ohne (Minus) '-' übernehemen!
C20: =IF(J14<0,"x","") -> x | D20: Minderwert | F20: =IF(J14<0,"... in Höhe von:","") -> ... in Höhe von: | G20: =IF(J14<0,-J14,"") -> 161 | M20: =G3&" "&I3 -> Bestand am 31. 12. 2024
M21: Gesamt31.12. = Menge31.12. x €/Stück31.12.
B22: =IF(Dateneingabe!D32="","",UPPER(Dateneingabe!D32)) -> SCHWEINE | M22: =IF($B$7="","",MID(M21,1,6)) -> Gesamt | N22: =IF($B$7="","","31.12.("&$B$7&")") -> 31.12.(Kühe) | P22: =IF($B$7="","","= "&FIXED(G7,0)&" x "&DOLLAR(H7,2)&" = "&DOLLAR(G7*H7,2)) -> = 10 x € 1 020,00 = € 10 200,00
B23: =IF(Dateneingabe!C36="","",Dateneingabe!C36) -> Mastsauen | D23: =IF(Dateneingabe!E36="","",Dateneingabe!E36) -> 2 | E23: =IF(Dateneingabe!S36="","",Dateneingabe!S36) -> 148.63 | F23: =IF(OR(D23="",E23=""),"",D23*E23) -> 297.26 | G23: =IF(Dateneingabe!K36="","",Dateneingabe!K36) -> 7 | H23: =IF(Dateneingabe!T36="","",Dateneingabe!T36) -> 149 | I23: =IF(OR(G23="",H23=""),"",G23*H23) -> 1043 | J23: =IF(AND(F23="",I23=""),"",I23-F23) -> 745.74 | M23: =IF($B$8="","",MID(M21,1,6)) -> Gesamt | N23: =IF($B$8="","","31.12.("&$B$8&")") -> 31.12.(Kalbinnen) | P23: =IF($B$8="","","= "&FIXED(G8,0)&" x "&DOLLAR(H8,2)&" = "&DOLLAR(G8*H8,2)) -> = 4 x € 1 112,00 = € 4 448,00
B24: =IF(Dateneingabe!C38="","",Dateneingabe!C38) -> Ferkel | D24: =IF(Dateneingabe!E38="","",Dateneingabe!E38) -> 2 | E24: =IF(Dateneingabe!S38="","",Dateneingabe!S38) -> 55.18 | F24: =IF(OR(D24="",E24=""),"",D24*E24) -> 110.36 | G24: =IF(Dateneingabe!K38="","",Dateneingabe!K38) -> 4 | H24: =IF(Dateneingabe!T38="","",Dateneingabe!T38) -> 55 | I24: =IF(OR(G24="",H24=""),"",G24*H24) -> 220 | J24: =IF(AND(F24="",I24=""),"",I24-F24) -> 109.64 | M24: =IF($B$9="","",MID(M21,1,6)) -> Gesamt | N24: =IF($B$9="","","31.12.("&$B$9&")") -> 31.12.(Jungvieh 1 - 2 J.) | P24: =IF($B$9="","","= "&FIXED(G9,0)&" x "&DOLLAR(H9,2)&" = "&DOLLAR(G9*H9,2)) -> = 5 x € 711,00 = € 3 555,00
B25: =IF(Dateneingabe!C40="","",Dateneingabe!C40) ->  | D25: =IF(Dateneingabe!E40="","",Dateneingabe!E40) ->  | E25: =IF(Dateneingabe!S40="","",Dateneingabe!S40) ->  | F25: =IF(OR(D25="",E25=""),"",D25*E25) ->  | G25: =IF(Dateneingabe!K40="","",Dateneingabe!K40) ->  | H25: =IF(Dateneingabe!T40="","",Dateneingabe!T40) ->  | I25: =IF(OR(G25="",H25=""),"",G25*H25) ->  | J25: =IF(AND(F25="",I25=""),"",I25-F25) ->  | M25: =IF($B$10="","",MID(M21,1,6)) -> Gesamt | N25: =IF($B$10="","","31.12.("&$B$10&")") -> 31.12.(Jungvieh bis 1 J.) | P25: =IF($B$10="","","= "&FIXED(G10,0)&" x "&DOLLAR(H10,2)&" = "&DOLLAR(G10*H10,2)) -> = 6 x € 525,00 = € 3 150,00
B26: =IF(Dateneingabe!C42="","",Dateneingabe!C42) ->  | D26: =IF(Dateneingabe!E42="","",Dateneingabe!E42) ->  | E26: =IF(Dateneingabe!S42="","",Dateneingabe!S42) ->  | F26: =IF(OR(D26="",E26=""),"",D26*E26) ->  | G26: =IF(Dateneingabe!K42="","",Dateneingabe!K42) ->  | H26: =IF(Dateneingabe!T42="","",Dateneingabe!T42) ->  | I26: =IF(OR(G26="",H26=""),"",G26*H26) ->  | J26: =IF(AND(F26="",I26=""),"",I26-F26) ->  | M26: =IF($B$11="","",MID(M21,1,6)) -> Gesamt | N26: =IF($B$11="","","31.12.("&$B$11&")") -> 31.12.(Kälber weib.) | P26: =IF($B$11="","","= "&FIXED(G11,0)&" x "&DOLLAR(H11,2)&" = "&DOLLAR(G11*H11,2)) -> = 4 x € 296,00 = € 1 184,00
B27: =IF(Dateneingabe!C44="","",Dateneingabe!C44) ->  | D27: =IF(Dateneingabe!E44="","",Dateneingabe!E44) ->  | E27: =IF(Dateneingabe!S44="","",Dateneingabe!S44) ->  | F27: =IF(OR(D27="",E27=""),"",D27*E27) ->  | G27: =IF(Dateneingabe!K44="","",Dateneingabe!K44) ->  | H27: =IF(Dateneingabe!T44="","",Dateneingabe!T44) ->  | I27: =IF(OR(G27="",H27=""),"",G27*H27) ->  | J27: =IF(AND(F27="",I27=""),"",I27-F27) ->  | M27: =IF($B$12="","",MID(M21,1,6)) -> Gesamt | N27: =IF($B$12="","","31.12.("&$B$12&")") -> 31.12.(Kälber männ.) | P27: =IF($B$12="","","= "&FIXED(G12,0)&" x "&DOLLAR(H12,2)&" = "&DOLLAR(G12*H12,2)) -> = 2 x € 179,00 = € 358,00
B28: ="Summe "&B22 -> Summe SCHWEINE | F28: =IF(SUM(F23:F27)=0,"",SUM(F23:F27)) -> 407.62 | I28: =IF(SUM(I23:I27)=0,"",SUM(I23:I27)) -> 1263 | J28: =IF(SUM(J23:J27)=0,"",SUM(J23:J27)) -> 855.38 | M28: =IF($B$13="","",MID(M21,1,6)) ->  | N28: =IF($B$13="","","31.12.("&$B$13&")") ->  | P28: =IF($B$13="","","= "&FIXED(G13,0)&" x "&DOLLAR(H13,2)&" = "&DOLLAR(G13*H13,2)) -> 
C30: =IF(J28>0,"x","") -> x | D30: Mehrwert | F30: Kreuze zutreffendes an! (ACHTUNG: Nur eine Antwort ist richtig!!)
C32: =IF(J28=0,"x","") ->  | D32: gleich geblieben
C34: =IF(J28<0,"x","") ->  | D34: Minderwert | M34: =MID(J3,1,5)&"/"&MID(J3,7,10)&" - MW(+/-)" -> Mehr-/Minderwert - MW(+/-)
M35: MW(+/-) = Gesamt31.12. - Gesamt1.1.
B36: VORRÄTE | M36: =IF($B$7="","",MID(M35,1,7)) -> MW(+/-) | N36: =IF($B$7="","","1.1. ("&$B$7&")") -> 1.1. (Kühe) | P36: =IF(B7="","","= "&DOLLAR(I7,2)&" - "&DOLLAR(F7,2)&" = "&DOLLAR(I7-F7)) -> = € 10 200,00 - € 9 171,00 = € 1 029,00
B37: Selbst erzeugte Vorräte | M37: =IF($B$8="","",MID(M35,1,7)) -> MW(+/-) | N37: =IF($B$8="","","1.1. ("&$B$8&")") -> 1.1. (Kalbinnen) | P37: = € 4 448,00 - € 6 690,00 = -€ 2 242,00
B38: =IF(Dateneingabe!C50="","",Dateneingabe!C50) -> Gerste | D38: =IF(Dateneingabe!E50="","",Dateneingabe!E50) -> 100 | E38: =IF(Dateneingabe!S50="","",Dateneingabe!S50) -> 0.12 | F38: =IF(OR(D38="",E38=""),"",D38*E38) -> 12 | G38: =IF(Dateneingabe!K50="","",Dateneingabe!K50) -> 800 | H38: =IF(Dateneingabe!T50="","",Dateneingabe!T50) -> 0.13 | I38: =IF(OR(G38="",H38=""),"",G38*H38) -> 104 | J38: =IF(AND(F38="",I38=""),"",I38-F38) -> 92 | M38: =IF($B$9="","",MID(M35,1,7)) -> MW(+/-) | N38: =IF($B$9="","","1.1. ("&$B$9&")") -> 1.1. (Jungvieh 1 - 2 J.) | P38: = € 3 555,00 - € 2 848,00 = € 707,00
B39: =IF(Dateneingabe!C52="","",Dateneingabe!C52) -> Futterkartoffeln | D39: =IF(Dateneingabe!E52="","",Dateneingabe!E52) -> 1350 | E39: =IF(Dateneingabe!S52="","",Dateneingabe!S52) -> 0.07 | F39: =IF(OR(D39="",E39=""),"",D39*E39) -> 94.5 | G39: =IF(Dateneingabe!K52="","",Dateneingabe!K52) -> 1500 | H39: =IF(Dateneingabe!T52="","",Dateneingabe!T52) -> 0.06 | I39: =IF(OR(G39="",H39=""),"",G39*H39) -> 90 | J39: =IF(AND(F39="",I39=""),"",I39-F39) -> -4.5 | M39: =IF($B$10="","",MID(M35,1,7)) -> MW(+/-) | N39: =IF($B$10="","","1.1. ("&$B$10&")") -> 1.1. (Jungvieh bis 1 J.) | P39: = € 3 150,00 - € 2 630,00 = € 520,00
B40: =IF(Dateneingabe!C54="","",Dateneingabe!C54) -> Brennholz | D40: =IF(Dateneingabe!E54="","",Dateneingabe!E54) -> 30 | E40: =IF(Dateneingabe!S54="","",Dateneingabe!S54) -> 24.48 | F40: =IF(OR(D40="",E40=""),"",D40*E40) -> 734.4 | G40: =IF(Dateneingabe!K54="","",Dateneingabe!K54) -> 4 | H40: =IF(Dateneingabe!T54="","",Dateneingabe!T54) -> 26.44 | I40: =IF(OR(G40="",H40=""),"",G40*H40) -> 105.76 | J40: =IF(AND(F40="",I40=""),"",I40-F40) -> -628.64 | M40: =IF($B$11="","",MID(M35,1,7)) -> MW(+/-) | N40: =IF($B$11="","","1.1. ("&$B$11&")") -> 1.1. (Kälber weib.) | P40: = € 1 184,00 - € 1 180,00 = € 4,00
B41: =IF(Dateneingabe!C56="","",Dateneingabe!C56) ->  | D41: =IF(Dateneingabe!E56="","",Dateneingabe!E56) ->  | E41: =IF(Dateneingabe!S56="","",Dateneingabe!S56) ->  | F41: =IF(OR(D41="",E41=""),"",D41*E41) ->  | G41: =IF(Dateneingabe!K56="","",Dateneingabe!K56) ->  | H41: =IF(Dateneingabe!T56="","",Dateneingabe!T56) ->  | I41: =IF(OR(G41="",H41=""),"",G41*H41) ->  | J41: =IF(AND(F41="",I41=""),"",I41-F41) ->  | M41: =IF($B$12="","",MID(M35,1,7)) -> MW(+/-) | N41: =IF($B$12="","","1.1. ("&$B$12&")") -> 1.1. (Kälber männ.) | P41: = € 358,00 - € 537,00 = -€ 179,00
B42: =IF(Dateneingabe!C58="","",Dateneingabe!C58) ->  | D42: =IF(Dateneingabe!E58="","",Dateneingabe!E58) ->  | E42: =IF(Dateneingabe!S58="","",Dateneingabe!S58) ->  | F42: =IF(OR(D42="",E42=""),"",D42*E42) ->  | G42: =IF(Dateneingabe!K58="","",Dateneingabe!K58) ->  | H42: =IF(Dateneingabe!T58="","",Dateneingabe!T58) ->  | I42: =IF(OR(G42="",H42=""),"",G42*H42) ->  | J42: =IF(AND(F42="",I42=""),"",I42-F42) ->  | M42: =IF($B$13="","",MID(M35,1,7)) ->  | N42: =IF($B$13="","","1.1. ("&$B$13&")") -> 
B43: Summe selbst erzeugte Vorräte | F43: =IF(SUM(F38:F42)=0,"",SUM(F38:F42)) -> 840.9 | I43: =IF(SUM(I38:I42)=0,"",SUM(I38:I42)) -> 299.76 | J43: =IF(SUM(J38:J42)=0,"",SUM(J38:J42)) -> -541.14
C45: =IF(J43>0,"x","") ->  | D45: Mehrwert | F45: Kreuze zutreffendes an! (ACHTUNG: Nur eine Antwort ist richtig!!)
C47: =IF(J43=0,"x","") ->  | D47: gleich geblieben
C49: =IF(J43<0,"x","") -> x | D49: Minderwert | M49: =MID($B$14,1,5)&MID(D$3,8,10)&" "&F$3 -> Summe am 01. 01 2024
M50: Summe1.1.= | O50: =IF(B7="","",B7)&IF(B8="",""," + "&B8)&IF(B9="",""," + "&B9)&IF(B10="",""," + "&B10)&IF(B11="",""," + "&B11)&IF(B12="",""," + "&B12)&IF(B13="",""," + "&B13) -> Kühe + Kalbinnen + Jungvieh 1 - 2 J. + Jungvieh bis 1 J. + Kälber weib. + Kälber männ.
B51: Zugekaufte Vorräte
B52: =IF(Dateneingabe!C64="","",Dateneingabe!C64) -> Milchkraftfutter | D52: =IF(Dateneingabe!E64="","",Dateneingabe!E64) -> 650 | E52: =IF(Dateneingabe!S64="","",Dateneingabe!S64) -> 0.22 | F52: =IF(OR(D52="",E52=""),"",D52*E52) -> 143 | G52: =IF(Dateneingabe!K64="","",Dateneingabe!K64) -> 1500 | H52: =IF(Dateneingabe!T64="","",Dateneingabe!T64) -> 0.23 | I52: =IF(OR(G52="",H52=""),"",G52*H52) -> 345 | J52: =IF(AND(F52="",I52=""),"",I52-F52) -> 202 | M52: =IF(B7="","",MID(M50,1,5)) -> Summe | N52: =IF(B7="","","1.1.") -> 1.1. | O52: ="= "&IF(F7="","",DOLLAR(F7,2))&IF(F8="",""," + "&DOLLAR(F8,2))&IF(F9="",""," + "&DOLLAR(F9,2))&IF(F10="",""," + "&DOLLAR(F10,2))&IF(F11="",""," + "&DOLLAR(F11,2))&IF(F12="",""," + "&DOLLAR(F12,2))&IF(F13="",""," + "&DOLLAR(F13,2)) -> = € 9 171,00 + € 6 690,00 + € 2 848,00 + € 2 630,00 + € 1 180,00 + € 537,00
B53: =IF(Dateneingabe!C66="","",Dateneingabe!C66) -> Weizenschrot | D53: =IF(Dateneingabe!E66="","",Dateneingabe!E66) -> 350 | E53: =IF(Dateneingabe!S66="","",Dateneingabe!S66) -> 0.2 | F53: =IF(OR(D53="",E53=""),"",D53*E53) -> 70 | G53: =IF(Dateneingabe!K66="","",Dateneingabe!K66) -> 500 | H53: =IF(Dateneingabe!T66="","",Dateneingabe!T66) -> 0.19 | I53: =IF(OR(G53="",H53=""),"",G53*H53) -> 95 | J53: =IF(AND(F53="",I53=""),"",I53-F53) -> 25 | O53: ="= "&DOLLAR(SUM(F7:F13),2) -> = € 23 056,00
B54: =IF(Dateneingabe!C68="","",Dateneingabe!C68) -> Erbsenschrot | D54: =IF(Dateneingabe!E68="","",Dateneingabe!E68) -> 75 | E54: =IF(Dateneingabe!S68="","",Dateneingabe!S68) -> 0.2 | F54: =IF(OR(D54="",E54=""),"",D54*E54) -> 15 | G54: =IF(Dateneingabe!K68="","",Dateneingabe!K68) -> 300 | H54: =IF(Dateneingabe!T68="","",Dateneingabe!T68) -> 0.2 | I54: =IF(OR(G54="",H54=""),"",G54*H54) -> 60 | J54: =IF(AND(F54="",I54=""),"",I54-F54) -> 45
B55: =IF(Dateneingabe!C70="","",Dateneingabe!C70) ->  | D55: =IF(Dateneingabe!E70="","",Dateneingabe!E70) ->  | E55: =IF(Dateneingabe!S70="","",Dateneingabe!S70) ->  | F55: =IF(OR(D55="",E55=""),"",D55*E55) ->  | G55: =IF(Dateneingabe!K70="","",Dateneingabe!K70) ->  | H55: =IF(Dateneingabe!T70="","",Dateneingabe!T70) ->  | I55: =IF(OR(G55="",H55=""),"",G55*H55) ->  | J55: =IF(AND(F55="",I55=""),"",I55-F55) ->  | M55: =MID($B$14,1,5)&MID(G$3,8,10)&" "&I$3 -> Summe am 31. 12 2024
B56: =IF(Dateneingabe!C72="","",Dateneingabe!C72) ->  | D56: =IF(Dateneingabe!E72="","",Dateneingabe!E72) ->  | E56: =IF(Dateneingabe!S72="","",Dateneingabe!S72) ->  | F56: =IF(OR(D56="",E56=""),"",D56*E56) ->  | G56: =IF(Dateneingabe!K72="","",Dateneingabe!K72) ->  | H56: =IF(Dateneingabe!T72="","",Dateneingabe!T72) ->  | I56: =IF(OR(G56="",H56=""),"",G56*H56) ->  | J56: =IF(AND(F56="",I56=""),"",I56-F56) ->  | M56: Summe31.12.= | O56: =IF(B7="","",B7)&IF(B8="",""," + "&B8)&IF(B9="",""," + "&B9)&IF(B10="",""," + "&B10)&IF(B11="",""," + "&B11)&IF(B12="",""," + "&B12)&IF(B13="",""," + "&B13) -> Kühe + Kalbinnen + Jungvieh 1 - 2 J. + Jungvieh bis 1 J. + Kälber weib. + Kälber männ.
B57: Summe zugekaufte Vorräte | F57: =IF(SUM(F52:F56)=0,"",SUM(F52:F56)) -> 228 | I57: =IF(SUM(I52:I56)=0,"",SUM(I52:I56)) -> 500 | J57: =IF(SUM(J52:J56)=0,"",SUM(J52:J56)) -> 272
M58: =IF(B7="","",MID(M56,1,5)) -> Summe | N58: =IF(B7="","","31.12.") -> 31.12. | O58: ="= "&IF(I7="","",DOLLAR(I7,2))&IF(I8="",""," + "&DOLLAR(I8,2))&IF(I9="",""," + "&DOLLAR(I9,2))&IF(I10="",""," + "&DOLLAR(I10,2))&IF(I11="",""," + "&DOLLAR(I11,2))&IF(I12="",""," + "&DOLLAR(I12,2))&IF(I13="",""," + "&DOLLAR(I13,2)) -> = € 10 200,00 + € 4 448,00 + € 3 555,00 + € 3 150,00 + € 1 184,00 + € 358,00
C59: =IF(J57>0,"x","") -> x | D59: Mehrwert | F59: Kreuze zutreffendes an! (ACHTUNG: Nur eine Antwort ist richtig!!) | O59: ="= "&DOLLAR(SUM(I7:I13),2) -> = € 22 895,00
C61: =IF(J57=0,"x","") ->  | D61: gleich geblieben
C63: =IF(J57<0,"x","") ->  | D63: Minderwert | M63: =MID($B$14,1,6)&"Mehr-/Minderwert (MW)" -> Summe Mehr-/Minderwert (MW)
M64: SummeMW= | O64: =IF(B7="","",B7)&IF(B8="",""," + "&B8)&IF(B9="",""," + "&B9)&IF(B10="",""," + "&B10)&IF(B11="",""," + "&B11)&IF(B12="",""," + "&B12)&IF(B13="",""," + "&B13) -> Kühe + Kalbinnen + Jungvieh 1 - 2 J. + Jungvieh bis 1 J. + Kälber weib. + Kälber männ.
M66: =IF(B7="","",MID(M64,1,5)) -> Summe | N66: MW | O66: ="= "&IF(J7="","",DOLLAR(J7,2))&IF(J8="",""," "&IF(J8<0,"-","+")&" "&DOLLAR(IF(J8<0,-J8,J8),2))&IF(J9="",""," "&IF(J9<0,"-","+")&" "&DOLLAR(IF(J9<0,-J9,J9),2))&IF(J10="",""," "&IF(J10<0,"-","+")&" "&DOLLAR(IF(J10<0,-J10,J10),2))&IF(J11="",""," "&IF(J11<0,"-","+")&" "&DOLLAR(IF(J11<0,-J11,J11),2))&IF(J12="",""," "&IF(J12<0,"-","+")&" "&DOLLAR(IF(J12<0,-J12,J12),2))&IF(J13="",""," "&IF(J13<0,"-","+")&" "&DOLLAR(IF(J13<0,-J13,J13),2)) -> = € 1 029,00 - € 2 242,00 + € 707,00 + € 520,00 + € 4,00 - € 179,00
O67: ="= "&DOLLAR(SUM(J7:J13),2)&" → "&IF(SUM(J7:J13)<0,"Minderwert!",IF(SUM(J7:J13)=0,"Bestand ist gleich geblieben!","Mehrwert!")) -> = -€ 161,00 → Minderwert!

Sheet Bewertung (hidden)
A1: Bewertung: Bewertung von Umlaufvermögen | AC1: 1
A2: =IF(K3<>A3,"???","") ->  | G2: =IF(AB3<>G3,"???","") ->  | K2: =IF(K3<>A3,"???","") ->  | AB2: =IF(AB3<>G3,"???","") -> 
A3: NACHNAME Vorname | G3: Gruppe: 01 | K3: NACHNAME Vorname | AB3: Gruppe: 01
A4: ="Liebe(r) "&MID(A3,FIND(" ",A3,1)+1,100)&"!" -> Liebe(r) Vorname! | K4: Notenliste: | P4: 0.1
K5: Spaltenindeces: | P5: =IF(TYPE(IF(SPI_mPKTE="","-",SPI_mPKTE))=16,"-",IF(SPI_mPKTE="","-",SPI_mPKTE)) -> - | Q5: / | R5: =IF(TYPE(IF(SPI_gPKTE="","-",SPI_gPKTE))=16,"-",IF(SPI_gPKTE="","-",SPI_gPKTE)) -> - | S5: =IF(TYPE(IF(SPI_KOMP="","-",SPI_KOMP))=16,"-",IF(SPI_KOMP="","-",SPI_KOMP)) -> -
A6: Du hast die abgefragten Kompetenzen wiefolgt erfüllt: | K6: Genügend bei: | P6: =O21/M18 -> 0.5454545455 | X6: Punkte nach Kompetenzen
A7: =IF(X7="","",X7&": "&Z7&AA7&AB7&IF(AND(Z7>=AB7*50%,Z7<AB7*75%)," → überwiegend erfüllt!",IF(Z7>=AB7*75%," → vollständig erfülltt!"," → nicht erfüllt!"))) -> GK17: 0/22 → nicht erfüllt! | K7: Nicht erfüllte Grundkompetenzen: | P7: =SUM(IF(Z7<AB7*50%,1,0),IF(Z8<AB8*50%,1,0),IF(Z9<AB9*50%,1,0)) -> 1 | X7: GK17 | Z7: =SUMIFS(Z$30:Z$69,$X$30:$X$69,$X7) -> 0 | AA7: / | AB7: =SUMIFS(AB$30:AB$69,$X$30:$X$69,$X7) -> 22
A8: =IF(X8="","",X8&": "&Z8&AA8&AB8&IF(AND(Z8>=AB8*50%,Z8<AB8*75%)," → überwiegend erfüllt!",IF(Z8>=AB8*75%," → vollständig erfülltt!"," → nicht erfüllt!"))) -> GK: 0/0 → vollständig erfülltt! | X8: =IF(TYPE(MID(GK..,FIND("(",GK..,1)+1,(FIND(")",GK..,1)-FIND("(",GK..,1)-1)))=16,"GK",MID(GK..,FIND("(",GK..,1)+1,(FIND(")",GK..,1)-FIND("(",GK..,1)-1))) -> GK | Z8: 0 | AA8: / | AB8: 0
A9: GK: 0/0 → vollständig erfülltt! | X9: =IF(TYPE(MID(GK.,FIND("(",GK.,1)+1,(FIND(")",GK.,1)-FIND("(",GK.,1)-1)))=16,"GK",MID(GK.,FIND("(",GK.,1)+1,(FIND(")",GK.,1)-FIND("(",GK.,1)-1))) -> GK | Z9: 0 | AA9: / | AB9: 0
A10: EK: 0/0 → vollständig erfülltt! | X10: =IF(TYPE(MID(EK,FIND("(",EK,1)+1,(FIND(")",EK,1)-FIND("(",EK,1)-1)))=16,"EK",MID(EK,FIND("(",EK,1)+1,(FIND(")",EK,1)-FIND("(",EK,1)-1))) -> EK | Z10: 0 | AA10: / | AB10: 0
A11: EK: 0/0 → vollständig erfülltt! | X11: =IF(TYPE(MID(EK.,FIND("(",EK.,1)+1,(FIND(")",EK.,1)-FIND("(",EK.,1)-1)))=16,"EK",MID(EK.,FIND("(",EK.,1)+1,(FIND(")",EK.,1)-FIND("(",EK.,1)-1))) -> EK | Z11: 0 | AA11: / | AB11: 0
A12: EK: 0/0 → vollständig erfülltt! | X12: =IF(TYPE(MID(EK..,FIND("(",EK..,1)+1,(FIND(")",EK..,1)-FIND("(",EK..,1)-1)))=16,"EK",MID(EK..,FIND("(",EK..,1)+1,(FIND(")",EK..,1)-FIND("(",EK..,1)-1))) -> EK | Z12: 0 | AA12: / | AB12: 0
X13: Summe | Z13: =SUM(Z7:Z12) -> 0 | AA13: / | AB13: =SUM(AB7:AB12) -> 22
A14: ="Daraus würde sich für diese Aufgabe ein "&IF(N25=1,UPPER("„Sehr gut”"),IF(N25=2,UPPER("„Gut”"),IF(N25=3,UPPER("„Befriedigend”"),IF(N25=4,UPPER("„Genügend”"),IF(N25=5,UPPER("„Nicht genügend”"),"---")))))&" ergeben." -> Daraus würde sich für diese Aufgabe ein „NICHT GENÜGEND” ergeben. | K14: Notenschlüssel:
A15: =IF(N25=1,"Das hast du ganz toll gemacht!!! 😀",IF(N25=2,"Das ist eine gute Arbeit geworden!! 🙂",IF(N25=3,"Das passt schon so! 😐",IF(N25=4,"Das geht noch besser! 🙁","Das ist leider zu wenig! ☹️ Schau dir deine Ergebnisse bitte noch einmal an und versuch' es beim nächsten Mal besser zu machen!!!")))) -> Das ist leider zu wenig! ☹️ Schau dir deine Ergebnisse bitte noch einmal an und versuch' es beim nächsten Mal besser zu machen!!! | K15: ❶ | L15: =IF(O18=M18,M18&" P",O18&" - "&M18&" P") -> 21 - 22 P | M15: ❷ | N15: =IF(O19=M19,M19&" P",O19&" - "&M19&" P") -> 18 - 20 P | O15: ❸ | P15: =O20&" - "&M20&" P" -> 15 - 17 P | Q15: ❹ | R15: =O21&" - "&M21&" P" -> 12 - 14 P | S15: ❺ | T15: =O22&" - "&M22&" P" -> 0 - 11 P
A17: LG | R17: Differenz | T17: Abstufung
A18: FL Harasleben | L18: ❶ | M18: =AB13 -> 22 | N18: - | O18: =M19+1 -> 21 | R18: =M18-O18 -> 1 | T18: 1
L19: ❷ | M19: =ROUNDUP($M$18*T19,0) -> 20 | N19: - | O19: =M20+1 -> 18 | R19: =M19-O19 -> 2 | T19: 0.883
A20: Punkterechner | D20: =SUM(AB7:AB12) -> 22 | E20: …............ | F20: 100 | G20: % | L20: ❸ | M20: =ROUNDUP($M$18*T20,0) -> 17 | N20: - | O20: =M21+1 -> 15 | R20: =M20-O20 -> 2 | T20: 0.76
C21: Deine erreichten Punkte: | D21: =ROUND(SUM(Z7:Z12),2) -> 0 | E21: …............ | F21: =D21*F20/(IF(D20=0,1,D20)) -> 0 | G21: % | L21: ❹ | M21: 14 | N21: - | O21: =M22+1 -> 12 | R21: =M21-O21 -> 2 | T21: 0.628
L22: ❺ | M22: 11 | N22: - | O22: 0 | T22: 0.47
K24: Erreichte Punkte: | N24: =SUM(Z7:Z12) -> 0 | O24: =" das entspricht: "&TEXT(ROUND(F21,4),"# ##0,00")&" %" -> das entspricht: 0,00 %
K25: Note: | N25: =IF(P7>0,5,IF(N24>=O18,1,IF(AND(N24>=O19,N24<O18),2,IF(AND(N24>=O20,N24<O19),3,IF(AND(N24>=O21,N24<O20),4,5))))) -> 5
A27: Deine Ergebnisse im Detail
A29: Frage | D29: Pkte | E29: / | F29: Ges. | Z29: Pkte | AA29: / | AB29: Ges.
A30: 1. | B30: =MID(A1,12,300) -> Bewertung von Umlaufvermögen | D30: =Berechnungen!M65 -> 0 | E30: =IF(B30="","","/") -> / | F30: =Berechnungen!O65 -> 22 | G30: GK17 | X30: =IF(G30="","",G30) -> GK17 | Y30: : | Z30: =D30 -> 0 | AA30: =E30 -> / | AB30: =F30 -> 22
A31: 2. | B31: =IF(TYPE(VLOOKUP($A31,FB_1,2,0))=16,"",VLOOKUP($A31,FB_1,2,0))&IF(TYPE(VLOOKUP($A31,FB_2,2,0))=16,"",VLOOKUP($A31,FB_2,2,0))&IF(TYPE(VLOOKUP($A31,FB_3,2,0))=16,"",VLOOKUP($A31,FB_3,2,0))&IF(TYPE(VLOOKUP($A31,FB_4,2,0))=16,"",VLOOKUP($A31,FB_4,2,0))&IF(TYPE(VLOOKUP($A31,FB_5,2,0))=16,"",VLOOKUP($A31,FB_5,2,0))&IF(TYPE(VLOOKUP($A31,FB_6,2,0))=16,"",VLOOKUP($A31,FB_6,2,0))&IF(TYPE(VLOOKUP($A31,FB_7,2,0))=16,"",VLOOKUP($A31,FB_7,2,0))&IF(TYPE(VLOOKUP($A31,FB_8,2,0))=16,"",VLOOKUP($A31,FB_8,2,0))&IF(TYPE(VLOOKUP($A31,FB_9,2,0))=16,"",VLOOKUP($A31,FB_9,2,0))&IF(TYPE(VLOOKUP($A31,FB_10,2,0))=16,"",VLOOKUP($A31,FB_10,2,0))&IF(TYPE(VLOOKUP($A31,FB_11,2,0))=16,"",VLOOKUP($A31,FB_11,2,0))&IF(TYPE(VLOOKUP($A31,FB_12,2,0))=16,"",VLOOKUP($A31,FB_12,2,0))&IF(TYPE(VLOOKUP($A31,FB_13,2,0))=16,"",VLOOKUP($A31,FB_13,2,0))&IF(TYPE(VLOOKUP($A31,FB_14,2,0))=16,"",VLOOKUP($A31,FB_14,2,0))&IF(TYPE(VLOOKUP($A31,FB_15,2,0))=16,"",VLOOKUP($A31,FB_15,2,0))&IF(TYPE(VLOOKUP($A31,FB_16,2,0))=16,"",VLOOKUP($A31,FB_16,2,0))&IF(TYPE(VLOOKUP($A31,FB_17,2,0))=16,"",VLOOKUP($A31,FB_17,2,0))&IF(TYPE(VLOOKUP($A31,FB_18,2,0))=16,"",VLOOKUP($A31,FB_18,2,0))&IF(TYPE(VLOOKUP($A31,FB_19,2,0))=16,"",VLOOKUP($A31,FB_19,2,0))&IF(TYPE(VLOOKUP($A31,FB_20,2,0))=16,"",VLOOKUP($A31,FB_20,2,0))&IF(TYPE(VLOOKUP($A31,FB_21,2,0))=16,"",VLOOKUP($A31,FB_21,2,0))&IF(TYPE(VLOOKUP($A31,FB_22,2,0))=16,"",VLOOKUP($A31,FB_22,2,0))&IF(TYPE(VLOOKUP($A31,FB_23,2,0))=16,"",VLOOKUP($A31,FB_23,2,0))&IF(TYPE(VLOOKUP($A31,FB_24,2,0))=16,"",VLOOKUP($A31,FB_24,2,0))&IF(TYPE(VLOOKUP($A31,FB_25,2,0))=16,"",VLOOKUP($A31,FB_25,2,0))&IF(TYPE(VLOOKUP($A31,FB_26,2,0))=16,"",VLOOKUP($A31,FB_26,2,0))&IF(TYPE(VLOOKUP($A31,FB_27,2,0))=16,"",VLOOKUP($A31,FB_27,2,0))&IF(TYPE(VLOOKUP($A31,FB_28,2,0))=16,"",VLOOKUP($A31,FB_28,2,0))&IF(TYPE(VLOOKUP($A31,FB_29,2,0))=16,"",VLOOKUP($A31,FB_29,2,0))&IF(TYPE(VLOOKUP($A31,FB_30,2,0))=16,"",VLOOKUP($A31,FB_30,2,0)) ->  | D31: =IF($B31="","",_xlfn.NUMBERVALUE(IF(TYPE(VLOOKUP($A31,FB_1,P$5,0))=16,"",VLOOKUP($A31,FB_1,P$5,0))&IF(TYPE(VLOOKUP($A31,FB_2,P$5,0))=16,"",VLOOKUP($A31,FB_2,P$5,0))&IF(TYPE(VLOOKUP($A31,FB_3,P$5,0))=16,"",VLOOKUP($A31,FB_3,P$5,0))&IF(TYPE(VLOOKUP($A31,FB_4,P$5,0))=16,"",VLOOKUP($A31,FB_4,P$5,0))&IF(TYPE(VLOOKUP($A31,FB_5,P$5,0))=16,"",VLOOKUP($A31,FB_5,P$5,0))&IF(TYPE(VLOOKUP($A31,FB_6,P$5,0))=16,"",VLOOKUP($A31,FB_6,P$5,0))&IF(TYPE(VLOOKUP($A31,FB_7,P$5,0))=16,"",VLOOKUP($A31,FB_7,P$5,0))&IF(TYPE(VLOOKUP($A31,FB_8,P$5,0))=16,"",VLOOKUP($A31,FB_8,P$5,0))&IF(TYPE(VLOOKUP($A31,FB_9,P$5,0))=16,"",VLOOKUP($A31,FB_9,P$5,0))&IF(TYPE(VLOOKUP($A31,FB_10,P$5,0))=16,"",VLOOKUP($A31,FB_10,P$5,0))&IF(TYPE(VLOOKUP($A31,FB_11,P$5,0))=16,"",VLOOKUP($A31,FB_11,P$5,0))&IF(TYPE(VLOOKUP($A31,FB_12,P$5,0))=16,"",VLOOKUP($A31,FB_12,P$5,0))&IF(TYPE(VLOOKUP($A31,FB_13,P$5,0))=16,"",VLOOKUP($A31,FB_13,P$5,0))&IF(TYPE(VLOOKUP($A31,FB_14,P$5,0))=16,"",VLOOKUP($A31,FB_14,P$5,0))&IF(TYPE(VLOOKUP($A31,FB_15,P$5,0))=16,"",VLOOKUP($A31,FB_15,P$5,0))&IF(TYPE(VLOOKUP($A31,FB_16,P$5,0))=16,"",VLOOKUP($A31,FB_16,P$5,0))&IF(TYPE(VLOOKUP($A31,FB_17,P$5,0))=16,"",VLOOKUP($A31,FB_17,P$5,0))&IF(TYPE(VLOOKUP($A31,FB_18,P$5,0))=16,"",VLOOKUP($A31,FB_18,P$5,0))&IF(TYPE(VLOOKUP($A31,FB_19,P$5,0))=16,"",VLOOKUP($A31,FB_19,P$5,0))&IF(TYPE(VLOOKUP($A31,FB_20,P$5,0))=16,"",VLOOKUP($A31,FB_20,P$5,0))&IF(TYPE(VLOOKUP($A31,FB_21,P$5,0))=16,"",VLOOKUP($A31,FB_21,P$5,0))&IF(TYPE(VLOOKUP($A31,FB_22,P$5,0))=16,"",VLOOKUP($A31,FB_22,P$5,0))&IF(TYPE(VLOOKUP($A31,FB_23,P$5,0))=16,"",VLOOKUP($A31,FB_23,P$5,0))&IF(TYPE(VLOOKUP($A31,FB_24,P$5,0))=16,"",VLOOKUP($A31,FB_24,P$5,0))&IF(TYPE(VLOOKUP($A31,FB_25,P$5,0))=16,"",VLOOKUP($A31,FB_25,P$5,0))&IF(TYPE(VLOOKUP($A31,FB_26,P$5,0))=16,"",VLOOKUP($A31,FB_26,P$5,0))&IF(TYPE(VLOOKUP($A31,FB_27,P$5,0))=16,"",VLOOKUP($A31,FB_27,P$5,0))&IF(TYPE(VLOOKUP($A31,FB_28,P$5,0))=16,"",VLOOKUP($A31,FB_28,P$5,0))&IF(TYPE(VLOOKUP($A31,FB_29,P$5,0))=16,"",VLOOKUP($A31,FB_29,P$5,0))&IF(TYPE(VLOOKUP($A31,FB_30,P$5,0))=16,"",VLOOKUP($A31,FB_30,P$5,0)))) ->  | E31: =IF(B31="","","/") ->  | F31: =IF($B31="","",_xlfn.NUMBERVALUE(IF(TYPE(VLOOKUP($A31,FB_1,R$5,0))=16,"",VLOOKUP($A31,FB_1,R$5,0))&IF(TYPE(VLOOKUP($A31,FB_2,R$5,0))=16,"",VLOOKUP($A31,FB_2,R$5,0))&IF(TYPE(VLOOKUP($A31,FB_3,R$5,0))=16,"",VLOOKUP($A31,FB_3,R$5,0))&IF(TYPE(VLOOKUP($A31,FB_4,R$5,0))=16,"",VLOOKUP($A31,FB_4,R$5,0))&IF(TYPE(VLOOKUP($A31,FB_5,R$5,0))=16,"",VLOOKUP($A31,FB_5,R$5,0))&IF(TYPE(VLOOKUP($A31,FB_6,R$5,0))=16,"",VLOOKUP($A31,FB_6,R$5,0))&IF(TYPE(VLOOKUP($A31,FB_7,R$5,0))=16,"",VLOOKUP($A31,FB_7,R$5,0))&IF(TYPE(VLOOKUP($A31,FB_8,R$5,0))=16,"",VLOOKUP($A31,FB_8,R$5,0))&IF(TYPE(VLOOKUP($A31,FB_9,R$5,0))=16,"",VLOOKUP($A31,FB_9,R$5,0))&IF(TYPE(VLOOKUP($A31,FB_10,R$5,0))=16,"",VLOOKUP($A31,FB_10,R$5,0))&IF(TYPE(VLOOKUP($A31,FB_11,R$5,0))=16,"",VLOOKUP($A31,FB_11,R$5,0))&IF(TYPE(VLOOKUP($A31,FB_12,R$5,0))=16,"",VLOOKUP($A31,FB_12,R$5,0))&IF(TYPE(VLOOKUP($A31,FB_13,R$5,0))=16,"",VLOOKUP($A31,FB_13,R$5,0))&IF(TYPE(VLOOKUP($A31,FB_14,R$5,0))=16,"",VLOOKUP($A31,FB_14,R$5,0))&IF(TYPE(VLOOKUP($A31,FB_15,R$5,0))=16,"",VLOOKUP($A31,FB_15,R$5,0))&IF(TYPE(VLOOKUP($A31,FB_16,R$5,0))=16,"",VLOOKUP($A31,FB_16,R$5,0))&IF(TYPE(VLOOKUP($A31,FB_17,R$5,0))=16,"",VLOOKUP($A31,FB_17,R$5,0))&IF(TYPE(VLOOKUP($A31,FB_18,R$5,0))=16,"",VLOOKUP($A31,FB_18,R$5,0))&IF(TYPE(VLOOKUP($A31,FB_19,R$5,0))=16,"",VLOOKUP($A31,FB_19,R$5,0))&IF(TYPE(VLOOKUP($A31,FB_20,R$5,0))=16,"",VLOOKUP($A31,FB_20,R$5,0))&IF(TYPE(VLOOKUP($A31,FB_21,R$5,0))=16,"",VLOOKUP($A31,FB_21,R$5,0))&IF(TYPE(VLOOKUP($A31,FB_22,R$5,0))=16,"",VLOOKUP($A31,FB_22,R$5,0))&IF(TYPE(VLOOKUP($A31,FB_23,R$5,0))=16,"",VLOOKUP($A31,FB_23,R$5,0))&IF(TYPE(VLOOKUP($A31,FB_24,R$5,0))=16,"",VLOOKUP($A31,FB_24,R$5,0))&IF(TYPE(VLOOKUP($A31,FB_25,R$5,0))=16,"",VLOOKUP($A31,FB_25,R$5,0))&IF(TYPE(VLOOKUP($A31,FB_26,R$5,0))=16,"",VLOOKUP($A31,FB_26,R$5,0))&IF(TYPE(VLOOKUP($A31,FB_27,R$5,0))=16,"",VLOOKUP($A31,FB_27,R$5,0))&IF(TYPE(VLOOKUP($A31,FB_28,R$5,0))=16,"",VLOOKUP($A31,FB_28,R$5,0))&IF(TYPE(VLOOKUP($A31,FB_29,R$5,0))=16,"",VLOOKUP($A31,FB_29,R$5,0))&IF(TYPE(VLOOKUP($A31,FB_30,R$5,0))=16,"",VLOOKUP($A31,FB_30,R$5,0)))) ->  | G31: =IF($B31="","",IF(TYPE(VLOOKUP($A31,FB_1,S$5,0))=16,"",VLOOKUP($A31,FB_1,S$5,0))&IF(TYPE(VLOOKUP($A31,FB_2,S$5,0))=16,"",VLOOKUP($A31,FB_2,S$5,0))&IF(TYPE(VLOOKUP($A31,FB_3,S$5,0))=16,"",VLOOKUP($A31,FB_3,S$5,0))&IF(TYPE(VLOOKUP($A31,FB_4,S$5,0))=16,"",VLOOKUP($A31,FB_4,S$5,0))&IF(TYPE(VLOOKUP($A31,FB_5,S$5,0))=16,"",VLOOKUP($A31,FB_5,S$5,0))&IF(TYPE(VLOOKUP($A31,FB_6,S$5,0))=16,"",VLOOKUP($A31,FB_6,S$5,0))&IF(TYPE(VLOOKUP($A31,FB_7,S$5,0))=16,"",VLOOKUP($A31,FB_7,S$5,0))&IF(TYPE(VLOOKUP($A31,FB_8,S$5,0))=16,"",VLOOKUP($A31,FB_8,S$5,0))&IF(TYPE(VLOOKUP($A31,FB_9,S$5,0))=16,"",VLOOKUP($A31,FB_9,S$5,0))&IF(TYPE(VLOOKUP($A31,FB_10,S$5,0))=16,"",VLOOKUP($A31,FB_10,S$5,0))&IF(TYPE(VLOOKUP($A31,FB_11,S$5,0))=16,"",VLOOKUP($A31,FB_11,S$5,0))&IF(TYPE(VLOOKUP($A31,FB_12,S$5,0))=16,"",VLOOKUP($A31,FB_12,S$5,0))&IF(TYPE(VLOOKUP($A31,FB_13,S$5,0))=16,"",VLOOKUP($A31,FB_13,S$5,0))&IF(TYPE(VLOOKUP($A31,FB_14,S$5,0))=16,"",VLOOKUP($A31,FB_14,S$5,0))&IF(TYPE(VLOOKUP($A31,FB_15,S$5,0))=16,"",VLOOKUP($A31,FB_15,S$5,0))&IF(TYPE(VLOOKUP($A31,FB_16,S$5,0))=16,"",VLOOKUP($A31,FB_16,S$5,0))&IF(TYPE(VLOOKUP($A31,FB_17,S$5,0))=16,"",VLOOKUP($A31,FB_17,S$5,0))&IF(TYPE(VLOOKUP($A31,FB_18,S$5,0))=16,"",VLOOKUP($A31,FB_18,S$5,0))&IF(TYPE(VLOOKUP($A31,FB_19,S$5,0))=16,"",VLOOKUP($A31,FB_19,S$5,0))&IF(TYPE(VLOOKUP($A31,FB_20,S$5,0))=16,"",VLOOKUP($A31,FB_20,S$5,0))&IF(TYPE(VLOOKUP($A31,FB_21,S$5,0))=16,"",VLOOKUP($A31,FB_21,S$5,0))&IF(TYPE(VLOOKUP($A31,FB_22,S$5,0))=16,"",VLOOKUP($A31,FB_22,S$5,0))&IF(TYPE(VLOOKUP($A31,FB_23,S$5,0))=16,"",VLOOKUP($A31,FB_23,S$5,0))&IF(TYPE(VLOOKUP($A31,FB_24,S$5,0))=16,"",VLOOKUP($A31,FB_24,S$5,0))&IF(TYPE(VLOOKUP($A31,FB_25,S$5,0))=16,"",VLOOKUP($A31,FB_25,S$5,0))&IF(TYPE(VLOOKUP($A31,FB_26,S$5,0))=16,"",VLOOKUP($A31,FB_26,S$5,0))&IF(TYPE(VLOOKUP($A31,FB_27,S$5,0))=16,"",VLOOKUP($A31,FB_27,S$5,0))&IF(TYPE(VLOOKUP($A31,FB_28,S$5,0))=16,"",VLOOKUP($A31,FB_28,S$5,0))&IF(TYPE(VLOOKUP($A31,FB_29,S$5,0))=16,"",VLOOKUP($A31,FB_29,S$5,0))&IF(TYPE(VLOOKUP($A31,FB_30,S$5,0))=16,"",VLOOKUP($A31,FB_30,S$5,0))) ->  | X31: =IF(G31="","",G31) ->  | Y31: : | Z31: =D31 -> 
A32: 3. | B32: =IF(TYPE(VLOOKUP($A32,FB_1,2,0))=16,"",VLOOKUP($A32,FB_1,2,0))&IF(TYPE(VLOOKUP($A32,FB_2,2,0))=16,"",VLOOKUP($A32,FB_2,2,0))&IF(TYPE(VLOOKUP($A32,FB_3,2,0))=16,"",VLOOKUP($A32,FB_3,2,0))&IF(TYPE(VLOOKUP($A32,FB_4,2,0))=16,"",VLOOKUP($A32,FB_4,2,0))&IF(TYPE(VLOOKUP($A32,FB_5,2,0))=16,"",VLOOKUP($A32,FB_5,2,0))&IF(TYPE(VLOOKUP($A32,FB_6,2,0))=16,"",VLOOKUP($A32,FB_6,2,0))&IF(TYPE(VLOOKUP($A32,FB_7,2,0))=16,"",VLOOKUP($A32,FB_7,2,0))&IF(TYPE(VLOOKUP($A32,FB_8,2,0))=16,"",VLOOKUP($A32,FB_8,2,0))&IF(TYPE(VLOOKUP($A32,FB_9,2,0))=16,"",VLOOKUP($A32,FB_9,2,0))&IF(TYPE(VLOOKUP($A32,FB_10,2,0))=16,"",VLOOKUP($A32,FB_10,2,0))&IF(TYPE(VLOOKUP($A32,FB_11,2,0))=16,"",VLOOKUP($A32,FB_11,2,0))&IF(TYPE(VLOOKUP($A32,FB_12,2,0))=16,"",VLOOKUP($A32,FB_12,2,0))&IF(TYPE(VLOOKUP($A32,FB_13,2,0))=16,"",VLOOKUP($A32,FB_13,2,0))&IF(TYPE(VLOOKUP($A32,FB_14,2,0))=16,"",VLOOKUP($A32,FB_14,2,0))&IF(TYPE(VLOOKUP($A32,FB_15,2,0))=16,"",VLOOKUP($A32,FB_15,2,0))&IF(TYPE(VLOOKUP($A32,FB_16,2,0))=16,"",VLOOKUP($A32,FB_16,2,0))&IF(TYPE(VLOOKUP($A32,FB_17,2,0))=16,"",VLOOKUP($A32,FB_17,2,0))&IF(TYPE(VLOOKUP($A32,FB_18,2,0))=16,"",VLOOKUP($A32,FB_18,2,0))&IF(TYPE(VLOOKUP($A32,FB_19,2,0))=16,"",VLOOKUP($A32,FB_19,2,0))&IF(TYPE(VLOOKUP($A32,FB_20,2,0))=16,"",VLOOKUP($A32,FB_20,2,0))&IF(TYPE(VLOOKUP($A32,FB_21,2,0))=16,"",VLOOKUP($A32,FB_21,2,0))&IF(TYPE(VLOOKUP($A32,FB_22,2,0))=16,"",VLOOKUP($A32,FB_22,2,0))&IF(TYPE(VLOOKUP($A32,FB_23,2,0))=16,"",VLOOKUP($A32,FB_23,2,0))&IF(TYPE(VLOOKUP($A32,FB_24,2,0))=16,"",VLOOKUP($A32,FB_24,2,0))&IF(TYPE(VLOOKUP($A32,FB_25,2,0))=16,"",VLOOKUP($A32,FB_25,2,0))&IF(TYPE(VLOOKUP($A32,FB_26,2,0))=16,"",VLOOKUP($A32,FB_26,2,0))&IF(TYPE(VLOOKUP($A32,FB_27,2,0))=16,"",VLOOKUP($A32,FB_27,2,0))&IF(TYPE(VLOOKUP($A32,FB_28,2,0))=16,"",VLOOKUP($A32,FB_28,2,0))&IF(TYPE(VLOOKUP($A32,FB_29,2,0))=16,"",VLOOKUP($A32,FB_29,2,0))&IF(TYPE(VLOOKUP($A32,FB_30,2,0))=16,"",VLOOKUP($A32,FB_30,2,0)) ->  | D32: =IF($B32="","",_xlfn.NUMBERVALUE(IF(TYPE(VLOOKUP($A32,FB_1,P$5,0))=16,"",VLOOKUP($A32,FB_1,P$5,0))&IF(TYPE(VLOOKUP($A32,FB_2,P$5,0))=16,"",VLOOKUP($A32,FB_2,P$5,0))&IF(TYPE(VLOOKUP($A32,FB_3,P$5,0))=16,"",VLOOKUP($A32,FB_3,P$5,0))&IF(TYPE(VLOOKUP($A32,FB_4,P$5,0))=16,"",VLOOKUP($A32,FB_4,P$5,0))&IF(TYPE(VLOOKUP($A32,FB_5,P$5,0))=16,"",VLOOKUP($A32,FB_5,P$5,0))&IF(TYPE(VLOOKUP($A32,FB_6,P$5,0))=16,"",VLOOKUP($A32,FB_6,P$5,0))&IF(TYPE(VLOOKUP($A32,FB_7,P$5,0))=16,"",VLOOKUP($A32,FB_7,P$5,0))&IF(TYPE(VLOOKUP($A32,FB_8,P$5,0))=16,"",VLOOKUP($A32,FB_8,P$5,0))&IF(TYPE(VLOOKUP($A32,FB_9,P$5,0))=16,"",VLOOKUP($A32,FB_9,P$5,0))&IF(TYPE(VLOOKUP($A32,FB_10,P$5,0))=16,"",VLOOKUP($A32,FB_10,P$5,0))&IF(TYPE(VLOOKUP($A32,FB_11,P$5,0))=16,"",VLOOKUP($A32,FB_11,P$5,0))&IF(TYPE(VLOOKUP($A32,FB_12,P$5,0))=16,"",VLOOKUP($A32,FB_12,P$5,0))&IF(TYPE(VLOOKUP($A32,FB_13,P$5,0))=16,"",VLOOKUP($A32,FB_13,P$5,0))&IF(TYPE(VLOOKUP($A32,FB_14,P$5,0))=16,"",VLOOKUP($A32,FB_14,P$5,0))&IF(TYPE(VLOOKUP($A32,FB_15,P$5,0))=16,"",VLOOKUP($A32,FB_15,P$5,0))&IF(TYPE(VLOOKUP($A32,FB_16,P$5,0))=16,"",VLOOKUP($A32,FB_16,P$5,0))&IF(TYPE(VLOOKUP($A32,FB_17,P$5,0))=16,"",VLOOKUP($A32,FB_17,P$5,0))&IF(TYPE(VLOOKUP($A32,FB_18,P$5,0))=16,"",VLOOKUP($A32,FB_18,P$5,0))&IF(TYPE(VLOOKUP($A32,FB_19,P$5,0))=16,"",VLOOKUP($A32,FB_19,P$5,0))&IF(TYPE(VLOOKUP($A32,FB_20,P$5,0))=16,"",VLOOKUP($A32,FB_20,P$5,0))&IF(TYPE(VLOOKUP($A32,FB_21,P$5,0))=16,"",VLOOKUP($A32,FB_21,P$5,0))&IF(TYPE(VLOOKUP($A32,FB_22,P$5,0))=16,"",VLOOKUP($A32,FB_22,P$5,0))&IF(TYPE(VLOOKUP($A32,FB_23,P$5,0))=16,"",VLOOKUP($A32,FB_23,P$5,0))&IF(TYPE(VLOOKUP($A32,FB_24,P$5,0))=16,"",VLOOKUP($A32,FB_24,P$5,0))&IF(TYPE(VLOOKUP($A32,FB_25,P$5,0))=16,"",VLOOKUP($A32,FB_25,P$5,0))&IF(TYPE(VLOOKUP($A32,FB_26,P$5,0))=16,"",VLOOKUP($A32,FB_26,P$5,0))&IF(TYPE(VLOOKUP($A32,FB_27,P$5,0))=16,"",VLOOKUP($A32,FB_27,P$5,0))&IF(TYPE(VLOOKUP($A32,FB_28,P$5,0))=16,"",VLOOKUP($A32,FB_28,P$5,0))&IF(TYPE(VLOOKUP($A32,FB_29,P$5,0))=16,"",VLOOKUP($A32,FB_29,P$5,0))&IF(TYPE(VLOOKUP($A32,FB_30,P$5,0))=16,"",VLOOKUP($A32,FB_30,P$5,0)))) ->  | F32: =IF($B32="","",_xlfn.NUMBERVALUE(IF(TYPE(VLOOKUP($A32,FB_1,R$5,0))=16,"",VLOOKUP($A32,FB_1,R$5,0))&IF(TYPE(VLOOKUP($A32,FB_2,R$5,0))=16,"",VLOOKUP($A32,FB_2,R$5,0))&IF(TYPE(VLOOKUP($A32,FB_3,R$5,0))=16,"",VLOOKUP($A32,FB_3,R$5,0))&IF(TYPE(VLOOKUP($A32,FB_4,R$5,0))=16,"",VLOOKUP($A32,FB_4,R$5,0))&IF(TYPE(VLOOKUP($A32,FB_5,R$5,0))=16,"",VLOOKUP($A32,FB_5,R$5,0))&IF(TYPE(VLOOKUP($A32,FB_6,R$5,0))=16,"",VLOOKUP($A32,FB_6,R$5,0))&IF(TYPE(VLOOKUP($A32,FB_7,R$5,0))=16,"",VLOOKUP($A32,FB_7,R$5,0))&IF(TYPE(VLOOKUP($A32,FB_8,R$5,0))=16,"",VLOOKUP($A32,FB_8,R$5,0))&IF(TYPE(VLOOKUP($A32,FB_9,R$5,0))=16,"",VLOOKUP($A32,FB_9,R$5,0))&IF(TYPE(VLOOKUP($A32,FB_10,R$5,0))=16,"",VLOOKUP($A32,FB_10,R$5,0))&IF(TYPE(VLOOKUP($A32,FB_11,R$5,0))=16,"",VLOOKUP($A32,FB_11,R$5,0))&IF(TYPE(VLOOKUP($A32,FB_12,R$5,0))=16,"",VLOOKUP($A32,FB_12,R$5,0))&IF(TYPE(VLOOKUP($A32,FB_13,R$5,0))=16,"",VLOOKUP($A32,FB_13,R$5,0))&IF(TYPE(VLOOKUP($A32,FB_14,R$5,0))=16,"",VLOOKUP($A32,FB_14,R$5,0))&IF(TYPE(VLOOKUP($A32,FB_15,R$5,0))=16,"",VLOOKUP($A32,FB_15,R$5,0))&IF(TYPE(VLOOKUP($A32,FB_16,R$5,0))=16,"",VLOOKUP($A32,FB_16,R$5,0))&IF(TYPE(VLOOKUP($A32,FB_17,R$5,0))=16,"",VLOOKUP($A32,FB_17,R$5,0))&IF(TYPE(VLOOKUP($A32,FB_18,R$5,0))=16,"",VLOOKUP($A32,FB_18,R$5,0))&IF(TYPE(VLOOKUP($A32,FB_19,R$5,0))=16,"",VLOOKUP($A32,FB_19,R$5,0))&IF(TYPE(VLOOKUP($A32,FB_20,R$5,0))=16,"",VLOOKUP($A32,FB_20,R$5,0))&IF(TYPE(VLOOKUP($A32,FB_21,R$5,0))=16,"",VLOOKUP($A32,FB_21,R$5,0))&IF(TYPE(VLOOKUP($A32,FB_22,R$5,0))=16,"",VLOOKUP($A32,FB_22,R$5,0))&IF(TYPE(VLOOKUP($A32,FB_23,R$5,0))=16,"",VLOOKUP($A32,FB_23,R$5,0))&IF(TYPE(VLOOKUP($A32,FB_24,R$5,0))=16,"",VLOOKUP($A32,FB_24,R$5,0))&IF(TYPE(VLOOKUP($A32,FB_25,R$5,0))=16,"",VLOOKUP($A32,FB_25,R$5,0))&IF(TYPE(VLOOKUP($A32,FB_26,R$5,0))=16,"",VLOOKUP($A32,FB_26,R$5,0))&IF(TYPE(VLOOKUP($A32,FB_27,R$5,0))=16,"",VLOOKUP($A32,FB_27,R$5,0))&IF(TYPE(VLOOKUP($A32,FB_28,R$5,0))=16,"",VLOOKUP($A32,FB_28,R$5,0))&IF(TYPE(VLOOKUP($A32,FB_29,R$5,0))=16,"",VLOOKUP($A32,FB_29,R$5,0))&IF(TYPE(VLOOKUP($A32,FB_30,R$5,0))=16,"",VLOOKUP($A32,FB_30,R$5,0)))) ->  | G32: =IF($B32="","",IF(TYPE(VLOOKUP($A32,FB_1,S$5,0))=16,"",VLOOKUP($A32,FB_1,S$5,0))&IF(TYPE(VLOOKUP($A32,FB_2,S$5,0))=16,"",VLOOKUP($A32,FB_2,S$5,0))&IF(TYPE(VLOOKUP($A32,FB_3,S$5,0))=16,"",VLOOKUP($A32,FB_3,S$5,0))&IF(TYPE(VLOOKUP($A32,FB_4,S$5,0))=16,"",VLOOKUP($A32,FB_4,S$5,0))&IF(TYPE(VLOOKUP($A32,FB_5,S$5,0))=16,"",VLOOKUP($A32,FB_5,S$5,0))&IF(TYPE(VLOOKUP($A32,FB_6,S$5,0))=16,"",VLOOKUP($A32,FB_6,S$5,0))&IF(TYPE(VLOOKUP($A32,FB_7,S$5,0))=16,"",VLOOKUP($A32,FB_7,S$5,0))&IF(TYPE(VLOOKUP($A32,FB_8,S$5,0))=16,"",VLOOKUP($A32,FB_8,S$5,0))&IF(TYPE(VLOOKUP($A32,FB_9,S$5,0))=16,"",VLOOKUP($A32,FB_9,S$5,0))&IF(TYPE(VLOOKUP($A32,FB_10,S$5,0))=16,"",VLOOKUP($A32,FB_10,S$5,0))&IF(TYPE(VLOOKUP($A32,FB_11,S$5,0))=16,"",VLOOKUP($A32,FB_11,S$5,0))&IF(TYPE(VLOOKUP($A32,FB_12,S$5,0))=16,"",VLOOKUP($A32,FB_12,S$5,0))&IF(TYPE(VLOOKUP($A32,FB_13,S$5,0))=16,"",VLOOKUP($A32,FB_13,S$5,0))&IF(TYPE(VLOOKUP($A32,FB_14,S$5,0))=16,"",VLOOKUP($A32,FB_14,S$5,0))&IF(TYPE(VLOOKUP($A32,FB_15,S$5,0))=16,"",VLOOKUP($A32,FB_15,S$5,0))&IF(TYPE(VLOOKUP($A32,FB_16,S$5,0))=16,"",VLOOKUP($A32,FB_16,S$5,0))&IF(TYPE(VLOOKUP($A32,FB_17,S$5,0))=16,"",VLOOKUP($A32,FB_17,S$5,0))&IF(TYPE(VLOOKUP($A32,FB_18,S$5,0))=16,"",VLOOKUP($A32,FB_18,S$5,0))&IF(TYPE(VLOOKUP($A32,FB_19,S$5,0))=16,"",VLOOKUP($A32,FB_19,S$5,0))&IF(TYPE(VLOOKUP($A32,FB_20,S$5,0))=16,"",VLOOKUP($A32,FB_20,S$5,0))&IF(TYPE(VLOOKUP($A32,FB_21,S$5,0))=16,"",VLOOKUP($A32,FB_21,S$5,0))&IF(TYPE(VLOOKUP($A32,FB_22,S$5,0))=16,"",VLOOKUP($A32,FB_22,S$5,0))&IF(TYPE(VLOOKUP($A32,FB_23,S$5,0))=16,"",VLOOKUP($A32,FB_23,S$5,0))&IF(TYPE(VLOOKUP($A32,FB_24,S$5,0))=16,"",VLOOKUP($A32,FB_24,S$5,0))&IF(TYPE(VLOOKUP($A32,FB_25,S$5,0))=16,"",VLOOKUP($A32,FB_25,S$5,0))&IF(TYPE(VLOOKUP($A32,FB_26,S$5,0))=16,"",VLOOKUP($A32,FB_26,S$5,0))&IF(TYPE(VLOOKUP($A32,FB_27,S$5,0))=16,"",VLOOKUP($A32,FB_27,S$5,0))&IF(TYPE(VLOOKUP($A32,FB_28,S$5,0))=16,"",VLOOKUP($A32,FB_28,S$5,0))&IF(TYPE(VLOOKUP($A32,FB_29,S$5,0))=16,"",VLOOKUP($A32,FB_29,S$5,0))&IF(TYPE(VLOOKUP($A32,FB_30,S$5,0))=16,"",VLOOKUP($A32,FB_30,S$5,0))) ->  | Y32: :
A33: 4. | B33: =IF(TYPE(VLOOKUP($A33,FB_1,2,0))=16,"",VLOOKUP($A33,FB_1,2,0))&IF(TYPE(VLOOKUP($A33,FB_2,2,0))=16,"",VLOOKUP($A33,FB_2,2,0))&IF(TYPE(VLOOKUP($A33,FB_3,2,0))=16,"",VLOOKUP($A33,FB_3,2,0))&IF(TYPE(VLOOKUP($A33,FB_4,2,0))=16,"",VLOOKUP($A33,FB_4,2,0))&IF(TYPE(VLOOKUP($A33,FB_5,2,0))=16,"",VLOOKUP($A33,FB_5,2,0))&IF(TYPE(VLOOKUP($A33,FB_6,2,0))=16,"",VLOOKUP($A33,FB_6,2,0))&IF(TYPE(VLOOKUP($A33,FB_7,2,0))=16,"",VLOOKUP($A33,FB_7,2,0))&IF(TYPE(VLOOKUP($A33,FB_8,2,0))=16,"",VLOOKUP($A33,FB_8,2,0))&IF(TYPE(VLOOKUP($A33,FB_9,2,0))=16,"",VLOOKUP($A33,FB_9,2,0))&IF(TYPE(VLOOKUP($A33,FB_10,2,0))=16,"",VLOOKUP($A33,FB_10,2,0))&IF(TYPE(VLOOKUP($A33,FB_11,2,0))=16,"",VLOOKUP($A33,FB_11,2,0))&IF(TYPE(VLOOKUP($A33,FB_12,2,0))=16,"",VLOOKUP($A33,FB_12,2,0))&IF(TYPE(VLOOKUP($A33,FB_13,2,0))=16,"",VLOOKUP($A33,FB_13,2,0))&IF(TYPE(VLOOKUP($A33,FB_14,2,0))=16,"",VLOOKUP($A33,FB_14,2,0))&IF(TYPE(VLOOKUP($A33,FB_15,2,0))=16,"",VLOOKUP($A33,FB_15,2,0))&IF(TYPE(VLOOKUP($A33,FB_16,2,0))=16,"",VLOOKUP($A33,FB_16,2,0))&IF(TYPE(VLOOKUP($A33,FB_17,2,0))=16,"",VLOOKUP($A33,FB_17,2,0))&IF(TYPE(VLOOKUP($A33,FB_18,2,0))=16,"",VLOOKUP($A33,FB_18,2,0))&IF(TYPE(VLOOKUP($A33,FB_19,2,0))=16,"",VLOOKUP($A33,FB_19,2,0))&IF(TYPE(VLOOKUP($A33,FB_20,2,0))=16,"",VLOOKUP($A33,FB_20,2,0))&IF(TYPE(VLOOKUP($A33,FB_21,2,0))=16,"",VLOOKUP($A33,FB_21,2,0))&IF(TYPE(VLOOKUP($A33,FB_22,2,0))=16,"",VLOOKUP($A33,FB_22,2,0))&IF(TYPE(VLOOKUP($A33,FB_23,2,0))=16,"",VLOOKUP($A33,FB_23,2,0))&IF(TYPE(VLOOKUP($A33,FB_24,2,0))=16,"",VLOOKUP($A33,FB_24,2,0))&IF(TYPE(VLOOKUP($A33,FB_25,2,0))=16,"",VLOOKUP($A33,FB_25,2,0))&IF(TYPE(VLOOKUP($A33,FB_26,2,0))=16,"",VLOOKUP($A33,FB_26,2,0))&IF(TYPE(VLOOKUP($A33,FB_27,2,0))=16,"",VLOOKUP($A33,FB_27,2,0))&IF(TYPE(VLOOKUP($A33,FB_28,2,0))=16,"",VLOOKUP($A33,FB_28,2,0))&IF(TYPE(VLOOKUP($A33,FB_29,2,0))=16,"",VLOOKUP($A33,FB_29,2,0))&IF(TYPE(VLOOKUP($A33,FB_30,2,0))=16,"",VLOOKUP($A33,FB_30,2,0)) ->  | D33: =IF($B33="","",_xlfn.NUMBERVALUE(IF(TYPE(VLOOKUP($A33,FB_1,P$5,0))=16,"",VLOOKUP($A33,FB_1,P$5,0))&IF(TYPE(VLOOKUP($A33,FB_2,P$5,0))=16,"",VLOOKUP($A33,FB_2,P$5,0))&IF(TYPE(VLOOKUP($A33,FB_3,P$5,0))=16,"",VLOOKUP($A33,FB_3,P$5,0))&IF(TYPE(VLOOKUP($A33,FB_4,P$5,0))=16,"",VLOOKUP($A33,FB_4,P$5,0))&IF(TYPE(VLOOKUP($A33,FB_5,P$5,0))=16,"",VLOOKUP($A33,FB_5,P$5,0))&IF(TYPE(VLOOKUP($A33,FB_6,P$5,0))=16,"",VLOOKUP($A33,FB_6,P$5,0))&IF(TYPE(VLOOKUP($A33,FB_7,P$5,0))=16,"",VLOOKUP($A33,FB_7,P$5,0))&IF(TYPE(VLOOKUP($A33,FB_8,P$5,0))=16,"",VLOOKUP($A33,FB_8,P$5,0))&IF(TYPE(VLOOKUP($A33,FB_9,P$5,0))=16,"",VLOOKUP($A33,FB_9,P$5,0))&IF(TYPE(VLOOKUP($A33,FB_10,P$5,0))=16,"",VLOOKUP($A33,FB_10,P$5,0))&IF(TYPE(VLOOKUP($A33,FB_11,P$5,0))=16,"",VLOOKUP($A33,FB_11,P$5,0))&IF(TYPE(VLOOKUP($A33,FB_12,P$5,0))=16,"",VLOOKUP($A33,FB_12,P$5,0))&IF(TYPE(VLOOKUP($A33,FB_13,P$5,0))=16,"",VLOOKUP($A33,FB_13,P$5,0))&IF(TYPE(VLOOKUP($A33,FB_14,P$5,0))=16,"",VLOOKUP($A33,FB_14,P$5,0))&IF(TYPE(VLOOKUP($A33,FB_15,P$5,0))=16,"",VLOOKUP($A33,FB_15,P$5,0))&IF(TYPE(VLOOKUP($A33,FB_16,P$5,0))=16,"",VLOOKUP($A33,FB_16,P$5,0))&IF(TYPE(VLOOKUP($A33,FB_17,P$5,0))=16,"",VLOOKUP($A33,FB_17,P$5,0))&IF(TYPE(VLOOKUP($A33,FB_18,P$5,0))=16,"",VLOOKUP($A33,FB_18,P$5,0))&IF(TYPE(VLOOKUP($A33,FB_19,P$5,0))=16,"",VLOOKUP($A33,FB_19,P$5,0))&IF(TYPE(VLOOKUP($A33,FB_20,P$5,0))=16,"",VLOOKUP($A33,FB_20,P$5,0))&IF(TYPE(VLOOKUP($A33,FB_21,P$5,0))=16,"",VLOOKUP($A33,FB_21,P$5,0))&IF(TYPE(VLOOKUP($A33,FB_22,P$5,0))=16,"",VLOOKUP($A33,FB_22,P$5,0))&IF(TYPE(VLOOKUP($A33,FB_23,P$5,0))=16,"",VLOOKUP($A33,FB_23,P$5,0))&IF(TYPE(VLOOKUP($A33,FB_24,P$5,0))=16,"",VLOOKUP($A33,FB_24,P$5,0))&IF(TYPE(VLOOKUP($A33,FB_25,P$5,0))=16,"",VLOOKUP($A33,FB_25,P$5,0))&IF(TYPE(VLOOKUP($A33,FB_26,P$5,0))=16,"",VLOOKUP($A33,FB_26,P$5,0))&IF(TYPE(VLOOKUP($A33,FB_27,P$5,0))=16,"",VLOOKUP($A33,FB_27,P$5,0))&IF(TYPE(VLOOKUP($A33,FB_28,P$5,0))=16,"",VLOOKUP($A33,FB_28,P$5,0))&IF(TYPE(VLOOKUP($A33,FB_29,P$5,0))=16,"",VLOOKUP($A33,FB_29,P$5,0))&IF(TYPE(VLOOKUP($A33,FB_30,P$5,0))=16,"",VLOOKUP($A33,FB_30,P$5,0)))) ->  | F33: =IF($B33="","",_xlfn.NUMBERVALUE(IF(TYPE(VLOOKUP($A33,FB_1,R$5,0))=16,"",VLOOKUP($A33,FB_1,R$5,0))&IF(TYPE(VLOOKUP($A33,FB_2,R$5,0))=16,"",VLOOKUP($A33,FB_2,R$5,0))&IF(TYPE(VLOOKUP($A33,FB_3,R$5,0))=16,"",VLOOKUP($A33,FB_3,R$5,0))&IF(TYPE(VLOOKUP($A33,FB_4,R$5,0))=16,"",VLOOKUP($A33,FB_4,R$5,0))&IF(TYPE(VLOOKUP($A33,FB_5,R$5,0))=16,"",VLOOKUP($A33,FB_5,R$5,0))&IF(TYPE(VLOOKUP($A33,FB_6,R$5,0))=16,"",VLOOKUP($A33,FB_6,R$5,0))&IF(TYPE(VLOOKUP($A33,FB_7,R$5,0))=16,"",VLOOKUP($A33,FB_7,R$5,0))&IF(TYPE(VLOOKUP($A33,FB_8,R$5,0))=16,"",VLOOKUP($A33,FB_8,R$5,0))&IF(TYPE(VLOOKUP($A33,FB_9,R$5,0))=16,"",VLOOKUP($A33,FB_9,R$5,0))&IF(TYPE(VLOOKUP($A33,FB_10,R$5,0))=16,"",VLOOKUP($A33,FB_10,R$5,0))&IF(TYPE(VLOOKUP($A33,FB_11,R$5,0))=16,"",VLOOKUP($A33,FB_11,R$5,0))&IF(TYPE(VLOOKUP($A33,FB_12,R$5,0))=16,"",VLOOKUP($A33,FB_12,R$5,0))&IF(TYPE(VLOOKUP($A33,FB_13,R$5,0))=16,"",VLOOKUP($A33,FB_13,R$5,0))&IF(TYPE(VLOOKUP($A33,FB_14,R$5,0))=16,"",VLOOKUP($A33,FB_14,R$5,0))&IF(TYPE(VLOOKUP($A33,FB_15,R$5,0))=16,"",VLOOKUP($A33,FB_15,R$5,0))&IF(TYPE(VLOOKUP($A33,FB_16,R$5,0))=16,"",VLOOKUP($A33,FB_16,R$5,0))&IF(TYPE(VLOOKUP($A33,FB_17,R$5,0))=16,"",VLOOKUP($A33,FB_17,R$5,0))&IF(TYPE(VLOOKUP($A33,FB_18,R$5,0))=16,"",VLOOKUP($A33,FB_18,R$5,0))&IF(TYPE(VLOOKUP($A33,FB_19,R$5,0))=16,"",VLOOKUP($A33,FB_19,R$5,0))&IF(TYPE(VLOOKUP($A33,FB_20,R$5,0))=16,"",VLOOKUP($A33,FB_20,R$5,0))&IF(TYPE(VLOOKUP($A33,FB_21,R$5,0))=16,"",VLOOKUP($A33,FB_21,R$5,0))&IF(TYPE(VLOOKUP($A33,FB_22,R$5,0))=16,"",VLOOKUP($A33,FB_22,R$5,0))&IF(TYPE(VLOOKUP($A33,FB_23,R$5,0))=16,"",VLOOKUP($A33,FB_23,R$5,0))&IF(TYPE(VLOOKUP($A33,FB_24,R$5,0))=16,"",VLOOKUP($A33,FB_24,R$5,0))&IF(TYPE(VLOOKUP($A33,FB_25,R$5,0))=16,"",VLOOKUP($A33,FB_25,R$5,0))&IF(TYPE(VLOOKUP($A33,FB_26,R$5,0))=16,"",VLOOKUP($A33,FB_26,R$5,0))&IF(TYPE(VLOOKUP($A33,FB_27,R$5,0))=16,"",VLOOKUP($A33,FB_27,R$5,0))&IF(TYPE(VLOOKUP($A33,FB_28,R$5,0))=16,"",VLOOKUP($A33,FB_28,R$5,0))&IF(TYPE(VLOOKUP($A33,FB_29,R$5,0))=16,"",VLOOKUP($A33,FB_29,R$5,0))&IF(TYPE(VLOOKUP($A33,FB_30,R$5,0))=16,"",VLOOKUP($A33,FB_30,R$5,0)))) ->  | G33: =IF($B33="","",IF(TYPE(VLOOKUP($A33,FB_1,S$5,0))=16,"",VLOOKUP($A33,FB_1,S$5,0))&IF(TYPE(VLOOKUP($A33,FB_2,S$5,0))=16,"",VLOOKUP($A33,FB_2,S$5,0))&IF(TYPE(VLOOKUP($A33,FB_3,S$5,0))=16,"",VLOOKUP($A33,FB_3,S$5,0))&IF(TYPE(VLOOKUP($A33,FB_4,S$5,0))=16,"",VLOOKUP($A33,FB_4,S$5,0))&IF(TYPE(VLOOKUP($A33,FB_5,S$5,0))=16,"",VLOOKUP($A33,FB_5,S$5,0))&IF(TYPE(VLOOKUP($A33,FB_6,S$5,0))=16,"",VLOOKUP($A33,FB_6,S$5,0))&IF(TYPE(VLOOKUP($A33,FB_7,S$5,0))=16,"",VLOOKUP($A33,FB_7,S$5,0))&IF(TYPE(VLOOKUP($A33,FB_8,S$5,0))=16,"",VLOOKUP($A33,FB_8,S$5,0))&IF(TYPE(VLOOKUP($A33,FB_9,S$5,0))=16,"",VLOOKUP($A33,FB_9,S$5,0))&IF(TYPE(VLOOKUP($A33,FB_10,S$5,0))=16,"",VLOOKUP($A33,FB_10,S$5,0))&IF(TYPE(VLOOKUP($A33,FB_11,S$5,0))=16,"",VLOOKUP($A33,FB_11,S$5,0))&IF(TYPE(VLOOKUP($A33,FB_12,S$5,0))=16,"",VLOOKUP($A33,FB_12,S$5,0))&IF(TYPE(VLOOKUP($A33,FB_13,S$5,0))=16,"",VLOOKUP($A33,FB_13,S$5,0))&IF(TYPE(VLOOKUP($A33,FB_14,S$5,0))=16,"",VLOOKUP($A33,FB_14,S$5,0))&IF(TYPE(VLOOKUP($A33,FB_15,S$5,0))=16,"",VLOOKUP($A33,FB_15,S$5,0))&IF(TYPE(VLOOKUP($A33,FB_16,S$5,0))=16,"",VLOOKUP($A33,FB_16,S$5,0))&IF(TYPE(VLOOKUP($A33,FB_17,S$5,0))=16,"",VLOOKUP($A33,FB_17,S$5,0))&IF(TYPE(VLOOKUP($A33,FB_18,S$5,0))=16,"",VLOOKUP($A33,FB_18,S$5,0))&IF(TYPE(VLOOKUP($A33,FB_19,S$5,0))=16,"",VLOOKUP($A33,FB_19,S$5,0))&IF(TYPE(VLOOKUP($A33,FB_20,S$5,0))=16,"",VLOOKUP($A33,FB_20,S$5,0))&IF(TYPE(VLOOKUP($A33,FB_21,S$5,0))=16,"",VLOOKUP($A33,FB_21,S$5,0))&IF(TYPE(VLOOKUP($A33,FB_22,S$5,0))=16,"",VLOOKUP($A33,FB_22,S$5,0))&IF(TYPE(VLOOKUP($A33,FB_23,S$5,0))=16,"",VLOOKUP($A33,FB_23,S$5,0))&IF(TYPE(VLOOKUP($A33,FB_24,S$5,0))=16,"",VLOOKUP($A33,FB_24,S$5,0))&IF(TYPE(VLOOKUP($A33,FB_25,S$5,0))=16,"",VLOOKUP($A33,FB_25,S$5,0))&IF(TYPE(VLOOKUP($A33,FB_26,S$5,0))=16,"",VLOOKUP($A33,FB_26,S$5,0))&IF(TYPE(VLOOKUP($A33,FB_27,S$5,0))=16,"",VLOOKUP($A33,FB_27,S$5,0))&IF(TYPE(VLOOKUP($A33,FB_28,S$5,0))=16,"",VLOOKUP($A33,FB_28,S$5,0))&IF(TYPE(VLOOKUP($A33,FB_29,S$5,0))=16,"",VLOOKUP($A33,FB_29,S$5,0))&IF(TYPE(VLOOKUP($A33,FB_30,S$5,0))=16,"",VLOOKUP($A33,FB_30,S$5,0))) ->  | Y33: :
A34: 5. | B34: =IF(TYPE(VLOOKUP($A34,FB_1,2,0))=16,"",VLOOKUP($A34,FB_1,2,0))&IF(TYPE(VLOOKUP($A34,FB_2,2,0))=16,"",VLOOKUP($A34,FB_2,2,0))&IF(TYPE(VLOOKUP($A34,FB_3,2,0))=16,"",VLOOKUP($A34,FB_3,2,0))&IF(TYPE(VLOOKUP($A34,FB_4,2,0))=16,"",VLOOKUP($A34,FB_4,2,0))&IF(TYPE(VLOOKUP($A34,FB_5,2,0))=16,"",VLOOKUP($A34,FB_5,2,0))&IF(TYPE(VLOOKUP($A34,FB_6,2,0))=16,"",VLOOKUP($A34,FB_6,2,0))&IF(TYPE(VLOOKUP($A34,FB_7,2,0))=16,"",VLOOKUP($A34,FB_7,2,0))&IF(TYPE(VLOOKUP($A34,FB_8,2,0))=16,"",VLOOKUP($A34,FB_8,2,0))&IF(TYPE(VLOOKUP($A34,FB_9,2,0))=16,"",VLOOKUP($A34,FB_9,2,0))&IF(TYPE(VLOOKUP($A34,FB_10,2,0))=16,"",VLOOKUP($A34,FB_10,2,0))&IF(TYPE(VLOOKUP($A34,FB_11,2,0))=16,"",VLOOKUP($A34,FB_11,2,0))&IF(TYPE(VLOOKUP($A34,FB_12,2,0))=16,"",VLOOKUP($A34,FB_12,2,0))&IF(TYPE(VLOOKUP($A34,FB_13,2,0))=16,"",VLOOKUP($A34,FB_13,2,0))&IF(TYPE(VLOOKUP($A34,FB_14,2,0))=16,"",VLOOKUP($A34,FB_14,2,0))&IF(TYPE(VLOOKUP($A34,FB_15,2,0))=16,"",VLOOKUP($A34,FB_15,2,0))&IF(TYPE(VLOOKUP($A34,FB_16,2,0))=16,"",VLOOKUP($A34,FB_16,2,0))&IF(TYPE(VLOOKUP($A34,FB_17,2,0))=16,"",VLOOKUP($A34,FB_17,2,0))&IF(TYPE(VLOOKUP($A34,FB_18,2,0))=16,"",VLOOKUP($A34,FB_18,2,0))&IF(TYPE(VLOOKUP($A34,FB_19,2,0))=16,"",VLOOKUP($A34,FB_19,2,0))&IF(TYPE(VLOOKUP($A34,FB_20,2,0))=16,"",VLOOKUP($A34,FB_20,2,0))&IF(TYPE(VLOOKUP($A34,FB_21,2,0))=16,"",VLOOKUP($A34,FB_21,2,0))&IF(TYPE(VLOOKUP($A34,FB_22,2,0))=16,"",VLOOKUP($A34,FB_22,2,0))&IF(TYPE(VLOOKUP($A34,FB_23,2,0))=16,"",VLOOKUP($A34,FB_23,2,0))&IF(TYPE(VLOOKUP($A34,FB_24,2,0))=16,"",VLOOKUP($A34,FB_24,2,0))&IF(TYPE(VLOOKUP($A34,FB_25,2,0))=16,"",VLOOKUP($A34,FB_25,2,0))&IF(TYPE(VLOOKUP($A34,FB_26,2,0))=16,"",VLOOKUP($A34,FB_26,2,0))&IF(TYPE(VLOOKUP($A34,FB_27,2,0))=16,"",VLOOKUP($A34,FB_27,2,0))&IF(TYPE(VLOOKUP($A34,FB_28,2,0))=16,"",VLOOKUP($A34,FB_28,2,0))&IF(TYPE(VLOOKUP($A34,FB_29,2,0))=16,"",VLOOKUP($A34,FB_29,2,0))&IF(TYPE(VLOOKUP($A34,FB_30,2,0))=16,"",VLOOKUP($A34,FB_30,2,0)) ->  | D34: =IF($B34="","",_xlfn.NUMBERVALUE(IF(TYPE(VLOOKUP($A34,FB_1,P$5,0))=16,"",VLOOKUP($A34,FB_1,P$5,0))&IF(TYPE(VLOOKUP($A34,FB_2,P$5,0))=16,"",VLOOKUP($A34,FB_2,P$5,0))&IF(TYPE(VLOOKUP($A34,FB_3,P$5,0))=16,"",VLOOKUP($A34,FB_3,P$5,0))&IF(TYPE(VLOOKUP($A34,FB_4,P$5,0))=16,"",VLOOKUP($A34,FB_4,P$5,0))&IF(TYPE(VLOOKUP($A34,FB_5,P$5,0))=16,"",VLOOKUP($A34,FB_5,P$5,0))&IF(TYPE(VLOOKUP($A34,FB_6,P$5,0))=16,"",VLOOKUP($A34,FB_6,P$5,0))&IF(TYPE(VLOOKUP($A34,FB_7,P$5,0))=16,"",VLOOKUP($A34,FB_7,P$5,0))&IF(TYPE(VLOOKUP($A34,FB_8,P$5,0))=16,"",VLOOKUP($A34,FB_8,P$5,0))&IF(TYPE(VLOOKUP($A34,FB_9,P$5,0))=16,"",VLOOKUP($A34,FB_9,P$5,0))&IF(TYPE(VLOOKUP($A34,FB_10,P$5,0))=16,"",VLOOKUP($A34,FB_10,P$5,0))&IF(TYPE(VLOOKUP($A34,FB_11,P$5,0))=16,"",VLOOKUP($A34,FB_11,P$5,0))&IF(TYPE(VLOOKUP($A34,FB_12,P$5,0))=16,"",VLOOKUP($A34,FB_12,P$5,0))&IF(TYPE(VLOOKUP($A34,FB_13,P$5,0))=16,"",VLOOKUP($A34,FB_13,P$5,0))&IF(TYPE(VLOOKUP($A34,FB_14,P$5,0))=16,"",VLOOKUP($A34,FB_14,P$5,0))&IF(TYPE(VLOOKUP($A34,FB_15,P$5,0))=16,"",VLOOKUP($A34,FB_15,P$5,0))&IF(TYPE(VLOOKUP($A34,FB_16,P$5,0))=16,"",VLOOKUP($A34,FB_16,P$5,0))&IF(TYPE(VLOOKUP($A34,FB_17,P$5,0))=16,"",VLOOKUP($A34,FB_17,P$5,0))&IF(TYPE(VLOOKUP($A34,FB_18,P$5,0))=16,"",VLOOKUP($A34,FB_18,P$5,0))&IF(TYPE(VLOOKUP($A34,FB_19,P$5,0))=16,"",VLOOKUP($A34,FB_19,P$5,0))&IF(TYPE(VLOOKUP($A34,FB_20,P$5,0))=16,"",VLOOKUP($A34,FB_20,P$5,0))&IF(TYPE(VLOOKUP($A34,FB_21,P$5,0))=16,"",VLOOKUP($A34,FB_21,P$5,0))&IF(TYPE(VLOOKUP($A34,FB_22,P$5,0))=16,"",VLOOKUP($A34,FB_22,P$5,0))&IF(TYPE(VLOOKUP($A34,FB_23,P$5,0))=16,"",VLOOKUP($A34,FB_23,P$5,0))&IF(TYPE(VLOOKUP($A34,FB_24,P$5,0))=16,"",VLOOKUP($A34,FB_24,P$5,0))&IF(TYPE(VLOOKUP($A34,FB_25,P$5,0))=16,"",VLOOKUP($A34,FB_25,P$5,0))&IF(TYPE(VLOOKUP($A34,FB_26,P$5,0))=16,"",VLOOKUP($A34,FB_26,P$5,0))&IF(TYPE(VLOOKUP($A34,FB_27,P$5,0))=16,"",VLOOKUP($A34,FB_27,P$5,0))&IF(TYPE(VLOOKUP($A34,FB_28,P$5,0))=16,"",VLOOKUP($A34,FB_28,P$5,0))&IF(TYPE(VLOOKUP($A34,FB_29,P$5,0))=16,"",VLOOKUP($A34,FB_29,P$5,0))&IF(TYPE(VLOOKUP($A34,FB_30,P$5,0))=16,"",VLOOKUP($A34,FB_30,P$5,0)))) ->  | F34: =IF($B34="","",_xlfn.NUMBERVALUE(IF(TYPE(VLOOKUP($A34,FB_1,R$5,0))=16,"",VLOOKUP($A34,FB_1,R$5,0))&IF(TYPE(VLOOKUP($A34,FB_2,R$5,0))=16,"",VLOOKUP($A34,FB_2,R$5,0))&IF(TYPE(VLOOKUP($A34,FB_3,R$5,0))=16,"",VLOOKUP($A34,FB_3,R$5,0))&IF(TYPE(VLOOKUP($A34,FB_4,R$5,0))=16,"",VLOOKUP($A34,FB_4,R$5,0))&IF(TYPE(VLOOKUP($A34,FB_5,R$5,0))=16,"",VLOOKUP($A34,FB_5,R$5,0))&IF(TYPE(VLOOKUP($A34,FB_6,R$5,0))=16,"",VLOOKUP($A34,FB_6,R$5,0))&IF(TYPE(VLOOKUP($A34,FB_7,R$5,0))=16,"",VLOOKUP($A34,FB_7,R$5,0))&IF(TYPE(VLOOKUP($A34,FB_8,R$5,0))=16,"",VLOOKUP($A34,FB_8,R$5,0))&IF(TYPE(VLOOKUP($A34,FB_9,R$5,0))=16,"",VLOOKUP($A34,FB_9,R$5,0))&IF(TYPE(VLOOKUP($A34,FB_10,R$5,0))=16,"",VLOOKUP($A34,FB_10,R$5,0))&IF(TYPE(VLOOKUP($A34,FB_11,R$5,0))=16,"",VLOOKUP($A34,FB_11,R$5,0))&IF(TYPE(VLOOKUP($A34,FB_12,R$5,0))=16,"",VLOOKUP($A34,FB_12,R$5,0))&IF(TYPE(VLOOKUP($A34,FB_13,R$5,0))=16,"",VLOOKUP($A34,FB_13,R$5,0))&IF(TYPE(VLOOKUP($A34,FB_14,R$5,0))=16,"",VLOOKUP($A34,FB_14,R$5,0))&IF(TYPE(VLOOKUP($A34,FB_15,R$5,0))=16,"",VLOOKUP($A34,FB_15,R$5,0))&IF(TYPE(VLOOKUP($A34,FB_16,R$5,0))=16,"",VLOOKUP($A34,FB_16,R$5,0))&IF(TYPE(VLOOKUP($A34,FB_17,R$5,0))=16,"",VLOOKUP($A34,FB_17,R$5,0))&IF(TYPE(VLOOKUP($A34,FB_18,R$5,0))=16,"",VLOOKUP($A34,FB_18,R$5,0))&IF(TYPE(VLOOKUP($A34,FB_19,R$5,0))=16,"",VLOOKUP($A34,FB_19,R$5,0))&IF(TYPE(VLOOKUP($A34,FB_20,R$5,0))=16,"",VLOOKUP($A34,FB_20,R$5,0))&IF(TYPE(VLOOKUP($A34,FB_21,R$5,0))=16,"",VLOOKUP($A34,FB_21,R$5,0))&IF(TYPE(VLOOKUP($A34,FB_22,R$5,0))=16,"",VLOOKUP($A34,FB_22,R$5,0))&IF(TYPE(VLOOKUP($A34,FB_23,R$5,0))=16,"",VLOOKUP($A34,FB_23,R$5,0))&IF(TYPE(VLOOKUP($A34,FB_24,R$5,0))=16,"",VLOOKUP($A34,FB_24,R$5,0))&IF(TYPE(VLOOKUP($A34,FB_25,R$5,0))=16,"",VLOOKUP($A34,FB_25,R$5,0))&IF(TYPE(VLOOKUP($A34,FB_26,R$5,0))=16,"",VLOOKUP($A34,FB_26,R$5,0))&IF(TYPE(VLOOKUP($A34,FB_27,R$5,0))=16,"",VLOOKUP($A34,FB_27,R$5,0))&IF(TYPE(VLOOKUP($A34,FB_28,R$5,0))=16,"",VLOOKUP($A34,FB_28,R$5,0))&IF(TYPE(VLOOKUP($A34,FB_29,R$5,0))=16,"",VLOOKUP($A34,FB_29,R$5,0))&IF(TYPE(VLOOKUP($A34,FB_30,R$5,0))=16,"",VLOOKUP($A34,FB_30,R$5,0)))) ->  | G34: =IF($B34="","",IF(TYPE(VLOOKUP($A34,FB_1,S$5,0))=16,"",VLOOKUP($A34,FB_1,S$5,0))&IF(TYPE(VLOOKUP($A34,FB_2,S$5,0))=16,"",VLOOKUP($A34,FB_2,S$5,0))&IF(TYPE(VLOOKUP($A34,FB_3,S$5,0))=16,"",VLOOKUP($A34,FB_3,S$5,0))&IF(TYPE(VLOOKUP($A34,FB_4,S$5,0))=16,"",VLOOKUP($A34,FB_4,S$5,0))&IF(TYPE(VLOOKUP($A34,FB_5,S$5,0))=16,"",VLOOKUP($A34,FB_5,S$5,0))&IF(TYPE(VLOOKUP($A34,FB_6,S$5,0))=16,"",VLOOKUP($A34,FB_6,S$5,0))&IF(TYPE(VLOOKUP($A34,FB_7,S$5,0))=16,"",VLOOKUP($A34,FB_7,S$5,0))&IF(TYPE(VLOOKUP($A34,FB_8,S$5,0))=16,"",VLOOKUP($A34,FB_8,S$5,0))&IF(TYPE(VLOOKUP($A34,FB_9,S$5,0))=16,"",VLOOKUP($A34,FB_9,S$5,0))&IF(TYPE(VLOOKUP($A34,FB_10,S$5,0))=16,"",VLOOKUP($A34,FB_10,S$5,0))&IF(TYPE(VLOOKUP($A34,FB_11,S$5,0))=16,"",VLOOKUP($A34,FB_11,S$5,0))&IF(TYPE(VLOOKUP($A34,FB_12,S$5,0))=16,"",VLOOKUP($A34,FB_12,S$5,0))&IF(TYPE(VLOOKUP($A34,FB_13,S$5,0))=16,"",VLOOKUP($A34,FB_13,S$5,0))&IF(TYPE(VLOOKUP($A34,FB_14,S$5,0))=16,"",VLOOKUP($A34,FB_14,S$5,0))&IF(TYPE(VLOOKUP($A34,FB_15,S$5,0))=16,"",VLOOKUP($A34,FB_15,S$5,0))&IF(TYPE(VLOOKUP($A34,FB_16,S$5,0))=16,"",VLOOKUP($A34,FB_16,S$5,0))&IF(TYPE(VLOOKUP($A34,FB_17,S$5,0))=16,"",VLOOKUP($A34,FB_17,S$5,0))&IF(TYPE(VLOOKUP($A34,FB_18,S$5,0))=16,"",VLOOKUP($A34,FB_18,S$5,0))&IF(TYPE(VLOOKUP($A34,FB_19,S$5,0))=16,"",VLOOKUP($A34,FB_19,S$5,0))&IF(TYPE(VLOOKUP($A34,FB_20,S$5,0))=16,"",VLOOKUP($A34,FB_20,S$5,0))&IF(TYPE(VLOOKUP($A34,FB_21,S$5,0))=16,"",VLOOKUP($A34,FB_21,S$5,0))&IF(TYPE(VLOOKUP($A34,FB_22,S$5,0))=16,"",VLOOKUP($A34,FB_22,S$5,0))&IF(TYPE(VLOOKUP($A34,FB_23,S$5,0))=16,"",VLOOKUP($A34,FB_23,S$5,0))&IF(TYPE(VLOOKUP($A34,FB_24,S$5,0))=16,"",VLOOKUP($A34,FB_24,S$5,0))&IF(TYPE(VLOOKUP($A34,FB_25,S$5,0))=16,"",VLOOKUP($A34,FB_25,S$5,0))&IF(TYPE(VLOOKUP($A34,FB_26,S$5,0))=16,"",VLOOKUP($A34,FB_26,S$5,0))&IF(TYPE(VLOOKUP($A34,FB_27,S$5,0))=16,"",VLOOKUP($A34,FB_27,S$5,0))&IF(TYPE(VLOOKUP($A34,FB_28,S$5,0))=16,"",VLOOKUP($A34,FB_28,S$5,0))&IF(TYPE(VLOOKUP($A34,FB_29,S$5,0))=16,"",VLOOKUP($A34,FB_29,S$5,0))&IF(TYPE(VLOOKUP($A34,FB_30,S$5,0))=16,"",VLOOKUP($A34,FB_30,S$5,0))) ->  | Y34: :
A35: 6. | B35: =IF(TYPE(VLOOKUP($A35,FB_1,2,0))=16,"",VLOOKUP($A35,FB_1,2,0))&IF(TYPE(VLOOKUP($A35,FB_2,2,0))=16,"",VLOOKUP($A35,FB_2,2,0))&IF(TYPE(VLOOKUP($A35,FB_3,2,0))=16,"",VLOOKUP($A35,FB_3,2,0))&IF(TYPE(VLOOKUP($A35,FB_4,2,0))=16,"",VLOOKUP($A35,FB_4,2,0))&IF(TYPE(VLOOKUP($A35,FB_5,2,0))=16,"",VLOOKUP($A35,FB_5,2,0))&IF(TYPE(VLOOKUP($A35,FB_6,2,0))=16,"",VLOOKUP($A35,FB_6,2,0))&IF(TYPE(VLOOKUP($A35,FB_7,2,0))=16,"",VLOOKUP($A35,FB_7,2,0))&IF(TYPE(VLOOKUP($A35,FB_8,2,0))=16,"",VLOOKUP($A35,FB_8,2,0))&IF(TYPE(VLOOKUP($A35,FB_9,2,0))=16,"",VLOOKUP($A35,FB_9,2,0))&IF(TYPE(VLOOKUP($A35,FB_10,2,0))=16,"",VLOOKUP($A35,FB_10,2,0))&IF(TYPE(VLOOKUP($A35,FB_11,2,0))=16,"",VLOOKUP($A35,FB_11,2,0))&IF(TYPE(VLOOKUP($A35,FB_12,2,0))=16,"",VLOOKUP($A35,FB_12,2,0))&IF(TYPE(VLOOKUP($A35,FB_13,2,0))=16,"",VLOOKUP($A35,FB_13,2,0))&IF(TYPE(VLOOKUP($A35,FB_14,2,0))=16,"",VLOOKUP($A35,FB_14,2,0))&IF(TYPE(VLOOKUP($A35,FB_15,2,0))=16,"",VLOOKUP($A35,FB_15,2,0))&IF(TYPE(VLOOKUP($A35,FB_16,2,0))=16,"",VLOOKUP($A35,FB_16,2,0))&IF(TYPE(VLOOKUP($A35,FB_17,2,0))=16,"",VLOOKUP($A35,FB_17,2,0))&IF(TYPE(VLOOKUP($A35,FB_18,2,0))=16,"",VLOOKUP($A35,FB_18,2,0))&IF(TYPE(VLOOKUP($A35,FB_19,2,0))=16,"",VLOOKUP($A35,FB_19,2,0))&IF(TYPE(VLOOKUP($A35,FB_20,2,0))=16,"",VLOOKUP($A35,FB_20,2,0))&IF(TYPE(VLOOKUP($A35,FB_21,2,0))=16,"",VLOOKUP($A35,FB_21,2,0))&IF(TYPE(VLOOKUP($A35,FB_22,2,0))=16,"",VLOOKUP($A35,FB_22,2,0))&IF(TYPE(VLOOKUP($A35,FB_23,2,0))=16,"",VLOOKUP($A35,FB_23,2,0))&IF(TYPE(VLOOKUP($A35,FB_24,2,0))=16,"",VLOOKUP($A35,FB_24,2,0))&IF(TYPE(VLOOKUP($A35,FB_25,2,0))=16,"",VLOOKUP($A35,FB_25,2,0))&IF(TYPE(VLOOKUP($A35,FB_26,2,0))=16,"",VLOOKUP($A35,FB_26,2,0))&IF(TYPE(VLOOKUP($A35,FB_27,2,0))=16,"",VLOOKUP($A35,FB_27,2,0))&IF(TYPE(VLOOKUP($A35,FB_28,2,0))=16,"",VLOOKUP($A35,FB_28,2,0))&IF(TYPE(VLOOKUP($A35,FB_29,2,0))=16,"",VLOOKUP($A35,FB_29,2,0))&IF(TYPE(VLOOKUP($A35,FB_30,2,0))=16,"",VLOOKUP($A35,FB_30,2,0)) ->  | D35: =IF($B35="","",_xlfn.NUMBERVALUE(IF(TYPE(VLOOKUP($A35,FB_1,P$5,0))=16,"",VLOOKUP($A35,FB_1,P$5,0))&IF(TYPE(VLOOKUP($A35,FB_2,P$5,0))=16,"",VLOOKUP($A35,FB_2,P$5,0))&IF(TYPE(VLOOKUP($A35,FB_3,P$5,0))=16,"",VLOOKUP($A35,FB_3,P$5,0))&IF(TYPE(VLOOKUP($A35,FB_4,P$5,0))=16,"",VLOOKUP($A35,FB_4,P$5,0))&IF(TYPE(VLOOKUP($A35,FB_5,P$5,0))=16,"",VLOOKUP($A35,FB_5,P$5,0))&IF(TYPE(VLOOKUP($A35,FB_6,P$5,0))=16,"",VLOOKUP($A35,FB_6,P$5,0))&IF(TYPE(VLOOKUP($A35,FB_7,P$5,0))=16,"",VLOOKUP($A35,FB_7,P$5,0))&IF(TYPE(VLOOKUP($A35,FB_8,P$5,0))=16,"",VLOOKUP($A35,FB_8,P$5,0))&IF(TYPE(VLOOKUP($A35,FB_9,P$5,0))=16,"",VLOOKUP($A35,FB_9,P$5,0))&IF(TYPE(VLOOKUP($A35,FB_10,P$5,0))=16,"",VLOOKUP($A35,FB_10,P$5,0))&IF(TYPE(VLOOKUP($A35,FB_11,P$5,0))=16,"",VLOOKUP($A35,FB_11,P$5,0))&IF(TYPE(VLOOKUP($A35,FB_12,P$5,0))=16,"",VLOOKUP($A35,FB_12,P$5,0))&IF(TYPE(VLOOKUP($A35,FB_13,P$5,0))=16,"",VLOOKUP($A35,FB_13,P$5,0))&IF(TYPE(VLOOKUP($A35,FB_14,P$5,0))=16,"",VLOOKUP($A35,FB_14,P$5,0))&IF(TYPE(VLOOKUP($A35,FB_15,P$5,0))=16,"",VLOOKUP($A35,FB_15,P$5,0))&IF(TYPE(VLOOKUP($A35,FB_16,P$5,0))=16,"",VLOOKUP($A35,FB_16,P$5,0))&IF(TYPE(VLOOKUP($A35,FB_17,P$5,0))=16,"",VLOOKUP($A35,FB_17,P$5,0))&IF(TYPE(VLOOKUP($A35,FB_18,P$5,0))=16,"",VLOOKUP($A35,FB_18,P$5,0))&IF(TYPE(VLOOKUP($A35,FB_19,P$5,0))=16,"",VLOOKUP($A35,FB_19,P$5,0))&IF(TYPE(VLOOKUP($A35,FB_20,P$5,0))=16,"",VLOOKUP($A35,FB_20,P$5,0))&IF(TYPE(VLOOKUP($A35,FB_21,P$5,0))=16,"",VLOOKUP($A35,FB_21,P$5,0))&IF(TYPE(VLOOKUP($A35,FB_22,P$5,0))=16,"",VLOOKUP($A35,FB_22,P$5,0))&IF(TYPE(VLOOKUP($A35,FB_23,P$5,0))=16,"",VLOOKUP($A35,FB_23,P$5,0))&IF(TYPE(VLOOKUP($A35,FB_24,P$5,0))=16,"",VLOOKUP($A35,FB_24,P$5,0))&IF(TYPE(VLOOKUP($A35,FB_25,P$5,0))=16,"",VLOOKUP($A35,FB_25,P$5,0))&IF(TYPE(VLOOKUP($A35,FB_26,P$5,0))=16,"",VLOOKUP($A35,FB_26,P$5,0))&IF(TYPE(VLOOKUP($A35,FB_27,P$5,0))=16,"",VLOOKUP($A35,FB_27,P$5,0))&IF(TYPE(VLOOKUP($A35,FB_28,P$5,0))=16,"",VLOOKUP($A35,FB_28,P$5,0))&IF(TYPE(VLOOKUP($A35,FB_29,P$5,0))=16,"",VLOOKUP($A35,FB_29,P$5,0))&IF(TYPE(VLOOKUP($A35,FB_30,P$5,0))=16,"",VLOOKUP($A35,FB_30,P$5,0)))) ->  | F35: =IF($B35="","",_xlfn.NUMBERVALUE(IF(TYPE(VLOOKUP($A35,FB_1,R$5,0))=16,"",VLOOKUP($A35,FB_1,R$5,0))&IF(TYPE(VLOOKUP($A35,FB_2,R$5,0))=16,"",VLOOKUP($A35,FB_2,R$5,0))&IF(TYPE(VLOOKUP($A35,FB_3,R$5,0))=16,"",VLOOKUP($A35,FB_3,R$5,0))&IF(TYPE(VLOOKUP($A35,FB_4,R$5,0))=16,"",VLOOKUP($A35,FB_4,R$5,0))&IF(TYPE(VLOOKUP($A35,FB_5,R$5,0))=16,"",VLOOKUP($A35,FB_5,R$5,0))&IF(TYPE(VLOOKUP($A35,FB_6,R$5,0))=16,"",VLOOKUP($A35,FB_6,R$5,0))&IF(TYPE(VLOOKUP($A35,FB_7,R$5,0))=16,"",VLOOKUP($A35,FB_7,R$5,0))&IF(TYPE(VLOOKUP($A35,FB_8,R$5,0))=16,"",VLOOKUP($A35,FB_8,R$5,0))&IF(TYPE(VLOOKUP($A35,FB_9,R$5,0))=16,"",VLOOKUP($A35,FB_9,R$5,0))&IF(TYPE(VLOOKUP($A35,FB_10,R$5,0))=16,"",VLOOKUP($A35,FB_10,R$5,0))&IF(TYPE(VLOOKUP($A35,FB_11,R$5,0))=16,"",VLOOKUP($A35,FB_11,R$5,0))&IF(TYPE(VLOOKUP($A35,FB_12,R$5,0))=16,"",VLOOKUP($A35,FB_12,R$5,0))&IF(TYPE(VLOOKUP($A35,FB_13,R$5,0))=16,"",VLOOKUP($A35,FB_13,R$5,0))&IF(TYPE(VLOOKUP($A35,FB_14,R$5,0))=16,"",VLOOKUP($A35,FB_14,R$5,0))&IF(TYPE(VLOOKUP($A35,FB_15,R$5,0))=16,"",VLOOKUP($A35,FB_15,R$5,0))&IF(TYPE(VLOOKUP($A35,FB_16,R$5,0))=16,"",VLOOKUP($A35,FB_16,R$5,0))&IF(TYPE(VLOOKUP($A35,FB_17,R$5,0))=16,"",VLOOKUP($A35,FB_17,R$5,0))&IF(TYPE(VLOOKUP($A35,FB_18,R$5,0))=16,"",VLOOKUP($A35,FB_18,R$5,0))&IF(TYPE(VLOOKUP($A35,FB_19,R$5,0))=16,"",VLOOKUP($A35,FB_19,R$5,0))&IF(TYPE(VLOOKUP($A35,FB_20,R$5,0))=16,"",VLOOKUP($A35,FB_20,R$5,0))&IF(TYPE(VLOOKUP($A35,FB_21,R$5,0))=16,"",VLOOKUP($A35,FB_21,R$5,0))&IF(TYPE(VLOOKUP($A35,FB_22,R$5,0))=16,"",VLOOKUP($A35,FB_22,R$5,0))&IF(TYPE(VLOOKUP($A35,FB_23,R$5,0))=16,"",VLOOKUP($A35,FB_23,R$5,0))&IF(TYPE(VLOOKUP($A35,FB_24,R$5,0))=16,"",VLOOKUP($A35,FB_24,R$5,0))&IF(TYPE(VLOOKUP($A35,FB_25,R$5,0))=16,"",VLOOKUP($A35,FB_25,R$5,0))&IF(TYPE(VLOOKUP($A35,FB_26,R$5,0))=16,"",VLOOKUP($A35,FB_26,R$5,0))&IF(TYPE(VLOOKUP($A35,FB_27,R$5,0))=16,"",VLOOKUP($A35,FB_27,R$5,0))&IF(TYPE(VLOOKUP($A35,FB_28,R$5,0))=16,"",VLOOKUP($A35,FB_28,R$5,0))&IF(TYPE(VLOOKUP($A35,FB_29,R$5,0))=16,"",VLOOKUP($A35,FB_29,R$5,0))&IF(TYPE(VLOOKUP($A35,FB_30,R$5,0))=16,"",VLOOKUP($A35,FB_30,R$5,0)))) ->  | G35: =IF($B35="","",IF(TYPE(VLOOKUP($A35,FB_1,S$5,0))=16,"",VLOOKUP($A35,FB_1,S$5,0))&IF(TYPE(VLOOKUP($A35,FB_2,S$5,0))=16,"",VLOOKUP($A35,FB_2,S$5,0))&IF(TYPE(VLOOKUP($A35,FB_3,S$5,0))=16,"",VLOOKUP($A35,FB_3,S$5,0))&IF(TYPE(VLOOKUP($A35,FB_4,S$5,0))=16,"",VLOOKUP($A35,FB_4,S$5,0))&IF(TYPE(VLOOKUP($A35,FB_5,S$5,0))=16,"",VLOOKUP($A35,FB_5,S$5,0))&IF(TYPE(VLOOKUP($A35,FB_6,S$5,0))=16,"",VLOOKUP($A35,FB_6,S$5,0))&IF(TYPE(VLOOKUP($A35,FB_7,S$5,0))=16,"",VLOOKUP($A35,FB_7,S$5,0))&IF(TYPE(VLOOKUP($A35,FB_8,S$5,0))=16,"",VLOOKUP($A35,FB_8,S$5,0))&IF(TYPE(VLOOKUP($A35,FB_9,S$5,0))=16,"",VLOOKUP($A35,FB_9,S$5,0))&IF(TYPE(VLOOKUP($A35,FB_10,S$5,0))=16,"",VLOOKUP($A35,FB_10,S$5,0))&IF(TYPE(VLOOKUP($A35,FB_11,S$5,0))=16,"",VLOOKUP($A35,FB_11,S$5,0))&IF(TYPE(VLOOKUP($A35,FB_12,S$5,0))=16,"",VLOOKUP($A35,FB_12,S$5,0))&IF(TYPE(VLOOKUP($A35,FB_13,S$5,0))=16,"",VLOOKUP($A35,FB_13,S$5,0))&IF(TYPE(VLOOKUP($A35,FB_14,S$5,0))=16,"",VLOOKUP($A35,FB_14,S$5,0))&IF(TYPE(VLOOKUP($A35,FB_15,S$5,0))=16,"",VLOOKUP($A35,FB_15,S$5,0))&IF(TYPE(VLOOKUP($A35,FB_16,S$5,0))=16,"",VLOOKUP($A35,FB_16,S$5,0))&IF(TYPE(VLOOKUP($A35,FB_17,S$5,0))=16,"",VLOOKUP($A35,FB_17,S$5,0))&IF(TYPE(VLOOKUP($A35,FB_18,S$5,0))=16,"",VLOOKUP($A35,FB_18,S$5,0))&IF(TYPE(VLOOKUP($A35,FB_19,S$5,0))=16,"",VLOOKUP($A35,FB_19,S$5,0))&IF(TYPE(VLOOKUP($A35,FB_20,S$5,0))=16,"",VLOOKUP($A35,FB_20,S$5,0))&IF(TYPE(VLOOKUP($A35,FB_21,S$5,0))=16,"",VLOOKUP($A35,FB_21,S$5,0))&IF(TYPE(VLOOKUP($A35,FB_22,S$5,0))=16,"",VLOOKUP($A35,FB_22,S$5,0))&IF(TYPE(VLOOKUP($A35,FB_23,S$5,0))=16,"",VLOOKUP($A35,FB_23,S$5,0))&IF(TYPE(VLOOKUP($A35,FB_24,S$5,0))=16,"",VLOOKUP($A35,FB_24,S$5,0))&IF(TYPE(VLOOKUP($A35,FB_25,S$5,0))=16,"",VLOOKUP($A35,FB_25,S$5,0))&IF(TYPE(VLOOKUP($A35,FB_26,S$5,0))=16,"",VLOOKUP($A35,FB_26,S$5,0))&IF(TYPE(VLOOKUP($A35,FB_27,S$5,0))=16,"",VLOOKUP($A35,FB_27,S$5,0))&IF(TYPE(VLOOKUP($A35,FB_28,S$5,0))=16,"",VLOOKUP($A35,FB_28,S$5,0))&IF(TYPE(VLOOKUP($A35,FB_29,S$5,0))=16,"",VLOOKUP($A35,FB_29,S$5,0))&IF(TYPE(VLOOKUP($A35,FB_30,S$5,0))=16,"",VLOOKUP($A35,FB_30,S$5,0))) ->  | Y35: :
A36: 7. | B36: =IF(TYPE(VLOOKUP($A36,FB_1,2,0))=16,"",VLOOKUP($A36,FB_1,2,0))&IF(TYPE(VLOOKUP($A36,FB_2,2,0))=16,"",VLOOKUP($A36,FB_2,2,0))&IF(TYPE(VLOOKUP($A36,FB_3,2,0))=16,"",VLOOKUP($A36,FB_3,2,0))&IF(TYPE(VLOOKUP($A36,FB_4,2,0))=16,"",VLOOKUP($A36,FB_4,2,0))&IF(TYPE(VLOOKUP($A36,FB_5,2,0))=16,"",VLOOKUP($A36,FB_5,2,0))&IF(TYPE(VLOOKUP($A36,FB_6,2,0))=16,"",VLOOKUP($A36,FB_6,2,0))&IF(TYPE(VLOOKUP($A36,FB_7,2,0))=16,"",VLOOKUP($A36,FB_7,2,0))&IF(TYPE(VLOOKUP($A36,FB_8,2,0))=16,"",VLOOKUP($A36,FB_8,2,0))&IF(TYPE(VLOOKUP($A36,FB_9,2,0))=16,"",VLOOKUP($A36,FB_9,2,0))&IF(TYPE(VLOOKUP($A36,FB_10,2,0))=16,"",VLOOKUP($A36,FB_10,2,0))&IF(TYPE(VLOOKUP($A36,FB_11,2,0))=16,"",VLOOKUP($A36,FB_11,2,0))&IF(TYPE(VLOOKUP($A36,FB_12,2,0))=16,"",VLOOKUP($A36,FB_12,2,0))&IF(TYPE(VLOOKUP($A36,FB_13,2,0))=16,"",VLOOKUP($A36,FB_13,2,0))&IF(TYPE(VLOOKUP($A36,FB_14,2,0))=16,"",VLOOKUP($A36,FB_14,2,0))&IF(TYPE(VLOOKUP($A36,FB_15,2,0))=16,"",VLOOKUP($A36,FB_15,2,0))&IF(TYPE(VLOOKUP($A36,FB_16,2,0))=16,"",VLOOKUP($A36,FB_16,2,0))&IF(TYPE(VLOOKUP($A36,FB_17,2,0))=16,"",VLOOKUP($A36,FB_17,2,0))&IF(TYPE(VLOOKUP($A36,FB_18,2,0))=16,"",VLOOKUP($A36,FB_18,2,0))&IF(TYPE(VLOOKUP($A36,FB_19,2,0))=16,"",VLOOKUP($A36,FB_19,2,0))&IF(TYPE(VLOOKUP($A36,FB_20,2,0))=16,"",VLOOKUP($A36,FB_20,2,0))&IF(TYPE(VLOOKUP($A36,FB_21,2,0))=16,"",VLOOKUP($A36,FB_21,2,0))&IF(TYPE(VLOOKUP($A36,FB_22,2,0))=16,"",VLOOKUP($A36,FB_22,2,0))&IF(TYPE(VLOOKUP($A36,FB_23,2,0))=16,"",VLOOKUP($A36,FB_23,2,0))&IF(TYPE(VLOOKUP($A36,FB_24,2,0))=16,"",VLOOKUP($A36,FB_24,2,0))&IF(TYPE(VLOOKUP($A36,FB_25,2,0))=16,"",VLOOKUP($A36,FB_25,2,0))&IF(TYPE(VLOOKUP($A36,FB_26,2,0))=16,"",VLOOKUP($A36,FB_26,2,0))&IF(TYPE(VLOOKUP($A36,FB_27,2,0))=16,"",VLOOKUP($A36,FB_27,2,0))&IF(TYPE(VLOOKUP($A36,FB_28,2,0))=16,"",VLOOKUP($A36,FB_28,2,0))&IF(TYPE(VLOOKUP($A36,FB_29,2,0))=16,"",VLOOKUP($A36,FB_29,2,0))&IF(TYPE(VLOOKUP($A36,FB_30,2,0))=16,"",VLOOKUP($A36,FB_30,2,0)) ->  | D36: =IF($B36="","",_xlfn.NUMBERVALUE(IF(TYPE(VLOOKUP($A36,FB_1,P$5,0))=16,"",VLOOKUP($A36,FB_1,P$5,0))&IF(TYPE(VLOOKUP($A36,FB_2,P$5,0))=16,"",VLOOKUP($A36,FB_2,P$5,0))&IF(TYPE(VLOOKUP($A36,FB_3,P$5,0))=16,"",VLOOKUP($A36,FB_3,P$5,0))&IF(TYPE(VLOOKUP($A36,FB_4,P$5,0))=16,"",VLOOKUP($A36,FB_4,P$5,0))&IF(TYPE(VLOOKUP($A36,FB_5,P$5,0))=16,"",VLOOKUP($A36,FB_5,P$5,0))&IF(TYPE(VLOOKUP($A36,FB_6,P$5,0))=16,"",VLOOKUP($A36,FB_6,P$5,0))&IF(TYPE(VLOOKUP($A36,FB_7,P$5,0))=16,"",VLOOKUP($A36,FB_7,P$5,0))&IF(TYPE(VLOOKUP($A36,FB_8,P$5,0))=16,"",VLOOKUP($A36,FB_8,P$5,0))&IF(TYPE(VLOOKUP($A36,FB_9,P$5,0))=16,"",VLOOKUP($A36,FB_9,P$5,0))&IF(TYPE(VLOOKUP($A36,FB_10,P$5,0))=16,"",VLOOKUP($A36,FB_10,P$5,0))&IF(TYPE(VLOOKUP($A36,FB_11,P$5,0))=16,"",VLOOKUP($A36,FB_11,P$5,0))&IF(TYPE(VLOOKUP($A36,FB_12,P$5,0))=16,"",VLOOKUP($A36,FB_12,P$5,0))&IF(TYPE(VLOOKUP($A36,FB_13,P$5,0))=16,"",VLOOKUP($A36,FB_13,P$5,0))&IF(TYPE(VLOOKUP($A36,FB_14,P$5,0))=16,"",VLOOKUP($A36,FB_14,P$5,0))&IF(TYPE(VLOOKUP($A36,FB_15,P$5,0))=16,"",VLOOKUP($A36,FB_15,P$5,0))&IF(TYPE(VLOOKUP($A36,FB_16,P$5,0))=16,"",VLOOKUP($A36,FB_16,P$5,0))&IF(TYPE(VLOOKUP($A36,FB_17,P$5,0))=16,"",VLOOKUP($A36,FB_17,P$5,0))&IF(TYPE(VLOOKUP($A36,FB_18,P$5,0))=16,"",VLOOKUP($A36,FB_18,P$5,0))&IF(TYPE(VLOOKUP($A36,FB_19,P$5,0))=16,"",VLOOKUP($A36,FB_19,P$5,0))&IF(TYPE(VLOOKUP($A36,FB_20,P$5,0))=16,"",VLOOKUP($A36,FB_20,P$5,0))&IF(TYPE(VLOOKUP($A36,FB_21,P$5,0))=16,"",VLOOKUP($A36,FB_21,P$5,0))&IF(TYPE(VLOOKUP($A36,FB_22,P$5,0))=16,"",VLOOKUP($A36,FB_22,P$5,0))&IF(TYPE(VLOOKUP($A36,FB_23,P$5,0))=16,"",VLOOKUP($A36,FB_23,P$5,0))&IF(TYPE(VLOOKUP($A36,FB_24,P$5,0))=16,"",VLOOKUP($A36,FB_24,P$5,0))&IF(TYPE(VLOOKUP($A36,FB_25,P$5,0))=16,"",VLOOKUP($A36,FB_25,P$5,0))&IF(TYPE(VLOOKUP($A36,FB_26,P$5,0))=16,"",VLOOKUP($A36,FB_26,P$5,0))&IF(TYPE(VLOOKUP($A36,FB_27,P$5,0))=16,"",VLOOKUP($A36,FB_27,P$5,0))&IF(TYPE(VLOOKUP($A36,FB_28,P$5,0))=16,"",VLOOKUP($A36,FB_28,P$5,0))&IF(TYPE(VLOOKUP($A36,FB_29,P$5,0))=16,"",VLOOKUP($A36,FB_29,P$5,0))&IF(TYPE(VLOOKUP($A36,FB_30,P$5,0))=16,"",VLOOKUP($A36,FB_30,P$5,0)))) ->  | F36: =IF($B36="","",_xlfn.NUMBERVALUE(IF(TYPE(VLOOKUP($A36,FB_1,R$5,0))=16,"",VLOOKUP($A36,FB_1,R$5,0))&IF(TYPE(VLOOKUP($A36,FB_2,R$5,0))=16,"",VLOOKUP($A36,FB_2,R$5,0))&IF(TYPE(VLOOKUP($A36,FB_3,R$5,0))=16,"",VLOOKUP($A36,FB_3,R$5,0))&IF(TYPE(VLOOKUP($A36,FB_4,R$5,0))=16,"",VLOOKUP($A36,FB_4,R$5,0))&IF(TYPE(VLOOKUP($A36,FB_5,R$5,0))=16,"",VLOOKUP($A36,FB_5,R$5,0))&IF(TYPE(VLOOKUP($A36,FB_6,R$5,0))=16,"",VLOOKUP($A36,FB_6,R$5,0))&IF(TYPE(VLOOKUP($A36,FB_7,R$5,0))=16,"",VLOOKUP($A36,FB_7,R$5,0))&IF(TYPE(VLOOKUP($A36,FB_8,R$5,0))=16,"",VLOOKUP($A36,FB_8,R$5,0))&IF(TYPE(VLOOKUP($A36,FB_9,R$5,0))=16,"",VLOOKUP($A36,FB_9,R$5,0))&IF(TYPE(VLOOKUP($A36,FB_10,R$5,0))=16,"",VLOOKUP($A36,FB_10,R$5,0))&IF(TYPE(VLOOKUP($A36,FB_11,R$5,0))=16,"",VLOOKUP($A36,FB_11,R$5,0))&IF(TYPE(VLOOKUP($A36,FB_12,R$5,0))=16,"",VLOOKUP($A36,FB_12,R$5,0))&IF(TYPE(VLOOKUP($A36,FB_13,R$5,0))=16,"",VLOOKUP($A36,FB_13,R$5,0))&IF(TYPE(VLOOKUP($A36,FB_14,R$5,0))=16,"",VLOOKUP($A36,FB_14,R$5,0))&IF(TYPE(VLOOKUP($A36,FB_15,R$5,0))=16,"",VLOOKUP($A36,FB_15,R$5,0))&IF(TYPE(VLOOKUP($A36,FB_16,R$5,0))=16,"",VLOOKUP($A36,FB_16,R$5,0))&IF(TYPE(VLOOKUP($A36,FB_17,R$5,0))=16,"",VLOOKUP($A36,FB_17,R$5,0))&IF(TYPE(VLOOKUP($A36,FB_18,R$5,0))=16,"",VLOOKUP($A36,FB_18,R$5,0))&IF(TYPE(VLOOKUP($A36,FB_19,R$5,0))=16,"",VLOOKUP($A36,FB_19,R$5,0))&IF(TYPE(VLOOKUP($A36,FB_20,R$5,0))=16,"",VLOOKUP($A36,FB_20,R$5,0))&IF(TYPE(VLOOKUP($A36,FB_21,R$5,0))=16,"",VLOOKUP($A36,FB_21,R$5,0))&IF(TYPE(VLOOKUP($A36,FB_22,R$5,0))=16,"",VLOOKUP($A36,FB_22,R$5,0))&IF(TYPE(VLOOKUP($A36,FB_23,R$5,0))=16,"",VLOOKUP($A36,FB_23,R$5,0))&IF(TYPE(VLOOKUP($A36,FB_24,R$5,0))=16,"",VLOOKUP($A36,FB_24,R$5,0))&IF(TYPE(VLOOKUP($A36,FB_25,R$5,0))=16,"",VLOOKUP($A36,FB_25,R$5,0))&IF(TYPE(VLOOKUP($A36,FB_26,R$5,0))=16,"",VLOOKUP($A36,FB_26,R$5,0))&IF(TYPE(VLOOKUP($A36,FB_27,R$5,0))=16,"",VLOOKUP($A36,FB_27,R$5,0))&IF(TYPE(VLOOKUP($A36,FB_28,R$5,0))=16,"",VLOOKUP($A36,FB_28,R$5,0))&IF(TYPE(VLOOKUP($A36,FB_29,R$5,0))=16,"",VLOOKUP($A36,FB_29,R$5,0))&IF(TYPE(VLOOKUP($A36,FB_30,R$5,0))=16,"",VLOOKUP($A36,FB_30,R$5,0)))) ->  | G36: =IF($B36="","",IF(TYPE(VLOOKUP($A36,FB_1,S$5,0))=16,"",VLOOKUP($A36,FB_1,S$5,0))&IF(TYPE(VLOOKUP($A36,FB_2,S$5,0))=16,"",VLOOKUP($A36,FB_2,S$5,0))&IF(TYPE(VLOOKUP($A36,FB_3,S$5,0))=16,"",VLOOKUP($A36,FB_3,S$5,0))&IF(TYPE(VLOOKUP($A36,FB_4,S$5,0))=16,"",VLOOKUP($A36,FB_4,S$5,0))&IF(TYPE(VLOOKUP($A36,FB_5,S$5,0))=16,"",VLOOKUP($A36,FB_5,S$5,0))&IF(TYPE(VLOOKUP($A36,FB_6,S$5,0))=16,"",VLOOKUP($A36,FB_6,S$5,0))&IF(TYPE(VLOOKUP($A36,FB_7,S$5,0))=16,"",VLOOKUP($A36,FB_7,S$5,0))&IF(TYPE(VLOOKUP($A36,FB_8,S$5,0))=16,"",VLOOKUP($A36,FB_8,S$5,0))&IF(TYPE(VLOOKUP($A36,FB_9,S$5,0))=16,"",VLOOKUP($A36,FB_9,S$5,0))&IF(TYPE(VLOOKUP($A36,FB_10,S$5,0))=16,"",VLOOKUP($A36,FB_10,S$5,0))&IF(TYPE(VLOOKUP($A36,FB_11,S$5,0))=16,"",VLOOKUP($A36,FB_11,S$5,0))&IF(TYPE(VLOOKUP($A36,FB_12,S$5,0))=16,"",VLOOKUP($A36,FB_12,S$5,0))&IF(TYPE(VLOOKUP($A36,FB_13,S$5,0))=16,"",VLOOKUP($A36,FB_13,S$5,0))&IF(TYPE(VLOOKUP($A36,FB_14,S$5,0))=16,"",VLOOKUP($A36,FB_14,S$5,0))&IF(TYPE(VLOOKUP($A36,FB_15,S$5,0))=16,"",VLOOKUP($A36,FB_15,S$5,0))&IF(TYPE(VLOOKUP($A36,FB_16,S$5,0))=16,"",VLOOKUP($A36,FB_16,S$5,0))&IF(TYPE(VLOOKUP($A36,FB_17,S$5,0))=16,"",VLOOKUP($A36,FB_17,S$5,0))&IF(TYPE(VLOOKUP($A36,FB_18,S$5,0))=16,"",VLOOKUP($A36,FB_18,S$5,0))&IF(TYPE(VLOOKUP($A36,FB_19,S$5,0))=16,"",VLOOKUP($A36,FB_19,S$5,0))&IF(TYPE(VLOOKUP($A36,FB_20,S$5,0))=16,"",VLOOKUP($A36,FB_20,S$5,0))&IF(TYPE(VLOOKUP($A36,FB_21,S$5,0))=16,"",VLOOKUP($A36,FB_21,S$5,0))&IF(TYPE(VLOOKUP($A36,FB_22,S$5,0))=16,"",VLOOKUP($A36,FB_22,S$5,0))&IF(TYPE(VLOOKUP($A36,FB_23,S$5,0))=16,"",VLOOKUP($A36,FB_23,S$5,0))&IF(TYPE(VLOOKUP($A36,FB_24,S$5,0))=16,"",VLOOKUP($A36,FB_24,S$5,0))&IF(TYPE(VLOOKUP($A36,FB_25,S$5,0))=16,"",VLOOKUP($A36,FB_25,S$5,0))&IF(TYPE(VLOOKUP($A36,FB_26,S$5,0))=16,"",VLOOKUP($A36,FB_26,S$5,0))&IF(TYPE(VLOOKUP($A36,FB_27,S$5,0))=16,"",VLOOKUP($A36,FB_27,S$5,0))&IF(TYPE(VLOOKUP($A36,FB_28,S$5,0))=16,"",VLOOKUP($A36,FB_28,S$5,0))&IF(TYPE(VLOOKUP($A36,FB_29,S$5,0))=16,"",VLOOKUP($A36,FB_29,S$5,0))&IF(TYPE(VLOOKUP($A36,FB_30,S$5,0))=16,"",VLOOKUP($A36,FB_30,S$5,0))) ->  | Y36: :
A37: 8. | B37: =IF(TYPE(VLOOKUP($A37,FB_1,2,0))=16,"",VLOOKUP($A37,FB_1,2,0))&IF(TYPE(VLOOKUP($A37,FB_2,2,0))=16,"",VLOOKUP($A37,FB_2,2,0))&IF(TYPE(VLOOKUP($A37,FB_3,2,0))=16,"",VLOOKUP($A37,FB_3,2,0))&IF(TYPE(VLOOKUP($A37,FB_4,2,0))=16,"",VLOOKUP($A37,FB_4,2,0))&IF(TYPE(VLOOKUP($A37,FB_5,2,0))=16,"",VLOOKUP($A37,FB_5,2,0))&IF(TYPE(VLOOKUP($A37,FB_6,2,0))=16,"",VLOOKUP($A37,FB_6,2,0))&IF(TYPE(VLOOKUP($A37,FB_7,2,0))=16,"",VLOOKUP($A37,FB_7,2,0))&IF(TYPE(VLOOKUP($A37,FB_8,2,0))=16,"",VLOOKUP($A37,FB_8,2,0))&IF(TYPE(VLOOKUP($A37,FB_9,2,0))=16,"",VLOOKUP($A37,FB_9,2,0))&IF(TYPE(VLOOKUP($A37,FB_10,2,0))=16,"",VLOOKUP($A37,FB_10,2,0))&IF(TYPE(VLOOKUP($A37,FB_11,2,0))=16,"",VLOOKUP($A37,FB_11,2,0))&IF(TYPE(VLOOKUP($A37,FB_12,2,0))=16,"",VLOOKUP($A37,FB_12,2,0))&IF(TYPE(VLOOKUP($A37,FB_13,2,0))=16,"",VLOOKUP($A37,FB_13,2,0))&IF(TYPE(VLOOKUP($A37,FB_14,2,0))=16,"",VLOOKUP($A37,FB_14,2,0))&IF(TYPE(VLOOKUP($A37,FB_15,2,0))=16,"",VLOOKUP($A37,FB_15,2,0))&IF(TYPE(VLOOKUP($A37,FB_16,2,0))=16,"",VLOOKUP($A37,FB_16,2,0))&IF(TYPE(VLOOKUP($A37,FB_17,2,0))=16,"",VLOOKUP($A37,FB_17,2,0))&IF(TYPE(VLOOKUP($A37,FB_18,2,0))=16,"",VLOOKUP($A37,FB_18,2,0))&IF(TYPE(VLOOKUP($A37,FB_19,2,0))=16,"",VLOOKUP($A37,FB_19,2,0))&IF(TYPE(VLOOKUP($A37,FB_20,2,0))=16,"",VLOOKUP($A37,FB_20,2,0))&IF(TYPE(VLOOKUP($A37,FB_21,2,0))=16,"",VLOOKUP($A37,FB_21,2,0))&IF(TYPE(VLOOKUP($A37,FB_22,2,0))=16,"",VLOOKUP($A37,FB_22,2,0))&IF(TYPE(VLOOKUP($A37,FB_23,2,0))=16,"",VLOOKUP($A37,FB_23,2,0))&IF(TYPE(VLOOKUP($A37,FB_24,2,0))=16,"",VLOOKUP($A37,FB_24,2,0))&IF(TYPE(VLOOKUP($A37,FB_25,2,0))=16,"",VLOOKUP($A37,FB_25,2,0))&IF(TYPE(VLOOKUP($A37,FB_26,2,0))=16,"",VLOOKUP($A37,FB_26,2,0))&IF(TYPE(VLOOKUP($A37,FB_27,2,0))=16,"",VLOOKUP($A37,FB_27,2,0))&IF(TYPE(VLOOKUP($A37,FB_28,2,0))=16,"",VLOOKUP($A37,FB_28,2,0))&IF(TYPE(VLOOKUP($A37,FB_29,2,0))=16,"",VLOOKUP($A37,FB_29,2,0))&IF(TYPE(VLOOKUP($A37,FB_30,2,0))=16,"",VLOOKUP($A37,FB_30,2,0)) ->  | D37: =IF($B37="","",_xlfn.NUMBERVALUE(IF(TYPE(VLOOKUP($A37,FB_1,P$5,0))=16,"",VLOOKUP($A37,FB_1,P$5,0))&IF(TYPE(VLOOKUP($A37,FB_2,P$5,0))=16,"",VLOOKUP($A37,FB_2,P$5,0))&IF(TYPE(VLOOKUP($A37,FB_3,P$5,0))=16,"",VLOOKUP($A37,FB_3,P$5,0))&IF(TYPE(VLOOKUP($A37,FB_4,P$5,0))=16,"",VLOOKUP($A37,FB_4,P$5,0))&IF(TYPE(VLOOKUP($A37,FB_5,P$5,0))=16,"",VLOOKUP($A37,FB_5,P$5,0))&IF(TYPE(VLOOKUP($A37,FB_6,P$5,0))=16,"",VLOOKUP($A37,FB_6,P$5,0))&IF(TYPE(VLOOKUP($A37,FB_7,P$5,0))=16,"",VLOOKUP($A37,FB_7,P$5,0))&IF(TYPE(VLOOKUP($A37,FB_8,P$5,0))=16,"",VLOOKUP($A37,FB_8,P$5,0))&IF(TYPE(VLOOKUP($A37,FB_9,P$5,0))=16,"",VLOOKUP($A37,FB_9,P$5,0))&IF(TYPE(VLOOKUP($A37,FB_10,P$5,0))=16,"",VLOOKUP($A37,FB_10,P$5,0))&IF(TYPE(VLOOKUP($A37,FB_11,P$5,0))=16,"",VLOOKUP($A37,FB_11,P$5,0))&IF(TYPE(VLOOKUP($A37,FB_12,P$5,0))=16,"",VLOOKUP($A37,FB_12,P$5,0))&IF(TYPE(VLOOKUP($A37,FB_13,P$5,0))=16,"",VLOOKUP($A37,FB_13,P$5,0))&IF(TYPE(VLOOKUP($A37,FB_14,P$5,0))=16,"",VLOOKUP($A37,FB_14,P$5,0))&IF(TYPE(VLOOKUP($A37,FB_15,P$5,0))=16,"",VLOOKUP($A37,FB_15,P$5,0))&IF(TYPE(VLOOKUP($A37,FB_16,P$5,0))=16,"",VLOOKUP($A37,FB_16,P$5,0))&IF(TYPE(VLOOKUP($A37,FB_17,P$5,0))=16,"",VLOOKUP($A37,FB_17,P$5,0))&IF(TYPE(VLOOKUP($A37,FB_18,P$5,0))=16,"",VLOOKUP($A37,FB_18,P$5,0))&IF(TYPE(VLOOKUP($A37,FB_19,P$5,0))=16,"",VLOOKUP($A37,FB_19,P$5,0))&IF(TYPE(VLOOKUP($A37,FB_20,P$5,0))=16,"",VLOOKUP($A37,FB_20,P$5,0))&IF(TYPE(VLOOKUP($A37,FB_21,P$5,0))=16,"",VLOOKUP($A37,FB_21,P$5,0))&IF(TYPE(VLOOKUP($A37,FB_22,P$5,0))=16,"",VLOOKUP($A37,FB_22,P$5,0))&IF(TYPE(VLOOKUP($A37,FB_23,P$5,0))=16,"",VLOOKUP($A37,FB_23,P$5,0))&IF(TYPE(VLOOKUP($A37,FB_24,P$5,0))=16,"",VLOOKUP($A37,FB_24,P$5,0))&IF(TYPE(VLOOKUP($A37,FB_25,P$5,0))=16,"",VLOOKUP($A37,FB_25,P$5,0))&IF(TYPE(VLOOKUP($A37,FB_26,P$5,0))=16,"",VLOOKUP($A37,FB_26,P$5,0))&IF(TYPE(VLOOKUP($A37,FB_27,P$5,0))=16,"",VLOOKUP($A37,FB_27,P$5,0))&IF(TYPE(VLOOKUP($A37,FB_28,P$5,0))=16,"",VLOOKUP($A37,FB_28,P$5,0))&IF(TYPE(VLOOKUP($A37,FB_29,P$5,0))=16,"",VLOOKUP($A37,FB_29,P$5,0))&IF(TYPE(VLOOKUP($A37,FB_30,P$5,0))=16,"",VLOOKUP($A37,FB_30,P$5,0)))) ->  | F37: =IF($B37="","",_xlfn.NUMBERVALUE(IF(TYPE(VLOOKUP($A37,FB_1,R$5,0))=16,"",VLOOKUP($A37,FB_1,R$5,0))&IF(TYPE(VLOOKUP($A37,FB_2,R$5,0))=16,"",VLOOKUP($A37,FB_2,R$5,0))&IF(TYPE(VLOOKUP($A37,FB_3,R$5,0))=16,"",VLOOKUP($A37,FB_3,R$5,0))&IF(TYPE(VLOOKUP($A37,FB_4,R$5,0))=16,"",VLOOKUP($A37,FB_4,R$5,0))&IF(TYPE(VLOOKUP($A37,FB_5,R$5,0))=16,"",VLOOKUP($A37,FB_5,R$5,0))&IF(TYPE(VLOOKUP($A37,FB_6,R$5,0))=16,"",VLOOKUP($A37,FB_6,R$5,0))&IF(TYPE(VLOOKUP($A37,FB_7,R$5,0))=16,"",VLOOKUP($A37,FB_7,R$5,0))&IF(TYPE(VLOOKUP($A37,FB_8,R$5,0))=16,"",VLOOKUP($A37,FB_8,R$5,0))&IF(TYPE(VLOOKUP($A37,FB_9,R$5,0))=16,"",VLOOKUP($A37,FB_9,R$5,0))&IF(TYPE(VLOOKUP($A37,FB_10,R$5,0))=16,"",VLOOKUP($A37,FB_10,R$5,0))&IF(TYPE(VLOOKUP($A37,FB_11,R$5,0))=16,"",VLOOKUP($A37,FB_11,R$5,0))&IF(TYPE(VLOOKUP($A37,FB_12,R$5,0))=16,"",VLOOKUP($A37,FB_12,R$5,0))&IF(TYPE(VLOOKUP($A37,FB_13,R$5,0))=16,"",VLOOKUP($A37,FB_13,R$5,0))&IF(TYPE(VLOOKUP($A37,FB_14,R$5,0))=16,"",VLOOKUP($A37,FB_14,R$5,0))&IF(TYPE(VLOOKUP($A37,FB_15,R$5,0))=16,"",VLOOKUP($A37,FB_15,R$5,0))&IF(TYPE(VLOOKUP($A37,FB_16,R$5,0))=16,"",VLOOKUP($A37,FB_16,R$5,0))&IF(TYPE(VLOOKUP($A37,FB_17,R$5,0))=16,"",VLOOKUP($A37,FB_17,R$5,0))&IF(TYPE(VLOOKUP($A37,FB_18,R$5,0))=16,"",VLOOKUP($A37,FB_18,R$5,0))&IF(TYPE(VLOOKUP($A37,FB_19,R$5,0))=16,"",VLOOKUP($A37,FB_19,R$5,0))&IF(TYPE(VLOOKUP($A37,FB_20,R$5,0))=16,"",VLOOKUP($A37,FB_20,R$5,0))&IF(TYPE(VLOOKUP($A37,FB_21,R$5,0))=16,"",VLOOKUP($A37,FB_21,R$5,0))&IF(TYPE(VLOOKUP($A37,FB_22,R$5,0))=16,"",VLOOKUP($A37,FB_22,R$5,0))&IF(TYPE(VLOOKUP($A37,FB_23,R$5,0))=16,"",VLOOKUP($A37,FB_23,R$5,0))&IF(TYPE(VLOOKUP($A37,FB_24,R$5,0))=16,"",VLOOKUP($A37,FB_24,R$5,0))&IF(TYPE(VLOOKUP($A37,FB_25,R$5,0))=16,"",VLOOKUP($A37,FB_25,R$5,0))&IF(TYPE(VLOOKUP($A37,FB_26,R$5,0))=16,"",VLOOKUP($A37,FB_26,R$5,0))&IF(TYPE(VLOOKUP($A37,FB_27,R$5,0))=16,"",VLOOKUP($A37,FB_27,R$5,0))&IF(TYPE(VLOOKUP($A37,FB_28,R$5,0))=16,"",VLOOKUP($A37,FB_28,R$5,0))&IF(TYPE(VLOOKUP($A37,FB_29,R$5,0))=16,"",VLOOKUP($A37,FB_29,R$5,0))&IF(TYPE(VLOOKUP($A37,FB_30,R$5,0))=16,"",VLOOKUP($A37,FB_30,R$5,0)))) ->  | G37: =IF($B37="","",IF(TYPE(VLOOKUP($A37,FB_1,S$5,0))=16,"",VLOOKUP($A37,FB_1,S$5,0))&IF(TYPE(VLOOKUP($A37,FB_2,S$5,0))=16,"",VLOOKUP($A37,FB_2,S$5,0))&IF(TYPE(VLOOKUP($A37,FB_3,S$5,0))=16,"",VLOOKUP($A37,FB_3,S$5,0))&IF(TYPE(VLOOKUP($A37,FB_4,S$5,0))=16,"",VLOOKUP($A37,FB_4,S$5,0))&IF(TYPE(VLOOKUP($A37,FB_5,S$5,0))=16,"",VLOOKUP($A37,FB_5,S$5,0))&IF(TYPE(VLOOKUP($A37,FB_6,S$5,0))=16,"",VLOOKUP($A37,FB_6,S$5,0))&IF(TYPE(VLOOKUP($A37,FB_7,S$5,0))=16,"",VLOOKUP($A37,FB_7,S$5,0))&IF(TYPE(VLOOKUP($A37,FB_8,S$5,0))=16,"",VLOOKUP($A37,FB_8,S$5,0))&IF(TYPE(VLOOKUP($A37,FB_9,S$5,0))=16,"",VLOOKUP($A37,FB_9,S$5,0))&IF(TYPE(VLOOKUP($A37,FB_10,S$5,0))=16,"",VLOOKUP($A37,FB_10,S$5,0))&IF(TYPE(VLOOKUP($A37,FB_11,S$5,0))=16,"",VLOOKUP($A37,FB_11,S$5,0))&IF(TYPE(VLOOKUP($A37,FB_12,S$5,0))=16,"",VLOOKUP($A37,FB_12,S$5,0))&IF(TYPE(VLOOKUP($A37,FB_13,S$5,0))=16,"",VLOOKUP($A37,FB_13,S$5,0))&IF(TYPE(VLOOKUP($A37,FB_14,S$5,0))=16,"",VLOOKUP($A37,FB_14,S$5,0))&IF(TYPE(VLOOKUP($A37,FB_15,S$5,0))=16,"",VLOOKUP($A37,FB_15,S$5,0))&IF(TYPE(VLOOKUP($A37,FB_16,S$5,0))=16,"",VLOOKUP($A37,FB_16,S$5,0))&IF(TYPE(VLOOKUP($A37,FB_17,S$5,0))=16,"",VLOOKUP($A37,FB_17,S$5,0))&IF(TYPE(VLOOKUP($A37,FB_18,S$5,0))=16,"",VLOOKUP($A37,FB_18,S$5,0))&IF(TYPE(VLOOKUP($A37,FB_19,S$5,0))=16,"",VLOOKUP($A37,FB_19,S$5,0))&IF(TYPE(VLOOKUP($A37,FB_20,S$5,0))=16,"",VLOOKUP($A37,FB_20,S$5,0))&IF(TYPE(VLOOKUP($A37,FB_21,S$5,0))=16,"",VLOOKUP($A37,FB_21,S$5,0))&IF(TYPE(VLOOKUP($A37,FB_22,S$5,0))=16,"",VLOOKUP($A37,FB_22,S$5,0))&IF(TYPE(VLOOKUP($A37,FB_23,S$5,0))=16,"",VLOOKUP($A37,FB_23,S$5,0))&IF(TYPE(VLOOKUP($A37,FB_24,S$5,0))=16,"",VLOOKUP($A37,FB_24,S$5,0))&IF(TYPE(VLOOKUP($A37,FB_25,S$5,0))=16,"",VLOOKUP($A37,FB_25,S$5,0))&IF(TYPE(VLOOKUP($A37,FB_26,S$5,0))=16,"",VLOOKUP($A37,FB_26,S$5,0))&IF(TYPE(VLOOKUP($A37,FB_27,S$5,0))=16,"",VLOOKUP($A37,FB_27,S$5,0))&IF(TYPE(VLOOKUP($A37,FB_28,S$5,0))=16,"",VLOOKUP($A37,FB_28,S$5,0))&IF(TYPE(VLOOKUP($A37,FB_29,S$5,0))=16,"",VLOOKUP($A37,FB_29,S$5,0))&IF(TYPE(VLOOKUP($A37,FB_30,S$5,0))=16,"",VLOOKUP($A37,FB_30,S$5,0))) ->  | Y37: :
A38: 9. | B38: =IF(TYPE(VLOOKUP($A38,FB_1,2,0))=16,"",VLOOKUP($A38,FB_1,2,0))&IF(TYPE(VLOOKUP($A38,FB_2,2,0))=16,"",VLOOKUP($A38,FB_2,2,0))&IF(TYPE(VLOOKUP($A38,FB_3,2,0))=16,"",VLOOKUP($A38,FB_3,2,0))&IF(TYPE(VLOOKUP($A38,FB_4,2,0))=16,"",VLOOKUP($A38,FB_4,2,0))&IF(TYPE(VLOOKUP($A38,FB_5,2,0))=16,"",VLOOKUP($A38,FB_5,2,0))&IF(TYPE(VLOOKUP($A38,FB_6,2,0))=16,"",VLOOKUP($A38,FB_6,2,0))&IF(TYPE(VLOOKUP($A38,FB_7,2,0))=16,"",VLOOKUP($A38,FB_7,2,0))&IF(TYPE(VLOOKUP($A38,FB_8,2,0))=16,"",VLOOKUP($A38,FB_8,2,0))&IF(TYPE(VLOOKUP($A38,FB_9,2,0))=16,"",VLOOKUP($A38,FB_9,2,0))&IF(TYPE(VLOOKUP($A38,FB_10,2,0))=16,"",VLOOKUP($A38,FB_10,2,0))&IF(TYPE(VLOOKUP($A38,FB_11,2,0))=16,"",VLOOKUP($A38,FB_11,2,0))&IF(TYPE(VLOOKUP($A38,FB_12,2,0))=16,"",VLOOKUP($A38,FB_12,2,0))&IF(TYPE(VLOOKUP($A38,FB_13,2,0))=16,"",VLOOKUP($A38,FB_13,2,0))&IF(TYPE(VLOOKUP($A38,FB_14,2,0))=16,"",VLOOKUP($A38,FB_14,2,0))&IF(TYPE(VLOOKUP($A38,FB_15,2,0))=16,"",VLOOKUP($A38,FB_15,2,0))&IF(TYPE(VLOOKUP($A38,FB_16,2,0))=16,"",VLOOKUP($A38,FB_16,2,0))&IF(TYPE(VLOOKUP($A38,FB_17,2,0))=16,"",VLOOKUP($A38,FB_17,2,0))&IF(TYPE(VLOOKUP($A38,FB_18,2,0))=16,"",VLOOKUP($A38,FB_18,2,0))&IF(TYPE(VLOOKUP($A38,FB_19,2,0))=16,"",VLOOKUP($A38,FB_19,2,0))&IF(TYPE(VLOOKUP($A38,FB_20,2,0))=16,"",VLOOKUP($A38,FB_20,2,0))&IF(TYPE(VLOOKUP($A38,FB_21,2,0))=16,"",VLOOKUP($A38,FB_21,2,0))&IF(TYPE(VLOOKUP($A38,FB_22,2,0))=16,"",VLOOKUP($A38,FB_22,2,0))&IF(TYPE(VLOOKUP($A38,FB_23,2,0))=16,"",VLOOKUP($A38,FB_23,2,0))&IF(TYPE(VLOOKUP($A38,FB_24,2,0))=16,"",VLOOKUP($A38,FB_24,2,0))&IF(TYPE(VLOOKUP($A38,FB_25,2,0))=16,"",VLOOKUP($A38,FB_25,2,0))&IF(TYPE(VLOOKUP($A38,FB_26,2,0))=16,"",VLOOKUP($A38,FB_26,2,0))&IF(TYPE(VLOOKUP($A38,FB_27,2,0))=16,"",VLOOKUP($A38,FB_27,2,0))&IF(TYPE(VLOOKUP($A38,FB_28,2,0))=16,"",VLOOKUP($A38,FB_28,2,0))&IF(TYPE(VLOOKUP($A38,FB_29,2,0))=16,"",VLOOKUP($A38,FB_29,2,0))&IF(TYPE(VLOOKUP($A38,FB_30,2,0))=16,"",VLOOKUP($A38,FB_30,2,0)) ->  | D38: =IF($B38="","",_xlfn.NUMBERVALUE(IF(TYPE(VLOOKUP($A38,FB_1,P$5,0))=16,"",VLOOKUP($A38,FB_1,P$5,0))&IF(TYPE(VLOOKUP($A38,FB_2,P$5,0))=16,"",VLOOKUP($A38,FB_2,P$5,0))&IF(TYPE(VLOOKUP($A38,FB_3,P$5,0))=16,"",VLOOKUP($A38,FB_3,P$5,0))&IF(TYPE(VLOOKUP($A38,FB_4,P$5,0))=16,"",VLOOKUP($A38,FB_4,P$5,0))&IF(TYPE(VLOOKUP($A38,FB_5,P$5,0))=16,"",VLOOKUP($A38,FB_5,P$5,0))&IF(TYPE(VLOOKUP($A38,FB_6,P$5,0))=16,"",VLOOKUP($A38,FB_6,P$5,0))&IF(TYPE(VLOOKUP($A38,FB_7,P$5,0))=16,"",VLOOKUP($A38,FB_7,P$5,0))&IF(TYPE(VLOOKUP($A38,FB_8,P$5,0))=16,"",VLOOKUP($A38,FB_8,P$5,0))&IF(TYPE(VLOOKUP($A38,FB_9,P$5,0))=16,"",VLOOKUP($A38,FB_9,P$5,0))&IF(TYPE(VLOOKUP($A38,FB_10,P$5,0))=16,"",VLOOKUP($A38,FB_10,P$5,0))&IF(TYPE(VLOOKUP($A38,FB_11,P$5,0))=16,"",VLOOKUP($A38,FB_11,P$5,0))&IF(TYPE(VLOOKUP($A38,FB_12,P$5,0))=16,"",VLOOKUP($A38,FB_12,P$5,0))&IF(TYPE(VLOOKUP($A38,FB_13,P$5,0))=16,"",VLOOKUP($A38,FB_13,P$5,0))&IF(TYPE(VLOOKUP($A38,FB_14,P$5,0))=16,"",VLOOKUP($A38,FB_14,P$5,0))&IF(TYPE(VLOOKUP($A38,FB_15,P$5,0))=16,"",VLOOKUP($A38,FB_15,P$5,0))&IF(TYPE(VLOOKUP($A38,FB_16,P$5,0))=16,"",VLOOKUP($A38,FB_16,P$5,0))&IF(TYPE(VLOOKUP($A38,FB_17,P$5,0))=16,"",VLOOKUP($A38,FB_17,P$5,0))&IF(TYPE(VLOOKUP($A38,FB_18,P$5,0))=16,"",VLOOKUP($A38,FB_18,P$5,0))&IF(TYPE(VLOOKUP($A38,FB_19,P$5,0))=16,"",VLOOKUP($A38,FB_19,P$5,0))&IF(TYPE(VLOOKUP($A38,FB_20,P$5,0))=16,"",VLOOKUP($A38,FB_20,P$5,0))&IF(TYPE(VLOOKUP($A38,FB_21,P$5,0))=16,"",VLOOKUP($A38,FB_21,P$5,0))&IF(TYPE(VLOOKUP($A38,FB_22,P$5,0))=16,"",VLOOKUP($A38,FB_22,P$5,0))&IF(TYPE(VLOOKUP($A38,FB_23,P$5,0))=16,"",VLOOKUP($A38,FB_23,P$5,0))&IF(TYPE(VLOOKUP($A38,FB_24,P$5,0))=16,"",VLOOKUP($A38,FB_24,P$5,0))&IF(TYPE(VLOOKUP($A38,FB_25,P$5,0))=16,"",VLOOKUP($A38,FB_25,P$5,0))&IF(TYPE(VLOOKUP($A38,FB_26,P$5,0))=16,"",VLOOKUP($A38,FB_26,P$5,0))&IF(TYPE(VLOOKUP($A38,FB_27,P$5,0))=16,"",VLOOKUP($A38,FB_27,P$5,0))&IF(TYPE(VLOOKUP($A38,FB_28,P$5,0))=16,"",VLOOKUP($A38,FB_28,P$5,0))&IF(TYPE(VLOOKUP($A38,FB_29,P$5,0))=16,"",VLOOKUP($A38,FB_29,P$5,0))&IF(TYPE(VLOOKUP($A38,FB_30,P$5,0))=16,"",VLOOKUP($A38,FB_30,P$5,0)))) ->  | F38: =IF($B38="","",_xlfn.NUMBERVALUE(IF(TYPE(VLOOKUP($A38,FB_1,R$5,0))=16,"",VLOOKUP($A38,FB_1,R$5,0))&IF(TYPE(VLOOKUP($A38,FB_2,R$5,0))=16,"",VLOOKUP($A38,FB_2,R$5,0))&IF(TYPE(VLOOKUP($A38,FB_3,R$5,0))=16,"",VLOOKUP($A38,FB_3,R$5,0))&IF(TYPE(VLOOKUP($A38,FB_4,R$5,0))=16,"",VLOOKUP($A38,FB_4,R$5,0))&IF(TYPE(VLOOKUP($A38,FB_5,R$5,0))=16,"",VLOOKUP($A38,FB_5,R$5,0))&IF(TYPE(VLOOKUP($A38,FB_6,R$5,0))=16,"",VLOOKUP($A38,FB_6,R$5,0))&IF(TYPE(VLOOKUP($A38,FB_7,R$5,0))=16,"",VLOOKUP($A38,FB_7,R$5,0))&IF(TYPE(VLOOKUP($A38,FB_8,R$5,0))=16,"",VLOOKUP($A38,FB_8,R$5,0))&IF(TYPE(VLOOKUP($A38,FB_9,R$5,0))=16,"",VLOOKUP($A38,FB_9,R$5,0))&IF(TYPE(VLOOKUP($A38,FB_10,R$5,0))=16,"",VLOOKUP($A38,FB_10,R$5,0))&IF(TYPE(VLOOKUP($A38,FB_11,R$5,0))=16,"",VLOOKUP($A38,FB_11,R$5,0))&IF(TYPE(VLOOKUP($A38,FB_12,R$5,0))=16,"",VLOOKUP($A38,FB_12,R$5,0))&IF(TYPE(VLOOKUP($A38,FB_13,R$5,0))=16,"",VLOOKUP($A38,FB_13,R$5,0))&IF(TYPE(VLOOKUP($A38,FB_14,R$5,0))=16,"",VLOOKUP($A38,FB_14,R$5,0))&IF(TYPE(VLOOKUP($A38,FB_15,R$5,0))=16,"",VLOOKUP($A38,FB_15,R$5,0))&IF(TYPE(VLOOKUP($A38,FB_16,R$5,0))=16,"",VLOOKUP($A38,FB_16,R$5,0))&IF(TYPE(VLOOKUP($A38,FB_17,R$5,0))=16,"",VLOOKUP($A38,FB_17,R$5,0))&IF(TYPE(VLOOKUP($A38,FB_18,R$5,0))=16,"",VLOOKUP($A38,FB_18,R$5,0))&IF(TYPE(VLOOKUP($A38,FB_19,R$5,0))=16,"",VLOOKUP($A38,FB_19,R$5,0))&IF(TYPE(VLOOKUP($A38,FB_20,R$5,0))=16,"",VLOOKUP($A38,FB_20,R$5,0))&IF(TYPE(VLOOKUP($A38,FB_21,R$5,0))=16,"",VLOOKUP($A38,FB_21,R$5,0))&IF(TYPE(VLOOKUP($A38,FB_22,R$5,0))=16,"",VLOOKUP($A38,FB_22,R$5,0))&IF(TYPE(VLOOKUP($A38,FB_23,R$5,0))=16,"",VLOOKUP($A38,FB_23,R$5,0))&IF(TYPE(VLOOKUP($A38,FB_24,R$5,0))=16,"",VLOOKUP($A38,FB_24,R$5,0))&IF(TYPE(VLOOKUP($A38,FB_25,R$5,0))=16,"",VLOOKUP($A38,FB_25,R$5,0))&IF(TYPE(VLOOKUP($A38,FB_26,R$5,0))=16,"",VLOOKUP($A38,FB_26,R$5,0))&IF(TYPE(VLOOKUP($A38,FB_27,R$5,0))=16,"",VLOOKUP($A38,FB_27,R$5,0))&IF(TYPE(VLOOKUP($A38,FB_28,R$5,0))=16,"",VLOOKUP($A38,FB_28,R$5,0))&IF(TYPE(VLOOKUP($A38,FB_29,R$5,0))=16,"",VLOOKUP($A38,FB_29,R$5,0))&IF(TYPE(VLOOKUP($A38,FB_30,R$5,0))=16,"",VLOOKUP($A38,FB_30,R$5,0)))) ->  | G38: =IF($B38="","",IF(TYPE(VLOOKUP($A38,FB_1,S$5,0))=16,"",VLOOKUP($A38,FB_1,S$5,0))&IF(TYPE(VLOOKUP($A38,FB_2,S$5,0))=16,"",VLOOKUP($A38,FB_2,S$5,0))&IF(TYPE(VLOOKUP($A38,FB_3,S$5,0))=16,"",VLOOKUP($A38,FB_3,S$5,0))&IF(TYPE(VLOOKUP($A38,FB_4,S$5,0))=16,"",VLOOKUP($A38,FB_4,S$5,0))&IF(TYPE(VLOOKUP($A38,FB_5,S$5,0))=16,"",VLOOKUP($A38,FB_5,S$5,0))&IF(TYPE(VLOOKUP($A38,FB_6,S$5,0))=16,"",VLOOKUP($A38,FB_6,S$5,0))&IF(TYPE(VLOOKUP($A38,FB_7,S$5,0))=16,"",VLOOKUP($A38,FB_7,S$5,0))&IF(TYPE(VLOOKUP($A38,FB_8,S$5,0))=16,"",VLOOKUP($A38,FB_8,S$5,0))&IF(TYPE(VLOOKUP($A38,FB_9,S$5,0))=16,"",VLOOKUP($A38,FB_9,S$5,0))&IF(TYPE(VLOOKUP($A38,FB_10,S$5,0))=16,"",VLOOKUP($A38,FB_10,S$5,0))&IF(TYPE(VLOOKUP($A38,FB_11,S$5,0))=16,"",VLOOKUP($A38,FB_11,S$5,0))&IF(TYPE(VLOOKUP($A38,FB_12,S$5,0))=16,"",VLOOKUP($A38,FB_12,S$5,0))&IF(TYPE(VLOOKUP($A38,FB_13,S$5,0))=16,"",VLOOKUP($A38,FB_13,S$5,0))&IF(TYPE(VLOOKUP($A38,FB_14,S$5,0))=16,"",VLOOKUP($A38,FB_14,S$5,0))&IF(TYPE(VLOOKUP($A38,FB_15,S$5,0))=16,"",VLOOKUP($A38,FB_15,S$5,0))&IF(TYPE(VLOOKUP($A38,FB_16,S$5,0))=16,"",VLOOKUP($A38,FB_16,S$5,0))&IF(TYPE(VLOOKUP($A38,FB_17,S$5,0))=16,"",VLOOKUP($A38,FB_17,S$5,0))&IF(TYPE(VLOOKUP($A38,FB_18,S$5,0))=16,"",VLOOKUP($A38,FB_18,S$5,0))&IF(TYPE(VLOOKUP($A38,FB_19,S$5,0))=16,"",VLOOKUP($A38,FB_19,S$5,0))&IF(TYPE(VLOOKUP($A38,FB_20,S$5,0))=16,"",VLOOKUP($A38,FB_20,S$5,0))&IF(TYPE(VLOOKUP($A38,FB_21,S$5,0))=16,"",VLOOKUP($A38,FB_21,S$5,0))&IF(TYPE(VLOOKUP($A38,FB_22,S$5,0))=16,"",VLOOKUP($A38,FB_22,S$5,0))&IF(TYPE(VLOOKUP($A38,FB_23,S$5,0))=16,"",VLOOKUP($A38,FB_23,S$5,0))&IF(TYPE(VLOOKUP($A38,FB_24,S$5,0))=16,"",VLOOKUP($A38,FB_24,S$5,0))&IF(TYPE(VLOOKUP($A38,FB_25,S$5,0))=16,"",VLOOKUP($A38,FB_25,S$5,0))&IF(TYPE(VLOOKUP($A38,FB_26,S$5,0))=16,"",VLOOKUP($A38,FB_26,S$5,0))&IF(TYPE(VLOOKUP($A38,FB_27,S$5,0))=16,"",VLOOKUP($A38,FB_27,S$5,0))&IF(TYPE(VLOOKUP($A38,FB_28,S$5,0))=16,"",VLOOKUP($A38,FB_28,S$5,0))&IF(TYPE(VLOOKUP($A38,FB_29,S$5,0))=16,"",VLOOKUP($A38,FB_29,S$5,0))&IF(TYPE(VLOOKUP($A38,FB_30,S$5,0))=16,"",VLOOKUP($A38,FB_30,S$5,0))) ->  | Y38: :
A39: 10. | B39: =IF(TYPE(VLOOKUP($A39,FB_1,2,0))=16,"",VLOOKUP($A39,FB_1,2,0))&IF(TYPE(VLOOKUP($A39,FB_2,2,0))=16,"",VLOOKUP($A39,FB_2,2,0))&IF(TYPE(VLOOKUP($A39,FB_3,2,0))=16,"",VLOOKUP($A39,FB_3,2,0))&IF(TYPE(VLOOKUP($A39,FB_4,2,0))=16,"",VLOOKUP($A39,FB_4,2,0))&IF(TYPE(VLOOKUP($A39,FB_5,2,0))=16,"",VLOOKUP($A39,FB_5,2,0))&IF(TYPE(VLOOKUP($A39,FB_6,2,0))=16,"",VLOOKUP($A39,FB_6,2,0))&IF(TYPE(VLOOKUP($A39,FB_7,2,0))=16,"",VLOOKUP($A39,FB_7,2,0))&IF(TYPE(VLOOKUP($A39,FB_8,2,0))=16,"",VLOOKUP($A39,FB_8,2,0))&IF(TYPE(VLOOKUP($A39,FB_9,2,0))=16,"",VLOOKUP($A39,FB_9,2,0))&IF(TYPE(VLOOKUP($A39,FB_10,2,0))=16,"",VLOOKUP($A39,FB_10,2,0))&IF(TYPE(VLOOKUP($A39,FB_11,2,0))=16,"",VLOOKUP($A39,FB_11,2,0))&IF(TYPE(VLOOKUP($A39,FB_12,2,0))=16,"",VLOOKUP($A39,FB_12,2,0))&IF(TYPE(VLOOKUP($A39,FB_13,2,0))=16,"",VLOOKUP($A39,FB_13,2,0))&IF(TYPE(VLOOKUP($A39,FB_14,2,0))=16,"",VLOOKUP($A39,FB_14,2,0))&IF(TYPE(VLOOKUP($A39,FB_15,2,0))=16,"",VLOOKUP($A39,FB_15,2,0))&IF(TYPE(VLOOKUP($A39,FB_16,2,0))=16,"",VLOOKUP($A39,FB_16,2,0))&IF(TYPE(VLOOKUP($A39,FB_17,2,0))=16,"",VLOOKUP($A39,FB_17,2,0))&IF(TYPE(VLOOKUP($A39,FB_18,2,0))=16,"",VLOOKUP($A39,FB_18,2,0))&IF(TYPE(VLOOKUP($A39,FB_19,2,0))=16,"",VLOOKUP($A39,FB_19,2,0))&IF(TYPE(VLOOKUP($A39,FB_20,2,0))=16,"",VLOOKUP($A39,FB_20,2,0))&IF(TYPE(VLOOKUP($A39,FB_21,2,0))=16,"",VLOOKUP($A39,FB_21,2,0))&IF(TYPE(VLOOKUP($A39,FB_22,2,0))=16,"",VLOOKUP($A39,FB_22,2,0))&IF(TYPE(VLOOKUP($A39,FB_23,2,0))=16,"",VLOOKUP($A39,FB_23,2,0))&IF(TYPE(VLOOKUP($A39,FB_24,2,0))=16,"",VLOOKUP($A39,FB_24,2,0))&IF(TYPE(VLOOKUP($A39,FB_25,2,0))=16,"",VLOOKUP($A39,FB_25,2,0))&IF(TYPE(VLOOKUP($A39,FB_26,2,0))=16,"",VLOOKUP($A39,FB_26,2,0))&IF(TYPE(VLOOKUP($A39,FB_27,2,0))=16,"",VLOOKUP($A39,FB_27,2,0))&IF(TYPE(VLOOKUP($A39,FB_28,2,0))=16,"",VLOOKUP($A39,FB_28,2,0))&IF(TYPE(VLOOKUP($A39,FB_29,2,0))=16,"",VLOOKUP($A39,FB_29,2,0))&IF(TYPE(VLOOKUP($A39,FB_30,2,0))=16,"",VLOOKUP($A39,FB_30,2,0)) ->  | D39: =IF($B39="","",_xlfn.NUMBERVALUE(IF(TYPE(VLOOKUP($A39,FB_1,P$5,0))=16,"",VLOOKUP($A39,FB_1,P$5,0))&IF(TYPE(VLOOKUP($A39,FB_2,P$5,0))=16,"",VLOOKUP($A39,FB_2,P$5,0))&IF(TYPE(VLOOKUP($A39,FB_3,P$5,0))=16,"",VLOOKUP($A39,FB_3,P$5,0))&IF(TYPE(VLOOKUP($A39,FB_4,P$5,0))=16,"",VLOOKUP($A39,FB_4,P$5,0))&IF(TYPE(VLOOKUP($A39,FB_5,P$5,0))=16,"",VLOOKUP($A39,FB_5,P$5,0))&IF(TYPE(VLOOKUP($A39,FB_6,P$5,0))=16,"",VLOOKUP($A39,FB_6,P$5,0))&IF(TYPE(VLOOKUP($A39,FB_7,P$5,0))=16,"",VLOOKUP($A39,FB_7,P$5,0))&IF(TYPE(VLOOKUP($A39,FB_8,P$5,0))=16,"",VLOOKUP($A39,FB_8,P$5,0))&IF(TYPE(VLOOKUP($A39,FB_9,P$5,0))=16,"",VLOOKUP($A39,FB_9,P$5,0))&IF(TYPE(VLOOKUP($A39,FB_10,P$5,0))=16,"",VLOOKUP($A39,FB_10,P$5,0))&IF(TYPE(VLOOKUP($A39,FB_11,P$5,0))=16,"",VLOOKUP($A39,FB_11,P$5,0))&IF(TYPE(VLOOKUP($A39,FB_12,P$5,0))=16,"",VLOOKUP($A39,FB_12,P$5,0))&IF(TYPE(VLOOKUP($A39,FB_13,P$5,0))=16,"",VLOOKUP($A39,FB_13,P$5,0))&IF(TYPE(VLOOKUP($A39,FB_14,P$5,0))=16,"",VLOOKUP($A39,FB_14,P$5,0))&IF(TYPE(VLOOKUP($A39,FB_15,P$5,0))=16,"",VLOOKUP($A39,FB_15,P$5,0))&IF(TYPE(VLOOKUP($A39,FB_16,P$5,0))=16,"",VLOOKUP($A39,FB_16,P$5,0))&IF(TYPE(VLOOKUP($A39,FB_17,P$5,0))=16,"",VLOOKUP($A39,FB_17,P$5,0))&IF(TYPE(VLOOKUP($A39,FB_18,P$5,0))=16,"",VLOOKUP($A39,FB_18,P$5,0))&IF(TYPE(VLOOKUP($A39,FB_19,P$5,0))=16,"",VLOOKUP($A39,FB_19,P$5,0))&IF(TYPE(VLOOKUP($A39,FB_20,P$5,0))=16,"",VLOOKUP($A39,FB_20,P$5,0))&IF(TYPE(VLOOKUP($A39,FB_21,P$5,0))=16,"",VLOOKUP($A39,FB_21,P$5,0))&IF(TYPE(VLOOKUP($A39,FB_22,P$5,0))=16,"",VLOOKUP($A39,FB_22,P$5,0))&IF(TYPE(VLOOKUP($A39,FB_23,P$5,0))=16,"",VLOOKUP($A39,FB_23,P$5,0))&IF(TYPE(VLOOKUP($A39,FB_24,P$5,0))=16,"",VLOOKUP($A39,FB_24,P$5,0))&IF(TYPE(VLOOKUP($A39,FB_25,P$5,0))=16,"",VLOOKUP($A39,FB_25,P$5,0))&IF(TYPE(VLOOKUP($A39,FB_26,P$5,0))=16,"",VLOOKUP($A39,FB_26,P$5,0))&IF(TYPE(VLOOKUP($A39,FB_27,P$5,0))=16,"",VLOOKUP($A39,FB_27,P$5,0))&IF(TYPE(VLOOKUP($A39,FB_28,P$5,0))=16,"",VLOOKUP($A39,FB_28,P$5,0))&IF(TYPE(VLOOKUP($A39,FB_29,P$5,0))=16,"",VLOOKUP($A39,FB_29,P$5,0))&IF(TYPE(VLOOKUP($A39,FB_30,P$5,0))=16,"",VLOOKUP($A39,FB_30,P$5,0)))) ->  | F39: =IF($B39="","",_xlfn.NUMBERVALUE(IF(TYPE(VLOOKUP($A39,FB_1,R$5,0))=16,"",VLOOKUP($A39,FB_1,R$5,0))&IF(TYPE(VLOOKUP($A39,FB_2,R$5,0))=16,"",VLOOKUP($A39,FB_2,R$5,0))&IF(TYPE(VLOOKUP($A39,FB_3,R$5,0))=16,"",VLOOKUP($A39,FB_3,R$5,0))&IF(TYPE(VLOOKUP($A39,FB_4,R$5,0))=16,"",VLOOKUP($A39,FB_4,R$5,0))&IF(TYPE(VLOOKUP($A39,FB_5,R$5,0))=16,"",VLOOKUP($A39,FB_5,R$5,0))&IF(TYPE(VLOOKUP($A39,FB_6,R$5,0))=16,"",VLOOKUP($A39,FB_6,R$5,0))&IF(TYPE(VLOOKUP($A39,FB_7,R$5,0))=16,"",VLOOKUP($A39,FB_7,R$5,0))&IF(TYPE(VLOOKUP($A39,FB_8,R$5,0))=16,"",VLOOKUP($A39,FB_8,R$5,0))&IF(TYPE(VLOOKUP($A39,FB_9,R$5,0))=16,"",VLOOKUP($A39,FB_9,R$5,0))&IF(TYPE(VLOOKUP($A39,FB_10,R$5,0))=16,"",VLOOKUP($A39,FB_10,R$5,0))&IF(TYPE(VLOOKUP($A39,FB_11,R$5,0))=16,"",VLOOKUP($A39,FB_11,R$5,0))&IF(TYPE(VLOOKUP($A39,FB_12,R$5,0))=16,"",VLOOKUP($A39,FB_12,R$5,0))&IF(TYPE(VLOOKUP($A39,FB_13,R$5,0))=16,"",VLOOKUP($A39,FB_13,R$5,0))&IF(TYPE(VLOOKUP($A39,FB_14,R$5,0))=16,"",VLOOKUP($A39,FB_14,R$5,0))&IF(TYPE(VLOOKUP($A39,FB_15,R$5,0))=16,"",VLOOKUP($A39,FB_15,R$5,0))&IF(TYPE(VLOOKUP($A39,FB_16,R$5,0))=16,"",VLOOKUP($A39,FB_16,R$5,0))&IF(TYPE(VLOOKUP($A39,FB_17,R$5,0))=16,"",VLOOKUP($A39,FB_17,R$5,0))&IF(TYPE(VLOOKUP($A39,FB_18,R$5,0))=16,"",VLOOKUP($A39,FB_18,R$5,0))&IF(TYPE(VLOOKUP($A39,FB_19,R$5,0))=16,"",VLOOKUP($A39,FB_19,R$5,0))&IF(TYPE(VLOOKUP($A39,FB_20,R$5,0))=16,"",VLOOKUP($A39,FB_20,R$5,0))&IF(TYPE(VLOOKUP($A39,FB_21,R$5,0))=16,"",VLOOKUP($A39,FB_21,R$5,0))&IF(TYPE(VLOOKUP($A39,FB_22,R$5,0))=16,"",VLOOKUP($A39,FB_22,R$5,0))&IF(TYPE(VLOOKUP($A39,FB_23,R$5,0))=16,"",VLOOKUP($A39,FB_23,R$5,0))&IF(TYPE(VLOOKUP($A39,FB_24,R$5,0))=16,"",VLOOKUP($A39,FB_24,R$5,0))&IF(TYPE(VLOOKUP($A39,FB_25,R$5,0))=16,"",VLOOKUP($A39,FB_25,R$5,0))&IF(TYPE(VLOOKUP($A39,FB_26,R$5,0))=16,"",VLOOKUP($A39,FB_26,R$5,0))&IF(TYPE(VLOOKUP($A39,FB_27,R$5,0))=16,"",VLOOKUP($A39,FB_27,R$5,0))&IF(TYPE(VLOOKUP($A39,FB_28,R$5,0))=16,"",VLOOKUP($A39,FB_28,R$5,0))&IF(TYPE(VLOOKUP($A39,FB_29,R$5,0))=16,"",VLOOKUP($A39,FB_29,R$5,0))&IF(TYPE(VLOOKUP($A39,FB_30,R$5,0))=16,"",VLOOKUP($A39,FB_30,R$5,0)))) ->  | G39: =IF($B39="","",IF(TYPE(VLOOKUP($A39,FB_1,S$5,0))=16,"",VLOOKUP($A39,FB_1,S$5,0))&IF(TYPE(VLOOKUP($A39,FB_2,S$5,0))=16,"",VLOOKUP($A39,FB_2,S$5,0))&IF(TYPE(VLOOKUP($A39,FB_3,S$5,0))=16,"",VLOOKUP($A39,FB_3,S$5,0))&IF(TYPE(VLOOKUP($A39,FB_4,S$5,0))=16,"",VLOOKUP($A39,FB_4,S$5,0))&IF(TYPE(VLOOKUP($A39,FB_5,S$5,0))=16,"",VLOOKUP($A39,FB_5,S$5,0))&IF(TYPE(VLOOKUP($A39,FB_6,S$5,0))=16,"",VLOOKUP($A39,FB_6,S$5,0))&IF(TYPE(VLOOKUP($A39,FB_7,S$5,0))=16,"",VLOOKUP($A39,FB_7,S$5,0))&IF(TYPE(VLOOKUP($A39,FB_8,S$5,0))=16,"",VLOOKUP($A39,FB_8,S$5,0))&IF(TYPE(VLOOKUP($A39,FB_9,S$5,0))=16,"",VLOOKUP($A39,FB_9,S$5,0))&IF(TYPE(VLOOKUP($A39,FB_10,S$5,0))=16,"",VLOOKUP($A39,FB_10,S$5,0))&IF(TYPE(VLOOKUP($A39,FB_11,S$5,0))=16,"",VLOOKUP($A39,FB_11,S$5,0))&IF(TYPE(VLOOKUP($A39,FB_12,S$5,0))=16,"",VLOOKUP($A39,FB_12,S$5,0))&IF(TYPE(VLOOKUP($A39,FB_13,S$5,0))=16,"",VLOOKUP($A39,FB_13,S$5,0))&IF(TYPE(VLOOKUP($A39,FB_14,S$5,0))=16,"",VLOOKUP($A39,FB_14,S$5,0))&IF(TYPE(VLOOKUP($A39,FB_15,S$5,0))=16,"",VLOOKUP($A39,FB_15,S$5,0))&IF(TYPE(VLOOKUP($A39,FB_16,S$5,0))=16,"",VLOOKUP($A39,FB_16,S$5,0))&IF(TYPE(VLOOKUP($A39,FB_17,S$5,0))=16,"",VLOOKUP($A39,FB_17,S$5,0))&IF(TYPE(VLOOKUP($A39,FB_18,S$5,0))=16,"",VLOOKUP($A39,FB_18,S$5,0))&IF(TYPE(VLOOKUP($A39,FB_19,S$5,0))=16,"",VLOOKUP($A39,FB_19,S$5,0))&IF(TYPE(VLOOKUP($A39,FB_20,S$5,0))=16,"",VLOOKUP($A39,FB_20,S$5,0))&IF(TYPE(VLOOKUP($A39,FB_21,S$5,0))=16,"",VLOOKUP($A39,FB_21,S$5,0))&IF(TYPE(VLOOKUP($A39,FB_22,S$5,0))=16,"",VLOOKUP($A39,FB_22,S$5,0))&IF(TYPE(VLOOKUP($A39,FB_23,S$5,0))=16,"",VLOOKUP($A39,FB_23,S$5,0))&IF(TYPE(VLOOKUP($A39,FB_24,S$5,0))=16,"",VLOOKUP($A39,FB_24,S$5,0))&IF(TYPE(VLOOKUP($A39,FB_25,S$5,0))=16,"",VLOOKUP($A39,FB_25,S$5,0))&IF(TYPE(VLOOKUP($A39,FB_26,S$5,0))=16,"",VLOOKUP($A39,FB_26,S$5,0))&IF(TYPE(VLOOKUP($A39,FB_27,S$5,0))=16,"",VLOOKUP($A39,FB_27,S$5,0))&IF(TYPE(VLOOKUP($A39,FB_28,S$5,0))=16,"",VLOOKUP($A39,FB_28,S$5,0))&IF(TYPE(VLOOKUP($A39,FB_29,S$5,0))=16,"",VLOOKUP($A39,FB_29,S$5,0))&IF(TYPE(VLOOKUP($A39,FB_30,S$5,0))=16,"",VLOOKUP($A39,FB_30,S$5,0))) ->  | Y39: :
A40: 11. | B40: =IF(TYPE(VLOOKUP($A40,FB_1,2,0))=16,"",VLOOKUP($A40,FB_1,2,0))&IF(TYPE(VLOOKUP($A40,FB_2,2,0))=16,"",VLOOKUP($A40,FB_2,2,0))&IF(TYPE(VLOOKUP($A40,FB_3,2,0))=16,"",VLOOKUP($A40,FB_3,2,0))&IF(TYPE(VLOOKUP($A40,FB_4,2,0))=16,"",VLOOKUP($A40,FB_4,2,0))&IF(TYPE(VLOOKUP($A40,FB_5,2,0))=16,"",VLOOKUP($A40,FB_5,2,0))&IF(TYPE(VLOOKUP($A40,FB_6,2,0))=16,"",VLOOKUP($A40,FB_6,2,0))&IF(TYPE(VLOOKUP($A40,FB_7,2,0))=16,"",VLOOKUP($A40,FB_7,2,0))&IF(TYPE(VLOOKUP($A40,FB_8,2,0))=16,"",VLOOKUP($A40,FB_8,2,0))&IF(TYPE(VLOOKUP($A40,FB_9,2,0))=16,"",VLOOKUP($A40,FB_9,2,0))&IF(TYPE(VLOOKUP($A40,FB_10,2,0))=16,"",VLOOKUP($A40,FB_10,2,0))&IF(TYPE(VLOOKUP($A40,FB_11,2,0))=16,"",VLOOKUP($A40,FB_11,2,0))&IF(TYPE(VLOOKUP($A40,FB_12,2,0))=16,"",VLOOKUP($A40,FB_12,2,0))&IF(TYPE(VLOOKUP($A40,FB_13,2,0))=16,"",VLOOKUP($A40,FB_13,2,0))&IF(TYPE(VLOOKUP($A40,FB_14,2,0))=16,"",VLOOKUP($A40,FB_14,2,0))&IF(TYPE(VLOOKUP($A40,FB_15,2,0))=16,"",VLOOKUP($A40,FB_15,2,0))&IF(TYPE(VLOOKUP($A40,FB_16,2,0))=16,"",VLOOKUP($A40,FB_16,2,0))&IF(TYPE(VLOOKUP($A40,FB_17,2,0))=16,"",VLOOKUP($A40,FB_17,2,0))&IF(TYPE(VLOOKUP($A40,FB_18,2,0))=16,"",VLOOKUP($A40,FB_18,2,0))&IF(TYPE(VLOOKUP($A40,FB_19,2,0))=16,"",VLOOKUP($A40,FB_19,2,0))&IF(TYPE(VLOOKUP($A40,FB_20,2,0))=16,"",VLOOKUP($A40,FB_20,2,0))&IF(TYPE(VLOOKUP($A40,FB_21,2,0))=16,"",VLOOKUP($A40,FB_21,2,0))&IF(TYPE(VLOOKUP($A40,FB_22,2,0))=16,"",VLOOKUP($A40,FB_22,2,0))&IF(TYPE(VLOOKUP($A40,FB_23,2,0))=16,"",VLOOKUP($A40,FB_23,2,0))&IF(TYPE(VLOOKUP($A40,FB_24,2,0))=16,"",VLOOKUP($A40,FB_24,2,0))&IF(TYPE(VLOOKUP($A40,FB_25,2,0))=16,"",VLOOKUP($A40,FB_25,2,0))&IF(TYPE(VLOOKUP($A40,FB_26,2,0))=16,"",VLOOKUP($A40,FB_26,2,0))&IF(TYPE(VLOOKUP($A40,FB_27,2,0))=16,"",VLOOKUP($A40,FB_27,2,0))&IF(TYPE(VLOOKUP($A40,FB_28,2,0))=16,"",VLOOKUP($A40,FB_28,2,0))&IF(TYPE(VLOOKUP($A40,FB_29,2,0))=16,"",VLOOKUP($A40,FB_29,2,0))&IF(TYPE(VLOOKUP($A40,FB_30,2,0))=16,"",VLOOKUP($A40,FB_30,2,0)) ->  | D40: =IF($B40="","",_xlfn.NUMBERVALUE(IF(TYPE(VLOOKUP($A40,FB_1,P$5,0))=16,"",VLOOKUP($A40,FB_1,P$5,0))&IF(TYPE(VLOOKUP($A40,FB_2,P$5,0))=16,"",VLOOKUP($A40,FB_2,P$5,0))&IF(TYPE(VLOOKUP($A40,FB_3,P$5,0))=16,"",VLOOKUP($A40,FB_3,P$5,0))&IF(TYPE(VLOOKUP($A40,FB_4,P$5,0))=16,"",VLOOKUP($A40,FB_4,P$5,0))&IF(TYPE(VLOOKUP($A40,FB_5,P$5,0))=16,"",VLOOKUP($A40,FB_5,P$5,0))&IF(TYPE(VLOOKUP($A40,FB_6,P$5,0))=16,"",VLOOKUP($A40,FB_6,P$5,0))&IF(TYPE(VLOOKUP($A40,FB_7,P$5,0))=16,"",VLOOKUP($A40,FB_7,P$5,0))&IF(TYPE(VLOOKUP($A40,FB_8,P$5,0))=16,"",VLOOKUP($A40,FB_8,P$5,0))&IF(TYPE(VLOOKUP($A40,FB_9,P$5,0))=16,"",VLOOKUP($A40,FB_9,P$5,0))&IF(TYPE(VLOOKUP($A40,FB_10,P$5,0))=16,"",VLOOKUP($A40,FB_10,P$5,0))&IF(TYPE(VLOOKUP($A40,FB_11,P$5,0))=16,"",VLOOKUP($A40,FB_11,P$5,0))&IF(TYPE(VLOOKUP($A40,FB_12,P$5,0))=16,"",VLOOKUP($A40,FB_12,P$5,0))&IF(TYPE(VLOOKUP($A40,FB_13,P$5,0))=16,"",VLOOKUP($A40,FB_13,P$5,0))&IF(TYPE(VLOOKUP($A40,FB_14,P$5,0))=16,"",VLOOKUP($A40,FB_14,P$5,0))&IF(TYPE(VLOOKUP($A40,FB_15,P$5,0))=16,"",VLOOKUP($A40,FB_15,P$5,0))&IF(TYPE(VLOOKUP($A40,FB_16,P$5,0))=16,"",VLOOKUP($A40,FB_16,P$5,0))&IF(TYPE(VLOOKUP($A40,FB_17,P$5,0))=16,"",VLOOKUP($A40,FB_17,P$5,0))&IF(TYPE(VLOOKUP($A40,FB_18,P$5,0))=16,"",VLOOKUP($A40,FB_18,P$5,0))&IF(TYPE(VLOOKUP($A40,FB_19,P$5,0))=16,"",VLOOKUP($A40,FB_19,P$5,0))&IF(TYPE(VLOOKUP($A40,FB_20,P$5,0))=16,"",VLOOKUP($A40,FB_20,P$5,0))&IF(TYPE(VLOOKUP($A40,FB_21,P$5,0))=16,"",VLOOKUP($A40,FB_21,P$5,0))&IF(TYPE(VLOOKUP($A40,FB_22,P$5,0))=16,"",VLOOKUP($A40,FB_22,P$5,0))&IF(TYPE(VLOOKUP($A40,FB_23,P$5,0))=16,"",VLOOKUP($A40,FB_23,P$5,0))&IF(TYPE(VLOOKUP($A40,FB_24,P$5,0))=16,"",VLOOKUP($A40,FB_24,P$5,0))&IF(TYPE(VLOOKUP($A40,FB_25,P$5,0))=16,"",VLOOKUP($A40,FB_25,P$5,0))&IF(TYPE(VLOOKUP($A40,FB_26,P$5,0))=16,"",VLOOKUP($A40,FB_26,P$5,0))&IF(TYPE(VLOOKUP($A40,FB_27,P$5,0))=16,"",VLOOKUP($A40,FB_27,P$5,0))&IF(TYPE(VLOOKUP($A40,FB_28,P$5,0))=16,"",VLOOKUP($A40,FB_28,P$5,0))&IF(TYPE(VLOOKUP($A40,FB_29,P$5,0))=16,"",VLOOKUP($A40,FB_29,P$5,0))&IF(TYPE(VLOOKUP($A40,FB_30,P$5,0))=16,"",VLOOKUP($A40,FB_30,P$5,0)))) ->  | F40: =IF($B40="","",_xlfn.NUMBERVALUE(IF(TYPE(VLOOKUP($A40,FB_1,R$5,0))=16,"",VLOOKUP($A40,FB_1,R$5,0))&IF(TYPE(VLOOKUP($A40,FB_2,R$5,0))=16,"",VLOOKUP($A40,FB_2,R$5,0))&IF(TYPE(VLOOKUP($A40,FB_3,R$5,0))=16,"",VLOOKUP($A40,FB_3,R$5,0))&IF(TYPE(VLOOKUP($A40,FB_4,R$5,0))=16,"",VLOOKUP($A40,FB_4,R$5,0))&IF(TYPE(VLOOKUP($A40,FB_5,R$5,0))=16,"",VLOOKUP($A40,FB_5,R$5,0))&IF(TYPE(VLOOKUP($A40,FB_6,R$5,0))=16,"",VLOOKUP($A40,FB_6,R$5,0))&IF(TYPE(VLOOKUP($A40,FB_7,R$5,0))=16,"",VLOOKUP($A40,FB_7,R$5,0))&IF(TYPE(VLOOKUP($A40,FB_8,R$5,0))=16,"",VLOOKUP($A40,FB_8,R$5,0))&IF(TYPE(VLOOKUP($A40,FB_9,R$5,0))=16,"",VLOOKUP($A40,FB_9,R$5,0))&IF(TYPE(VLOOKUP($A40,FB_10,R$5,0))=16,"",VLOOKUP($A40,FB_10,R$5,0))&IF(TYPE(VLOOKUP($A40,FB_11,R$5,0))=16,"",VLOOKUP($A40,FB_11,R$5,0))&IF(TYPE(VLOOKUP($A40,FB_12,R$5,0))=16,"",VLOOKUP($A40,FB_12,R$5,0))&IF(TYPE(VLOOKUP($A40,FB_13,R$5,0))=16,"",VLOOKUP($A40,FB_13,R$5,0))&IF(TYPE(VLOOKUP($A40,FB_14,R$5,0))=16,"",VLOOKUP($A40,FB_14,R$5,0))&IF(TYPE(VLOOKUP($A40,FB_15,R$5,0))=16,"",VLOOKUP($A40,FB_15,R$5,0))&IF(TYPE(VLOOKUP($A40,FB_16,R$5,0))=16,"",VLOOKUP($A40,FB_16,R$5,0))&IF(TYPE(VLOOKUP($A40,FB_17,R$5,0))=16,"",VLOOKUP($A40,FB_17,R$5,0))&IF(TYPE(VLOOKUP($A40,FB_18,R$5,0))=16,"",VLOOKUP($A40,FB_18,R$5,0))&IF(TYPE(VLOOKUP($A40,FB_19,R$5,0))=16,"",VLOOKUP($A40,FB_19,R$5,0))&IF(TYPE(VLOOKUP($A40,FB_20,R$5,0))=16,"",VLOOKUP($A40,FB_20,R$5,0))&IF(TYPE(VLOOKUP($A40,FB_21,R$5,0))=16,"",VLOOKUP($A40,FB_21,R$5,0))&IF(TYPE(VLOOKUP($A40,FB_22,R$5,0))=16,"",VLOOKUP($A40,FB_22,R$5,0))&IF(TYPE(VLOOKUP($A40,FB_23,R$5,0))=16,"",VLOOKUP($A40,FB_23,R$5,0))&IF(TYPE(VLOOKUP($A40,FB_24,R$5,0))=16,"",VLOOKUP($A40,FB_24,R$5,0))&IF(TYPE(VLOOKUP($A40,FB_25,R$5,0))=16,"",VLOOKUP($A40,FB_25,R$5,0))&IF(TYPE(VLOOKUP($A40,FB_26,R$5,0))=16,"",VLOOKUP($A40,FB_26,R$5,0))&IF(TYPE(VLOOKUP($A40,FB_27,R$5,0))=16,"",VLOOKUP($A40,FB_27,R$5,0))&IF(TYPE(VLOOKUP($A40,FB_28,R$5,0))=16,"",VLOOKUP($A40,FB_28,R$5,0))&IF(TYPE(VLOOKUP($A40,FB_29,R$5,0))=16,"",VLOOKUP($A40,FB_29,R$5,0))&IF(TYPE(VLOOKUP($A40,FB_30,R$5,0))=16,"",VLOOKUP($A40,FB_30,R$5,0)))) ->  | G40: =IF($B40="","",IF(TYPE(VLOOKUP($A40,FB_1,S$5,0))=16,"",VLOOKUP($A40,FB_1,S$5,0))&IF(TYPE(VLOOKUP($A40,FB_2,S$5,0))=16,"",VLOOKUP($A40,FB_2,S$5,0))&IF(TYPE(VLOOKUP($A40,FB_3,S$5,0))=16,"",VLOOKUP($A40,FB_3,S$5,0))&IF(TYPE(VLOOKUP($A40,FB_4,S$5,0))=16,"",VLOOKUP($A40,FB_4,S$5,0))&IF(TYPE(VLOOKUP($A40,FB_5,S$5,0))=16,"",VLOOKUP($A40,FB_5,S$5,0))&IF(TYPE(VLOOKUP($A40,FB_6,S$5,0))=16,"",VLOOKUP($A40,FB_6,S$5,0))&IF(TYPE(VLOOKUP($A40,FB_7,S$5,0))=16,"",VLOOKUP($A40,FB_7,S$5,0))&IF(TYPE(VLOOKUP($A40,FB_8,S$5,0))=16,"",VLOOKUP($A40,FB_8,S$5,0))&IF(TYPE(VLOOKUP($A40,FB_9,S$5,0))=16,"",VLOOKUP($A40,FB_9,S$5,0))&IF(TYPE(VLOOKUP($A40,FB_10,S$5,0))=16,"",VLOOKUP($A40,FB_10,S$5,0))&IF(TYPE(VLOOKUP($A40,FB_11,S$5,0))=16,"",VLOOKUP($A40,FB_11,S$5,0))&IF(TYPE(VLOOKUP($A40,FB_12,S$5,0))=16,"",VLOOKUP($A40,FB_12,S$5,0))&IF(TYPE(VLOOKUP($A40,FB_13,S$5,0))=16,"",VLOOKUP($A40,FB_13,S$5,0))&IF(TYPE(VLOOKUP($A40,FB_14,S$5,0))=16,"",VLOOKUP($A40,FB_14,S$5,0))&IF(TYPE(VLOOKUP($A40,FB_15,S$5,0))=16,"",VLOOKUP($A40,FB_15,S$5,0))&IF(TYPE(VLOOKUP($A40,FB_16,S$5,0))=16,"",VLOOKUP($A40,FB_16,S$5,0))&IF(TYPE(VLOOKUP($A40,FB_17,S$5,0))=16,"",VLOOKUP($A40,FB_17,S$5,0))&IF(TYPE(VLOOKUP($A40,FB_18,S$5,0))=16,"",VLOOKUP($A40,FB_18,S$5,0))&IF(TYPE(VLOOKUP($A40,FB_19,S$5,0))=16,"",VLOOKUP($A40,FB_19,S$5,0))&IF(TYPE(VLOOKUP($A40,FB_20,S$5,0))=16,"",VLOOKUP($A40,FB_20,S$5,0))&IF(TYPE(VLOOKUP($A40,FB_21,S$5,0))=16,"",VLOOKUP($A40,FB_21,S$5,0))&IF(TYPE(VLOOKUP($A40,FB_22,S$5,0))=16,"",VLOOKUP($A40,FB_22,S$5,0))&IF(TYPE(VLOOKUP($A40,FB_23,S$5,0))=16,"",VLOOKUP($A40,FB_23,S$5,0))&IF(TYPE(VLOOKUP($A40,FB_24,S$5,0))=16,"",VLOOKUP($A40,FB_24,S$5,0))&IF(TYPE(VLOOKUP($A40,FB_25,S$5,0))=16,"",VLOOKUP($A40,FB_25,S$5,0))&IF(TYPE(VLOOKUP($A40,FB_26,S$5,0))=16,"",VLOOKUP($A40,FB_26,S$5,0))&IF(TYPE(VLOOKUP($A40,FB_27,S$5,0))=16,"",VLOOKUP($A40,FB_27,S$5,0))&IF(TYPE(VLOOKUP($A40,FB_28,S$5,0))=16,"",VLOOKUP($A40,FB_28,S$5,0))&IF(TYPE(VLOOKUP($A40,FB_29,S$5,0))=16,"",VLOOKUP($A40,FB_29,S$5,0))&IF(TYPE(VLOOKUP($A40,FB_30,S$5,0))=16,"",VLOOKUP($A40,FB_30,S$5,0))) ->  | Y40: :
A41: 12. | B41: =IF(TYPE(VLOOKUP($A41,FB_1,2,0))=16,"",VLOOKUP($A41,FB_1,2,0))&IF(TYPE(VLOOKUP($A41,FB_2,2,0))=16,"",VLOOKUP($A41,FB_2,2,0))&IF(TYPE(VLOOKUP($A41,FB_3,2,0))=16,"",VLOOKUP($A41,FB_3,2,0))&IF(TYPE(VLOOKUP($A41,FB_4,2,0))=16,"",VLOOKUP($A41,FB_4,2,0))&IF(TYPE(VLOOKUP($A41,FB_5,2,0))=16,"",VLOOKUP($A41,FB_5,2,0))&IF(TYPE(VLOOKUP($A41,FB_6,2,0))=16,"",VLOOKUP($A41,FB_6,2,0))&IF(TYPE(VLOOKUP($A41,FB_7,2,0))=16,"",VLOOKUP($A41,FB_7,2,0))&IF(TYPE(VLOOKUP($A41,FB_8,2,0))=16,"",VLOOKUP($A41,FB_8,2,0))&IF(TYPE(VLOOKUP($A41,FB_9,2,0))=16,"",VLOOKUP($A41,FB_9,2,0))&IF(TYPE(VLOOKUP($A41,FB_10,2,0))=16,"",VLOOKUP($A41,FB_10,2,0))&IF(TYPE(VLOOKUP($A41,FB_11,2,0))=16,"",VLOOKUP($A41,FB_11,2,0))&IF(TYPE(VLOOKUP($A41,FB_12,2,0))=16,"",VLOOKUP($A41,FB_12,2,0))&IF(TYPE(VLOOKUP($A41,FB_13,2,0))=16,"",VLOOKUP($A41,FB_13,2,0))&IF(TYPE(VLOOKUP($A41,FB_14,2,0))=16,"",VLOOKUP($A41,FB_14,2,0))&IF(TYPE(VLOOKUP($A41,FB_15,2,0))=16,"",VLOOKUP($A41,FB_15,2,0))&IF(TYPE(VLOOKUP($A41,FB_16,2,0))=16,"",VLOOKUP($A41,FB_16,2,0))&IF(TYPE(VLOOKUP($A41,FB_17,2,0))=16,"",VLOOKUP($A41,FB_17,2,0))&IF(TYPE(VLOOKUP($A41,FB_18,2,0))=16,"",VLOOKUP($A41,FB_18,2,0))&IF(TYPE(VLOOKUP($A41,FB_19,2,0))=16,"",VLOOKUP($A41,FB_19,2,0))&IF(TYPE(VLOOKUP($A41,FB_20,2,0))=16,"",VLOOKUP($A41,FB_20,2,0))&IF(TYPE(VLOOKUP($A41,FB_21,2,0))=16,"",VLOOKUP($A41,FB_21,2,0))&IF(TYPE(VLOOKUP($A41,FB_22,2,0))=16,"",VLOOKUP($A41,FB_22,2,0))&IF(TYPE(VLOOKUP($A41,FB_23,2,0))=16,"",VLOOKUP($A41,FB_23,2,0))&IF(TYPE(VLOOKUP($A41,FB_24,2,0))=16,"",VLOOKUP($A41,FB_24,2,0))&IF(TYPE(VLOOKUP($A41,FB_25,2,0))=16,"",VLOOKUP($A41,FB_25,2,0))&IF(TYPE(VLOOKUP($A41,FB_26,2,0))=16,"",VLOOKUP($A41,FB_26,2,0))&IF(TYPE(VLOOKUP($A41,FB_27,2,0))=16,"",VLOOKUP($A41,FB_27,2,0))&IF(TYPE(VLOOKUP($A41,FB_28,2,0))=16,"",VLOOKUP($A41,FB_28,2,0))&IF(TYPE(VLOOKUP($A41,FB_29,2,0))=16,"",VLOOKUP($A41,FB_29,2,0))&IF(TYPE(VLOOKUP($A41,FB_30,2,0))=16,"",VLOOKUP($A41,FB_30,2,0)) ->  | D41: =IF($B41="","",_xlfn.NUMBERVALUE(IF(TYPE(VLOOKUP($A41,FB_1,P$5,0))=16,"",VLOOKUP($A41,FB_1,P$5,0))&IF(TYPE(VLOOKUP($A41,FB_2,P$5,0))=16,"",VLOOKUP($A41,FB_2,P$5,0))&IF(TYPE(VLOOKUP($A41,FB_3,P$5,0))=16,"",VLOOKUP($A41,FB_3,P$5,0))&IF(TYPE(VLOOKUP($A41,FB_4,P$5,0))=16,"",VLOOKUP($A41,FB_4,P$5,0))&IF(TYPE(VLOOKUP($A41,FB_5,P$5,0))=16,"",VLOOKUP($A41,FB_5,P$5,0))&IF(TYPE(VLOOKUP($A41,FB_6,P$5,0))=16,"",VLOOKUP($A41,FB_6,P$5,0))&IF(TYPE(VLOOKUP($A41,FB_7,P$5,0))=16,"",VLOOKUP($A41,FB_7,P$5,0))&IF(TYPE(VLOOKUP($A41,FB_8,P$5,0))=16,"",VLOOKUP($A41,FB_8,P$5,0))&IF(TYPE(VLOOKUP($A41,FB_9,P$5,0))=16,"",VLOOKUP($A41,FB_9,P$5,0))&IF(TYPE(VLOOKUP($A41,FB_10,P$5,0))=16,"",VLOOKUP($A41,FB_10,P$5,0))&IF(TYPE(VLOOKUP($A41,FB_11,P$5,0))=16,"",VLOOKUP($A41,FB_11,P$5,0))&IF(TYPE(VLOOKUP($A41,FB_12,P$5,0))=16,"",VLOOKUP($A41,FB_12,P$5,0))&IF(TYPE(VLOOKUP($A41,FB_13,P$5,0))=16,"",VLOOKUP($A41,FB_13,P$5,0))&IF(TYPE(VLOOKUP($A41,FB_14,P$5,0))=16,"",VLOOKUP($A41,FB_14,P$5,0))&IF(TYPE(VLOOKUP($A41,FB_15,P$5,0))=16,"",VLOOKUP($A41,FB_15,P$5,0))&IF(TYPE(VLOOKUP($A41,FB_16,P$5,0))=16,"",VLOOKUP($A41,FB_16,P$5,0))&IF(TYPE(VLOOKUP($A41,FB_17,P$5,0))=16,"",VLOOKUP($A41,FB_17,P$5,0))&IF(TYPE(VLOOKUP($A41,FB_18,P$5,0))=16,"",VLOOKUP($A41,FB_18,P$5,0))&IF(TYPE(VLOOKUP($A41,FB_19,P$5,0))=16,"",VLOOKUP($A41,FB_19,P$5,0))&IF(TYPE(VLOOKUP($A41,FB_20,P$5,0))=16,"",VLOOKUP($A41,FB_20,P$5,0))&IF(TYPE(VLOOKUP($A41,FB_21,P$5,0))=16,"",VLOOKUP($A41,FB_21,P$5,0))&IF(TYPE(VLOOKUP($A41,FB_22,P$5,0))=16,"",VLOOKUP($A41,FB_22,P$5,0))&IF(TYPE(VLOOKUP($A41,FB_23,P$5,0))=16,"",VLOOKUP($A41,FB_23,P$5,0))&IF(TYPE(VLOOKUP($A41,FB_24,P$5,0))=16,"",VLOOKUP($A41,FB_24,P$5,0))&IF(TYPE(VLOOKUP($A41,FB_25,P$5,0))=16,"",VLOOKUP($A41,FB_25,P$5,0))&IF(TYPE(VLOOKUP($A41,FB_26,P$5,0))=16,"",VLOOKUP($A41,FB_26,P$5,0))&IF(TYPE(VLOOKUP($A41,FB_27,P$5,0))=16,"",VLOOKUP($A41,FB_27,P$5,0))&IF(TYPE(VLOOKUP($A41,FB_28,P$5,0))=16,"",VLOOKUP($A41,FB_28,P$5,0))&IF(TYPE(VLOOKUP($A41,FB_29,P$5,0))=16,"",VLOOKUP($A41,FB_29,P$5,0))&IF(TYPE(VLOOKUP($A41,FB_30,P$5,0))=16,"",VLOOKUP($A41,FB_30,P$5,0)))) ->  | F41: =IF($B41="","",_xlfn.NUMBERVALUE(IF(TYPE(VLOOKUP($A41,FB_1,R$5,0))=16,"",VLOOKUP($A41,FB_1,R$5,0))&IF(TYPE(VLOOKUP($A41,FB_2,R$5,0))=16,"",VLOOKUP($A41,FB_2,R$5,0))&IF(TYPE(VLOOKUP($A41,FB_3,R$5,0))=16,"",VLOOKUP($A41,FB_3,R$5,0))&IF(TYPE(VLOOKUP($A41,FB_4,R$5,0))=16,"",VLOOKUP($A41,FB_4,R$5,0))&IF(TYPE(VLOOKUP($A41,FB_5,R$5,0))=16,"",VLOOKUP($A41,FB_5,R$5,0))&IF(TYPE(VLOOKUP($A41,FB_6,R$5,0))=16,"",VLOOKUP($A41,FB_6,R$5,0))&IF(TYPE(VLOOKUP($A41,FB_7,R$5,0))=16,"",VLOOKUP($A41,FB_7,R$5,0))&IF(TYPE(VLOOKUP($A41,FB_8,R$5,0))=16,"",VLOOKUP($A41,FB_8,R$5,0))&IF(TYPE(VLOOKUP($A41,FB_9,R$5,0))=16,"",VLOOKUP($A41,FB_9,R$5,0))&IF(TYPE(VLOOKUP($A41,FB_10,R$5,0))=16,"",VLOOKUP($A41,FB_10,R$5,0))&IF(TYPE(VLOOKUP($A41,FB_11,R$5,0))=16,"",VLOOKUP($A41,FB_11,R$5,0))&IF(TYPE(VLOOKUP($A41,FB_12,R$5,0))=16,"",VLOOKUP($A41,FB_12,R$5,0))&IF(TYPE(VLOOKUP($A41,FB_13,R$5,0))=16,"",VLOOKUP($A41,FB_13,R$5,0))&IF(TYPE(VLOOKUP($A41,FB_14,R$5,0))=16,"",VLOOKUP($A41,FB_14,R$5,0))&IF(TYPE(VLOOKUP($A41,FB_15,R$5,0))=16,"",VLOOKUP($A41,FB_15,R$5,0))&IF(TYPE(VLOOKUP($A41,FB_16,R$5,0))=16,"",VLOOKUP($A41,FB_16,R$5,0))&IF(TYPE(VLOOKUP($A41,FB_17,R$5,0))=16,"",VLOOKUP($A41,FB_17,R$5,0))&IF(TYPE(VLOOKUP($A41,FB_18,R$5,0))=16,"",VLOOKUP($A41,FB_18,R$5,0))&IF(TYPE(VLOOKUP($A41,FB_19,R$5,0))=16,"",VLOOKUP($A41,FB_19,R$5,0))&IF(TYPE(VLOOKUP($A41,FB_20,R$5,0))=16,"",VLOOKUP($A41,FB_20,R$5,0))&IF(TYPE(VLOOKUP($A41,FB_21,R$5,0))=16,"",VLOOKUP($A41,FB_21,R$5,0))&IF(TYPE(VLOOKUP($A41,FB_22,R$5,0))=16,"",VLOOKUP($A41,FB_22,R$5,0))&IF(TYPE(VLOOKUP($A41,FB_23,R$5,0))=16,"",VLOOKUP($A41,FB_23,R$5,0))&IF(TYPE(VLOOKUP($A41,FB_24,R$5,0))=16,"",VLOOKUP($A41,FB_24,R$5,0))&IF(TYPE(VLOOKUP($A41,FB_25,R$5,0))=16,"",VLOOKUP($A41,FB_25,R$5,0))&IF(TYPE(VLOOKUP($A41,FB_26,R$5,0))=16,"",VLOOKUP($A41,FB_26,R$5,0))&IF(TYPE(VLOOKUP($A41,FB_27,R$5,0))=16,"",VLOOKUP($A41,FB_27,R$5,0))&IF(TYPE(VLOOKUP($A41,FB_28,R$5,0))=16,"",VLOOKUP($A41,FB_28,R$5,0))&IF(TYPE(VLOOKUP($A41,FB_29,R$5,0))=16,"",VLOOKUP($A41,FB_29,R$5,0))&IF(TYPE(VLOOKUP($A41,FB_30,R$5,0))=16,"",VLOOKUP($A41,FB_30,R$5,0)))) ->  | G41: =IF($B41="","",IF(TYPE(VLOOKUP($A41,FB_1,S$5,0))=16,"",VLOOKUP($A41,FB_1,S$5,0))&IF(TYPE(VLOOKUP($A41,FB_2,S$5,0))=16,"",VLOOKUP($A41,FB_2,S$5,0))&IF(TYPE(VLOOKUP($A41,FB_3,S$5,0))=16,"",VLOOKUP($A41,FB_3,S$5,0))&IF(TYPE(VLOOKUP($A41,FB_4,S$5,0))=16,"",VLOOKUP($A41,FB_4,S$5,0))&IF(TYPE(VLOOKUP($A41,FB_5,S$5,0))=16,"",VLOOKUP($A41,FB_5,S$5,0))&IF(TYPE(VLOOKUP($A41,FB_6,S$5,0))=16,"",VLOOKUP($A41,FB_6,S$5,0))&IF(TYPE(VLOOKUP($A41,FB_7,S$5,0))=16,"",VLOOKUP($A41,FB_7,S$5,0))&IF(TYPE(VLOOKUP($A41,FB_8,S$5,0))=16,"",VLOOKUP($A41,FB_8,S$5,0))&IF(TYPE(VLOOKUP($A41,FB_9,S$5,0))=16,"",VLOOKUP($A41,FB_9,S$5,0))&IF(TYPE(VLOOKUP($A41,FB_10,S$5,0))=16,"",VLOOKUP($A41,FB_10,S$5,0))&IF(TYPE(VLOOKUP($A41,FB_11,S$5,0))=16,"",VLOOKUP($A41,FB_11,S$5,0))&IF(TYPE(VLOOKUP($A41,FB_12,S$5,0))=16,"",VLOOKUP($A41,FB_12,S$5,0))&IF(TYPE(VLOOKUP($A41,FB_13,S$5,0))=16,"",VLOOKUP($A41,FB_13,S$5,0))&IF(TYPE(VLOOKUP($A41,FB_14,S$5,0))=16,"",VLOOKUP($A41,FB_14,S$5,0))&IF(TYPE(VLOOKUP($A41,FB_15,S$5,0))=16,"",VLOOKUP($A41,FB_15,S$5,0))&IF(TYPE(VLOOKUP($A41,FB_16,S$5,0))=16,"",VLOOKUP($A41,FB_16,S$5,0))&IF(TYPE(VLOOKUP($A41,FB_17,S$5,0))=16,"",VLOOKUP($A41,FB_17,S$5,0))&IF(TYPE(VLOOKUP($A41,FB_18,S$5,0))=16,"",VLOOKUP($A41,FB_18,S$5,0))&IF(TYPE(VLOOKUP($A41,FB_19,S$5,0))=16,"",VLOOKUP($A41,FB_19,S$5,0))&IF(TYPE(VLOOKUP($A41,FB_20,S$5,0))=16,"",VLOOKUP($A41,FB_20,S$5,0))&IF(TYPE(VLOOKUP($A41,FB_21,S$5,0))=16,"",VLOOKUP($A41,FB_21,S$5,0))&IF(TYPE(VLOOKUP($A41,FB_22,S$5,0))=16,"",VLOOKUP($A41,FB_22,S$5,0))&IF(TYPE(VLOOKUP($A41,FB_23,S$5,0))=16,"",VLOOKUP($A41,FB_23,S$5,0))&IF(TYPE(VLOOKUP($A41,FB_24,S$5,0))=16,"",VLOOKUP($A41,FB_24,S$5,0))&IF(TYPE(VLOOKUP($A41,FB_25,S$5,0))=16,"",VLOOKUP($A41,FB_25,S$5,0))&IF(TYPE(VLOOKUP($A41,FB_26,S$5,0))=16,"",VLOOKUP($A41,FB_26,S$5,0))&IF(TYPE(VLOOKUP($A41,FB_27,S$5,0))=16,"",VLOOKUP($A41,FB_27,S$5,0))&IF(TYPE(VLOOKUP($A41,FB_28,S$5,0))=16,"",VLOOKUP($A41,FB_28,S$5,0))&IF(TYPE(VLOOKUP($A41,FB_29,S$5,0))=16,"",VLOOKUP($A41,FB_29,S$5,0))&IF(TYPE(VLOOKUP($A41,FB_30,S$5,0))=16,"",VLOOKUP($A41,FB_30,S$5,0))) ->  | Y41: :
A42: 13. | B42: =IF(TYPE(VLOOKUP($A42,FB_1,2,0))=16,"",VLOOKUP($A42,FB_1,2,0))&IF(TYPE(VLOOKUP($A42,FB_2,2,0))=16,"",VLOOKUP($A42,FB_2,2,0))&IF(TYPE(VLOOKUP($A42,FB_3,2,0))=16,"",VLOOKUP($A42,FB_3,2,0))&IF(TYPE(VLOOKUP($A42,FB_4,2,0))=16,"",VLOOKUP($A42,FB_4,2,0))&IF(TYPE(VLOOKUP($A42,FB_5,2,0))=16,"",VLOOKUP($A42,FB_5,2,0))&IF(TYPE(VLOOKUP($A42,FB_6,2,0))=16,"",VLOOKUP($A42,FB_6,2,0))&IF(TYPE(VLOOKUP($A42,FB_7,2,0))=16,"",VLOOKUP($A42,FB_7,2,0))&IF(TYPE(VLOOKUP($A42,FB_8,2,0))=16,"",VLOOKUP($A42,FB_8,2,0))&IF(TYPE(VLOOKUP($A42,FB_9,2,0))=16,"",VLOOKUP($A42,FB_9,2,0))&IF(TYPE(VLOOKUP($A42,FB_10,2,0))=16,"",VLOOKUP($A42,FB_10,2,0))&IF(TYPE(VLOOKUP($A42,FB_11,2,0))=16,"",VLOOKUP($A42,FB_11,2,0))&IF(TYPE(VLOOKUP($A42,FB_12,2,0))=16,"",VLOOKUP($A42,FB_12,2,0))&IF(TYPE(VLOOKUP($A42,FB_13,2,0))=16,"",VLOOKUP($A42,FB_13,2,0))&IF(TYPE(VLOOKUP($A42,FB_14,2,0))=16,"",VLOOKUP($A42,FB_14,2,0))&IF(TYPE(VLOOKUP($A42,FB_15,2,0))=16,"",VLOOKUP($A42,FB_15,2,0))&IF(TYPE(VLOOKUP($A42,FB_16,2,0))=16,"",VLOOKUP($A42,FB_16,2,0))&IF(TYPE(VLOOKUP($A42,FB_17,2,0))=16,"",VLOOKUP($A42,FB_17,2,0))&IF(TYPE(VLOOKUP($A42,FB_18,2,0))=16,"",VLOOKUP($A42,FB_18,2,0))&IF(TYPE(VLOOKUP($A42,FB_19,2,0))=16,"",VLOOKUP($A42,FB_19,2,0))&IF(TYPE(VLOOKUP($A42,FB_20,2,0))=16,"",VLOOKUP($A42,FB_20,2,0))&IF(TYPE(VLOOKUP($A42,FB_21,2,0))=16,"",VLOOKUP($A42,FB_21,2,0))&IF(TYPE(VLOOKUP($A42,FB_22,2,0))=16,"",VLOOKUP($A42,FB_22,2,0))&IF(TYPE(VLOOKUP($A42,FB_23,2,0))=16,"",VLOOKUP($A42,FB_23,2,0))&IF(TYPE(VLOOKUP($A42,FB_24,2,0))=16,"",VLOOKUP($A42,FB_24,2,0))&IF(TYPE(VLOOKUP($A42,FB_25,2,0))=16,"",VLOOKUP($A42,FB_25,2,0))&IF(TYPE(VLOOKUP($A42,FB_26,2,0))=16,"",VLOOKUP($A42,FB_26,2,0))&IF(TYPE(VLOOKUP($A42,FB_27,2,0))=16,"",VLOOKUP($A42,FB_27,2,0))&IF(TYPE(VLOOKUP($A42,FB_28,2,0))=16,"",VLOOKUP($A42,FB_28,2,0))&IF(TYPE(VLOOKUP($A42,FB_29,2,0))=16,"",VLOOKUP($A42,FB_29,2,0))&IF(TYPE(VLOOKUP($A42,FB_30,2,0))=16,"",VLOOKUP($A42,FB_30,2,0)) ->  | D42: =IF($B42="","",_xlfn.NUMBERVALUE(IF(TYPE(VLOOKUP($A42,FB_1,P$5,0))=16,"",VLOOKUP($A42,FB_1,P$5,0))&IF(TYPE(VLOOKUP($A42,FB_2,P$5,0))=16,"",VLOOKUP($A42,FB_2,P$5,0))&IF(TYPE(VLOOKUP($A42,FB_3,P$5,0))=16,"",VLOOKUP($A42,FB_3,P$5,0))&IF(TYPE(VLOOKUP($A42,FB_4,P$5,0))=16,"",VLOOKUP($A42,FB_4,P$5,0))&IF(TYPE(VLOOKUP($A42,FB_5,P$5,0))=16,"",VLOOKUP($A42,FB_5,P$5,0))&IF(TYPE(VLOOKUP($A42,FB_6,P$5,0))=16,"",VLOOKUP($A42,FB_6,P$5,0))&IF(TYPE(VLOOKUP($A42,FB_7,P$5,0))=16,"",VLOOKUP($A42,FB_7,P$5,0))&IF(TYPE(VLOOKUP($A42,FB_8,P$5,0))=16,"",VLOOKUP($A42,FB_8,P$5,0))&IF(TYPE(VLOOKUP($A42,FB_9,P$5,0))=16,"",VLOOKUP($A42,FB_9,P$5,0))&IF(TYPE(VLOOKUP($A42,FB_10,P$5,0))=16,"",VLOOKUP($A42,FB_10,P$5,0))&IF(TYPE(VLOOKUP($A42,FB_11,P$5,0))=16,"",VLOOKUP($A42,FB_11,P$5,0))&IF(TYPE(VLOOKUP($A42,FB_12,P$5,0))=16,"",VLOOKUP($A42,FB_12,P$5,0))&IF(TYPE(VLOOKUP($A42,FB_13,P$5,0))=16,"",VLOOKUP($A42,FB_13,P$5,0))&IF(TYPE(VLOOKUP($A42,FB_14,P$5,0))=16,"",VLOOKUP($A42,FB_14,P$5,0))&IF(TYPE(VLOOKUP($A42,FB_15,P$5,0))=16,"",VLOOKUP($A42,FB_15,P$5,0))&IF(TYPE(VLOOKUP($A42,FB_16,P$5,0))=16,"",VLOOKUP($A42,FB_16,P$5,0))&IF(TYPE(VLOOKUP($A42,FB_17,P$5,0))=16,"",VLOOKUP($A42,FB_17,P$5,0))&IF(TYPE(VLOOKUP($A42,FB_18,P$5,0))=16,"",VLOOKUP($A42,FB_18,P$5,0))&IF(TYPE(VLOOKUP($A42,FB_19,P$5,0))=16,"",VLOOKUP($A42,FB_19,P$5,0))&IF(TYPE(VLOOKUP($A42,FB_20,P$5,0))=16,"",VLOOKUP($A42,FB_20,P$5,0))&IF(TYPE(VLOOKUP($A42,FB_21,P$5,0))=16,"",VLOOKUP($A42,FB_21,P$5,0))&IF(TYPE(VLOOKUP($A42,FB_22,P$5,0))=16,"",VLOOKUP($A42,FB_22,P$5,0))&IF(TYPE(VLOOKUP($A42,FB_23,P$5,0))=16,"",VLOOKUP($A42,FB_23,P$5,0))&IF(TYPE(VLOOKUP($A42,FB_24,P$5,0))=16,"",VLOOKUP($A42,FB_24,P$5,0))&IF(TYPE(VLOOKUP($A42,FB_25,P$5,0))=16,"",VLOOKUP($A42,FB_25,P$5,0))&IF(TYPE(VLOOKUP($A42,FB_26,P$5,0))=16,"",VLOOKUP($A42,FB_26,P$5,0))&IF(TYPE(VLOOKUP($A42,FB_27,P$5,0))=16,"",VLOOKUP($A42,FB_27,P$5,0))&IF(TYPE(VLOOKUP($A42,FB_28,P$5,0))=16,"",VLOOKUP($A42,FB_28,P$5,0))&IF(TYPE(VLOOKUP($A42,FB_29,P$5,0))=16,"",VLOOKUP($A42,FB_29,P$5,0))&IF(TYPE(VLOOKUP($A42,FB_30,P$5,0))=16,"",VLOOKUP($A42,FB_30,P$5,0)))) ->  | F42: =IF($B42="","",_xlfn.NUMBERVALUE(IF(TYPE(VLOOKUP($A42,FB_1,R$5,0))=16,"",VLOOKUP($A42,FB_1,R$5,0))&IF(TYPE(VLOOKUP($A42,FB_2,R$5,0))=16,"",VLOOKUP($A42,FB_2,R$5,0))&IF(TYPE(VLOOKUP($A42,FB_3,R$5,0))=16,"",VLOOKUP($A42,FB_3,R$5,0))&IF(TYPE(VLOOKUP($A42,FB_4,R$5,0))=16,"",VLOOKUP($A42,FB_4,R$5,0))&IF(TYPE(VLOOKUP($A42,FB_5,R$5,0))=16,"",VLOOKUP($A42,FB_5,R$5,0))&IF(TYPE(VLOOKUP($A42,FB_6,R$5,0))=16,"",VLOOKUP($A42,FB_6,R$5,0))&IF(TYPE(VLOOKUP($A42,FB_7,R$5,0))=16,"",VLOOKUP($A42,FB_7,R$5,0))&IF(TYPE(VLOOKUP($A42,FB_8,R$5,0))=16,"",VLOOKUP($A42,FB_8,R$5,0))&IF(TYPE(VLOOKUP($A42,FB_9,R$5,0))=16,"",VLOOKUP($A42,FB_9,R$5,0))&IF(TYPE(VLOOKUP($A42,FB_10,R$5,0))=16,"",VLOOKUP($A42,FB_10,R$5,0))&IF(TYPE(VLOOKUP($A42,FB_11,R$5,0))=16,"",VLOOKUP($A42,FB_11,R$5,0))&IF(TYPE(VLOOKUP($A42,FB_12,R$5,0))=16,"",VLOOKUP($A42,FB_12,R$5,0))&IF(TYPE(VLOOKUP($A42,FB_13,R$5,0))=16,"",VLOOKUP($A42,FB_13,R$5,0))&IF(TYPE(VLOOKUP($A42,FB_14,R$5,0))=16,"",VLOOKUP($A42,FB_14,R$5,0))&IF(TYPE(VLOOKUP($A42,FB_15,R$5,0))=16,"",VLOOKUP($A42,FB_15,R$5,0))&IF(TYPE(VLOOKUP($A42,FB_16,R$5,0))=16,"",VLOOKUP($A42,FB_16,R$5,0))&IF(TYPE(VLOOKUP($A42,FB_17,R$5,0))=16,"",VLOOKUP($A42,FB_17,R$5,0))&IF(TYPE(VLOOKUP($A42,FB_18,R$5,0))=16,"",VLOOKUP($A42,FB_18,R$5,0))&IF(TYPE(VLOOKUP($A42,FB_19,R$5,0))=16,"",VLOOKUP($A42,FB_19,R$5,0))&IF(TYPE(VLOOKUP($A42,FB_20,R$5,0))=16,"",VLOOKUP($A42,FB_20,R$5,0))&IF(TYPE(VLOOKUP($A42,FB_21,R$5,0))=16,"",VLOOKUP($A42,FB_21,R$5,0))&IF(TYPE(VLOOKUP($A42,FB_22,R$5,0))=16,"",VLOOKUP($A42,FB_22,R$5,0))&IF(TYPE(VLOOKUP($A42,FB_23,R$5,0))=16,"",VLOOKUP($A42,FB_23,R$5,0))&IF(TYPE(VLOOKUP($A42,FB_24,R$5,0))=16,"",VLOOKUP($A42,FB_24,R$5,0))&IF(TYPE(VLOOKUP($A42,FB_25,R$5,0))=16,"",VLOOKUP($A42,FB_25,R$5,0))&IF(TYPE(VLOOKUP($A42,FB_26,R$5,0))=16,"",VLOOKUP($A42,FB_26,R$5,0))&IF(TYPE(VLOOKUP($A42,FB_27,R$5,0))=16,"",VLOOKUP($A42,FB_27,R$5,0))&IF(TYPE(VLOOKUP($A42,FB_28,R$5,0))=16,"",VLOOKUP($A42,FB_28,R$5,0))&IF(TYPE(VLOOKUP($A42,FB_29,R$5,0))=16,"",VLOOKUP($A42,FB_29,R$5,0))&IF(TYPE(VLOOKUP($A42,FB_30,R$5,0))=16,"",VLOOKUP($A42,FB_30,R$5,0)))) ->  | G42: =IF($B42="","",IF(TYPE(VLOOKUP($A42,FB_1,S$5,0))=16,"",VLOOKUP($A42,FB_1,S$5,0))&IF(TYPE(VLOOKUP($A42,FB_2,S$5,0))=16,"",VLOOKUP($A42,FB_2,S$5,0))&IF(TYPE(VLOOKUP($A42,FB_3,S$5,0))=16,"",VLOOKUP($A42,FB_3,S$5,0))&IF(TYPE(VLOOKUP($A42,FB_4,S$5,0))=16,"",VLOOKUP($A42,FB_4,S$5,0))&IF(TYPE(VLOOKUP($A42,FB_5,S$5,0))=16,"",VLOOKUP($A42,FB_5,S$5,0))&IF(TYPE(VLOOKUP($A42,FB_6,S$5,0))=16,"",VLOOKUP($A42,FB_6,S$5,0))&IF(TYPE(VLOOKUP($A42,FB_7,S$5,0))=16,"",VLOOKUP($A42,FB_7,S$5,0))&IF(TYPE(VLOOKUP($A42,FB_8,S$5,0))=16,"",VLOOKUP($A42,FB_8,S$5,0))&IF(TYPE(VLOOKUP($A42,FB_9,S$5,0))=16,"",VLOOKUP($A42,FB_9,S$5,0))&IF(TYPE(VLOOKUP($A42,FB_10,S$5,0))=16,"",VLOOKUP($A42,FB_10,S$5,0))&IF(TYPE(VLOOKUP($A42,FB_11,S$5,0))=16,"",VLOOKUP($A42,FB_11,S$5,0))&IF(TYPE(VLOOKUP($A42,FB_12,S$5,0))=16,"",VLOOKUP($A42,FB_12,S$5,0))&IF(TYPE(VLOOKUP($A42,FB_13,S$5,0))=16,"",VLOOKUP($A42,FB_13,S$5,0))&IF(TYPE(VLOOKUP($A42,FB_14,S$5,0))=16,"",VLOOKUP($A42,FB_14,S$5,0))&IF(TYPE(VLOOKUP($A42,FB_15,S$5,0))=16,"",VLOOKUP($A42,FB_15,S$5,0))&IF(TYPE(VLOOKUP($A42,FB_16,S$5,0))=16,"",VLOOKUP($A42,FB_16,S$5,0))&IF(TYPE(VLOOKUP($A42,FB_17,S$5,0))=16,"",VLOOKUP($A42,FB_17,S$5,0))&IF(TYPE(VLOOKUP($A42,FB_18,S$5,0))=16,"",VLOOKUP($A42,FB_18,S$5,0))&IF(TYPE(VLOOKUP($A42,FB_19,S$5,0))=16,"",VLOOKUP($A42,FB_19,S$5,0))&IF(TYPE(VLOOKUP($A42,FB_20,S$5,0))=16,"",VLOOKUP($A42,FB_20,S$5,0))&IF(TYPE(VLOOKUP($A42,FB_21,S$5,0))=16,"",VLOOKUP($A42,FB_21,S$5,0))&IF(TYPE(VLOOKUP($A42,FB_22,S$5,0))=16,"",VLOOKUP($A42,FB_22,S$5,0))&IF(TYPE(VLOOKUP($A42,FB_23,S$5,0))=16,"",VLOOKUP($A42,FB_23,S$5,0))&IF(TYPE(VLOOKUP($A42,FB_24,S$5,0))=16,"",VLOOKUP($A42,FB_24,S$5,0))&IF(TYPE(VLOOKUP($A42,FB_25,S$5,0))=16,"",VLOOKUP($A42,FB_25,S$5,0))&IF(TYPE(VLOOKUP($A42,FB_26,S$5,0))=16,"",VLOOKUP($A42,FB_26,S$5,0))&IF(TYPE(VLOOKUP($A42,FB_27,S$5,0))=16,"",VLOOKUP($A42,FB_27,S$5,0))&IF(TYPE(VLOOKUP($A42,FB_28,S$5,0))=16,"",VLOOKUP($A42,FB_28,S$5,0))&IF(TYPE(VLOOKUP($A42,FB_29,S$5,0))=16,"",VLOOKUP($A42,FB_29,S$5,0))&IF(TYPE(VLOOKUP($A42,FB_30,S$5,0))=16,"",VLOOKUP($A42,FB_30,S$5,0))) ->  | Y42: :
A43: 14. | B43: =IF(TYPE(VLOOKUP($A43,FB_1,2,0))=16,"",VLOOKUP($A43,FB_1,2,0))&IF(TYPE(VLOOKUP($A43,FB_2,2,0))=16,"",VLOOKUP($A43,FB_2,2,0))&IF(TYPE(VLOOKUP($A43,FB_3,2,0))=16,"",VLOOKUP($A43,FB_3,2,0))&IF(TYPE(VLOOKUP($A43,FB_4,2,0))=16,"",VLOOKUP($A43,FB_4,2,0))&IF(TYPE(VLOOKUP($A43,FB_5,2,0))=16,"",VLOOKUP($A43,FB_5,2,0))&IF(TYPE(VLOOKUP($A43,FB_6,2,0))=16,"",VLOOKUP($A43,FB_6,2,0))&IF(TYPE(VLOOKUP($A43,FB_7,2,0))=16,"",VLOOKUP($A43,FB_7,2,0))&IF(TYPE(VLOOKUP($A43,FB_8,2,0))=16,"",VLOOKUP($A43,FB_8,2,0))&IF(TYPE(VLOOKUP($A43,FB_9,2,0))=16,"",VLOOKUP($A43,FB_9,2,0))&IF(TYPE(VLOOKUP($A43,FB_10,2,0))=16,"",VLOOKUP($A43,FB_10,2,0))&IF(TYPE(VLOOKUP($A43,FB_11,2,0))=16,"",VLOOKUP($A43,FB_11,2,0))&IF(TYPE(VLOOKUP($A43,FB_12,2,0))=16,"",VLOOKUP($A43,FB_12,2,0))&IF(TYPE(VLOOKUP($A43,FB_13,2,0))=16,"",VLOOKUP($A43,FB_13,2,0))&IF(TYPE(VLOOKUP($A43,FB_14,2,0))=16,"",VLOOKUP($A43,FB_14,2,0))&IF(TYPE(VLOOKUP($A43,FB_15,2,0))=16,"",VLOOKUP($A43,FB_15,2,0))&IF(TYPE(VLOOKUP($A43,FB_16,2,0))=16,"",VLOOKUP($A43,FB_16,2,0))&IF(TYPE(VLOOKUP($A43,FB_17,2,0))=16,"",VLOOKUP($A43,FB_17,2,0))&IF(TYPE(VLOOKUP($A43,FB_18,2,0))=16,"",VLOOKUP($A43,FB_18,2,0))&IF(TYPE(VLOOKUP($A43,FB_19,2,0))=16,"",VLOOKUP($A43,FB_19,2,0))&IF(TYPE(VLOOKUP($A43,FB_20,2,0))=16,"",VLOOKUP($A43,FB_20,2,0))&IF(TYPE(VLOOKUP($A43,FB_21,2,0))=16,"",VLOOKUP($A43,FB_21,2,0))&IF(TYPE(VLOOKUP($A43,FB_22,2,0))=16,"",VLOOKUP($A43,FB_22,2,0))&IF(TYPE(VLOOKUP($A43,FB_23,2,0))=16,"",VLOOKUP($A43,FB_23,2,0))&IF(TYPE(VLOOKUP($A43,FB_24,2,0))=16,"",VLOOKUP($A43,FB_24,2,0))&IF(TYPE(VLOOKUP($A43,FB_25,2,0))=16,"",VLOOKUP($A43,FB_25,2,0))&IF(TYPE(VLOOKUP($A43,FB_26,2,0))=16,"",VLOOKUP($A43,FB_26,2,0))&IF(TYPE(VLOOKUP($A43,FB_27,2,0))=16,"",VLOOKUP($A43,FB_27,2,0))&IF(TYPE(VLOOKUP($A43,FB_28,2,0))=16,"",VLOOKUP($A43,FB_28,2,0))&IF(TYPE(VLOOKUP($A43,FB_29,2,0))=16,"",VLOOKUP($A43,FB_29,2,0))&IF(TYPE(VLOOKUP($A43,FB_30,2,0))=16,"",VLOOKUP($A43,FB_30,2,0)) ->  | D43: =IF($B43="","",_xlfn.NUMBERVALUE(IF(TYPE(VLOOKUP($A43,FB_1,P$5,0))=16,"",VLOOKUP($A43,FB_1,P$5,0))&IF(TYPE(VLOOKUP($A43,FB_2,P$5,0))=16,"",VLOOKUP($A43,FB_2,P$5,0))&IF(TYPE(VLOOKUP($A43,FB_3,P$5,0))=16,"",VLOOKUP($A43,FB_3,P$5,0))&IF(TYPE(VLOOKUP($A43,FB_4,P$5,0))=16,"",VLOOKUP($A43,FB_4,P$5,0))&IF(TYPE(VLOOKUP($A43,FB_5,P$5,0))=16,"",VLOOKUP($A43,FB_5,P$5,0))&IF(TYPE(VLOOKUP($A43,FB_6,P$5,0))=16,"",VLOOKUP($A43,FB_6,P$5,0))&IF(TYPE(VLOOKUP($A43,FB_7,P$5,0))=16,"",VLOOKUP($A43,FB_7,P$5,0))&IF(TYPE(VLOOKUP($A43,FB_8,P$5,0))=16,"",VLOOKUP($A43,FB_8,P$5,0))&IF(TYPE(VLOOKUP($A43,FB_9,P$5,0))=16,"",VLOOKUP($A43,FB_9,P$5,0))&IF(TYPE(VLOOKUP($A43,FB_10,P$5,0))=16,"",VLOOKUP($A43,FB_10,P$5,0))&IF(TYPE(VLOOKUP($A43,FB_11,P$5,0))=16,"",VLOOKUP($A43,FB_11,P$5,0))&IF(TYPE(VLOOKUP($A43,FB_12,P$5,0))=16,"",VLOOKUP($A43,FB_12,P$5,0))&IF(TYPE(VLOOKUP($A43,FB_13,P$5,0))=16,"",VLOOKUP($A43,FB_13,P$5,0))&IF(TYPE(VLOOKUP($A43,FB_14,P$5,0))=16,"",VLOOKUP($A43,FB_14,P$5,0))&IF(TYPE(VLOOKUP($A43,FB_15,P$5,0))=16,"",VLOOKUP($A43,FB_15,P$5,0))&IF(TYPE(VLOOKUP($A43,FB_16,P$5,0))=16,"",VLOOKUP($A43,FB_16,P$5,0))&IF(TYPE(VLOOKUP($A43,FB_17,P$5,0))=16,"",VLOOKUP($A43,FB_17,P$5,0))&IF(TYPE(VLOOKUP($A43,FB_18,P$5,0))=16,"",VLOOKUP($A43,FB_18,P$5,0))&IF(TYPE(VLOOKUP($A43,FB_19,P$5,0))=16,"",VLOOKUP($A43,FB_19,P$5,0))&IF(TYPE(VLOOKUP($A43,FB_20,P$5,0))=16,"",VLOOKUP($A43,FB_20,P$5,0))&IF(TYPE(VLOOKUP($A43,FB_21,P$5,0))=16,"",VLOOKUP($A43,FB_21,P$5,0))&IF(TYPE(VLOOKUP($A43,FB_22,P$5,0))=16,"",VLOOKUP($A43,FB_22,P$5,0))&IF(TYPE(VLOOKUP($A43,FB_23,P$5,0))=16,"",VLOOKUP($A43,FB_23,P$5,0))&IF(TYPE(VLOOKUP($A43,FB_24,P$5,0))=16,"",VLOOKUP($A43,FB_24,P$5,0))&IF(TYPE(VLOOKUP($A43,FB_25,P$5,0))=16,"",VLOOKUP($A43,FB_25,P$5,0))&IF(TYPE(VLOOKUP($A43,FB_26,P$5,0))=16,"",VLOOKUP($A43,FB_26,P$5,0))&IF(TYPE(VLOOKUP($A43,FB_27,P$5,0))=16,"",VLOOKUP($A43,FB_27,P$5,0))&IF(TYPE(VLOOKUP($A43,FB_28,P$5,0))=16,"",VLOOKUP($A43,FB_28,P$5,0))&IF(TYPE(VLOOKUP($A43,FB_29,P$5,0))=16,"",VLOOKUP($A43,FB_29,P$5,0))&IF(TYPE(VLOOKUP($A43,FB_30,P$5,0))=16,"",VLOOKUP($A43,FB_30,P$5,0)))) ->  | F43: =IF($B43="","",_xlfn.NUMBERVALUE(IF(TYPE(VLOOKUP($A43,FB_1,R$5,0))=16,"",VLOOKUP($A43,FB_1,R$5,0))&IF(TYPE(VLOOKUP($A43,FB_2,R$5,0))=16,"",VLOOKUP($A43,FB_2,R$5,0))&IF(TYPE(VLOOKUP($A43,FB_3,R$5,0))=16,"",VLOOKUP($A43,FB_3,R$5,0))&IF(TYPE(VLOOKUP($A43,FB_4,R$5,0))=16,"",VLOOKUP($A43,FB_4,R$5,0))&IF(TYPE(VLOOKUP($A43,FB_5,R$5,0))=16,"",VLOOKUP($A43,FB_5,R$5,0))&IF(TYPE(VLOOKUP($A43,FB_6,R$5,0))=16,"",VLOOKUP($A43,FB_6,R$5,0))&IF(TYPE(VLOOKUP($A43,FB_7,R$5,0))=16,"",VLOOKUP($A43,FB_7,R$5,0))&IF(TYPE(VLOOKUP($A43,FB_8,R$5,0))=16,"",VLOOKUP($A43,FB_8,R$5,0))&IF(TYPE(VLOOKUP($A43,FB_9,R$5,0))=16,"",VLOOKUP($A43,FB_9,R$5,0))&IF(TYPE(VLOOKUP($A43,FB_10,R$5,0))=16,"",VLOOKUP($A43,FB_10,R$5,0))&IF(TYPE(VLOOKUP($A43,FB_11,R$5,0))=16,"",VLOOKUP($A43,FB_11,R$5,0))&IF(TYPE(VLOOKUP($A43,FB_12,R$5,0))=16,"",VLOOKUP($A43,FB_12,R$5,0))&IF(TYPE(VLOOKUP($A43,FB_13,R$5,0))=16,"",VLOOKUP($A43,FB_13,R$5,0))&IF(TYPE(VLOOKUP($A43,FB_14,R$5,0))=16,"",VLOOKUP($A43,FB_14,R$5,0))&IF(TYPE(VLOOKUP($A43,FB_15,R$5,0))=16,"",VLOOKUP($A43,FB_15,R$5,0))&IF(TYPE(VLOOKUP($A43,FB_16,R$5,0))=16,"",VLOOKUP($A43,FB_16,R$5,0))&IF(TYPE(VLOOKUP($A43,FB_17,R$5,0))=16,"",VLOOKUP($A43,FB_17,R$5,0))&IF(TYPE(VLOOKUP($A43,FB_18,R$5,0))=16,"",VLOOKUP($A43,FB_18,R$5,0))&IF(TYPE(VLOOKUP($A43,FB_19,R$5,0))=16,"",VLOOKUP($A43,FB_19,R$5,0))&IF(TYPE(VLOOKUP($A43,FB_20,R$5,0))=16,"",VLOOKUP($A43,FB_20,R$5,0))&IF(TYPE(VLOOKUP($A43,FB_21,R$5,0))=16,"",VLOOKUP($A43,FB_21,R$5,0))&IF(TYPE(VLOOKUP($A43,FB_22,R$5,0))=16,"",VLOOKUP($A43,FB_22,R$5,0))&IF(TYPE(VLOOKUP($A43,FB_23,R$5,0))=16,"",VLOOKUP($A43,FB_23,R$5,0))&IF(TYPE(VLOOKUP($A43,FB_24,R$5,0))=16,"",VLOOKUP($A43,FB_24,R$5,0))&IF(TYPE(VLOOKUP($A43,FB_25,R$5,0))=16,"",VLOOKUP($A43,FB_25,R$5,0))&IF(TYPE(VLOOKUP($A43,FB_26,R$5,0))=16,"",VLOOKUP($A43,FB_26,R$5,0))&IF(TYPE(VLOOKUP($A43,FB_27,R$5,0))=16,"",VLOOKUP($A43,FB_27,R$5,0))&IF(TYPE(VLOOKUP($A43,FB_28,R$5,0))=16,"",VLOOKUP($A43,FB_28,R$5,0))&IF(TYPE(VLOOKUP($A43,FB_29,R$5,0))=16,"",VLOOKUP($A43,FB_29,R$5,0))&IF(TYPE(VLOOKUP($A43,FB_30,R$5,0))=16,"",VLOOKUP($A43,FB_30,R$5,0)))) ->  | G43: =IF($B43="","",IF(TYPE(VLOOKUP($A43,FB_1,S$5,0))=16,"",VLOOKUP($A43,FB_1,S$5,0))&IF(TYPE(VLOOKUP($A43,FB_2,S$5,0))=16,"",VLOOKUP($A43,FB_2,S$5,0))&IF(TYPE(VLOOKUP($A43,FB_3,S$5,0))=16,"",VLOOKUP($A43,FB_3,S$5,0))&IF(TYPE(VLOOKUP($A43,FB_4,S$5,0))=16,"",VLOOKUP($A43,FB_4,S$5,0))&IF(TYPE(VLOOKUP($A43,FB_5,S$5,0))=16,"",VLOOKUP($A43,FB_5,S$5,0))&IF(TYPE(VLOOKUP($A43,FB_6,S$5,0))=16,"",VLOOKUP($A43,FB_6,S$5,0))&IF(TYPE(VLOOKUP($A43,FB_7,S$5,0))=16,"",VLOOKUP($A43,FB_7,S$5,0))&IF(TYPE(VLOOKUP($A43,FB_8,S$5,0))=16,"",VLOOKUP($A43,FB_8,S$5,0))&IF(TYPE(VLOOKUP($A43,FB_9,S$5,0))=16,"",VLOOKUP($A43,FB_9,S$5,0))&IF(TYPE(VLOOKUP($A43,FB_10,S$5,0))=16,"",VLOOKUP($A43,FB_10,S$5,0))&IF(TYPE(VLOOKUP($A43,FB_11,S$5,0))=16,"",VLOOKUP($A43,FB_11,S$5,0))&IF(TYPE(VLOOKUP($A43,FB_12,S$5,0))=16,"",VLOOKUP($A43,FB_12,S$5,0))&IF(TYPE(VLOOKUP($A43,FB_13,S$5,0))=16,"",VLOOKUP($A43,FB_13,S$5,0))&IF(TYPE(VLOOKUP($A43,FB_14,S$5,0))=16,"",VLOOKUP($A43,FB_14,S$5,0))&IF(TYPE(VLOOKUP($A43,FB_15,S$5,0))=16,"",VLOOKUP($A43,FB_15,S$5,0))&IF(TYPE(VLOOKUP($A43,FB_16,S$5,0))=16,"",VLOOKUP($A43,FB_16,S$5,0))&IF(TYPE(VLOOKUP($A43,FB_17,S$5,0))=16,"",VLOOKUP($A43,FB_17,S$5,0))&IF(TYPE(VLOOKUP($A43,FB_18,S$5,0))=16,"",VLOOKUP($A43,FB_18,S$5,0))&IF(TYPE(VLOOKUP($A43,FB_19,S$5,0))=16,"",VLOOKUP($A43,FB_19,S$5,0))&IF(TYPE(VLOOKUP($A43,FB_20,S$5,0))=16,"",VLOOKUP($A43,FB_20,S$5,0))&IF(TYPE(VLOOKUP($A43,FB_21,S$5,0))=16,"",VLOOKUP($A43,FB_21,S$5,0))&IF(TYPE(VLOOKUP($A43,FB_22,S$5,0))=16,"",VLOOKUP($A43,FB_22,S$5,0))&IF(TYPE(VLOOKUP($A43,FB_23,S$5,0))=16,"",VLOOKUP($A43,FB_23,S$5,0))&IF(TYPE(VLOOKUP($A43,FB_24,S$5,0))=16,"",VLOOKUP($A43,FB_24,S$5,0))&IF(TYPE(VLOOKUP($A43,FB_25,S$5,0))=16,"",VLOOKUP($A43,FB_25,S$5,0))&IF(TYPE(VLOOKUP($A43,FB_26,S$5,0))=16,"",VLOOKUP($A43,FB_26,S$5,0))&IF(TYPE(VLOOKUP($A43,FB_27,S$5,0))=16,"",VLOOKUP($A43,FB_27,S$5,0))&IF(TYPE(VLOOKUP($A43,FB_28,S$5,0))=16,"",VLOOKUP($A43,FB_28,S$5,0))&IF(TYPE(VLOOKUP($A43,FB_29,S$5,0))=16,"",VLOOKUP($A43,FB_29,S$5,0))&IF(TYPE(VLOOKUP($A43,FB_30,S$5,0))=16,"",VLOOKUP($A43,FB_30,S$5,0))) ->  | Y43: :
A44: 15. | B44: =IF(TYPE(VLOOKUP($A44,FB_1,2,0))=16,"",VLOOKUP($A44,FB_1,2,0))&IF(TYPE(VLOOKUP($A44,FB_2,2,0))=16,"",VLOOKUP($A44,FB_2,2,0))&IF(TYPE(VLOOKUP($A44,FB_3,2,0))=16,"",VLOOKUP($A44,FB_3,2,0))&IF(TYPE(VLOOKUP($A44,FB_4,2,0))=16,"",VLOOKUP($A44,FB_4,2,0))&IF(TYPE(VLOOKUP($A44,FB_5,2,0))=16,"",VLOOKUP($A44,FB_5,2,0))&IF(TYPE(VLOOKUP($A44,FB_6,2,0))=16,"",VLOOKUP($A44,FB_6,2,0))&IF(TYPE(VLOOKUP($A44,FB_7,2,0))=16,"",VLOOKUP($A44,FB_7,2,0))&IF(TYPE(VLOOKUP($A44,FB_8,2,0))=16,"",VLOOKUP($A44,FB_8,2,0))&IF(TYPE(VLOOKUP($A44,FB_9,2,0))=16,"",VLOOKUP($A44,FB_9,2,0))&IF(TYPE(VLOOKUP($A44,FB_10,2,0))=16,"",VLOOKUP($A44,FB_10,2,0))&IF(TYPE(VLOOKUP($A44,FB_11,2,0))=16,"",VLOOKUP($A44,FB_11,2,0))&IF(TYPE(VLOOKUP($A44,FB_12,2,0))=16,"",VLOOKUP($A44,FB_12,2,0))&IF(TYPE(VLOOKUP($A44,FB_13,2,0))=16,"",VLOOKUP($A44,FB_13,2,0))&IF(TYPE(VLOOKUP($A44,FB_14,2,0))=16,"",VLOOKUP($A44,FB_14,2,0))&IF(TYPE(VLOOKUP($A44,FB_15,2,0))=16,"",VLOOKUP($A44,FB_15,2,0))&IF(TYPE(VLOOKUP($A44,FB_16,2,0))=16,"",VLOOKUP($A44,FB_16,2,0))&IF(TYPE(VLOOKUP($A44,FB_17,2,0))=16,"",VLOOKUP($A44,FB_17,2,0))&IF(TYPE(VLOOKUP($A44,FB_18,2,0))=16,"",VLOOKUP($A44,FB_18,2,0))&IF(TYPE(VLOOKUP($A44,FB_19,2,0))=16,"",VLOOKUP($A44,FB_19,2,0))&IF(TYPE(VLOOKUP($A44,FB_20,2,0))=16,"",VLOOKUP($A44,FB_20,2,0))&IF(TYPE(VLOOKUP($A44,FB_21,2,0))=16,"",VLOOKUP($A44,FB_21,2,0))&IF(TYPE(VLOOKUP($A44,FB_22,2,0))=16,"",VLOOKUP($A44,FB_22,2,0))&IF(TYPE(VLOOKUP($A44,FB_23,2,0))=16,"",VLOOKUP($A44,FB_23,2,0))&IF(TYPE(VLOOKUP($A44,FB_24,2,0))=16,"",VLOOKUP($A44,FB_24,2,0))&IF(TYPE(VLOOKUP($A44,FB_25,2,0))=16,"",VLOOKUP($A44,FB_25,2,0))&IF(TYPE(VLOOKUP($A44,FB_26,2,0))=16,"",VLOOKUP($A44,FB_26,2,0))&IF(TYPE(VLOOKUP($A44,FB_27,2,0))=16,"",VLOOKUP($A44,FB_27,2,0))&IF(TYPE(VLOOKUP($A44,FB_28,2,0))=16,"",VLOOKUP($A44,FB_28,2,0))&IF(TYPE(VLOOKUP($A44,FB_29,2,0))=16,"",VLOOKUP($A44,FB_29,2,0))&IF(TYPE(VLOOKUP($A44,FB_30,2,0))=16,"",VLOOKUP($A44,FB_30,2,0)) ->  | D44: =IF($B44="","",_xlfn.NUMBERVALUE(IF(TYPE(VLOOKUP($A44,FB_1,P$5,0))=16,"",VLOOKUP($A44,FB_1,P$5,0))&IF(TYPE(VLOOKUP($A44,FB_2,P$5,0))=16,"",VLOOKUP($A44,FB_2,P$5,0))&IF(TYPE(VLOOKUP($A44,FB_3,P$5,0))=16,"",VLOOKUP($A44,FB_3,P$5,0))&IF(TYPE(VLOOKUP($A44,FB_4,P$5,0))=16,"",VLOOKUP($A44,FB_4,P$5,0))&IF(TYPE(VLOOKUP($A44,FB_5,P$5,0))=16,"",VLOOKUP($A44,FB_5,P$5,0))&IF(TYPE(VLOOKUP($A44,FB_6,P$5,0))=16,"",VLOOKUP($A44,FB_6,P$5,0))&IF(TYPE(VLOOKUP($A44,FB_7,P$5,0))=16,"",VLOOKUP($A44,FB_7,P$5,0))&IF(TYPE(VLOOKUP($A44,FB_8,P$5,0))=16,"",VLOOKUP($A44,FB_8,P$5,0))&IF(TYPE(VLOOKUP($A44,FB_9,P$5,0))=16,"",VLOOKUP($A44,FB_9,P$5,0))&IF(TYPE(VLOOKUP($A44,FB_10,P$5,0))=16,"",VLOOKUP($A44,FB_10,P$5,0))&IF(TYPE(VLOOKUP($A44,FB_11,P$5,0))=16,"",VLOOKUP($A44,FB_11,P$5,0))&IF(TYPE(VLOOKUP($A44,FB_12,P$5,0))=16,"",VLOOKUP($A44,FB_12,P$5,0))&IF(TYPE(VLOOKUP($A44,FB_13,P$5,0))=16,"",VLOOKUP($A44,FB_13,P$5,0))&IF(TYPE(VLOOKUP($A44,FB_14,P$5,0))=16,"",VLOOKUP($A44,FB_14,P$5,0))&IF(TYPE(VLOOKUP($A44,FB_15,P$5,0))=16,"",VLOOKUP($A44,FB_15,P$5,0))&IF(TYPE(VLOOKUP($A44,FB_16,P$5,0))=16,"",VLOOKUP($A44,FB_16,P$5,0))&IF(TYPE(VLOOKUP($A44,FB_17,P$5,0))=16,"",VLOOKUP($A44,FB_17,P$5,0))&IF(TYPE(VLOOKUP($A44,FB_18,P$5,0))=16,"",VLOOKUP($A44,FB_18,P$5,0))&IF(TYPE(VLOOKUP($A44,FB_19,P$5,0))=16,"",VLOOKUP($A44,FB_19,P$5,0))&IF(TYPE(VLOOKUP($A44,FB_20,P$5,0))=16,"",VLOOKUP($A44,FB_20,P$5,0))&IF(TYPE(VLOOKUP($A44,FB_21,P$5,0))=16,"",VLOOKUP($A44,FB_21,P$5,0))&IF(TYPE(VLOOKUP($A44,FB_22,P$5,0))=16,"",VLOOKUP($A44,FB_22,P$5,0))&IF(TYPE(VLOOKUP($A44,FB_23,P$5,0))=16,"",VLOOKUP($A44,FB_23,P$5,0))&IF(TYPE(VLOOKUP($A44,FB_24,P$5,0))=16,"",VLOOKUP($A44,FB_24,P$5,0))&IF(TYPE(VLOOKUP($A44,FB_25,P$5,0))=16,"",VLOOKUP($A44,FB_25,P$5,0))&IF(TYPE(VLOOKUP($A44,FB_26,P$5,0))=16,"",VLOOKUP($A44,FB_26,P$5,0))&IF(TYPE(VLOOKUP($A44,FB_27,P$5,0))=16,"",VLOOKUP($A44,FB_27,P$5,0))&IF(TYPE(VLOOKUP($A44,FB_28,P$5,0))=16,"",VLOOKUP($A44,FB_28,P$5,0))&IF(TYPE(VLOOKUP($A44,FB_29,P$5,0))=16,"",VLOOKUP($A44,FB_29,P$5,0))&IF(TYPE(VLOOKUP($A44,FB_30,P$5,0))=16,"",VLOOKUP($A44,FB_30,P$5,0)))) ->  | F44: =IF($B44="","",_xlfn.NUMBERVALUE(IF(TYPE(VLOOKUP($A44,FB_1,R$5,0))=16,"",VLOOKUP($A44,FB_1,R$5,0))&IF(TYPE(VLOOKUP($A44,FB_2,R$5,0))=16,"",VLOOKUP($A44,FB_2,R$5,0))&IF(TYPE(VLOOKUP($A44,FB_3,R$5,0))=16,"",VLOOKUP($A44,FB_3,R$5,0))&IF(TYPE(VLOOKUP($A44,FB_4,R$5,0))=16,"",VLOOKUP($A44,FB_4,R$5,0))&IF(TYPE(VLOOKUP($A44,FB_5,R$5,0))=16,"",VLOOKUP($A44,FB_5,R$5,0))&IF(TYPE(VLOOKUP($A44,FB_6,R$5,0))=16,"",VLOOKUP($A44,FB_6,R$5,0))&IF(TYPE(VLOOKUP($A44,FB_7,R$5,0))=16,"",VLOOKUP($A44,FB_7,R$5,0))&IF(TYPE(VLOOKUP($A44,FB_8,R$5,0))=16,"",VLOOKUP($A44,FB_8,R$5,0))&IF(TYPE(VLOOKUP($A44,FB_9,R$5,0))=16,"",VLOOKUP($A44,FB_9,R$5,0))&IF(TYPE(VLOOKUP($A44,FB_10,R$5,0))=16,"",VLOOKUP($A44,FB_10,R$5,0))&IF(TYPE(VLOOKUP($A44,FB_11,R$5,0))=16,"",VLOOKUP($A44,FB_11,R$5,0))&IF(TYPE(VLOOKUP($A44,FB_12,R$5,0))=16,"",VLOOKUP($A44,FB_12,R$5,0))&IF(TYPE(VLOOKUP($A44,FB_13,R$5,0))=16,"",VLOOKUP($A44,FB_13,R$5,0))&IF(TYPE(VLOOKUP($A44,FB_14,R$5,0))=16,"",VLOOKUP($A44,FB_14,R$5,0))&IF(TYPE(VLOOKUP($A44,FB_15,R$5,0))=16,"",VLOOKUP($A44,FB_15,R$5,0))&IF(TYPE(VLOOKUP($A44,FB_16,R$5,0))=16,"",VLOOKUP($A44,FB_16,R$5,0))&IF(TYPE(VLOOKUP($A44,FB_17,R$5,0))=16,"",VLOOKUP($A44,FB_17,R$5,0))&IF(TYPE(VLOOKUP($A44,FB_18,R$5,0))=16,"",VLOOKUP($A44,FB_18,R$5,0))&IF(TYPE(VLOOKUP($A44,FB_19,R$5,0))=16,"",VLOOKUP($A44,FB_19,R$5,0))&IF(TYPE(VLOOKUP($A44,FB_20,R$5,0))=16,"",VLOOKUP($A44,FB_20,R$5,0))&IF(TYPE(VLOOKUP($A44,FB_21,R$5,0))=16,"",VLOOKUP($A44,FB_21,R$5,0))&IF(TYPE(VLOOKUP($A44,FB_22,R$5,0))=16,"",VLOOKUP($A44,FB_22,R$5,0))&IF(TYPE(VLOOKUP($A44,FB_23,R$5,0))=16,"",VLOOKUP($A44,FB_23,R$5,0))&IF(TYPE(VLOOKUP($A44,FB_24,R$5,0))=16,"",VLOOKUP($A44,FB_24,R$5,0))&IF(TYPE(VLOOKUP($A44,FB_25,R$5,0))=16,"",VLOOKUP($A44,FB_25,R$5,0))&IF(TYPE(VLOOKUP($A44,FB_26,R$5,0))=16,"",VLOOKUP($A44,FB_26,R$5,0))&IF(TYPE(VLOOKUP($A44,FB_27,R$5,0))=16,"",VLOOKUP($A44,FB_27,R$5,0))&IF(TYPE(VLOOKUP($A44,FB_28,R$5,0))=16,"",VLOOKUP($A44,FB_28,R$5,0))&IF(TYPE(VLOOKUP($A44,FB_29,R$5,0))=16,"",VLOOKUP($A44,FB_29,R$5,0))&IF(TYPE(VLOOKUP($A44,FB_30,R$5,0))=16,"",VLOOKUP($A44,FB_30,R$5,0)))) ->  | G44: =IF($B44="","",IF(TYPE(VLOOKUP($A44,FB_1,S$5,0))=16,"",VLOOKUP($A44,FB_1,S$5,0))&IF(TYPE(VLOOKUP($A44,FB_2,S$5,0))=16,"",VLOOKUP($A44,FB_2,S$5,0))&IF(TYPE(VLOOKUP($A44,FB_3,S$5,0))=16,"",VLOOKUP($A44,FB_3,S$5,0))&IF(TYPE(VLOOKUP($A44,FB_4,S$5,0))=16,"",VLOOKUP($A44,FB_4,S$5,0))&IF(TYPE(VLOOKUP($A44,FB_5,S$5,0))=16,"",VLOOKUP($A44,FB_5,S$5,0))&IF(TYPE(VLOOKUP($A44,FB_6,S$5,0))=16,"",VLOOKUP($A44,FB_6,S$5,0))&IF(TYPE(VLOOKUP($A44,FB_7,S$5,0))=16,"",VLOOKUP($A44,FB_7,S$5,0))&IF(TYPE(VLOOKUP($A44,FB_8,S$5,0))=16,"",VLOOKUP($A44,FB_8,S$5,0))&IF(TYPE(VLOOKUP($A44,FB_9,S$5,0))=16,"",VLOOKUP($A44,FB_9,S$5,0))&IF(TYPE(VLOOKUP($A44,FB_10,S$5,0))=16,"",VLOOKUP($A44,FB_10,S$5,0))&IF(TYPE(VLOOKUP($A44,FB_11,S$5,0))=16,"",VLOOKUP($A44,FB_11,S$5,0))&IF(TYPE(VLOOKUP($A44,FB_12,S$5,0))=16,"",VLOOKUP($A44,FB_12,S$5,0))&IF(TYPE(VLOOKUP($A44,FB_13,S$5,0))=16,"",VLOOKUP($A44,FB_13,S$5,0))&IF(TYPE(VLOOKUP($A44,FB_14,S$5,0))=16,"",VLOOKUP($A44,FB_14,S$5,0))&IF(TYPE(VLOOKUP($A44,FB_15,S$5,0))=16,"",VLOOKUP($A44,FB_15,S$5,0))&IF(TYPE(VLOOKUP($A44,FB_16,S$5,0))=16,"",VLOOKUP($A44,FB_16,S$5,0))&IF(TYPE(VLOOKUP($A44,FB_17,S$5,0))=16,"",VLOOKUP($A44,FB_17,S$5,0))&IF(TYPE(VLOOKUP($A44,FB_18,S$5,0))=16,"",VLOOKUP($A44,FB_18,S$5,0))&IF(TYPE(VLOOKUP($A44,FB_19,S$5,0))=16,"",VLOOKUP($A44,FB_19,S$5,0))&IF(TYPE(VLOOKUP($A44,FB_20,S$5,0))=16,"",VLOOKUP($A44,FB_20,S$5,0))&IF(TYPE(VLOOKUP($A44,FB_21,S$5,0))=16,"",VLOOKUP($A44,FB_21,S$5,0))&IF(TYPE(VLOOKUP($A44,FB_22,S$5,0))=16,"",VLOOKUP($A44,FB_22,S$5,0))&IF(TYPE(VLOOKUP($A44,FB_23,S$5,0))=16,"",VLOOKUP($A44,FB_23,S$5,0))&IF(TYPE(VLOOKUP($A44,FB_24,S$5,0))=16,"",VLOOKUP($A44,FB_24,S$5,0))&IF(TYPE(VLOOKUP($A44,FB_25,S$5,0))=16,"",VLOOKUP($A44,FB_25,S$5,0))&IF(TYPE(VLOOKUP($A44,FB_26,S$5,0))=16,"",VLOOKUP($A44,FB_26,S$5,0))&IF(TYPE(VLOOKUP($A44,FB_27,S$5,0))=16,"",VLOOKUP($A44,FB_27,S$5,0))&IF(TYPE(VLOOKUP($A44,FB_28,S$5,0))=16,"",VLOOKUP($A44,FB_28,S$5,0))&IF(TYPE(VLOOKUP($A44,FB_29,S$5,0))=16,"",VLOOKUP($A44,FB_29,S$5,0))&IF(TYPE(VLOOKUP($A44,FB_30,S$5,0))=16,"",VLOOKUP($A44,FB_30,S$5,0))) ->  | Y44: :
A45: 16. | B45: =IF(TYPE(VLOOKUP($A45,FB_1,2,0))=16,"",VLOOKUP($A45,FB_1,2,0))&IF(TYPE(VLOOKUP($A45,FB_2,2,0))=16,"",VLOOKUP($A45,FB_2,2,0))&IF(TYPE(VLOOKUP($A45,FB_3,2,0))=16,"",VLOOKUP($A45,FB_3,2,0))&IF(TYPE(VLOOKUP($A45,FB_4,2,0))=16,"",VLOOKUP($A45,FB_4,2,0))&IF(TYPE(VLOOKUP($A45,FB_5,2,0))=16,"",VLOOKUP($A45,FB_5,2,0))&IF(TYPE(VLOOKUP($A45,FB_6,2,0))=16,"",VLOOKUP($A45,FB_6,2,0))&IF(TYPE(VLOOKUP($A45,FB_7,2,0))=16,"",VLOOKUP($A45,FB_7,2,0))&IF(TYPE(VLOOKUP($A45,FB_8,2,0))=16,"",VLOOKUP($A45,FB_8,2,0))&IF(TYPE(VLOOKUP($A45,FB_9,2,0))=16,"",VLOOKUP($A45,FB_9,2,0))&IF(TYPE(VLOOKUP($A45,FB_10,2,0))=16,"",VLOOKUP($A45,FB_10,2,0))&IF(TYPE(VLOOKUP($A45,FB_11,2,0))=16,"",VLOOKUP($A45,FB_11,2,0))&IF(TYPE(VLOOKUP($A45,FB_12,2,0))=16,"",VLOOKUP($A45,FB_12,2,0))&IF(TYPE(VLOOKUP($A45,FB_13,2,0))=16,"",VLOOKUP($A45,FB_13,2,0))&IF(TYPE(VLOOKUP($A45,FB_14,2,0))=16,"",VLOOKUP($A45,FB_14,2,0))&IF(TYPE(VLOOKUP($A45,FB_15,2,0))=16,"",VLOOKUP($A45,FB_15,2,0))&IF(TYPE(VLOOKUP($A45,FB_16,2,0))=16,"",VLOOKUP($A45,FB_16,2,0))&IF(TYPE(VLOOKUP($A45,FB_17,2,0))=16,"",VLOOKUP($A45,FB_17,2,0))&IF(TYPE(VLOOKUP($A45,FB_18,2,0))=16,"",VLOOKUP($A45,FB_18,2,0))&IF(TYPE(VLOOKUP($A45,FB_19,2,0))=16,"",VLOOKUP($A45,FB_19,2,0))&IF(TYPE(VLOOKUP($A45,FB_20,2,0))=16,"",VLOOKUP($A45,FB_20,2,0))&IF(TYPE(VLOOKUP($A45,FB_21,2,0))=16,"",VLOOKUP($A45,FB_21,2,0))&IF(TYPE(VLOOKUP($A45,FB_22,2,0))=16,"",VLOOKUP($A45,FB_22,2,0))&IF(TYPE(VLOOKUP($A45,FB_23,2,0))=16,"",VLOOKUP($A45,FB_23,2,0))&IF(TYPE(VLOOKUP($A45,FB_24,2,0))=16,"",VLOOKUP($A45,FB_24,2,0))&IF(TYPE(VLOOKUP($A45,FB_25,2,0))=16,"",VLOOKUP($A45,FB_25,2,0))&IF(TYPE(VLOOKUP($A45,FB_26,2,0))=16,"",VLOOKUP($A45,FB_26,2,0))&IF(TYPE(VLOOKUP($A45,FB_27,2,0))=16,"",VLOOKUP($A45,FB_27,2,0))&IF(TYPE(VLOOKUP($A45,FB_28,2,0))=16,"",VLOOKUP($A45,FB_28,2,0))&IF(TYPE(VLOOKUP($A45,FB_29,2,0))=16,"",VLOOKUP($A45,FB_29,2,0))&IF(TYPE(VLOOKUP($A45,FB_30,2,0))=16,"",VLOOKUP($A45,FB_30,2,0)) ->  | D45: =IF($B45="","",_xlfn.NUMBERVALUE(IF(TYPE(VLOOKUP($A45,FB_1,P$5,0))=16,"",VLOOKUP($A45,FB_1,P$5,0))&IF(TYPE(VLOOKUP($A45,FB_2,P$5,0))=16,"",VLOOKUP($A45,FB_2,P$5,0))&IF(TYPE(VLOOKUP($A45,FB_3,P$5,0))=16,"",VLOOKUP($A45,FB_3,P$5,0))&IF(TYPE(VLOOKUP($A45,FB_4,P$5,0))=16,"",VLOOKUP($A45,FB_4,P$5,0))&IF(TYPE(VLOOKUP($A45,FB_5,P$5,0))=16,"",VLOOKUP($A45,FB_5,P$5,0))&IF(TYPE(VLOOKUP($A45,FB_6,P$5,0))=16,"",VLOOKUP($A45,FB_6,P$5,0))&IF(TYPE(VLOOKUP($A45,FB_7,P$5,0))=16,"",VLOOKUP($A45,FB_7,P$5,0))&IF(TYPE(VLOOKUP($A45,FB_8,P$5,0))=16,"",VLOOKUP($A45,FB_8,P$5,0))&IF(TYPE(VLOOKUP($A45,FB_9,P$5,0))=16,"",VLOOKUP($A45,FB_9,P$5,0))&IF(TYPE(VLOOKUP($A45,FB_10,P$5,0))=16,"",VLOOKUP($A45,FB_10,P$5,0))&IF(TYPE(VLOOKUP($A45,FB_11,P$5,0))=16,"",VLOOKUP($A45,FB_11,P$5,0))&IF(TYPE(VLOOKUP($A45,FB_12,P$5,0))=16,"",VLOOKUP($A45,FB_12,P$5,0))&IF(TYPE(VLOOKUP($A45,FB_13,P$5,0))=16,"",VLOOKUP($A45,FB_13,P$5,0))&IF(TYPE(VLOOKUP($A45,FB_14,P$5,0))=16,"",VLOOKUP($A45,FB_14,P$5,0))&IF(TYPE(VLOOKUP($A45,FB_15,P$5,0))=16,"",VLOOKUP($A45,FB_15,P$5,0))&IF(TYPE(VLOOKUP($A45,FB_16,P$5,0))=16,"",VLOOKUP($A45,FB_16,P$5,0))&IF(TYPE(VLOOKUP($A45,FB_17,P$5,0))=16,"",VLOOKUP($A45,FB_17,P$5,0))&IF(TYPE(VLOOKUP($A45,FB_18,P$5,0))=16,"",VLOOKUP($A45,FB_18,P$5,0))&IF(TYPE(VLOOKUP($A45,FB_19,P$5,0))=16,"",VLOOKUP($A45,FB_19,P$5,0))&IF(TYPE(VLOOKUP($A45,FB_20,P$5,0))=16,"",VLOOKUP($A45,FB_20,P$5,0))&IF(TYPE(VLOOKUP($A45,FB_21,P$5,0))=16,"",VLOOKUP($A45,FB_21,P$5,0))&IF(TYPE(VLOOKUP($A45,FB_22,P$5,0))=16,"",VLOOKUP($A45,FB_22,P$5,0))&IF(TYPE(VLOOKUP($A45,FB_23,P$5,0))=16,"",VLOOKUP($A45,FB_23,P$5,0))&IF(TYPE(VLOOKUP($A45,FB_24,P$5,0))=16,"",VLOOKUP($A45,FB_24,P$5,0))&IF(TYPE(VLOOKUP($A45,FB_25,P$5,0))=16,"",VLOOKUP($A45,FB_25,P$5,0))&IF(TYPE(VLOOKUP($A45,FB_26,P$5,0))=16,"",VLOOKUP($A45,FB_26,P$5,0))&IF(TYPE(VLOOKUP($A45,FB_27,P$5,0))=16,"",VLOOKUP($A45,FB_27,P$5,0))&IF(TYPE(VLOOKUP($A45,FB_28,P$5,0))=16,"",VLOOKUP($A45,FB_28,P$5,0))&IF(TYPE(VLOOKUP($A45,FB_29,P$5,0))=16,"",VLOOKUP($A45,FB_29,P$5,0))&IF(TYPE(VLOOKUP($A45,FB_30,P$5,0))=16,"",VLOOKUP($A45,FB_30,P$5,0)))) ->  | F45: =IF($B45="","",_xlfn.NUMBERVALUE(IF(TYPE(VLOOKUP($A45,FB_1,R$5,0))=16,"",VLOOKUP($A45,FB_1,R$5,0))&IF(TYPE(VLOOKUP($A45,FB_2,R$5,0))=16,"",VLOOKUP($A45,FB_2,R$5,0))&IF(TYPE(VLOOKUP($A45,FB_3,R$5,0))=16,"",VLOOKUP($A45,FB_3,R$5,0))&IF(TYPE(VLOOKUP($A45,FB_4,R$5,0))=16,"",VLOOKUP($A45,FB_4,R$5,0))&IF(TYPE(VLOOKUP($A45,FB_5,R$5,0))=16,"",VLOOKUP($A45,FB_5,R$5,0))&IF(TYPE(VLOOKUP($A45,FB_6,R$5,0))=16,"",VLOOKUP($A45,FB_6,R$5,0))&IF(TYPE(VLOOKUP($A45,FB_7,R$5,0))=16,"",VLOOKUP($A45,FB_7,R$5,0))&IF(TYPE(VLOOKUP($A45,FB_8,R$5,0))=16,"",VLOOKUP($A45,FB_8,R$5,0))&IF(TYPE(VLOOKUP($A45,FB_9,R$5,0))=16,"",VLOOKUP($A45,FB_9,R$5,0))&IF(TYPE(VLOOKUP($A45,FB_10,R$5,0))=16,"",VLOOKUP($A45,FB_10,R$5,0))&IF(TYPE(VLOOKUP($A45,FB_11,R$5,0))=16,"",VLOOKUP($A45,FB_11,R$5,0))&IF(TYPE(VLOOKUP($A45,FB_12,R$5,0))=16,"",VLOOKUP($A45,FB_12,R$5,0))&IF(TYPE(VLOOKUP($A45,FB_13,R$5,0))=16,"",VLOOKUP($A45,FB_13,R$5,0))&IF(TYPE(VLOOKUP($A45,FB_14,R$5,0))=16,"",VLOOKUP($A45,FB_14,R$5,0))&IF(TYPE(VLOOKUP($A45,FB_15,R$5,0))=16,"",VLOOKUP($A45,FB_15,R$5,0))&IF(TYPE(VLOOKUP($A45,FB_16,R$5,0))=16,"",VLOOKUP($A45,FB_16,R$5,0))&IF(TYPE(VLOOKUP($A45,FB_17,R$5,0))=16,"",VLOOKUP($A45,FB_17,R$5,0))&IF(TYPE(VLOOKUP($A45,FB_18,R$5,0))=16,"",VLOOKUP($A45,FB_18,R$5,0))&IF(TYPE(VLOOKUP($A45,FB_19,R$5,0))=16,"",VLOOKUP($A45,FB_19,R$5,0))&IF(TYPE(VLOOKUP($A45,FB_20,R$5,0))=16,"",VLOOKUP($A45,FB_20,R$5,0))&IF(TYPE(VLOOKUP($A45,FB_21,R$5,0))=16,"",VLOOKUP($A45,FB_21,R$5,0))&IF(TYPE(VLOOKUP($A45,FB_22,R$5,0))=16,"",VLOOKUP($A45,FB_22,R$5,0))&IF(TYPE(VLOOKUP($A45,FB_23,R$5,0))=16,"",VLOOKUP($A45,FB_23,R$5,0))&IF(TYPE(VLOOKUP($A45,FB_24,R$5,0))=16,"",VLOOKUP($A45,FB_24,R$5,0))&IF(TYPE(VLOOKUP($A45,FB_25,R$5,0))=16,"",VLOOKUP($A45,FB_25,R$5,0))&IF(TYPE(VLOOKUP($A45,FB_26,R$5,0))=16,"",VLOOKUP($A45,FB_26,R$5,0))&IF(TYPE(VLOOKUP($A45,FB_27,R$5,0))=16,"",VLOOKUP($A45,FB_27,R$5,0))&IF(TYPE(VLOOKUP($A45,FB_28,R$5,0))=16,"",VLOOKUP($A45,FB_28,R$5,0))&IF(TYPE(VLOOKUP($A45,FB_29,R$5,0))=16,"",VLOOKUP($A45,FB_29,R$5,0))&IF(TYPE(VLOOKUP($A45,FB_30,R$5,0))=16,"",VLOOKUP($A45,FB_30,R$5,0)))) ->  | G45: =IF($B45="","",IF(TYPE(VLOOKUP($A45,FB_1,S$5,0))=16,"",VLOOKUP($A45,FB_1,S$5,0))&IF(TYPE(VLOOKUP($A45,FB_2,S$5,0))=16,"",VLOOKUP($A45,FB_2,S$5,0))&IF(TYPE(VLOOKUP($A45,FB_3,S$5,0))=16,"",VLOOKUP($A45,FB_3,S$5,0))&IF(TYPE(VLOOKUP($A45,FB_4,S$5,0))=16,"",VLOOKUP($A45,FB_4,S$5,0))&IF(TYPE(VLOOKUP($A45,FB_5,S$5,0))=16,"",VLOOKUP($A45,FB_5,S$5,0))&IF(TYPE(VLOOKUP($A45,FB_6,S$5,0))=16,"",VLOOKUP($A45,FB_6,S$5,0))&IF(TYPE(VLOOKUP($A45,FB_7,S$5,0))=16,"",VLOOKUP($A45,FB_7,S$5,0))&IF(TYPE(VLOOKUP($A45,FB_8,S$5,0))=16,"",VLOOKUP($A45,FB_8,S$5,0))&IF(TYPE(VLOOKUP($A45,FB_9,S$5,0))=16,"",VLOOKUP($A45,FB_9,S$5,0))&IF(TYPE(VLOOKUP($A45,FB_10,S$5,0))=16,"",VLOOKUP($A45,FB_10,S$5,0))&IF(TYPE(VLOOKUP($A45,FB_11,S$5,0))=16,"",VLOOKUP($A45,FB_11,S$5,0))&IF(TYPE(VLOOKUP($A45,FB_12,S$5,0))=16,"",VLOOKUP($A45,FB_12,S$5,0))&IF(TYPE(VLOOKUP($A45,FB_13,S$5,0))=16,"",VLOOKUP($A45,FB_13,S$5,0))&IF(TYPE(VLOOKUP($A45,FB_14,S$5,0))=16,"",VLOOKUP($A45,FB_14,S$5,0))&IF(TYPE(VLOOKUP($A45,FB_15,S$5,0))=16,"",VLOOKUP($A45,FB_15,S$5,0))&IF(TYPE(VLOOKUP($A45,FB_16,S$5,0))=16,"",VLOOKUP($A45,FB_16,S$5,0))&IF(TYPE(VLOOKUP($A45,FB_17,S$5,0))=16,"",VLOOKUP($A45,FB_17,S$5,0))&IF(TYPE(VLOOKUP($A45,FB_18,S$5,0))=16,"",VLOOKUP($A45,FB_18,S$5,0))&IF(TYPE(VLOOKUP($A45,FB_19,S$5,0))=16,"",VLOOKUP($A45,FB_19,S$5,0))&IF(TYPE(VLOOKUP($A45,FB_20,S$5,0))=16,"",VLOOKUP($A45,FB_20,S$5,0))&IF(TYPE(VLOOKUP($A45,FB_21,S$5,0))=16,"",VLOOKUP($A45,FB_21,S$5,0))&IF(TYPE(VLOOKUP($A45,FB_22,S$5,0))=16,"",VLOOKUP($A45,FB_22,S$5,0))&IF(TYPE(VLOOKUP($A45,FB_23,S$5,0))=16,"",VLOOKUP($A45,FB_23,S$5,0))&IF(TYPE(VLOOKUP($A45,FB_24,S$5,0))=16,"",VLOOKUP($A45,FB_24,S$5,0))&IF(TYPE(VLOOKUP($A45,FB_25,S$5,0))=16,"",VLOOKUP($A45,FB_25,S$5,0))&IF(TYPE(VLOOKUP($A45,FB_26,S$5,0))=16,"",VLOOKUP($A45,FB_26,S$5,0))&IF(TYPE(VLOOKUP($A45,FB_27,S$5,0))=16,"",VLOOKUP($A45,FB_27,S$5,0))&IF(TYPE(VLOOKUP($A45,FB_28,S$5,0))=16,"",VLOOKUP($A45,FB_28,S$5,0))&IF(TYPE(VLOOKUP($A45,FB_29,S$5,0))=16,"",VLOOKUP($A45,FB_29,S$5,0))&IF(TYPE(VLOOKUP($A45,FB_30,S$5,0))=16,"",VLOOKUP($A45,FB_30,S$5,0))) ->  | Y45: :
A46: 17. | B46: =IF(TYPE(VLOOKUP($A46,FB_1,2,0))=16,"",VLOOKUP($A46,FB_1,2,0))&IF(TYPE(VLOOKUP($A46,FB_2,2,0))=16,"",VLOOKUP($A46,FB_2,2,0))&IF(TYPE(VLOOKUP($A46,FB_3,2,0))=16,"",VLOOKUP($A46,FB_3,2,0))&IF(TYPE(VLOOKUP($A46,FB_4,2,0))=16,"",VLOOKUP($A46,FB_4,2,0))&IF(TYPE(VLOOKUP($A46,FB_5,2,0))=16,"",VLOOKUP($A46,FB_5,2,0))&IF(TYPE(VLOOKUP($A46,FB_6,2,0))=16,"",VLOOKUP($A46,FB_6,2,0))&IF(TYPE(VLOOKUP($A46,FB_7,2,0))=16,"",VLOOKUP($A46,FB_7,2,0))&IF(TYPE(VLOOKUP($A46,FB_8,2,0))=16,"",VLOOKUP($A46,FB_8,2,0))&IF(TYPE(VLOOKUP($A46,FB_9,2,0))=16,"",VLOOKUP($A46,FB_9,2,0))&IF(TYPE(VLOOKUP($A46,FB_10,2,0))=16,"",VLOOKUP($A46,FB_10,2,0))&IF(TYPE(VLOOKUP($A46,FB_11,2,0))=16,"",VLOOKUP($A46,FB_11,2,0))&IF(TYPE(VLOOKUP($A46,FB_12,2,0))=16,"",VLOOKUP($A46,FB_12,2,0))&IF(TYPE(VLOOKUP($A46,FB_13,2,0))=16,"",VLOOKUP($A46,FB_13,2,0))&IF(TYPE(VLOOKUP($A46,FB_14,2,0))=16,"",VLOOKUP($A46,FB_14,2,0))&IF(TYPE(VLOOKUP($A46,FB_15,2,0))=16,"",VLOOKUP($A46,FB_15,2,0))&IF(TYPE(VLOOKUP($A46,FB_16,2,0))=16,"",VLOOKUP($A46,FB_16,2,0))&IF(TYPE(VLOOKUP($A46,FB_17,2,0))=16,"",VLOOKUP($A46,FB_17,2,0))&IF(TYPE(VLOOKUP($A46,FB_18,2,0))=16,"",VLOOKUP($A46,FB_18,2,0))&IF(TYPE(VLOOKUP($A46,FB_19,2,0))=16,"",VLOOKUP($A46,FB_19,2,0))&IF(TYPE(VLOOKUP($A46,FB_20,2,0))=16,"",VLOOKUP($A46,FB_20,2,0))&IF(TYPE(VLOOKUP($A46,FB_21,2,0))=16,"",VLOOKUP($A46,FB_21,2,0))&IF(TYPE(VLOOKUP($A46,FB_22,2,0))=16,"",VLOOKUP($A46,FB_22,2,0))&IF(TYPE(VLOOKUP($A46,FB_23,2,0))=16,"",VLOOKUP($A46,FB_23,2,0))&IF(TYPE(VLOOKUP($A46,FB_24,2,0))=16,"",VLOOKUP($A46,FB_24,2,0))&IF(TYPE(VLOOKUP($A46,FB_25,2,0))=16,"",VLOOKUP($A46,FB_25,2,0))&IF(TYPE(VLOOKUP($A46,FB_26,2,0))=16,"",VLOOKUP($A46,FB_26,2,0))&IF(TYPE(VLOOKUP($A46,FB_27,2,0))=16,"",VLOOKUP($A46,FB_27,2,0))&IF(TYPE(VLOOKUP($A46,FB_28,2,0))=16,"",VLOOKUP($A46,FB_28,2,0))&IF(TYPE(VLOOKUP($A46,FB_29,2,0))=16,"",VLOOKUP($A46,FB_29,2,0))&IF(TYPE(VLOOKUP($A46,FB_30,2,0))=16,"",VLOOKUP($A46,FB_30,2,0)) ->  | D46: =IF($B46="","",_xlfn.NUMBERVALUE(IF(TYPE(VLOOKUP($A46,FB_1,P$5,0))=16,"",VLOOKUP($A46,FB_1,P$5,0))&IF(TYPE(VLOOKUP($A46,FB_2,P$5,0))=16,"",VLOOKUP($A46,FB_2,P$5,0))&IF(TYPE(VLOOKUP($A46,FB_3,P$5,0))=16,"",VLOOKUP($A46,FB_3,P$5,0))&IF(TYPE(VLOOKUP($A46,FB_4,P$5,0))=16,"",VLOOKUP($A46,FB_4,P$5,0))&IF(TYPE(VLOOKUP($A46,FB_5,P$5,0))=16,"",VLOOKUP($A46,FB_5,P$5,0))&IF(TYPE(VLOOKUP($A46,FB_6,P$5,0))=16,"",VLOOKUP($A46,FB_6,P$5,0))&IF(TYPE(VLOOKUP($A46,FB_7,P$5,0))=16,"",VLOOKUP($A46,FB_7,P$5,0))&IF(TYPE(VLOOKUP($A46,FB_8,P$5,0))=16,"",VLOOKUP($A46,FB_8,P$5,0))&IF(TYPE(VLOOKUP($A46,FB_9,P$5,0))=16,"",VLOOKUP($A46,FB_9,P$5,0))&IF(TYPE(VLOOKUP($A46,FB_10,P$5,0))=16,"",VLOOKUP($A46,FB_10,P$5,0))&IF(TYPE(VLOOKUP($A46,FB_11,P$5,0))=16,"",VLOOKUP($A46,FB_11,P$5,0))&IF(TYPE(VLOOKUP($A46,FB_12,P$5,0))=16,"",VLOOKUP($A46,FB_12,P$5,0))&IF(TYPE(VLOOKUP($A46,FB_13,P$5,0))=16,"",VLOOKUP($A46,FB_13,P$5,0))&IF(TYPE(VLOOKUP($A46,FB_14,P$5,0))=16,"",VLOOKUP($A46,FB_14,P$5,0))&IF(TYPE(VLOOKUP($A46,FB_15,P$5,0))=16,"",VLOOKUP($A46,FB_15,P$5,0))&IF(TYPE(VLOOKUP($A46,FB_16,P$5,0))=16,"",VLOOKUP($A46,FB_16,P$5,0))&IF(TYPE(VLOOKUP($A46,FB_17,P$5,0))=16,"",VLOOKUP($A46,FB_17,P$5,0))&IF(TYPE(VLOOKUP($A46,FB_18,P$5,0))=16,"",VLOOKUP($A46,FB_18,P$5,0))&IF(TYPE(VLOOKUP($A46,FB_19,P$5,0))=16,"",VLOOKUP($A46,FB_19,P$5,0))&IF(TYPE(VLOOKUP($A46,FB_20,P$5,0))=16,"",VLOOKUP($A46,FB_20,P$5,0))&IF(TYPE(VLOOKUP($A46,FB_21,P$5,0))=16,"",VLOOKUP($A46,FB_21,P$5,0))&IF(TYPE(VLOOKUP($A46,FB_22,P$5,0))=16,"",VLOOKUP($A46,FB_22,P$5,0))&IF(TYPE(VLOOKUP($A46,FB_23,P$5,0))=16,"",VLOOKUP($A46,FB_23,P$5,0))&IF(TYPE(VLOOKUP($A46,FB_24,P$5,0))=16,"",VLOOKUP($A46,FB_24,P$5,0))&IF(TYPE(VLOOKUP($A46,FB_25,P$5,0))=16,"",VLOOKUP($A46,FB_25,P$5,0))&IF(TYPE(VLOOKUP($A46,FB_26,P$5,0))=16,"",VLOOKUP($A46,FB_26,P$5,0))&IF(TYPE(VLOOKUP($A46,FB_27,P$5,0))=16,"",VLOOKUP($A46,FB_27,P$5,0))&IF(TYPE(VLOOKUP($A46,FB_28,P$5,0))=16,"",VLOOKUP($A46,FB_28,P$5,0))&IF(TYPE(VLOOKUP($A46,FB_29,P$5,0))=16,"",VLOOKUP($A46,FB_29,P$5,0))&IF(TYPE(VLOOKUP($A46,FB_30,P$5,0))=16,"",VLOOKUP($A46,FB_30,P$5,0)))) ->  | F46: =IF($B46="","",_xlfn.NUMBERVALUE(IF(TYPE(VLOOKUP($A46,FB_1,R$5,0))=16,"",VLOOKUP($A46,FB_1,R$5,0))&IF(TYPE(VLOOKUP($A46,FB_2,R$5,0))=16,"",VLOOKUP($A46,FB_2,R$5,0))&IF(TYPE(VLOOKUP($A46,FB_3,R$5,0))=16,"",VLOOKUP($A46,FB_3,R$5,0))&IF(TYPE(VLOOKUP($A46,FB_4,R$5,0))=16,"",VLOOKUP($A46,FB_4,R$5,0))&IF(TYPE(VLOOKUP($A46,FB_5,R$5,0))=16,"",VLOOKUP($A46,FB_5,R$5,0))&IF(TYPE(VLOOKUP($A46,FB_6,R$5,0))=16,"",VLOOKUP($A46,FB_6,R$5,0))&IF(TYPE(VLOOKUP($A46,FB_7,R$5,0))=16,"",VLOOKUP($A46,FB_7,R$5,0))&IF(TYPE(VLOOKUP($A46,FB_8,R$5,0))=16,"",VLOOKUP($A46,FB_8,R$5,0))&IF(TYPE(VLOOKUP($A46,FB_9,R$5,0))=16,"",VLOOKUP($A46,FB_9,R$5,0))&IF(TYPE(VLOOKUP($A46,FB_10,R$5,0))=16,"",VLOOKUP($A46,FB_10,R$5,0))&IF(TYPE(VLOOKUP($A46,FB_11,R$5,0))=16,"",VLOOKUP($A46,FB_11,R$5,0))&IF(TYPE(VLOOKUP($A46,FB_12,R$5,0))=16,"",VLOOKUP($A46,FB_12,R$5,0))&IF(TYPE(VLOOKUP($A46,FB_13,R$5,0))=16,"",VLOOKUP($A46,FB_13,R$5,0))&IF(TYPE(VLOOKUP($A46,FB_14,R$5,0))=16,"",VLOOKUP($A46,FB_14,R$5,0))&IF(TYPE(VLOOKUP($A46,FB_15,R$5,0))=16,"",VLOOKUP($A46,FB_15,R$5,0))&IF(TYPE(VLOOKUP($A46,FB_16,R$5,0))=16,"",VLOOKUP($A46,FB_16,R$5,0))&IF(TYPE(VLOOKUP($A46,FB_17,R$5,0))=16,"",VLOOKUP($A46,FB_17,R$5,0))&IF(TYPE(VLOOKUP($A46,FB_18,R$5,0))=16,"",VLOOKUP($A46,FB_18,R$5,0))&IF(TYPE(VLOOKUP($A46,FB_19,R$5,0))=16,"",VLOOKUP($A46,FB_19,R$5,0))&IF(TYPE(VLOOKUP($A46,FB_20,R$5,0))=16,"",VLOOKUP($A46,FB_20,R$5,0))&IF(TYPE(VLOOKUP($A46,FB_21,R$5,0))=16,"",VLOOKUP($A46,FB_21,R$5,0))&IF(TYPE(VLOOKUP($A46,FB_22,R$5,0))=16,"",VLOOKUP($A46,FB_22,R$5,0))&IF(TYPE(VLOOKUP($A46,FB_23,R$5,0))=16,"",VLOOKUP($A46,FB_23,R$5,0))&IF(TYPE(VLOOKUP($A46,FB_24,R$5,0))=16,"",VLOOKUP($A46,FB_24,R$5,0))&IF(TYPE(VLOOKUP($A46,FB_25,R$5,0))=16,"",VLOOKUP($A46,FB_25,R$5,0))&IF(TYPE(VLOOKUP($A46,FB_26,R$5,0))=16,"",VLOOKUP($A46,FB_26,R$5,0))&IF(TYPE(VLOOKUP($A46,FB_27,R$5,0))=16,"",VLOOKUP($A46,FB_27,R$5,0))&IF(TYPE(VLOOKUP($A46,FB_28,R$5,0))=16,"",VLOOKUP($A46,FB_28,R$5,0))&IF(TYPE(VLOOKUP($A46,FB_29,R$5,0))=16,"",VLOOKUP($A46,FB_29,R$5,0))&IF(TYPE(VLOOKUP($A46,FB_30,R$5,0))=16,"",VLOOKUP($A46,FB_30,R$5,0)))) ->  | G46: =IF($B46="","",IF(TYPE(VLOOKUP($A46,FB_1,S$5,0))=16,"",VLOOKUP($A46,FB_1,S$5,0))&IF(TYPE(VLOOKUP($A46,FB_2,S$5,0))=16,"",VLOOKUP($A46,FB_2,S$5,0))&IF(TYPE(VLOOKUP($A46,FB_3,S$5,0))=16,"",VLOOKUP($A46,FB_3,S$5,0))&IF(TYPE(VLOOKUP($A46,FB_4,S$5,0))=16,"",VLOOKUP($A46,FB_4,S$5,0))&IF(TYPE(VLOOKUP($A46,FB_5,S$5,0))=16,"",VLOOKUP($A46,FB_5,S$5,0))&IF(TYPE(VLOOKUP($A46,FB_6,S$5,0))=16,"",VLOOKUP($A46,FB_6,S$5,0))&IF(TYPE(VLOOKUP($A46,FB_7,S$5,0))=16,"",VLOOKUP($A46,FB_7,S$5,0))&IF(TYPE(VLOOKUP($A46,FB_8,S$5,0))=16,"",VLOOKUP($A46,FB_8,S$5,0))&IF(TYPE(VLOOKUP($A46,FB_9,S$5,0))=16,"",VLOOKUP($A46,FB_9,S$5,0))&IF(TYPE(VLOOKUP($A46,FB_10,S$5,0))=16,"",VLOOKUP($A46,FB_10,S$5,0))&IF(TYPE(VLOOKUP($A46,FB_11,S$5,0))=16,"",VLOOKUP($A46,FB_11,S$5,0))&IF(TYPE(VLOOKUP($A46,FB_12,S$5,0))=16,"",VLOOKUP($A46,FB_12,S$5,0))&IF(TYPE(VLOOKUP($A46,FB_13,S$5,0))=16,"",VLOOKUP($A46,FB_13,S$5,0))&IF(TYPE(VLOOKUP($A46,FB_14,S$5,0))=16,"",VLOOKUP($A46,FB_14,S$5,0))&IF(TYPE(VLOOKUP($A46,FB_15,S$5,0))=16,"",VLOOKUP($A46,FB_15,S$5,0))&IF(TYPE(VLOOKUP($A46,FB_16,S$5,0))=16,"",VLOOKUP($A46,FB_16,S$5,0))&IF(TYPE(VLOOKUP($A46,FB_17,S$5,0))=16,"",VLOOKUP($A46,FB_17,S$5,0))&IF(TYPE(VLOOKUP($A46,FB_18,S$5,0))=16,"",VLOOKUP($A46,FB_18,S$5,0))&IF(TYPE(VLOOKUP($A46,FB_19,S$5,0))=16,"",VLOOKUP($A46,FB_19,S$5,0))&IF(TYPE(VLOOKUP($A46,FB_20,S$5,0))=16,"",VLOOKUP($A46,FB_20,S$5,0))&IF(TYPE(VLOOKUP($A46,FB_21,S$5,0))=16,"",VLOOKUP($A46,FB_21,S$5,0))&IF(TYPE(VLOOKUP($A46,FB_22,S$5,0))=16,"",VLOOKUP($A46,FB_22,S$5,0))&IF(TYPE(VLOOKUP($A46,FB_23,S$5,0))=16,"",VLOOKUP($A46,FB_23,S$5,0))&IF(TYPE(VLOOKUP($A46,FB_24,S$5,0))=16,"",VLOOKUP($A46,FB_24,S$5,0))&IF(TYPE(VLOOKUP($A46,FB_25,S$5,0))=16,"",VLOOKUP($A46,FB_25,S$5,0))&IF(TYPE(VLOOKUP($A46,FB_26,S$5,0))=16,"",VLOOKUP($A46,FB_26,S$5,0))&IF(TYPE(VLOOKUP($A46,FB_27,S$5,0))=16,"",VLOOKUP($A46,FB_27,S$5,0))&IF(TYPE(VLOOKUP($A46,FB_28,S$5,0))=16,"",VLOOKUP($A46,FB_28,S$5,0))&IF(TYPE(VLOOKUP($A46,FB_29,S$5,0))=16,"",VLOOKUP($A46,FB_29,S$5,0))&IF(TYPE(VLOOKUP($A46,FB_30,S$5,0))=16,"",VLOOKUP($A46,FB_30,S$5,0))) ->  | Y46: :
A47: 18. | B47: =IF(TYPE(VLOOKUP($A47,FB_1,2,0))=16,"",VLOOKUP($A47,FB_1,2,0))&IF(TYPE(VLOOKUP($A47,FB_2,2,0))=16,"",VLOOKUP($A47,FB_2,2,0))&IF(TYPE(VLOOKUP($A47,FB_3,2,0))=16,"",VLOOKUP($A47,FB_3,2,0))&IF(TYPE(VLOOKUP($A47,FB_4,2,0))=16,"",VLOOKUP($A47,FB_4,2,0))&IF(TYPE(VLOOKUP($A47,FB_5,2,0))=16,"",VLOOKUP($A47,FB_5,2,0))&IF(TYPE(VLOOKUP($A47,FB_6,2,0))=16,"",VLOOKUP($A47,FB_6,2,0))&IF(TYPE(VLOOKUP($A47,FB_7,2,0))=16,"",VLOOKUP($A47,FB_7,2,0))&IF(TYPE(VLOOKUP($A47,FB_8,2,0))=16,"",VLOOKUP($A47,FB_8,2,0))&IF(TYPE(VLOOKUP($A47,FB_9,2,0))=16,"",VLOOKUP($A47,FB_9,2,0))&IF(TYPE(VLOOKUP($A47,FB_10,2,0))=16,"",VLOOKUP($A47,FB_10,2,0))&IF(TYPE(VLOOKUP($A47,FB_11,2,0))=16,"",VLOOKUP($A47,FB_11,2,0))&IF(TYPE(VLOOKUP($A47,FB_12,2,0))=16,"",VLOOKUP($A47,FB_12,2,0))&IF(TYPE(VLOOKUP($A47,FB_13,2,0))=16,"",VLOOKUP($A47,FB_13,2,0))&IF(TYPE(VLOOKUP($A47,FB_14,2,0))=16,"",VLOOKUP($A47,FB_14,2,0))&IF(TYPE(VLOOKUP($A47,FB_15,2,0))=16,"",VLOOKUP($A47,FB_15,2,0))&IF(TYPE(VLOOKUP($A47,FB_16,2,0))=16,"",VLOOKUP($A47,FB_16,2,0))&IF(TYPE(VLOOKUP($A47,FB_17,2,0))=16,"",VLOOKUP($A47,FB_17,2,0))&IF(TYPE(VLOOKUP($A47,FB_18,2,0))=16,"",VLOOKUP($A47,FB_18,2,0))&IF(TYPE(VLOOKUP($A47,FB_19,2,0))=16,"",VLOOKUP($A47,FB_19,2,0))&IF(TYPE(VLOOKUP($A47,FB_20,2,0))=16,"",VLOOKUP($A47,FB_20,2,0))&IF(TYPE(VLOOKUP($A47,FB_21,2,0))=16,"",VLOOKUP($A47,FB_21,2,0))&IF(TYPE(VLOOKUP($A47,FB_22,2,0))=16,"",VLOOKUP($A47,FB_22,2,0))&IF(TYPE(VLOOKUP($A47,FB_23,2,0))=16,"",VLOOKUP($A47,FB_23,2,0))&IF(TYPE(VLOOKUP($A47,FB_24,2,0))=16,"",VLOOKUP($A47,FB_24,2,0))&IF(TYPE(VLOOKUP($A47,FB_25,2,0))=16,"",VLOOKUP($A47,FB_25,2,0))&IF(TYPE(VLOOKUP($A47,FB_26,2,0))=16,"",VLOOKUP($A47,FB_26,2,0))&IF(TYPE(VLOOKUP($A47,FB_27,2,0))=16,"",VLOOKUP($A47,FB_27,2,0))&IF(TYPE(VLOOKUP($A47,FB_28,2,0))=16,"",VLOOKUP($A47,FB_28,2,0))&IF(TYPE(VLOOKUP($A47,FB_29,2,0))=16,"",VLOOKUP($A47,FB_29,2,0))&IF(TYPE(VLOOKUP($A47,FB_30,2,0))=16,"",VLOOKUP($A47,FB_30,2,0)) ->  | D47: =IF($B47="","",_xlfn.NUMBERVALUE(IF(TYPE(VLOOKUP($A47,FB_1,P$5,0))=16,"",VLOOKUP($A47,FB_1,P$5,0))&IF(TYPE(VLOOKUP($A47,FB_2,P$5,0))=16,"",VLOOKUP($A47,FB_2,P$5,0))&IF(TYPE(VLOOKUP($A47,FB_3,P$5,0))=16,"",VLOOKUP($A47,FB_3,P$5,0))&IF(TYPE(VLOOKUP($A47,FB_4,P$5,0))=16,"",VLOOKUP($A47,FB_4,P$5,0))&IF(TYPE(VLOOKUP($A47,FB_5,P$5,0))=16,"",VLOOKUP($A47,FB_5,P$5,0))&IF(TYPE(VLOOKUP($A47,FB_6,P$5,0))=16,"",VLOOKUP($A47,FB_6,P$5,0))&IF(TYPE(VLOOKUP($A47,FB_7,P$5,0))=16,"",VLOOKUP($A47,FB_7,P$5,0))&IF(TYPE(VLOOKUP($A47,FB_8,P$5,0))=16,"",VLOOKUP($A47,FB_8,P$5,0))&IF(TYPE(VLOOKUP($A47,FB_9,P$5,0))=16,"",VLOOKUP($A47,FB_9,P$5,0))&IF(TYPE(VLOOKUP($A47,FB_10,P$5,0))=16,"",VLOOKUP($A47,FB_10,P$5,0))&IF(TYPE(VLOOKUP($A47,FB_11,P$5,0))=16,"",VLOOKUP($A47,FB_11,P$5,0))&IF(TYPE(VLOOKUP($A47,FB_12,P$5,0))=16,"",VLOOKUP($A47,FB_12,P$5,0))&IF(TYPE(VLOOKUP($A47,FB_13,P$5,0))=16,"",VLOOKUP($A47,FB_13,P$5,0))&IF(TYPE(VLOOKUP($A47,FB_14,P$5,0))=16,"",VLOOKUP($A47,FB_14,P$5,0))&IF(TYPE(VLOOKUP($A47,FB_15,P$5,0))=16,"",VLOOKUP($A47,FB_15,P$5,0))&IF(TYPE(VLOOKUP($A47,FB_16,P$5,0))=16,"",VLOOKUP($A47,FB_16,P$5,0))&IF(TYPE(VLOOKUP($A47,FB_17,P$5,0))=16,"",VLOOKUP($A47,FB_17,P$5,0))&IF(TYPE(VLOOKUP($A47,FB_18,P$5,0))=16,"",VLOOKUP($A47,FB_18,P$5,0))&IF(TYPE(VLOOKUP($A47,FB_19,P$5,0))=16,"",VLOOKUP($A47,FB_19,P$5,0))&IF(TYPE(VLOOKUP($A47,FB_20,P$5,0))=16,"",VLOOKUP($A47,FB_20,P$5,0))&IF(TYPE(VLOOKUP($A47,FB_21,P$5,0))=16,"",VLOOKUP($A47,FB_21,P$5,0))&IF(TYPE(VLOOKUP($A47,FB_22,P$5,0))=16,"",VLOOKUP($A47,FB_22,P$5,0))&IF(TYPE(VLOOKUP($A47,FB_23,P$5,0))=16,"",VLOOKUP($A47,FB_23,P$5,0))&IF(TYPE(VLOOKUP($A47,FB_24,P$5,0))=16,"",VLOOKUP($A47,FB_24,P$5,0))&IF(TYPE(VLOOKUP($A47,FB_25,P$5,0))=16,"",VLOOKUP($A47,FB_25,P$5,0))&IF(TYPE(VLOOKUP($A47,FB_26,P$5,0))=16,"",VLOOKUP($A47,FB_26,P$5,0))&IF(TYPE(VLOOKUP($A47,FB_27,P$5,0))=16,"",VLOOKUP($A47,FB_27,P$5,0))&IF(TYPE(VLOOKUP($A47,FB_28,P$5,0))=16,"",VLOOKUP($A47,FB_28,P$5,0))&IF(TYPE(VLOOKUP($A47,FB_29,P$5,0))=16,"",VLOOKUP($A47,FB_29,P$5,0))&IF(TYPE(VLOOKUP($A47,FB_30,P$5,0))=16,"",VLOOKUP($A47,FB_30,P$5,0)))) ->  | F47: =IF($B47="","",_xlfn.NUMBERVALUE(IF(TYPE(VLOOKUP($A47,FB_1,R$5,0))=16,"",VLOOKUP($A47,FB_1,R$5,0))&IF(TYPE(VLOOKUP($A47,FB_2,R$5,0))=16,"",VLOOKUP($A47,FB_2,R$5,0))&IF(TYPE(VLOOKUP($A47,FB_3,R$5,0))=16,"",VLOOKUP($A47,FB_3,R$5,0))&IF(TYPE(VLOOKUP($A47,FB_4,R$5,0))=16,"",VLOOKUP($A47,FB_4,R$5,0))&IF(TYPE(VLOOKUP($A47,FB_5,R$5,0))=16,"",VLOOKUP($A47,FB_5,R$5,0))&IF(TYPE(VLOOKUP($A47,FB_6,R$5,0))=16,"",VLOOKUP($A47,FB_6,R$5,0))&IF(TYPE(VLOOKUP($A47,FB_7,R$5,0))=16,"",VLOOKUP($A47,FB_7,R$5,0))&IF(TYPE(VLOOKUP($A47,FB_8,R$5,0))=16,"",VLOOKUP($A47,FB_8,R$5,0))&IF(TYPE(VLOOKUP($A47,FB_9,R$5,0))=16,"",VLOOKUP($A47,FB_9,R$5,0))&IF(TYPE(VLOOKUP($A47,FB_10,R$5,0))=16,"",VLOOKUP($A47,FB_10,R$5,0))&IF(TYPE(VLOOKUP($A47,FB_11,R$5,0))=16,"",VLOOKUP($A47,FB_11,R$5,0))&IF(TYPE(VLOOKUP($A47,FB_12,R$5,0))=16,"",VLOOKUP($A47,FB_12,R$5,0))&IF(TYPE(VLOOKUP($A47,FB_13,R$5,0))=16,"",VLOOKUP($A47,FB_13,R$5,0))&IF(TYPE(VLOOKUP($A47,FB_14,R$5,0))=16,"",VLOOKUP($A47,FB_14,R$5,0))&IF(TYPE(VLOOKUP($A47,FB_15,R$5,0))=16,"",VLOOKUP($A47,FB_15,R$5,0))&IF(TYPE(VLOOKUP($A47,FB_16,R$5,0))=16,"",VLOOKUP($A47,FB_16,R$5,0))&IF(TYPE(VLOOKUP($A47,FB_17,R$5,0))=16,"",VLOOKUP($A47,FB_17,R$5,0))&IF(TYPE(VLOOKUP($A47,FB_18,R$5,0))=16,"",VLOOKUP($A47,FB_18,R$5,0))&IF(TYPE(VLOOKUP($A47,FB_19,R$5,0))=16,"",VLOOKUP($A47,FB_19,R$5,0))&IF(TYPE(VLOOKUP($A47,FB_20,R$5,0))=16,"",VLOOKUP($A47,FB_20,R$5,0))&IF(TYPE(VLOOKUP($A47,FB_21,R$5,0))=16,"",VLOOKUP($A47,FB_21,R$5,0))&IF(TYPE(VLOOKUP($A47,FB_22,R$5,0))=16,"",VLOOKUP($A47,FB_22,R$5,0))&IF(TYPE(VLOOKUP($A47,FB_23,R$5,0))=16,"",VLOOKUP($A47,FB_23,R$5,0))&IF(TYPE(VLOOKUP($A47,FB_24,R$5,0))=16,"",VLOOKUP($A47,FB_24,R$5,0))&IF(TYPE(VLOOKUP($A47,FB_25,R$5,0))=16,"",VLOOKUP($A47,FB_25,R$5,0))&IF(TYPE(VLOOKUP($A47,FB_26,R$5,0))=16,"",VLOOKUP($A47,FB_26,R$5,0))&IF(TYPE(VLOOKUP($A47,FB_27,R$5,0))=16,"",VLOOKUP($A47,FB_27,R$5,0))&IF(TYPE(VLOOKUP($A47,FB_28,R$5,0))=16,"",VLOOKUP($A47,FB_28,R$5,0))&IF(TYPE(VLOOKUP($A47,FB_29,R$5,0))=16,"",VLOOKUP($A47,FB_29,R$5,0))&IF(TYPE(VLOOKUP($A47,FB_30,R$5,0))=16,"",VLOOKUP($A47,FB_30,R$5,0)))) ->  | G47: =IF($B47="","",IF(TYPE(VLOOKUP($A47,FB_1,S$5,0))=16,"",VLOOKUP($A47,FB_1,S$5,0))&IF(TYPE(VLOOKUP($A47,FB_2,S$5,0))=16,"",VLOOKUP($A47,FB_2,S$5,0))&IF(TYPE(VLOOKUP($A47,FB_3,S$5,0))=16,"",VLOOKUP($A47,FB_3,S$5,0))&IF(TYPE(VLOOKUP($A47,FB_4,S$5,0))=16,"",VLOOKUP($A47,FB_4,S$5,0))&IF(TYPE(VLOOKUP($A47,FB_5,S$5,0))=16,"",VLOOKUP($A47,FB_5,S$5,0))&IF(TYPE(VLOOKUP($A47,FB_6,S$5,0))=16,"",VLOOKUP($A47,FB_6,S$5,0))&IF(TYPE(VLOOKUP($A47,FB_7,S$5,0))=16,"",VLOOKUP($A47,FB_7,S$5,0))&IF(TYPE(VLOOKUP($A47,FB_8,S$5,0))=16,"",VLOOKUP($A47,FB_8,S$5,0))&IF(TYPE(VLOOKUP($A47,FB_9,S$5,0))=16,"",VLOOKUP($A47,FB_9,S$5,0))&IF(TYPE(VLOOKUP($A47,FB_10,S$5,0))=16,"",VLOOKUP($A47,FB_10,S$5,0))&IF(TYPE(VLOOKUP($A47,FB_11,S$5,0))=16,"",VLOOKUP($A47,FB_11,S$5,0))&IF(TYPE(VLOOKUP($A47,FB_12,S$5,0))=16,"",VLOOKUP($A47,FB_12,S$5,0))&IF(TYPE(VLOOKUP($A47,FB_13,S$5,0))=16,"",VLOOKUP($A47,FB_13,S$5,0))&IF(TYPE(VLOOKUP($A47,FB_14,S$5,0))=16,"",VLOOKUP($A47,FB_14,S$5,0))&IF(TYPE(VLOOKUP($A47,FB_15,S$5,0))=16,"",VLOOKUP($A47,FB_15,S$5,0))&IF(TYPE(VLOOKUP($A47,FB_16,S$5,0))=16,"",VLOOKUP($A47,FB_16,S$5,0))&IF(TYPE(VLOOKUP($A47,FB_17,S$5,0))=16,"",VLOOKUP($A47,FB_17,S$5,0))&IF(TYPE(VLOOKUP($A47,FB_18,S$5,0))=16,"",VLOOKUP($A47,FB_18,S$5,0))&IF(TYPE(VLOOKUP($A47,FB_19,S$5,0))=16,"",VLOOKUP($A47,FB_19,S$5,0))&IF(TYPE(VLOOKUP($A47,FB_20,S$5,0))=16,"",VLOOKUP($A47,FB_20,S$5,0))&IF(TYPE(VLOOKUP($A47,FB_21,S$5,0))=16,"",VLOOKUP($A47,FB_21,S$5,0))&IF(TYPE(VLOOKUP($A47,FB_22,S$5,0))=16,"",VLOOKUP($A47,FB_22,S$5,0))&IF(TYPE(VLOOKUP($A47,FB_23,S$5,0))=16,"",VLOOKUP($A47,FB_23,S$5,0))&IF(TYPE(VLOOKUP($A47,FB_24,S$5,0))=16,"",VLOOKUP($A47,FB_24,S$5,0))&IF(TYPE(VLOOKUP($A47,FB_25,S$5,0))=16,"",VLOOKUP($A47,FB_25,S$5,0))&IF(TYPE(VLOOKUP($A47,FB_26,S$5,0))=16,"",VLOOKUP($A47,FB_26,S$5,0))&IF(TYPE(VLOOKUP($A47,FB_27,S$5,0))=16,"",VLOOKUP($A47,FB_27,S$5,0))&IF(TYPE(VLOOKUP($A47,FB_28,S$5,0))=16,"",VLOOKUP($A47,FB_28,S$5,0))&IF(TYPE(VLOOKUP($A47,FB_29,S$5,0))=16,"",VLOOKUP($A47,FB_29,S$5,0))&IF(TYPE(VLOOKUP($A47,FB_30,S$5,0))=16,"",VLOOKUP($A47,FB_30,S$5,0))) ->  | Y47: :
A48: 19. | B48: =IF(TYPE(VLOOKUP($A48,FB_1,2,0))=16,"",VLOOKUP($A48,FB_1,2,0))&IF(TYPE(VLOOKUP($A48,FB_2,2,0))=16,"",VLOOKUP($A48,FB_2,2,0))&IF(TYPE(VLOOKUP($A48,FB_3,2,0))=16,"",VLOOKUP($A48,FB_3,2,0))&IF(TYPE(VLOOKUP($A48,FB_4,2,0))=16,"",VLOOKUP($A48,FB_4,2,0))&IF(TYPE(VLOOKUP($A48,FB_5,2,0))=16,"",VLOOKUP($A48,FB_5,2,0))&IF(TYPE(VLOOKUP($A48,FB_6,2,0))=16,"",VLOOKUP($A48,FB_6,2,0))&IF(TYPE(VLOOKUP($A48,FB_7,2,0))=16,"",VLOOKUP($A48,FB_7,2,0))&IF(TYPE(VLOOKUP($A48,FB_8,2,0))=16,"",VLOOKUP($A48,FB_8,2,0))&IF(TYPE(VLOOKUP($A48,FB_9,2,0))=16,"",VLOOKUP($A48,FB_9,2,0))&IF(TYPE(VLOOKUP($A48,FB_10,2,0))=16,"",VLOOKUP($A48,FB_10,2,0))&IF(TYPE(VLOOKUP($A48,FB_11,2,0))=16,"",VLOOKUP($A48,FB_11,2,0))&IF(TYPE(VLOOKUP($A48,FB_12,2,0))=16,"",VLOOKUP($A48,FB_12,2,0))&IF(TYPE(VLOOKUP($A48,FB_13,2,0))=16,"",VLOOKUP($A48,FB_13,2,0))&IF(TYPE(VLOOKUP($A48,FB_14,2,0))=16,"",VLOOKUP($A48,FB_14,2,0))&IF(TYPE(VLOOKUP($A48,FB_15,2,0))=16,"",VLOOKUP($A48,FB_15,2,0))&IF(TYPE(VLOOKUP($A48,FB_16,2,0))=16,"",VLOOKUP($A48,FB_16,2,0))&IF(TYPE(VLOOKUP($A48,FB_17,2,0))=16,"",VLOOKUP($A48,FB_17,2,0))&IF(TYPE(VLOOKUP($A48,FB_18,2,0))=16,"",VLOOKUP($A48,FB_18,2,0))&IF(TYPE(VLOOKUP($A48,FB_19,2,0))=16,"",VLOOKUP($A48,FB_19,2,0))&IF(TYPE(VLOOKUP($A48,FB_20,2,0))=16,"",VLOOKUP($A48,FB_20,2,0))&IF(TYPE(VLOOKUP($A48,FB_21,2,0))=16,"",VLOOKUP($A48,FB_21,2,0))&IF(TYPE(VLOOKUP($A48,FB_22,2,0))=16,"",VLOOKUP($A48,FB_22,2,0))&IF(TYPE(VLOOKUP($A48,FB_23,2,0))=16,"",VLOOKUP($A48,FB_23,2,0))&IF(TYPE(VLOOKUP($A48,FB_24,2,0))=16,"",VLOOKUP($A48,FB_24,2,0))&IF(TYPE(VLOOKUP($A48,FB_25,2,0))=16,"",VLOOKUP($A48,FB_25,2,0))&IF(TYPE(VLOOKUP($A48,FB_26,2,0))=16,"",VLOOKUP($A48,FB_26,2,0))&IF(TYPE(VLOOKUP($A48,FB_27,2,0))=16,"",VLOOKUP($A48,FB_27,2,0))&IF(TYPE(VLOOKUP($A48,FB_28,2,0))=16,"",VLOOKUP($A48,FB_28,2,0))&IF(TYPE(VLOOKUP($A48,FB_29,2,0))=16,"",VLOOKUP($A48,FB_29,2,0))&IF(TYPE(VLOOKUP($A48,FB_30,2,0))=16,"",VLOOKUP($A48,FB_30,2,0)) ->  | D48: =IF($B48="","",_xlfn.NUMBERVALUE(IF(TYPE(VLOOKUP($A48,FB_1,P$5,0))=16,"",VLOOKUP($A48,FB_1,P$5,0))&IF(TYPE(VLOOKUP($A48,FB_2,P$5,0))=16,"",VLOOKUP($A48,FB_2,P$5,0))&IF(TYPE(VLOOKUP($A48,FB_3,P$5,0))=16,"",VLOOKUP($A48,FB_3,P$5,0))&IF(TYPE(VLOOKUP($A48,FB_4,P$5,0))=16,"",VLOOKUP($A48,FB_4,P$5,0))&IF(TYPE(VLOOKUP($A48,FB_5,P$5,0))=16,"",VLOOKUP($A48,FB_5,P$5,0))&IF(TYPE(VLOOKUP($A48,FB_6,P$5,0))=16,"",VLOOKUP($A48,FB_6,P$5,0))&IF(TYPE(VLOOKUP($A48,FB_7,P$5,0))=16,"",VLOOKUP($A48,FB_7,P$5,0))&IF(TYPE(VLOOKUP($A48,FB_8,P$5,0))=16,"",VLOOKUP($A48,FB_8,P$5,0))&IF(TYPE(VLOOKUP($A48,FB_9,P$5,0))=16,"",VLOOKUP($A48,FB_9,P$5,0))&IF(TYPE(VLOOKUP($A48,FB_10,P$5,0))=16,"",VLOOKUP($A48,FB_10,P$5,0))&IF(TYPE(VLOOKUP($A48,FB_11,P$5,0))=16,"",VLOOKUP($A48,FB_11,P$5,0))&IF(TYPE(VLOOKUP($A48,FB_12,P$5,0))=16,"",VLOOKUP($A48,FB_12,P$5,0))&IF(TYPE(VLOOKUP($A48,FB_13,P$5,0))=16,"",VLOOKUP($A48,FB_13,P$5,0))&IF(TYPE(VLOOKUP($A48,FB_14,P$5,0))=16,"",VLOOKUP($A48,FB_14,P$5,0))&IF(TYPE(VLOOKUP($A48,FB_15,P$5,0))=16,"",VLOOKUP($A48,FB_15,P$5,0))&IF(TYPE(VLOOKUP($A48,FB_16,P$5,0))=16,"",VLOOKUP($A48,FB_16,P$5,0))&IF(TYPE(VLOOKUP($A48,FB_17,P$5,0))=16,"",VLOOKUP($A48,FB_17,P$5,0))&IF(TYPE(VLOOKUP($A48,FB_18,P$5,0))=16,"",VLOOKUP($A48,FB_18,P$5,0))&IF(TYPE(VLOOKUP($A48,FB_19,P$5,0))=16,"",VLOOKUP($A48,FB_19,P$5,0))&IF(TYPE(VLOOKUP($A48,FB_20,P$5,0))=16,"",VLOOKUP($A48,FB_20,P$5,0))&IF(TYPE(VLOOKUP($A48,FB_21,P$5,0))=16,"",VLOOKUP($A48,FB_21,P$5,0))&IF(TYPE(VLOOKUP($A48,FB_22,P$5,0))=16,"",VLOOKUP($A48,FB_22,P$5,0))&IF(TYPE(VLOOKUP($A48,FB_23,P$5,0))=16,"",VLOOKUP($A48,FB_23,P$5,0))&IF(TYPE(VLOOKUP($A48,FB_24,P$5,0))=16,"",VLOOKUP($A48,FB_24,P$5,0))&IF(TYPE(VLOOKUP($A48,FB_25,P$5,0))=16,"",VLOOKUP($A48,FB_25,P$5,0))&IF(TYPE(VLOOKUP($A48,FB_26,P$5,0))=16,"",VLOOKUP($A48,FB_26,P$5,0))&IF(TYPE(VLOOKUP($A48,FB_27,P$5,0))=16,"",VLOOKUP($A48,FB_27,P$5,0))&IF(TYPE(VLOOKUP($A48,FB_28,P$5,0))=16,"",VLOOKUP($A48,FB_28,P$5,0))&IF(TYPE(VLOOKUP($A48,FB_29,P$5,0))=16,"",VLOOKUP($A48,FB_29,P$5,0))&IF(TYPE(VLOOKUP($A48,FB_30,P$5,0))=16,"",VLOOKUP($A48,FB_30,P$5,0)))) ->  | F48: =IF($B48="","",_xlfn.NUMBERVALUE(IF(TYPE(VLOOKUP($A48,FB_1,R$5,0))=16,"",VLOOKUP($A48,FB_1,R$5,0))&IF(TYPE(VLOOKUP($A48,FB_2,R$5,0))=16,"",VLOOKUP($A48,FB_2,R$5,0))&IF(TYPE(VLOOKUP($A48,FB_3,R$5,0))=16,"",VLOOKUP($A48,FB_3,R$5,0))&IF(TYPE(VLOOKUP($A48,FB_4,R$5,0))=16,"",VLOOKUP($A48,FB_4,R$5,0))&IF(TYPE(VLOOKUP($A48,FB_5,R$5,0))=16,"",VLOOKUP($A48,FB_5,R$5,0))&IF(TYPE(VLOOKUP($A48,FB_6,R$5,0))=16,"",VLOOKUP($A48,FB_6,R$5,0))&IF(TYPE(VLOOKUP($A48,FB_7,R$5,0))=16,"",VLOOKUP($A48,FB_7,R$5,0))&IF(TYPE(VLOOKUP($A48,FB_8,R$5,0))=16,"",VLOOKUP($A48,FB_8,R$5,0))&IF(TYPE(VLOOKUP($A48,FB_9,R$5,0))=16,"",VLOOKUP($A48,FB_9,R$5,0))&IF(TYPE(VLOOKUP($A48,FB_10,R$5,0))=16,"",VLOOKUP($A48,FB_10,R$5,0))&IF(TYPE(VLOOKUP($A48,FB_11,R$5,0))=16,"",VLOOKUP($A48,FB_11,R$5,0))&IF(TYPE(VLOOKUP($A48,FB_12,R$5,0))=16,"",VLOOKUP($A48,FB_12,R$5,0))&IF(TYPE(VLOOKUP($A48,FB_13,R$5,0))=16,"",VLOOKUP($A48,FB_13,R$5,0))&IF(TYPE(VLOOKUP($A48,FB_14,R$5,0))=16,"",VLOOKUP($A48,FB_14,R$5,0))&IF(TYPE(VLOOKUP($A48,FB_15,R$5,0))=16,"",VLOOKUP($A48,FB_15,R$5,0))&IF(TYPE(VLOOKUP($A48,FB_16,R$5,0))=16,"",VLOOKUP($A48,FB_16,R$5,0))&IF(TYPE(VLOOKUP($A48,FB_17,R$5,0))=16,"",VLOOKUP($A48,FB_17,R$5,0))&IF(TYPE(VLOOKUP($A48,FB_18,R$5,0))=16,"",VLOOKUP($A48,FB_18,R$5,0))&IF(TYPE(VLOOKUP($A48,FB_19,R$5,0))=16,"",VLOOKUP($A48,FB_19,R$5,0))&IF(TYPE(VLOOKUP($A48,FB_20,R$5,0))=16,"",VLOOKUP($A48,FB_20,R$5,0))&IF(TYPE(VLOOKUP($A48,FB_21,R$5,0))=16,"",VLOOKUP($A48,FB_21,R$5,0))&IF(TYPE(VLOOKUP($A48,FB_22,R$5,0))=16,"",VLOOKUP($A48,FB_22,R$5,0))&IF(TYPE(VLOOKUP($A48,FB_23,R$5,0))=16,"",VLOOKUP($A48,FB_23,R$5,0))&IF(TYPE(VLOOKUP($A48,FB_24,R$5,0))=16,"",VLOOKUP($A48,FB_24,R$5,0))&IF(TYPE(VLOOKUP($A48,FB_25,R$5,0))=16,"",VLOOKUP($A48,FB_25,R$5,0))&IF(TYPE(VLOOKUP($A48,FB_26,R$5,0))=16,"",VLOOKUP($A48,FB_26,R$5,0))&IF(TYPE(VLOOKUP($A48,FB_27,R$5,0))=16,"",VLOOKUP($A48,FB_27,R$5,0))&IF(TYPE(VLOOKUP($A48,FB_28,R$5,0))=16,"",VLOOKUP($A48,FB_28,R$5,0))&IF(TYPE(VLOOKUP($A48,FB_29,R$5,0))=16,"",VLOOKUP($A48,FB_29,R$5,0))&IF(TYPE(VLOOKUP($A48,FB_30,R$5,0))=16,"",VLOOKUP($A48,FB_30,R$5,0)))) ->  | G48: =IF($B48="","",IF(TYPE(VLOOKUP($A48,FB_1,S$5,0))=16,"",VLOOKUP($A48,FB_1,S$5,0))&IF(TYPE(VLOOKUP($A48,FB_2,S$5,0))=16,"",VLOOKUP($A48,FB_2,S$5,0))&IF(TYPE(VLOOKUP($A48,FB_3,S$5,0))=16,"",VLOOKUP($A48,FB_3,S$5,0))&IF(TYPE(VLOOKUP($A48,FB_4,S$5,0))=16,"",VLOOKUP($A48,FB_4,S$5,0))&IF(TYPE(VLOOKUP($A48,FB_5,S$5,0))=16,"",VLOOKUP($A48,FB_5,S$5,0))&IF(TYPE(VLOOKUP($A48,FB_6,S$5,0))=16,"",VLOOKUP($A48,FB_6,S$5,0))&IF(TYPE(VLOOKUP($A48,FB_7,S$5,0))=16,"",VLOOKUP($A48,FB_7,S$5,0))&IF(TYPE(VLOOKUP($A48,FB_8,S$5,0))=16,"",VLOOKUP($A48,FB_8,S$5,0))&IF(TYPE(VLOOKUP($A48,FB_9,S$5,0))=16,"",VLOOKUP($A48,FB_9,S$5,0))&IF(TYPE(VLOOKUP($A48,FB_10,S$5,0))=16,"",VLOOKUP($A48,FB_10,S$5,0))&IF(TYPE(VLOOKUP($A48,FB_11,S$5,0))=16,"",VLOOKUP($A48,FB_11,S$5,0))&IF(TYPE(VLOOKUP($A48,FB_12,S$5,0))=16,"",VLOOKUP($A48,FB_12,S$5,0))&IF(TYPE(VLOOKUP($A48,FB_13,S$5,0))=16,"",VLOOKUP($A48,FB_13,S$5,0))&IF(TYPE(VLOOKUP($A48,FB_14,S$5,0))=16,"",VLOOKUP($A48,FB_14,S$5,0))&IF(TYPE(VLOOKUP($A48,FB_15,S$5,0))=16,"",VLOOKUP($A48,FB_15,S$5,0))&IF(TYPE(VLOOKUP($A48,FB_16,S$5,0))=16,"",VLOOKUP($A48,FB_16,S$5,0))&IF(TYPE(VLOOKUP($A48,FB_17,S$5,0))=16,"",VLOOKUP($A48,FB_17,S$5,0))&IF(TYPE(VLOOKUP($A48,FB_18,S$5,0))=16,"",VLOOKUP($A48,FB_18,S$5,0))&IF(TYPE(VLOOKUP($A48,FB_19,S$5,0))=16,"",VLOOKUP($A48,FB_19,S$5,0))&IF(TYPE(VLOOKUP($A48,FB_20,S$5,0))=16,"",VLOOKUP($A48,FB_20,S$5,0))&IF(TYPE(VLOOKUP($A48,FB_21,S$5,0))=16,"",VLOOKUP($A48,FB_21,S$5,0))&IF(TYPE(VLOOKUP($A48,FB_22,S$5,0))=16,"",VLOOKUP($A48,FB_22,S$5,0))&IF(TYPE(VLOOKUP($A48,FB_23,S$5,0))=16,"",VLOOKUP($A48,FB_23,S$5,0))&IF(TYPE(VLOOKUP($A48,FB_24,S$5,0))=16,"",VLOOKUP($A48,FB_24,S$5,0))&IF(TYPE(VLOOKUP($A48,FB_25,S$5,0))=16,"",VLOOKUP($A48,FB_25,S$5,0))&IF(TYPE(VLOOKUP($A48,FB_26,S$5,0))=16,"",VLOOKUP($A48,FB_26,S$5,0))&IF(TYPE(VLOOKUP($A48,FB_27,S$5,0))=16,"",VLOOKUP($A48,FB_27,S$5,0))&IF(TYPE(VLOOKUP($A48,FB_28,S$5,0))=16,"",VLOOKUP($A48,FB_28,S$5,0))&IF(TYPE(VLOOKUP($A48,FB_29,S$5,0))=16,"",VLOOKUP($A48,FB_29,S$5,0))&IF(TYPE(VLOOKUP($A48,FB_30,S$5,0))=16,"",VLOOKUP($A48,FB_30,S$5,0))) ->  | Y48: :
A49: 20. | B49: =IF(TYPE(VLOOKUP($A49,FB_1,2,0))=16,"",VLOOKUP($A49,FB_1,2,0))&IF(TYPE(VLOOKUP($A49,FB_2,2,0))=16,"",VLOOKUP($A49,FB_2,2,0))&IF(TYPE(VLOOKUP($A49,FB_3,2,0))=16,"",VLOOKUP($A49,FB_3,2,0))&IF(TYPE(VLOOKUP($A49,FB_4,2,0))=16,"",VLOOKUP($A49,FB_4,2,0))&IF(TYPE(VLOOKUP($A49,FB_5,2,0))=16,"",VLOOKUP($A49,FB_5,2,0))&IF(TYPE(VLOOKUP($A49,FB_6,2,0))=16,"",VLOOKUP($A49,FB_6,2,0))&IF(TYPE(VLOOKUP($A49,FB_7,2,0))=16,"",VLOOKUP($A49,FB_7,2,0))&IF(TYPE(VLOOKUP($A49,FB_8,2,0))=16,"",VLOOKUP($A49,FB_8,2,0))&IF(TYPE(VLOOKUP($A49,FB_9,2,0))=16,"",VLOOKUP($A49,FB_9,2,0))&IF(TYPE(VLOOKUP($A49,FB_10,2,0))=16,"",VLOOKUP($A49,FB_10,2,0))&IF(TYPE(VLOOKUP($A49,FB_11,2,0))=16,"",VLOOKUP($A49,FB_11,2,0))&IF(TYPE(VLOOKUP($A49,FB_12,2,0))=16,"",VLOOKUP($A49,FB_12,2,0))&IF(TYPE(VLOOKUP($A49,FB_13,2,0))=16,"",VLOOKUP($A49,FB_13,2,0))&IF(TYPE(VLOOKUP($A49,FB_14,2,0))=16,"",VLOOKUP($A49,FB_14,2,0))&IF(TYPE(VLOOKUP($A49,FB_15,2,0))=16,"",VLOOKUP($A49,FB_15,2,0))&IF(TYPE(VLOOKUP($A49,FB_16,2,0))=16,"",VLOOKUP($A49,FB_16,2,0))&IF(TYPE(VLOOKUP($A49,FB_17,2,0))=16,"",VLOOKUP($A49,FB_17,2,0))&IF(TYPE(VLOOKUP($A49,FB_18,2,0))=16,"",VLOOKUP($A49,FB_18,2,0))&IF(TYPE(VLOOKUP($A49,FB_19,2,0))=16,"",VLOOKUP($A49,FB_19,2,0))&IF(TYPE(VLOOKUP($A49,FB_20,2,0))=16,"",VLOOKUP($A49,FB_20,2,0))&IF(TYPE(VLOOKUP($A49,FB_21,2,0))=16,"",VLOOKUP($A49,FB_21,2,0))&IF(TYPE(VLOOKUP($A49,FB_22,2,0))=16,"",VLOOKUP($A49,FB_22,2,0))&IF(TYPE(VLOOKUP($A49,FB_23,2,0))=16,"",VLOOKUP($A49,FB_23,2,0))&IF(TYPE(VLOOKUP($A49,FB_24,2,0))=16,"",VLOOKUP($A49,FB_24,2,0))&IF(TYPE(VLOOKUP($A49,FB_25,2,0))=16,"",VLOOKUP($A49,FB_25,2,0))&IF(TYPE(VLOOKUP($A49,FB_26,2,0))=16,"",VLOOKUP($A49,FB_26,2,0))&IF(TYPE(VLOOKUP($A49,FB_27,2,0))=16,"",VLOOKUP($A49,FB_27,2,0))&IF(TYPE(VLOOKUP($A49,FB_28,2,0))=16,"",VLOOKUP($A49,FB_28,2,0))&IF(TYPE(VLOOKUP($A49,FB_29,2,0))=16,"",VLOOKUP($A49,FB_29,2,0))&IF(TYPE(VLOOKUP($A49,FB_30,2,0))=16,"",VLOOKUP($A49,FB_30,2,0)) ->  | D49: =IF($B49="","",_xlfn.NUMBERVALUE(IF(TYPE(VLOOKUP($A49,FB_1,P$5,0))=16,"",VLOOKUP($A49,FB_1,P$5,0))&IF(TYPE(VLOOKUP($A49,FB_2,P$5,0))=16,"",VLOOKUP($A49,FB_2,P$5,0))&IF(TYPE(VLOOKUP($A49,FB_3,P$5,0))=16,"",VLOOKUP($A49,FB_3,P$5,0))&IF(TYPE(VLOOKUP($A49,FB_4,P$5,0))=16,"",VLOOKUP($A49,FB_4,P$5,0))&IF(TYPE(VLOOKUP($A49,FB_5,P$5,0))=16,"",VLOOKUP($A49,FB_5,P$5,0))&IF(TYPE(VLOOKUP($A49,FB_6,P$5,0))=16,"",VLOOKUP($A49,FB_6,P$5,0))&IF(TYPE(VLOOKUP($A49,FB_7,P$5,0))=16,"",VLOOKUP($A49,FB_7,P$5,0))&IF(TYPE(VLOOKUP($A49,FB_8,P$5,0))=16,"",VLOOKUP($A49,FB_8,P$5,0))&IF(TYPE(VLOOKUP($A49,FB_9,P$5,0))=16,"",VLOOKUP($A49,FB_9,P$5,0))&IF(TYPE(VLOOKUP($A49,FB_10,P$5,0))=16,"",VLOOKUP($A49,FB_10,P$5,0))&IF(TYPE(VLOOKUP($A49,FB_11,P$5,0))=16,"",VLOOKUP($A49,FB_11,P$5,0))&IF(TYPE(VLOOKUP($A49,FB_12,P$5,0))=16,"",VLOOKUP($A49,FB_12,P$5,0))&IF(TYPE(VLOOKUP($A49,FB_13,P$5,0))=16,"",VLOOKUP($A49,FB_13,P$5,0))&IF(TYPE(VLOOKUP($A49,FB_14,P$5,0))=16,"",VLOOKUP($A49,FB_14,P$5,0))&IF(TYPE(VLOOKUP($A49,FB_15,P$5,0))=16,"",VLOOKUP($A49,FB_15,P$5,0))&IF(TYPE(VLOOKUP($A49,FB_16,P$5,0))=16,"",VLOOKUP($A49,FB_16,P$5,0))&IF(TYPE(VLOOKUP($A49,FB_17,P$5,0))=16,"",VLOOKUP($A49,FB_17,P$5,0))&IF(TYPE(VLOOKUP($A49,FB_18,P$5,0))=16,"",VLOOKUP($A49,FB_18,P$5,0))&IF(TYPE(VLOOKUP($A49,FB_19,P$5,0))=16,"",VLOOKUP($A49,FB_19,P$5,0))&IF(TYPE(VLOOKUP($A49,FB_20,P$5,0))=16,"",VLOOKUP($A49,FB_20,P$5,0))&IF(TYPE(VLOOKUP($A49,FB_21,P$5,0))=16,"",VLOOKUP($A49,FB_21,P$5,0))&IF(TYPE(VLOOKUP($A49,FB_22,P$5,0))=16,"",VLOOKUP($A49,FB_22,P$5,0))&IF(TYPE(VLOOKUP($A49,FB_23,P$5,0))=16,"",VLOOKUP($A49,FB_23,P$5,0))&IF(TYPE(VLOOKUP($A49,FB_24,P$5,0))=16,"",VLOOKUP($A49,FB_24,P$5,0))&IF(TYPE(VLOOKUP($A49,FB_25,P$5,0))=16,"",VLOOKUP($A49,FB_25,P$5,0))&IF(TYPE(VLOOKUP($A49,FB_26,P$5,0))=16,"",VLOOKUP($A49,FB_26,P$5,0))&IF(TYPE(VLOOKUP($A49,FB_27,P$5,0))=16,"",VLOOKUP($A49,FB_27,P$5,0))&IF(TYPE(VLOOKUP($A49,FB_28,P$5,0))=16,"",VLOOKUP($A49,FB_28,P$5,0))&IF(TYPE(VLOOKUP($A49,FB_29,P$5,0))=16,"",VLOOKUP($A49,FB_29,P$5,0))&IF(TYPE(VLOOKUP($A49,FB_30,P$5,0))=16,"",VLOOKUP($A49,FB_30,P$5,0)))) ->  | F49: =IF($B49="","",_xlfn.NUMBERVALUE(IF(TYPE(VLOOKUP($A49,FB_1,R$5,0))=16,"",VLOOKUP($A49,FB_1,R$5,0))&IF(TYPE(VLOOKUP($A49,FB_2,R$5,0))=16,"",VLOOKUP($A49,FB_2,R$5,0))&IF(TYPE(VLOOKUP($A49,FB_3,R$5,0))=16,"",VLOOKUP($A49,FB_3,R$5,0))&IF(TYPE(VLOOKUP($A49,FB_4,R$5,0))=16,"",VLOOKUP($A49,FB_4,R$5,0))&IF(TYPE(VLOOKUP($A49,FB_5,R$5,0))=16,"",VLOOKUP($A49,FB_5,R$5,0))&IF(TYPE(VLOOKUP($A49,FB_6,R$5,0))=16,"",VLOOKUP($A49,FB_6,R$5,0))&IF(TYPE(VLOOKUP($A49,FB_7,R$5,0))=16,"",VLOOKUP($A49,FB_7,R$5,0))&IF(TYPE(VLOOKUP($A49,FB_8,R$5,0))=16,"",VLOOKUP($A49,FB_8,R$5,0))&IF(TYPE(VLOOKUP($A49,FB_9,R$5,0))=16,"",VLOOKUP($A49,FB_9,R$5,0))&IF(TYPE(VLOOKUP($A49,FB_10,R$5,0))=16,"",VLOOKUP($A49,FB_10,R$5,0))&IF(TYPE(VLOOKUP($A49,FB_11,R$5,0))=16,"",VLOOKUP($A49,FB_11,R$5,0))&IF(TYPE(VLOOKUP($A49,FB_12,R$5,0))=16,"",VLOOKUP($A49,FB_12,R$5,0))&IF(TYPE(VLOOKUP($A49,FB_13,R$5,0))=16,"",VLOOKUP($A49,FB_13,R$5,0))&IF(TYPE(VLOOKUP($A49,FB_14,R$5,0))=16,"",VLOOKUP($A49,FB_14,R$5,0))&IF(TYPE(VLOOKUP($A49,FB_15,R$5,0))=16,"",VLOOKUP($A49,FB_15,R$5,0))&IF(TYPE(VLOOKUP($A49,FB_16,R$5,0))=16,"",VLOOKUP($A49,FB_16,R$5,0))&IF(TYPE(VLOOKUP($A49,FB_17,R$5,0))=16,"",VLOOKUP($A49,FB_17,R$5,0))&IF(TYPE(VLOOKUP($A49,FB_18,R$5,0))=16,"",VLOOKUP($A49,FB_18,R$5,0))&IF(TYPE(VLOOKUP($A49,FB_19,R$5,0))=16,"",VLOOKUP($A49,FB_19,R$5,0))&IF(TYPE(VLOOKUP($A49,FB_20,R$5,0))=16,"",VLOOKUP($A49,FB_20,R$5,0))&IF(TYPE(VLOOKUP($A49,FB_21,R$5,0))=16,"",VLOOKUP($A49,FB_21,R$5,0))&IF(TYPE(VLOOKUP($A49,FB_22,R$5,0))=16,"",VLOOKUP($A49,FB_22,R$5,0))&IF(TYPE(VLOOKUP($A49,FB_23,R$5,0))=16,"",VLOOKUP($A49,FB_23,R$5,0))&IF(TYPE(VLOOKUP($A49,FB_24,R$5,0))=16,"",VLOOKUP($A49,FB_24,R$5,0))&IF(TYPE(VLOOKUP($A49,FB_25,R$5,0))=16,"",VLOOKUP($A49,FB_25,R$5,0))&IF(TYPE(VLOOKUP($A49,FB_26,R$5,0))=16,"",VLOOKUP($A49,FB_26,R$5,0))&IF(TYPE(VLOOKUP($A49,FB_27,R$5,0))=16,"",VLOOKUP($A49,FB_27,R$5,0))&IF(TYPE(VLOOKUP($A49,FB_28,R$5,0))=16,"",VLOOKUP($A49,FB_28,R$5,0))&IF(TYPE(VLOOKUP($A49,FB_29,R$5,0))=16,"",VLOOKUP($A49,FB_29,R$5,0))&IF(TYPE(VLOOKUP($A49,FB_30,R$5,0))=16,"",VLOOKUP($A49,FB_30,R$5,0)))) ->  | G49: =IF($B49="","",IF(TYPE(VLOOKUP($A49,FB_1,S$5,0))=16,"",VLOOKUP($A49,FB_1,S$5,0))&IF(TYPE(VLOOKUP($A49,FB_2,S$5,0))=16,"",VLOOKUP($A49,FB_2,S$5,0))&IF(TYPE(VLOOKUP($A49,FB_3,S$5,0))=16,"",VLOOKUP($A49,FB_3,S$5,0))&IF(TYPE(VLOOKUP($A49,FB_4,S$5,0))=16,"",VLOOKUP($A49,FB_4,S$5,0))&IF(TYPE(VLOOKUP($A49,FB_5,S$5,0))=16,"",VLOOKUP($A49,FB_5,S$5,0))&IF(TYPE(VLOOKUP($A49,FB_6,S$5,0))=16,"",VLOOKUP($A49,FB_6,S$5,0))&IF(TYPE(VLOOKUP($A49,FB_7,S$5,0))=16,"",VLOOKUP($A49,FB_7,S$5,0))&IF(TYPE(VLOOKUP($A49,FB_8,S$5,0))=16,"",VLOOKUP($A49,FB_8,S$5,0))&IF(TYPE(VLOOKUP($A49,FB_9,S$5,0))=16,"",VLOOKUP($A49,FB_9,S$5,0))&IF(TYPE(VLOOKUP($A49,FB_10,S$5,0))=16,"",VLOOKUP($A49,FB_10,S$5,0))&IF(TYPE(VLOOKUP($A49,FB_11,S$5,0))=16,"",VLOOKUP($A49,FB_11,S$5,0))&IF(TYPE(VLOOKUP($A49,FB_12,S$5,0))=16,"",VLOOKUP($A49,FB_12,S$5,0))&IF(TYPE(VLOOKUP($A49,FB_13,S$5,0))=16,"",VLOOKUP($A49,FB_13,S$5,0))&IF(TYPE(VLOOKUP($A49,FB_14,S$5,0))=16,"",VLOOKUP($A49,FB_14,S$5,0))&IF(TYPE(VLOOKUP($A49,FB_15,S$5,0))=16,"",VLOOKUP($A49,FB_15,S$5,0))&IF(TYPE(VLOOKUP($A49,FB_16,S$5,0))=16,"",VLOOKUP($A49,FB_16,S$5,0))&IF(TYPE(VLOOKUP($A49,FB_17,S$5,0))=16,"",VLOOKUP($A49,FB_17,S$5,0))&IF(TYPE(VLOOKUP($A49,FB_18,S$5,0))=16,"",VLOOKUP($A49,FB_18,S$5,0))&IF(TYPE(VLOOKUP($A49,FB_19,S$5,0))=16,"",VLOOKUP($A49,FB_19,S$5,0))&IF(TYPE(VLOOKUP($A49,FB_20,S$5,0))=16,"",VLOOKUP($A49,FB_20,S$5,0))&IF(TYPE(VLOOKUP($A49,FB_21,S$5,0))=16,"",VLOOKUP($A49,FB_21,S$5,0))&IF(TYPE(VLOOKUP($A49,FB_22,S$5,0))=16,"",VLOOKUP($A49,FB_22,S$5,0))&IF(TYPE(VLOOKUP($A49,FB_23,S$5,0))=16,"",VLOOKUP($A49,FB_23,S$5,0))&IF(TYPE(VLOOKUP($A49,FB_24,S$5,0))=16,"",VLOOKUP($A49,FB_24,S$5,0))&IF(TYPE(VLOOKUP($A49,FB_25,S$5,0))=16,"",VLOOKUP($A49,FB_25,S$5,0))&IF(TYPE(VLOOKUP($A49,FB_26,S$5,0))=16,"",VLOOKUP($A49,FB_26,S$5,0))&IF(TYPE(VLOOKUP($A49,FB_27,S$5,0))=16,"",VLOOKUP($A49,FB_27,S$5,0))&IF(TYPE(VLOOKUP($A49,FB_28,S$5,0))=16,"",VLOOKUP($A49,FB_28,S$5,0))&IF(TYPE(VLOOKUP($A49,FB_29,S$5,0))=16,"",VLOOKUP($A49,FB_29,S$5,0))&IF(TYPE(VLOOKUP($A49,FB_30,S$5,0))=16,"",VLOOKUP($A49,FB_30,S$5,0))) ->  | Y49: :
A50: 21. | B50: =IF(TYPE(VLOOKUP($A50,FB_1,2,0))=16,"",VLOOKUP($A50,FB_1,2,0))&IF(TYPE(VLOOKUP($A50,FB_2,2,0))=16,"",VLOOKUP($A50,FB_2,2,0))&IF(TYPE(VLOOKUP($A50,FB_3,2,0))=16,"",VLOOKUP($A50,FB_3,2,0))&IF(TYPE(VLOOKUP($A50,FB_4,2,0))=16,"",VLOOKUP($A50,FB_4,2,0))&IF(TYPE(VLOOKUP($A50,FB_5,2,0))=16,"",VLOOKUP($A50,FB_5,2,0))&IF(TYPE(VLOOKUP($A50,FB_6,2,0))=16,"",VLOOKUP($A50,FB_6,2,0))&IF(TYPE(VLOOKUP($A50,FB_7,2,0))=16,"",VLOOKUP($A50,FB_7,2,0))&IF(TYPE(VLOOKUP($A50,FB_8,2,0))=16,"",VLOOKUP($A50,FB_8,2,0))&IF(TYPE(VLOOKUP($A50,FB_9,2,0))=16,"",VLOOKUP($A50,FB_9,2,0))&IF(TYPE(VLOOKUP($A50,FB_10,2,0))=16,"",VLOOKUP($A50,FB_10,2,0))&IF(TYPE(VLOOKUP($A50,FB_11,2,0))=16,"",VLOOKUP($A50,FB_11,2,0))&IF(TYPE(VLOOKUP($A50,FB_12,2,0))=16,"",VLOOKUP($A50,FB_12,2,0))&IF(TYPE(VLOOKUP($A50,FB_13,2,0))=16,"",VLOOKUP($A50,FB_13,2,0))&IF(TYPE(VLOOKUP($A50,FB_14,2,0))=16,"",VLOOKUP($A50,FB_14,2,0))&IF(TYPE(VLOOKUP($A50,FB_15,2,0))=16,"",VLOOKUP($A50,FB_15,2,0))&IF(TYPE(VLOOKUP($A50,FB_16,2,0))=16,"",VLOOKUP($A50,FB_16,2,0))&IF(TYPE(VLOOKUP($A50,FB_17,2,0))=16,"",VLOOKUP($A50,FB_17,2,0))&IF(TYPE(VLOOKUP($A50,FB_18,2,0))=16,"",VLOOKUP($A50,FB_18,2,0))&IF(TYPE(VLOOKUP($A50,FB_19,2,0))=16,"",VLOOKUP($A50,FB_19,2,0))&IF(TYPE(VLOOKUP($A50,FB_20,2,0))=16,"",VLOOKUP($A50,FB_20,2,0))&IF(TYPE(VLOOKUP($A50,FB_21,2,0))=16,"",VLOOKUP($A50,FB_21,2,0))&IF(TYPE(VLOOKUP($A50,FB_22,2,0))=16,"",VLOOKUP($A50,FB_22,2,0))&IF(TYPE(VLOOKUP($A50,FB_23,2,0))=16,"",VLOOKUP($A50,FB_23,2,0))&IF(TYPE(VLOOKUP($A50,FB_24,2,0))=16,"",VLOOKUP($A50,FB_24,2,0))&IF(TYPE(VLOOKUP($A50,FB_25,2,0))=16,"",VLOOKUP($A50,FB_25,2,0))&IF(TYPE(VLOOKUP($A50,FB_26,2,0))=16,"",VLOOKUP($A50,FB_26,2,0))&IF(TYPE(VLOOKUP($A50,FB_27,2,0))=16,"",VLOOKUP($A50,FB_27,2,0))&IF(TYPE(VLOOKUP($A50,FB_28,2,0))=16,"",VLOOKUP($A50,FB_28,2,0))&IF(TYPE(VLOOKUP($A50,FB_29,2,0))=16,"",VLOOKUP($A50,FB_29,2,0))&IF(TYPE(VLOOKUP($A50,FB_30,2,0))=16,"",VLOOKUP($A50,FB_30,2,0)) ->  | D50: =IF($B50="","",_xlfn.NUMBERVALUE(IF(TYPE(VLOOKUP($A50,FB_1,P$5,0))=16,"",VLOOKUP($A50,FB_1,P$5,0))&IF(TYPE(VLOOKUP($A50,FB_2,P$5,0))=16,"",VLOOKUP($A50,FB_2,P$5,0))&IF(TYPE(VLOOKUP($A50,FB_3,P$5,0))=16,"",VLOOKUP($A50,FB_3,P$5,0))&IF(TYPE(VLOOKUP($A50,FB_4,P$5,0))=16,"",VLOOKUP($A50,FB_4,P$5,0))&IF(TYPE(VLOOKUP($A50,FB_5,P$5,0))=16,"",VLOOKUP($A50,FB_5,P$5,0))&IF(TYPE(VLOOKUP($A50,FB_6,P$5,0))=16,"",VLOOKUP($A50,FB_6,P$5,0))&IF(TYPE(VLOOKUP($A50,FB_7,P$5,0))=16,"",VLOOKUP($A50,FB_7,P$5,0))&IF(TYPE(VLOOKUP($A50,FB_8,P$5,0))=16,"",VLOOKUP($A50,FB_8,P$5,0))&IF(TYPE(VLOOKUP($A50,FB_9,P$5,0))=16,"",VLOOKUP($A50,FB_9,P$5,0))&IF(TYPE(VLOOKUP($A50,FB_10,P$5,0))=16,"",VLOOKUP($A50,FB_10,P$5,0))&IF(TYPE(VLOOKUP($A50,FB_11,P$5,0))=16,"",VLOOKUP($A50,FB_11,P$5,0))&IF(TYPE(VLOOKUP($A50,FB_12,P$5,0))=16,"",VLOOKUP($A50,FB_12,P$5,0))&IF(TYPE(VLOOKUP($A50,FB_13,P$5,0))=16,"",VLOOKUP($A50,FB_13,P$5,0))&IF(TYPE(VLOOKUP($A50,FB_14,P$5,0))=16,"",VLOOKUP($A50,FB_14,P$5,0))&IF(TYPE(VLOOKUP($A50,FB_15,P$5,0))=16,"",VLOOKUP($A50,FB_15,P$5,0))&IF(TYPE(VLOOKUP($A50,FB_16,P$5,0))=16,"",VLOOKUP($A50,FB_16,P$5,0))&IF(TYPE(VLOOKUP($A50,FB_17,P$5,0))=16,"",VLOOKUP($A50,FB_17,P$5,0))&IF(TYPE(VLOOKUP($A50,FB_18,P$5,0))=16,"",VLOOKUP($A50,FB_18,P$5,0))&IF(TYPE(VLOOKUP($A50,FB_19,P$5,0))=16,"",VLOOKUP($A50,FB_19,P$5,0))&IF(TYPE(VLOOKUP($A50,FB_20,P$5,0))=16,"",VLOOKUP($A50,FB_20,P$5,0))&IF(TYPE(VLOOKUP($A50,FB_21,P$5,0))=16,"",VLOOKUP($A50,FB_21,P$5,0))&IF(TYPE(VLOOKUP($A50,FB_22,P$5,0))=16,"",VLOOKUP($A50,FB_22,P$5,0))&IF(TYPE(VLOOKUP($A50,FB_23,P$5,0))=16,"",VLOOKUP($A50,FB_23,P$5,0))&IF(TYPE(VLOOKUP($A50,FB_24,P$5,0))=16,"",VLOOKUP($A50,FB_24,P$5,0))&IF(TYPE(VLOOKUP($A50,FB_25,P$5,0))=16,"",VLOOKUP($A50,FB_25,P$5,0))&IF(TYPE(VLOOKUP($A50,FB_26,P$5,0))=16,"",VLOOKUP($A50,FB_26,P$5,0))&IF(TYPE(VLOOKUP($A50,FB_27,P$5,0))=16,"",VLOOKUP($A50,FB_27,P$5,0))&IF(TYPE(VLOOKUP($A50,FB_28,P$5,0))=16,"",VLOOKUP($A50,FB_28,P$5,0))&IF(TYPE(VLOOKUP($A50,FB_29,P$5,0))=16,"",VLOOKUP($A50,FB_29,P$5,0))&IF(TYPE(VLOOKUP($A50,FB_30,P$5,0))=16,"",VLOOKUP($A50,FB_30,P$5,0)))) ->  | F50: =IF($B50="","",_xlfn.NUMBERVALUE(IF(TYPE(VLOOKUP($A50,FB_1,R$5,0))=16,"",VLOOKUP($A50,FB_1,R$5,0))&IF(TYPE(VLOOKUP($A50,FB_2,R$5,0))=16,"",VLOOKUP($A50,FB_2,R$5,0))&IF(TYPE(VLOOKUP($A50,FB_3,R$5,0))=16,"",VLOOKUP($A50,FB_3,R$5,0))&IF(TYPE(VLOOKUP($A50,FB_4,R$5,0))=16,"",VLOOKUP($A50,FB_4,R$5,0))&IF(TYPE(VLOOKUP($A50,FB_5,R$5,0))=16,"",VLOOKUP($A50,FB_5,R$5,0))&IF(TYPE(VLOOKUP($A50,FB_6,R$5,0))=16,"",VLOOKUP($A50,FB_6,R$5,0))&IF(TYPE(VLOOKUP($A50,FB_7,R$5,0))=16,"",VLOOKUP($A50,FB_7,R$5,0))&IF(TYPE(VLOOKUP($A50,FB_8,R$5,0))=16,"",VLOOKUP($A50,FB_8,R$5,0))&IF(TYPE(VLOOKUP($A50,FB_9,R$5,0))=16,"",VLOOKUP($A50,FB_9,R$5,0))&IF(TYPE(VLOOKUP($A50,FB_10,R$5,0))=16,"",VLOOKUP($A50,FB_10,R$5,0))&IF(TYPE(VLOOKUP($A50,FB_11,R$5,0))=16,"",VLOOKUP($A50,FB_11,R$5,0))&IF(TYPE(VLOOKUP($A50,FB_12,R$5,0))=16,"",VLOOKUP($A50,FB_12,R$5,0))&IF(TYPE(VLOOKUP($A50,FB_13,R$5,0))=16,"",VLOOKUP($A50,FB_13,R$5,0))&IF(TYPE(VLOOKUP($A50,FB_14,R$5,0))=16,"",VLOOKUP($A50,FB_14,R$5,0))&IF(TYPE(VLOOKUP($A50,FB_15,R$5,0))=16,"",VLOOKUP($A50,FB_15,R$5,0))&IF(TYPE(VLOOKUP($A50,FB_16,R$5,0))=16,"",VLOOKUP($A50,FB_16,R$5,0))&IF(TYPE(VLOOKUP($A50,FB_17,R$5,0))=16,"",VLOOKUP($A50,FB_17,R$5,0))&IF(TYPE(VLOOKUP($A50,FB_18,R$5,0))=16,"",VLOOKUP($A50,FB_18,R$5,0))&IF(TYPE(VLOOKUP($A50,FB_19,R$5,0))=16,"",VLOOKUP($A50,FB_19,R$5,0))&IF(TYPE(VLOOKUP($A50,FB_20,R$5,0))=16,"",VLOOKUP($A50,FB_20,R$5,0))&IF(TYPE(VLOOKUP($A50,FB_21,R$5,0))=16,"",VLOOKUP($A50,FB_21,R$5,0))&IF(TYPE(VLOOKUP($A50,FB_22,R$5,0))=16,"",VLOOKUP($A50,FB_22,R$5,0))&IF(TYPE(VLOOKUP($A50,FB_23,R$5,0))=16,"",VLOOKUP($A50,FB_23,R$5,0))&IF(TYPE(VLOOKUP($A50,FB_24,R$5,0))=16,"",VLOOKUP($A50,FB_24,R$5,0))&IF(TYPE(VLOOKUP($A50,FB_25,R$5,0))=16,"",VLOOKUP($A50,FB_25,R$5,0))&IF(TYPE(VLOOKUP($A50,FB_26,R$5,0))=16,"",VLOOKUP($A50,FB_26,R$5,0))&IF(TYPE(VLOOKUP($A50,FB_27,R$5,0))=16,"",VLOOKUP($A50,FB_27,R$5,0))&IF(TYPE(VLOOKUP($A50,FB_28,R$5,0))=16,"",VLOOKUP($A50,FB_28,R$5,0))&IF(TYPE(VLOOKUP($A50,FB_29,R$5,0))=16,"",VLOOKUP($A50,FB_29,R$5,0))&IF(TYPE(VLOOKUP($A50,FB_30,R$5,0))=16,"",VLOOKUP($A50,FB_30,R$5,0)))) ->  | G50: =IF($B50="","",IF(TYPE(VLOOKUP($A50,FB_1,S$5,0))=16,"",VLOOKUP($A50,FB_1,S$5,0))&IF(TYPE(VLOOKUP($A50,FB_2,S$5,0))=16,"",VLOOKUP($A50,FB_2,S$5,0))&IF(TYPE(VLOOKUP($A50,FB_3,S$5,0))=16,"",VLOOKUP($A50,FB_3,S$5,0))&IF(TYPE(VLOOKUP($A50,FB_4,S$5,0))=16,"",VLOOKUP($A50,FB_4,S$5,0))&IF(TYPE(VLOOKUP($A50,FB_5,S$5,0))=16,"",VLOOKUP($A50,FB_5,S$5,0))&IF(TYPE(VLOOKUP($A50,FB_6,S$5,0))=16,"",VLOOKUP($A50,FB_6,S$5,0))&IF(TYPE(VLOOKUP($A50,FB_7,S$5,0))=16,"",VLOOKUP($A50,FB_7,S$5,0))&IF(TYPE(VLOOKUP($A50,FB_8,S$5,0))=16,"",VLOOKUP($A50,FB_8,S$5,0))&IF(TYPE(VLOOKUP($A50,FB_9,S$5,0))=16,"",VLOOKUP($A50,FB_9,S$5,0))&IF(TYPE(VLOOKUP($A50,FB_10,S$5,0))=16,"",VLOOKUP($A50,FB_10,S$5,0))&IF(TYPE(VLOOKUP($A50,FB_11,S$5,0))=16,"",VLOOKUP($A50,FB_11,S$5,0))&IF(TYPE(VLOOKUP($A50,FB_12,S$5,0))=16,"",VLOOKUP($A50,FB_12,S$5,0))&IF(TYPE(VLOOKUP($A50,FB_13,S$5,0))=16,"",VLOOKUP($A50,FB_13,S$5,0))&IF(TYPE(VLOOKUP($A50,FB_14,S$5,0))=16,"",VLOOKUP($A50,FB_14,S$5,0))&IF(TYPE(VLOOKUP($A50,FB_15,S$5,0))=16,"",VLOOKUP($A50,FB_15,S$5,0))&IF(TYPE(VLOOKUP($A50,FB_16,S$5,0))=16,"",VLOOKUP($A50,FB_16,S$5,0))&IF(TYPE(VLOOKUP($A50,FB_17,S$5,0))=16,"",VLOOKUP($A50,FB_17,S$5,0))&IF(TYPE(VLOOKUP($A50,FB_18,S$5,0))=16,"",VLOOKUP($A50,FB_18,S$5,0))&IF(TYPE(VLOOKUP($A50,FB_19,S$5,0))=16,"",VLOOKUP($A50,FB_19,S$5,0))&IF(TYPE(VLOOKUP($A50,FB_20,S$5,0))=16,"",VLOOKUP($A50,FB_20,S$5,0))&IF(TYPE(VLOOKUP($A50,FB_21,S$5,0))=16,"",VLOOKUP($A50,FB_21,S$5,0))&IF(TYPE(VLOOKUP($A50,FB_22,S$5,0))=16,"",VLOOKUP($A50,FB_22,S$5,0))&IF(TYPE(VLOOKUP($A50,FB_23,S$5,0))=16,"",VLOOKUP($A50,FB_23,S$5,0))&IF(TYPE(VLOOKUP($A50,FB_24,S$5,0))=16,"",VLOOKUP($A50,FB_24,S$5,0))&IF(TYPE(VLOOKUP($A50,FB_25,S$5,0))=16,"",VLOOKUP($A50,FB_25,S$5,0))&IF(TYPE(VLOOKUP($A50,FB_26,S$5,0))=16,"",VLOOKUP($A50,FB_26,S$5,0))&IF(TYPE(VLOOKUP($A50,FB_27,S$5,0))=16,"",VLOOKUP($A50,FB_27,S$5,0))&IF(TYPE(VLOOKUP($A50,FB_28,S$5,0))=16,"",VLOOKUP($A50,FB_28,S$5,0))&IF(TYPE(VLOOKUP($A50,FB_29,S$5,0))=16,"",VLOOKUP($A50,FB_29,S$5,0))&IF(TYPE(VLOOKUP($A50,FB_30,S$5,0))=16,"",VLOOKUP($A50,FB_30,S$5,0))) ->  | Y50: :
A51: 22. | B51: =IF(TYPE(VLOOKUP($A51,FB_1,2,0))=16,"",VLOOKUP($A51,FB_1,2,0))&IF(TYPE(VLOOKUP($A51,FB_2,2,0))=16,"",VLOOKUP($A51,FB_2,2,0))&IF(TYPE(VLOOKUP($A51,FB_3,2,0))=16,"",VLOOKUP($A51,FB_3,2,0))&IF(TYPE(VLOOKUP($A51,FB_4,2,0))=16,"",VLOOKUP($A51,FB_4,2,0))&IF(TYPE(VLOOKUP($A51,FB_5,2,0))=16,"",VLOOKUP($A51,FB_5,2,0))&IF(TYPE(VLOOKUP($A51,FB_6,2,0))=16,"",VLOOKUP($A51,FB_6,2,0))&IF(TYPE(VLOOKUP($A51,FB_7,2,0))=16,"",VLOOKUP($A51,FB_7,2,0))&IF(TYPE(VLOOKUP($A51,FB_8,2,0))=16,"",VLOOKUP($A51,FB_8,2,0))&IF(TYPE(VLOOKUP($A51,FB_9,2,0))=16,"",VLOOKUP($A51,FB_9,2,0))&IF(TYPE(VLOOKUP($A51,FB_10,2,0))=16,"",VLOOKUP($A51,FB_10,2,0))&IF(TYPE(VLOOKUP($A51,FB_11,2,0))=16,"",VLOOKUP($A51,FB_11,2,0))&IF(TYPE(VLOOKUP($A51,FB_12,2,0))=16,"",VLOOKUP($A51,FB_12,2,0))&IF(TYPE(VLOOKUP($A51,FB_13,2,0))=16,"",VLOOKUP($A51,FB_13,2,0))&IF(TYPE(VLOOKUP($A51,FB_14,2,0))=16,"",VLOOKUP($A51,FB_14,2,0))&IF(TYPE(VLOOKUP($A51,FB_15,2,0))=16,"",VLOOKUP($A51,FB_15,2,0))&IF(TYPE(VLOOKUP($A51,FB_16,2,0))=16,"",VLOOKUP($A51,FB_16,2,0))&IF(TYPE(VLOOKUP($A51,FB_17,2,0))=16,"",VLOOKUP($A51,FB_17,2,0))&IF(TYPE(VLOOKUP($A51,FB_18,2,0))=16,"",VLOOKUP($A51,FB_18,2,0))&IF(TYPE(VLOOKUP($A51,FB_19,2,0))=16,"",VLOOKUP($A51,FB_19,2,0))&IF(TYPE(VLOOKUP($A51,FB_20,2,0))=16,"",VLOOKUP($A51,FB_20,2,0))&IF(TYPE(VLOOKUP($A51,FB_21,2,0))=16,"",VLOOKUP($A51,FB_21,2,0))&IF(TYPE(VLOOKUP($A51,FB_22,2,0))=16,"",VLOOKUP($A51,FB_22,2,0))&IF(TYPE(VLOOKUP($A51,FB_23,2,0))=16,"",VLOOKUP($A51,FB_23,2,0))&IF(TYPE(VLOOKUP($A51,FB_24,2,0))=16,"",VLOOKUP($A51,FB_24,2,0))&IF(TYPE(VLOOKUP($A51,FB_25,2,0))=16,"",VLOOKUP($A51,FB_25,2,0))&IF(TYPE(VLOOKUP($A51,FB_26,2,0))=16,"",VLOOKUP($A51,FB_26,2,0))&IF(TYPE(VLOOKUP($A51,FB_27,2,0))=16,"",VLOOKUP($A51,FB_27,2,0))&IF(TYPE(VLOOKUP($A51,FB_28,2,0))=16,"",VLOOKUP($A51,FB_28,2,0))&IF(TYPE(VLOOKUP($A51,FB_29,2,0))=16,"",VLOOKUP($A51,FB_29,2,0))&IF(TYPE(VLOOKUP($A51,FB_30,2,0))=16,"",VLOOKUP($A51,FB_30,2,0)) ->  | D51: =IF($B51="","",_xlfn.NUMBERVALUE(IF(TYPE(VLOOKUP($A51,FB_1,P$5,0))=16,"",VLOOKUP($A51,FB_1,P$5,0))&IF(TYPE(VLOOKUP($A51,FB_2,P$5,0))=16,"",VLOOKUP($A51,FB_2,P$5,0))&IF(TYPE(VLOOKUP($A51,FB_3,P$5,0))=16,"",VLOOKUP($A51,FB_3,P$5,0))&IF(TYPE(VLOOKUP($A51,FB_4,P$5,0))=16,"",VLOOKUP($A51,FB_4,P$5,0))&IF(TYPE(VLOOKUP($A51,FB_5,P$5,0))=16,"",VLOOKUP($A51,FB_5,P$5,0))&IF(TYPE(VLOOKUP($A51,FB_6,P$5,0))=16,"",VLOOKUP($A51,FB_6,P$5,0))&IF(TYPE(VLOOKUP($A51,FB_7,P$5,0))=16,"",VLOOKUP($A51,FB_7,P$5,0))&IF(TYPE(VLOOKUP($A51,FB_8,P$5,0))=16,"",VLOOKUP($A51,FB_8,P$5,0))&IF(TYPE(VLOOKUP($A51,FB_9,P$5,0))=16,"",VLOOKUP($A51,FB_9,P$5,0))&IF(TYPE(VLOOKUP($A51,FB_10,P$5,0))=16,"",VLOOKUP($A51,FB_10,P$5,0))&IF(TYPE(VLOOKUP($A51,FB_11,P$5,0))=16,"",VLOOKUP($A51,FB_11,P$5,0))&IF(TYPE(VLOOKUP($A51,FB_12,P$5,0))=16,"",VLOOKUP($A51,FB_12,P$5,0))&IF(TYPE(VLOOKUP($A51,FB_13,P$5,0))=16,"",VLOOKUP($A51,FB_13,P$5,0))&IF(TYPE(VLOOKUP($A51,FB_14,P$5,0))=16,"",VLOOKUP($A51,FB_14,P$5,0))&IF(TYPE(VLOOKUP($A51,FB_15,P$5,0))=16,"",VLOOKUP($A51,FB_15,P$5,0))&IF(TYPE(VLOOKUP($A51,FB_16,P$5,0))=16,"",VLOOKUP($A51,FB_16,P$5,0))&IF(TYPE(VLOOKUP($A51,FB_17,P$5,0))=16,"",VLOOKUP($A51,FB_17,P$5,0))&IF(TYPE(VLOOKUP($A51,FB_18,P$5,0))=16,"",VLOOKUP($A51,FB_18,P$5,0))&IF(TYPE(VLOOKUP($A51,FB_19,P$5,0))=16,"",VLOOKUP($A51,FB_19,P$5,0))&IF(TYPE(VLOOKUP($A51,FB_20,P$5,0))=16,"",VLOOKUP($A51,FB_20,P$5,0))&IF(TYPE(VLOOKUP($A51,FB_21,P$5,0))=16,"",VLOOKUP($A51,FB_21,P$5,0))&IF(TYPE(VLOOKUP($A51,FB_22,P$5,0))=16,"",VLOOKUP($A51,FB_22,P$5,0))&IF(TYPE(VLOOKUP($A51,FB_23,P$5,0))=16,"",VLOOKUP($A51,FB_23,P$5,0))&IF(TYPE(VLOOKUP($A51,FB_24,P$5,0))=16,"",VLOOKUP($A51,FB_24,P$5,0))&IF(TYPE(VLOOKUP($A51,FB_25,P$5,0))=16,"",VLOOKUP($A51,FB_25,P$5,0))&IF(TYPE(VLOOKUP($A51,FB_26,P$5,0))=16,"",VLOOKUP($A51,FB_26,P$5,0))&IF(TYPE(VLOOKUP($A51,FB_27,P$5,0))=16,"",VLOOKUP($A51,FB_27,P$5,0))&IF(TYPE(VLOOKUP($A51,FB_28,P$5,0))=16,"",VLOOKUP($A51,FB_28,P$5,0))&IF(TYPE(VLOOKUP($A51,FB_29,P$5,0))=16,"",VLOOKUP($A51,FB_29,P$5,0))&IF(TYPE(VLOOKUP($A51,FB_30,P$5,0))=16,"",VLOOKUP($A51,FB_30,P$5,0)))) ->  | F51: =IF($B51="","",_xlfn.NUMBERVALUE(IF(TYPE(VLOOKUP($A51,FB_1,R$5,0))=16,"",VLOOKUP($A51,FB_1,R$5,0))&IF(TYPE(VLOOKUP($A51,FB_2,R$5,0))=16,"",VLOOKUP($A51,FB_2,R$5,0))&IF(TYPE(VLOOKUP($A51,FB_3,R$5,0))=16,"",VLOOKUP($A51,FB_3,R$5,0))&IF(TYPE(VLOOKUP($A51,FB_4,R$5,0))=16,"",VLOOKUP($A51,FB_4,R$5,0))&IF(TYPE(VLOOKUP($A51,FB_5,R$5,0))=16,"",VLOOKUP($A51,FB_5,R$5,0))&IF(TYPE(VLOOKUP($A51,FB_6,R$5,0))=16,"",VLOOKUP($A51,FB_6,R$5,0))&IF(TYPE(VLOOKUP($A51,FB_7,R$5,0))=16,"",VLOOKUP($A51,FB_7,R$5,0))&IF(TYPE(VLOOKUP($A51,FB_8,R$5,0))=16,"",VLOOKUP($A51,FB_8,R$5,0))&IF(TYPE(VLOOKUP($A51,FB_9,R$5,0))=16,"",VLOOKUP($A51,FB_9,R$5,0))&IF(TYPE(VLOOKUP($A51,FB_10,R$5,0))=16,"",VLOOKUP($A51,FB_10,R$5,0))&IF(TYPE(VLOOKUP($A51,FB_11,R$5,0))=16,"",VLOOKUP($A51,FB_11,R$5,0))&IF(TYPE(VLOOKUP($A51,FB_12,R$5,0))=16,"",VLOOKUP($A51,FB_12,R$5,0))&IF(TYPE(VLOOKUP($A51,FB_13,R$5,0))=16,"",VLOOKUP($A51,FB_13,R$5,0))&IF(TYPE(VLOOKUP($A51,FB_14,R$5,0))=16,"",VLOOKUP($A51,FB_14,R$5,0))&IF(TYPE(VLOOKUP($A51,FB_15,R$5,0))=16,"",VLOOKUP($A51,FB_15,R$5,0))&IF(TYPE(VLOOKUP($A51,FB_16,R$5,0))=16,"",VLOOKUP($A51,FB_16,R$5,0))&IF(TYPE(VLOOKUP($A51,FB_17,R$5,0))=16,"",VLOOKUP($A51,FB_17,R$5,0))&IF(TYPE(VLOOKUP($A51,FB_18,R$5,0))=16,"",VLOOKUP($A51,FB_18,R$5,0))&IF(TYPE(VLOOKUP($A51,FB_19,R$5,0))=16,"",VLOOKUP($A51,FB_19,R$5,0))&IF(TYPE(VLOOKUP($A51,FB_20,R$5,0))=16,"",VLOOKUP($A51,FB_20,R$5,0))&IF(TYPE(VLOOKUP($A51,FB_21,R$5,0))=16,"",VLOOKUP($A51,FB_21,R$5,0))&IF(TYPE(VLOOKUP($A51,FB_22,R$5,0))=16,"",VLOOKUP($A51,FB_22,R$5,0))&IF(TYPE(VLOOKUP($A51,FB_23,R$5,0))=16,"",VLOOKUP($A51,FB_23,R$5,0))&IF(TYPE(VLOOKUP($A51,FB_24,R$5,0))=16,"",VLOOKUP($A51,FB_24,R$5,0))&IF(TYPE(VLOOKUP($A51,FB_25,R$5,0))=16,"",VLOOKUP($A51,FB_25,R$5,0))&IF(TYPE(VLOOKUP($A51,FB_26,R$5,0))=16,"",VLOOKUP($A51,FB_26,R$5,0))&IF(TYPE(VLOOKUP($A51,FB_27,R$5,0))=16,"",VLOOKUP($A51,FB_27,R$5,0))&IF(TYPE(VLOOKUP($A51,FB_28,R$5,0))=16,"",VLOOKUP($A51,FB_28,R$5,0))&IF(TYPE(VLOOKUP($A51,FB_29,R$5,0))=16,"",VLOOKUP($A51,FB_29,R$5,0))&IF(TYPE(VLOOKUP($A51,FB_30,R$5,0))=16,"",VLOOKUP($A51,FB_30,R$5,0)))) ->  | G51: =IF($B51="","",IF(TYPE(VLOOKUP($A51,FB_1,S$5,0))=16,"",VLOOKUP($A51,FB_1,S$5,0))&IF(TYPE(VLOOKUP($A51,FB_2,S$5,0))=16,"",VLOOKUP($A51,FB_2,S$5,0))&IF(TYPE(VLOOKUP($A51,FB_3,S$5,0))=16,"",VLOOKUP($A51,FB_3,S$5,0))&IF(TYPE(VLOOKUP($A51,FB_4,S$5,0))=16,"",VLOOKUP($A51,FB_4,S$5,0))&IF(TYPE(VLOOKUP($A51,FB_5,S$5,0))=16,"",VLOOKUP($A51,FB_5,S$5,0))&IF(TYPE(VLOOKUP($A51,FB_6,S$5,0))=16,"",VLOOKUP($A51,FB_6,S$5,0))&IF(TYPE(VLOOKUP($A51,FB_7,S$5,0))=16,"",VLOOKUP($A51,FB_7,S$5,0))&IF(TYPE(VLOOKUP($A51,FB_8,S$5,0))=16,"",VLOOKUP($A51,FB_8,S$5,0))&IF(TYPE(VLOOKUP($A51,FB_9,S$5,0))=16,"",VLOOKUP($A51,FB_9,S$5,0))&IF(TYPE(VLOOKUP($A51,FB_10,S$5,0))=16,"",VLOOKUP($A51,FB_10,S$5,0))&IF(TYPE(VLOOKUP($A51,FB_11,S$5,0))=16,"",VLOOKUP($A51,FB_11,S$5,0))&IF(TYPE(VLOOKUP($A51,FB_12,S$5,0))=16,"",VLOOKUP($A51,FB_12,S$5,0))&IF(TYPE(VLOOKUP($A51,FB_13,S$5,0))=16,"",VLOOKUP($A51,FB_13,S$5,0))&IF(TYPE(VLOOKUP($A51,FB_14,S$5,0))=16,"",VLOOKUP($A51,FB_14,S$5,0))&IF(TYPE(VLOOKUP($A51,FB_15,S$5,0))=16,"",VLOOKUP($A51,FB_15,S$5,0))&IF(TYPE(VLOOKUP($A51,FB_16,S$5,0))=16,"",VLOOKUP($A51,FB_16,S$5,0))&IF(TYPE(VLOOKUP($A51,FB_17,S$5,0))=16,"",VLOOKUP($A51,FB_17,S$5,0))&IF(TYPE(VLOOKUP($A51,FB_18,S$5,0))=16,"",VLOOKUP($A51,FB_18,S$5,0))&IF(TYPE(VLOOKUP($A51,FB_19,S$5,0))=16,"",VLOOKUP($A51,FB_19,S$5,0))&IF(TYPE(VLOOKUP($A51,FB_20,S$5,0))=16,"",VLOOKUP($A51,FB_20,S$5,0))&IF(TYPE(VLOOKUP($A51,FB_21,S$5,0))=16,"",VLOOKUP($A51,FB_21,S$5,0))&IF(TYPE(VLOOKUP($A51,FB_22,S$5,0))=16,"",VLOOKUP($A51,FB_22,S$5,0))&IF(TYPE(VLOOKUP($A51,FB_23,S$5,0))=16,"",VLOOKUP($A51,FB_23,S$5,0))&IF(TYPE(VLOOKUP($A51,FB_24,S$5,0))=16,"",VLOOKUP($A51,FB_24,S$5,0))&IF(TYPE(VLOOKUP($A51,FB_25,S$5,0))=16,"",VLOOKUP($A51,FB_25,S$5,0))&IF(TYPE(VLOOKUP($A51,FB_26,S$5,0))=16,"",VLOOKUP($A51,FB_26,S$5,0))&IF(TYPE(VLOOKUP($A51,FB_27,S$5,0))=16,"",VLOOKUP($A51,FB_27,S$5,0))&IF(TYPE(VLOOKUP($A51,FB_28,S$5,0))=16,"",VLOOKUP($A51,FB_28,S$5,0))&IF(TYPE(VLOOKUP($A51,FB_29,S$5,0))=16,"",VLOOKUP($A51,FB_29,S$5,0))&IF(TYPE(VLOOKUP($A51,FB_30,S$5,0))=16,"",VLOOKUP($A51,FB_30,S$5,0))) ->  | Y51: :
A52: 23. | B52: =IF(TYPE(VLOOKUP($A52,FB_1,2,0))=16,"",VLOOKUP($A52,FB_1,2,0))&IF(TYPE(VLOOKUP($A52,FB_2,2,0))=16,"",VLOOKUP($A52,FB_2,2,0))&IF(TYPE(VLOOKUP($A52,FB_3,2,0))=16,"",VLOOKUP($A52,FB_3,2,0))&IF(TYPE(VLOOKUP($A52,FB_4,2,0))=16,"",VLOOKUP($A52,FB_4,2,0))&IF(TYPE(VLOOKUP($A52,FB_5,2,0))=16,"",VLOOKUP($A52,FB_5,2,0))&IF(TYPE(VLOOKUP($A52,FB_6,2,0))=16,"",VLOOKUP($A52,FB_6,2,0))&IF(TYPE(VLOOKUP($A52,FB_7,2,0))=16,"",VLOOKUP($A52,FB_7,2,0))&IF(TYPE(VLOOKUP($A52,FB_8,2,0))=16,"",VLOOKUP($A52,FB_8,2,0))&IF(TYPE(VLOOKUP($A52,FB_9,2,0))=16,"",VLOOKUP($A52,FB_9,2,0))&IF(TYPE(VLOOKUP($A52,FB_10,2,0))=16,"",VLOOKUP($A52,FB_10,2,0))&IF(TYPE(VLOOKUP($A52,FB_11,2,0))=16,"",VLOOKUP($A52,FB_11,2,0))&IF(TYPE(VLOOKUP($A52,FB_12,2,0))=16,"",VLOOKUP($A52,FB_12,2,0))&IF(TYPE(VLOOKUP($A52,FB_13,2,0))=16,"",VLOOKUP($A52,FB_13,2,0))&IF(TYPE(VLOOKUP($A52,FB_14,2,0))=16,"",VLOOKUP($A52,FB_14,2,0))&IF(TYPE(VLOOKUP($A52,FB_15,2,0))=16,"",VLOOKUP($A52,FB_15,2,0))&IF(TYPE(VLOOKUP($A52,FB_16,2,0))=16,"",VLOOKUP($A52,FB_16,2,0))&IF(TYPE(VLOOKUP($A52,FB_17,2,0))=16,"",VLOOKUP($A52,FB_17,2,0))&IF(TYPE(VLOOKUP($A52,FB_18,2,0))=16,"",VLOOKUP($A52,FB_18,2,0))&IF(TYPE(VLOOKUP($A52,FB_19,2,0))=16,"",VLOOKUP($A52,FB_19,2,0))&IF(TYPE(VLOOKUP($A52,FB_20,2,0))=16,"",VLOOKUP($A52,FB_20,2,0))&IF(TYPE(VLOOKUP($A52,FB_21,2,0))=16,"",VLOOKUP($A52,FB_21,2,0))&IF(TYPE(VLOOKUP($A52,FB_22,2,0))=16,"",VLOOKUP($A52,FB_22,2,0))&IF(TYPE(VLOOKUP($A52,FB_23,2,0))=16,"",VLOOKUP($A52,FB_23,2,0))&IF(TYPE(VLOOKUP($A52,FB_24,2,0))=16,"",VLOOKUP($A52,FB_24,2,0))&IF(TYPE(VLOOKUP($A52,FB_25,2,0))=16,"",VLOOKUP($A52,FB_25,2,0))&IF(TYPE(VLOOKUP($A52,FB_26,2,0))=16,"",VLOOKUP($A52,FB_26,2,0))&IF(TYPE(VLOOKUP($A52,FB_27,2,0))=16,"",VLOOKUP($A52,FB_27,2,0))&IF(TYPE(VLOOKUP($A52,FB_28,2,0))=16,"",VLOOKUP($A52,FB_28,2,0))&IF(TYPE(VLOOKUP($A52,FB_29,2,0))=16,"",VLOOKUP($A52,FB_29,2,0))&IF(TYPE(VLOOKUP($A52,FB_30,2,0))=16,"",VLOOKUP($A52,FB_30,2,0)) ->  | D52: =IF($B52="","",_xlfn.NUMBERVALUE(IF(TYPE(VLOOKUP($A52,FB_1,P$5,0))=16,"",VLOOKUP($A52,FB_1,P$5,0))&IF(TYPE(VLOOKUP($A52,FB_2,P$5,0))=16,"",VLOOKUP($A52,FB_2,P$5,0))&IF(TYPE(VLOOKUP($A52,FB_3,P$5,0))=16,"",VLOOKUP($A52,FB_3,P$5,0))&IF(TYPE(VLOOKUP($A52,FB_4,P$5,0))=16,"",VLOOKUP($A52,FB_4,P$5,0))&IF(TYPE(VLOOKUP($A52,FB_5,P$5,0))=16,"",VLOOKUP($A52,FB_5,P$5,0))&IF(TYPE(VLOOKUP($A52,FB_6,P$5,0))=16,"",VLOOKUP($A52,FB_6,P$5,0))&IF(TYPE(VLOOKUP($A52,FB_7,P$5,0))=16,"",VLOOKUP($A52,FB_7,P$5,0))&IF(TYPE(VLOOKUP($A52,FB_8,P$5,0))=16,"",VLOOKUP($A52,FB_8,P$5,0))&IF(TYPE(VLOOKUP($A52,FB_9,P$5,0))=16,"",VLOOKUP($A52,FB_9,P$5,0))&IF(TYPE(VLOOKUP($A52,FB_10,P$5,0))=16,"",VLOOKUP($A52,FB_10,P$5,0))&IF(TYPE(VLOOKUP($A52,FB_11,P$5,0))=16,"",VLOOKUP($A52,FB_11,P$5,0))&IF(TYPE(VLOOKUP($A52,FB_12,P$5,0))=16,"",VLOOKUP($A52,FB_12,P$5,0))&IF(TYPE(VLOOKUP($A52,FB_13,P$5,0))=16,"",VLOOKUP($A52,FB_13,P$5,0))&IF(TYPE(VLOOKUP($A52,FB_14,P$5,0))=16,"",VLOOKUP($A52,FB_14,P$5,0))&IF(TYPE(VLOOKUP($A52,FB_15,P$5,0))=16,"",VLOOKUP($A52,FB_15,P$5,0))&IF(TYPE(VLOOKUP($A52,FB_16,P$5,0))=16,"",VLOOKUP($A52,FB_16,P$5,0))&IF(TYPE(VLOOKUP($A52,FB_17,P$5,0))=16,"",VLOOKUP($A52,FB_17,P$5,0))&IF(TYPE(VLOOKUP($A52,FB_18,P$5,0))=16,"",VLOOKUP($A52,FB_18,P$5,0))&IF(TYPE(VLOOKUP($A52,FB_19,P$5,0))=16,"",VLOOKUP($A52,FB_19,P$5,0))&IF(TYPE(VLOOKUP($A52,FB_20,P$5,0))=16,"",VLOOKUP($A52,FB_20,P$5,0))&IF(TYPE(VLOOKUP($A52,FB_21,P$5,0))=16,"",VLOOKUP($A52,FB_21,P$5,0))&IF(TYPE(VLOOKUP($A52,FB_22,P$5,0))=16,"",VLOOKUP($A52,FB_22,P$5,0))&IF(TYPE(VLOOKUP($A52,FB_23,P$5,0))=16,"",VLOOKUP($A52,FB_23,P$5,0))&IF(TYPE(VLOOKUP($A52,FB_24,P$5,0))=16,"",VLOOKUP($A52,FB_24,P$5,0))&IF(TYPE(VLOOKUP($A52,FB_25,P$5,0))=16,"",VLOOKUP($A52,FB_25,P$5,0))&IF(TYPE(VLOOKUP($A52,FB_26,P$5,0))=16,"",VLOOKUP($A52,FB_26,P$5,0))&IF(TYPE(VLOOKUP($A52,FB_27,P$5,0))=16,"",VLOOKUP($A52,FB_27,P$5,0))&IF(TYPE(VLOOKUP($A52,FB_28,P$5,0))=16,"",VLOOKUP($A52,FB_28,P$5,0))&IF(TYPE(VLOOKUP($A52,FB_29,P$5,0))=16,"",VLOOKUP($A52,FB_29,P$5,0))&IF(TYPE(VLOOKUP($A52,FB_30,P$5,0))=16,"",VLOOKUP($A52,FB_30,P$5,0)))) ->  | F52: =IF($B52="","",_xlfn.NUMBERVALUE(IF(TYPE(VLOOKUP($A52,FB_1,R$5,0))=16,"",VLOOKUP($A52,FB_1,R$5,0))&IF(TYPE(VLOOKUP($A52,FB_2,R$5,0))=16,"",VLOOKUP($A52,FB_2,R$5,0))&IF(TYPE(VLOOKUP($A52,FB_3,R$5,0))=16,"",VLOOKUP($A52,FB_3,R$5,0))&IF(TYPE(VLOOKUP($A52,FB_4,R$5,0))=16,"",VLOOKUP($A52,FB_4,R$5,0))&IF(TYPE(VLOOKUP($A52,FB_5,R$5,0))=16,"",VLOOKUP($A52,FB_5,R$5,0))&IF(TYPE(VLOOKUP($A52,FB_6,R$5,0))=16,"",VLOOKUP($A52,FB_6,R$5,0))&IF(TYPE(VLOOKUP($A52,FB_7,R$5,0))=16,"",VLOOKUP($A52,FB_7,R$5,0))&IF(TYPE(VLOOKUP($A52,FB_8,R$5,0))=16,"",VLOOKUP($A52,FB_8,R$5,0))&IF(TYPE(VLOOKUP($A52,FB_9,R$5,0))=16,"",VLOOKUP($A52,FB_9,R$5,0))&IF(TYPE(VLOOKUP($A52,FB_10,R$5,0))=16,"",VLOOKUP($A52,FB_10,R$5,0))&IF(TYPE(VLOOKUP($A52,FB_11,R$5,0))=16,"",VLOOKUP($A52,FB_11,R$5,0))&IF(TYPE(VLOOKUP($A52,FB_12,R$5,0))=16,"",VLOOKUP($A52,FB_12,R$5,0))&IF(TYPE(VLOOKUP($A52,FB_13,R$5,0))=16,"",VLOOKUP($A52,FB_13,R$5,0))&IF(TYPE(VLOOKUP($A52,FB_14,R$5,0))=16,"",VLOOKUP($A52,FB_14,R$5,0))&IF(TYPE(VLOOKUP($A52,FB_15,R$5,0))=16,"",VLOOKUP($A52,FB_15,R$5,0))&IF(TYPE(VLOOKUP($A52,FB_16,R$5,0))=16,"",VLOOKUP($A52,FB_16,R$5,0))&IF(TYPE(VLOOKUP($A52,FB_17,R$5,0))=16,"",VLOOKUP($A52,FB_17,R$5,0))&IF(TYPE(VLOOKUP($A52,FB_18,R$5,0))=16,"",VLOOKUP($A52,FB_18,R$5,0))&IF(TYPE(VLOOKUP($A52,FB_19,R$5,0))=16,"",VLOOKUP($A52,FB_19,R$5,0))&IF(TYPE(VLOOKUP($A52,FB_20,R$5,0))=16,"",VLOOKUP($A52,FB_20,R$5,0))&IF(TYPE(VLOOKUP($A52,FB_21,R$5,0))=16,"",VLOOKUP($A52,FB_21,R$5,0))&IF(TYPE(VLOOKUP($A52,FB_22,R$5,0))=16,"",VLOOKUP($A52,FB_22,R$5,0))&IF(TYPE(VLOOKUP($A52,FB_23,R$5,0))=16,"",VLOOKUP($A52,FB_23,R$5,0))&IF(TYPE(VLOOKUP($A52,FB_24,R$5,0))=16,"",VLOOKUP($A52,FB_24,R$5,0))&IF(TYPE(VLOOKUP($A52,FB_25,R$5,0))=16,"",VLOOKUP($A52,FB_25,R$5,0))&IF(TYPE(VLOOKUP($A52,FB_26,R$5,0))=16,"",VLOOKUP($A52,FB_26,R$5,0))&IF(TYPE(VLOOKUP($A52,FB_27,R$5,0))=16,"",VLOOKUP($A52,FB_27,R$5,0))&IF(TYPE(VLOOKUP($A52,FB_28,R$5,0))=16,"",VLOOKUP($A52,FB_28,R$5,0))&IF(TYPE(VLOOKUP($A52,FB_29,R$5,0))=16,"",VLOOKUP($A52,FB_29,R$5,0))&IF(TYPE(VLOOKUP($A52,FB_30,R$5,0))=16,"",VLOOKUP($A52,FB_30,R$5,0)))) ->  | G52: =IF($B52="","",IF(TYPE(VLOOKUP($A52,FB_1,S$5,0))=16,"",VLOOKUP($A52,FB_1,S$5,0))&IF(TYPE(VLOOKUP($A52,FB_2,S$5,0))=16,"",VLOOKUP($A52,FB_2,S$5,0))&IF(TYPE(VLOOKUP($A52,FB_3,S$5,0))=16,"",VLOOKUP($A52,FB_3,S$5,0))&IF(TYPE(VLOOKUP($A52,FB_4,S$5,0))=16,"",VLOOKUP($A52,FB_4,S$5,0))&IF(TYPE(VLOOKUP($A52,FB_5,S$5,0))=16,"",VLOOKUP($A52,FB_5,S$5,0))&IF(TYPE(VLOOKUP($A52,FB_6,S$5,0))=16,"",VLOOKUP($A52,FB_6,S$5,0))&IF(TYPE(VLOOKUP($A52,FB_7,S$5,0))=16,"",VLOOKUP($A52,FB_7,S$5,0))&IF(TYPE(VLOOKUP($A52,FB_8,S$5,0))=16,"",VLOOKUP($A52,FB_8,S$5,0))&IF(TYPE(VLOOKUP($A52,FB_9,S$5,0))=16,"",VLOOKUP($A52,FB_9,S$5,0))&IF(TYPE(VLOOKUP($A52,FB_10,S$5,0))=16,"",VLOOKUP($A52,FB_10,S$5,0))&IF(TYPE(VLOOKUP($A52,FB_11,S$5,0))=16,"",VLOOKUP($A52,FB_11,S$5,0))&IF(TYPE(VLOOKUP($A52,FB_12,S$5,0))=16,"",VLOOKUP($A52,FB_12,S$5,0))&IF(TYPE(VLOOKUP($A52,FB_13,S$5,0))=16,"",VLOOKUP($A52,FB_13,S$5,0))&IF(TYPE(VLOOKUP($A52,FB_14,S$5,0))=16,"",VLOOKUP($A52,FB_14,S$5,0))&IF(TYPE(VLOOKUP($A52,FB_15,S$5,0))=16,"",VLOOKUP($A52,FB_15,S$5,0))&IF(TYPE(VLOOKUP($A52,FB_16,S$5,0))=16,"",VLOOKUP($A52,FB_16,S$5,0))&IF(TYPE(VLOOKUP($A52,FB_17,S$5,0))=16,"",VLOOKUP($A52,FB_17,S$5,0))&IF(TYPE(VLOOKUP($A52,FB_18,S$5,0))=16,"",VLOOKUP($A52,FB_18,S$5,0))&IF(TYPE(VLOOKUP($A52,FB_19,S$5,0))=16,"",VLOOKUP($A52,FB_19,S$5,0))&IF(TYPE(VLOOKUP($A52,FB_20,S$5,0))=16,"",VLOOKUP($A52,FB_20,S$5,0))&IF(TYPE(VLOOKUP($A52,FB_21,S$5,0))=16,"",VLOOKUP($A52,FB_21,S$5,0))&IF(TYPE(VLOOKUP($A52,FB_22,S$5,0))=16,"",VLOOKUP($A52,FB_22,S$5,0))&IF(TYPE(VLOOKUP($A52,FB_23,S$5,0))=16,"",VLOOKUP($A52,FB_23,S$5,0))&IF(TYPE(VLOOKUP($A52,FB_24,S$5,0))=16,"",VLOOKUP($A52,FB_24,S$5,0))&IF(TYPE(VLOOKUP($A52,FB_25,S$5,0))=16,"",VLOOKUP($A52,FB_25,S$5,0))&IF(TYPE(VLOOKUP($A52,FB_26,S$5,0))=16,"",VLOOKUP($A52,FB_26,S$5,0))&IF(TYPE(VLOOKUP($A52,FB_27,S$5,0))=16,"",VLOOKUP($A52,FB_27,S$5,0))&IF(TYPE(VLOOKUP($A52,FB_28,S$5,0))=16,"",VLOOKUP($A52,FB_28,S$5,0))&IF(TYPE(VLOOKUP($A52,FB_29,S$5,0))=16,"",VLOOKUP($A52,FB_29,S$5,0))&IF(TYPE(VLOOKUP($A52,FB_30,S$5,0))=16,"",VLOOKUP($A52,FB_30,S$5,0))) ->  | Y52: :
A53: 24. | B53: =IF(TYPE(VLOOKUP($A53,FB_1,2,0))=16,"",VLOOKUP($A53,FB_1,2,0))&IF(TYPE(VLOOKUP($A53,FB_2,2,0))=16,"",VLOOKUP($A53,FB_2,2,0))&IF(TYPE(VLOOKUP($A53,FB_3,2,0))=16,"",VLOOKUP($A53,FB_3,2,0))&IF(TYPE(VLOOKUP($A53,FB_4,2,0))=16,"",VLOOKUP($A53,FB_4,2,0))&IF(TYPE(VLOOKUP($A53,FB_5,2,0))=16,"",VLOOKUP($A53,FB_5,2,0))&IF(TYPE(VLOOKUP($A53,FB_6,2,0))=16,"",VLOOKUP($A53,FB_6,2,0))&IF(TYPE(VLOOKUP($A53,FB_7,2,0))=16,"",VLOOKUP($A53,FB_7,2,0))&IF(TYPE(VLOOKUP($A53,FB_8,2,0))=16,"",VLOOKUP($A53,FB_8,2,0))&IF(TYPE(VLOOKUP($A53,FB_9,2,0))=16,"",VLOOKUP($A53,FB_9,2,0))&IF(TYPE(VLOOKUP($A53,FB_10,2,0))=16,"",VLOOKUP($A53,FB_10,2,0))&IF(TYPE(VLOOKUP($A53,FB_11,2,0))=16,"",VLOOKUP($A53,FB_11,2,0))&IF(TYPE(VLOOKUP($A53,FB_12,2,0))=16,"",VLOOKUP($A53,FB_12,2,0))&IF(TYPE(VLOOKUP($A53,FB_13,2,0))=16,"",VLOOKUP($A53,FB_13,2,0))&IF(TYPE(VLOOKUP($A53,FB_14,2,0))=16,"",VLOOKUP($A53,FB_14,2,0))&IF(TYPE(VLOOKUP($A53,FB_15,2,0))=16,"",VLOOKUP($A53,FB_15,2,0))&IF(TYPE(VLOOKUP($A53,FB_16,2,0))=16,"",VLOOKUP($A53,FB_16,2,0))&IF(TYPE(VLOOKUP($A53,FB_17,2,0))=16,"",VLOOKUP($A53,FB_17,2,0))&IF(TYPE(VLOOKUP($A53,FB_18,2,0))=16,"",VLOOKUP($A53,FB_18,2,0))&IF(TYPE(VLOOKUP($A53,FB_19,2,0))=16,"",VLOOKUP($A53,FB_19,2,0))&IF(TYPE(VLOOKUP($A53,FB_20,2,0))=16,"",VLOOKUP($A53,FB_20,2,0))&IF(TYPE(VLOOKUP($A53,FB_21,2,0))=16,"",VLOOKUP($A53,FB_21,2,0))&IF(TYPE(VLOOKUP($A53,FB_22,2,0))=16,"",VLOOKUP($A53,FB_22,2,0))&IF(TYPE(VLOOKUP($A53,FB_23,2,0))=16,"",VLOOKUP($A53,FB_23,2,0))&IF(TYPE(VLOOKUP($A53,FB_24,2,0))=16,"",VLOOKUP($A53,FB_24,2,0))&IF(TYPE(VLOOKUP($A53,FB_25,2,0))=16,"",VLOOKUP($A53,FB_25,2,0))&IF(TYPE(VLOOKUP($A53,FB_26,2,0))=16,"",VLOOKUP($A53,FB_26,2,0))&IF(TYPE(VLOOKUP($A53,FB_27,2,0))=16,"",VLOOKUP($A53,FB_27,2,0))&IF(TYPE(VLOOKUP($A53,FB_28,2,0))=16,"",VLOOKUP($A53,FB_28,2,0))&IF(TYPE(VLOOKUP($A53,FB_29,2,0))=16,"",VLOOKUP($A53,FB_29,2,0))&IF(TYPE(VLOOKUP($A53,FB_30,2,0))=16,"",VLOOKUP($A53,FB_30,2,0)) ->  | D53: =IF($B53="","",_xlfn.NUMBERVALUE(IF(TYPE(VLOOKUP($A53,FB_1,P$5,0))=16,"",VLOOKUP($A53,FB_1,P$5,0))&IF(TYPE(VLOOKUP($A53,FB_2,P$5,0))=16,"",VLOOKUP($A53,FB_2,P$5,0))&IF(TYPE(VLOOKUP($A53,FB_3,P$5,0))=16,"",VLOOKUP($A53,FB_3,P$5,0))&IF(TYPE(VLOOKUP($A53,FB_4,P$5,0))=16,"",VLOOKUP($A53,FB_4,P$5,0))&IF(TYPE(VLOOKUP($A53,FB_5,P$5,0))=16,"",VLOOKUP($A53,FB_5,P$5,0))&IF(TYPE(VLOOKUP($A53,FB_6,P$5,0))=16,"",VLOOKUP($A53,FB_6,P$5,0))&IF(TYPE(VLOOKUP($A53,FB_7,P$5,0))=16,"",VLOOKUP($A53,FB_7,P$5,0))&IF(TYPE(VLOOKUP($A53,FB_8,P$5,0))=16,"",VLOOKUP($A53,FB_8,P$5,0))&IF(TYPE(VLOOKUP($A53,FB_9,P$5,0))=16,"",VLOOKUP($A53,FB_9,P$5,0))&IF(TYPE(VLOOKUP($A53,FB_10,P$5,0))=16,"",VLOOKUP($A53,FB_10,P$5,0))&IF(TYPE(VLOOKUP($A53,FB_11,P$5,0))=16,"",VLOOKUP($A53,FB_11,P$5,0))&IF(TYPE(VLOOKUP($A53,FB_12,P$5,0))=16,"",VLOOKUP($A53,FB_12,P$5,0))&IF(TYPE(VLOOKUP($A53,FB_13,P$5,0))=16,"",VLOOKUP($A53,FB_13,P$5,0))&IF(TYPE(VLOOKUP($A53,FB_14,P$5,0))=16,"",VLOOKUP($A53,FB_14,P$5,0))&IF(TYPE(VLOOKUP($A53,FB_15,P$5,0))=16,"",VLOOKUP($A53,FB_15,P$5,0))&IF(TYPE(VLOOKUP($A53,FB_16,P$5,0))=16,"",VLOOKUP($A53,FB_16,P$5,0))&IF(TYPE(VLOOKUP($A53,FB_17,P$5,0))=16,"",VLOOKUP($A53,FB_17,P$5,0))&IF(TYPE(VLOOKUP($A53,FB_18,P$5,0))=16,"",VLOOKUP($A53,FB_18,P$5,0))&IF(TYPE(VLOOKUP($A53,FB_19,P$5,0))=16,"",VLOOKUP($A53,FB_19,P$5,0))&IF(TYPE(VLOOKUP($A53,FB_20,P$5,0))=16,"",VLOOKUP($A53,FB_20,P$5,0))&IF(TYPE(VLOOKUP($A53,FB_21,P$5,0))=16,"",VLOOKUP($A53,FB_21,P$5,0))&IF(TYPE(VLOOKUP($A53,FB_22,P$5,0))=16,"",VLOOKUP($A53,FB_22,P$5,0))&IF(TYPE(VLOOKUP($A53,FB_23,P$5,0))=16,"",VLOOKUP($A53,FB_23,P$5,0))&IF(TYPE(VLOOKUP($A53,FB_24,P$5,0))=16,"",VLOOKUP($A53,FB_24,P$5,0))&IF(TYPE(VLOOKUP($A53,FB_25,P$5,0))=16,"",VLOOKUP($A53,FB_25,P$5,0))&IF(TYPE(VLOOKUP($A53,FB_26,P$5,0))=16,"",VLOOKUP($A53,FB_26,P$5,0))&IF(TYPE(VLOOKUP($A53,FB_27,P$5,0))=16,"",VLOOKUP($A53,FB_27,P$5,0))&IF(TYPE(VLOOKUP($A53,FB_28,P$5,0))=16,"",VLOOKUP($A53,FB_28,P$5,0))&IF(TYPE(VLOOKUP($A53,FB_29,P$5,0))=16,"",VLOOKUP($A53,FB_29,P$5,0))&IF(TYPE(VLOOKUP($A53,FB_30,P$5,0))=16,"",VLOOKUP($A53,FB_30,P$5,0)))) ->  | F53: =IF($B53="","",_xlfn.NUMBERVALUE(IF(TYPE(VLOOKUP($A53,FB_1,R$5,0))=16,"",VLOOKUP($A53,FB_1,R$5,0))&IF(TYPE(VLOOKUP($A53,FB_2,R$5,0))=16,"",VLOOKUP($A53,FB_2,R$5,0))&IF(TYPE(VLOOKUP($A53,FB_3,R$5,0))=16,"",VLOOKUP($A53,FB_3,R$5,0))&IF(TYPE(VLOOKUP($A53,FB_4,R$5,0))=16,"",VLOOKUP($A53,FB_4,R$5,0))&IF(TYPE(VLOOKUP($A53,FB_5,R$5,0))=16,"",VLOOKUP($A53,FB_5,R$5,0))&IF(TYPE(VLOOKUP($A53,FB_6,R$5,0))=16,"",VLOOKUP($A53,FB_6,R$5,0))&IF(TYPE(VLOOKUP($A53,FB_7,R$5,0))=16,"",VLOOKUP($A53,FB_7,R$5,0))&IF(TYPE(VLOOKUP($A53,FB_8,R$5,0))=16,"",VLOOKUP($A53,FB_8,R$5,0))&IF(TYPE(VLOOKUP($A53,FB_9,R$5,0))=16,"",VLOOKUP($A53,FB_9,R$5,0))&IF(TYPE(VLOOKUP($A53,FB_10,R$5,0))=16,"",VLOOKUP($A53,FB_10,R$5,0))&IF(TYPE(VLOOKUP($A53,FB_11,R$5,0))=16,"",VLOOKUP($A53,FB_11,R$5,0))&IF(TYPE(VLOOKUP($A53,FB_12,R$5,0))=16,"",VLOOKUP($A53,FB_12,R$5,0))&IF(TYPE(VLOOKUP($A53,FB_13,R$5,0))=16,"",VLOOKUP($A53,FB_13,R$5,0))&IF(TYPE(VLOOKUP($A53,FB_14,R$5,0))=16,"",VLOOKUP($A53,FB_14,R$5,0))&IF(TYPE(VLOOKUP($A53,FB_15,R$5,0))=16,"",VLOOKUP($A53,FB_15,R$5,0))&IF(TYPE(VLOOKUP($A53,FB_16,R$5,0))=16,"",VLOOKUP($A53,FB_16,R$5,0))&IF(TYPE(VLOOKUP($A53,FB_17,R$5,0))=16,"",VLOOKUP($A53,FB_17,R$5,0))&IF(TYPE(VLOOKUP($A53,FB_18,R$5,0))=16,"",VLOOKUP($A53,FB_18,R$5,0))&IF(TYPE(VLOOKUP($A53,FB_19,R$5,0))=16,"",VLOOKUP($A53,FB_19,R$5,0))&IF(TYPE(VLOOKUP($A53,FB_20,R$5,0))=16,"",VLOOKUP($A53,FB_20,R$5,0))&IF(TYPE(VLOOKUP($A53,FB_21,R$5,0))=16,"",VLOOKUP($A53,FB_21,R$5,0))&IF(TYPE(VLOOKUP($A53,FB_22,R$5,0))=16,"",VLOOKUP($A53,FB_22,R$5,0))&IF(TYPE(VLOOKUP($A53,FB_23,R$5,0))=16,"",VLOOKUP($A53,FB_23,R$5,0))&IF(TYPE(VLOOKUP($A53,FB_24,R$5,0))=16,"",VLOOKUP($A53,FB_24,R$5,0))&IF(TYPE(VLOOKUP($A53,FB_25,R$5,0))=16,"",VLOOKUP($A53,FB_25,R$5,0))&IF(TYPE(VLOOKUP($A53,FB_26,R$5,0))=16,"",VLOOKUP($A53,FB_26,R$5,0))&IF(TYPE(VLOOKUP($A53,FB_27,R$5,0))=16,"",VLOOKUP($A53,FB_27,R$5,0))&IF(TYPE(VLOOKUP($A53,FB_28,R$5,0))=16,"",VLOOKUP($A53,FB_28,R$5,0))&IF(TYPE(VLOOKUP($A53,FB_29,R$5,0))=16,"",VLOOKUP($A53,FB_29,R$5,0))&IF(TYPE(VLOOKUP($A53,FB_30,R$5,0))=16,"",VLOOKUP($A53,FB_30,R$5,0)))) ->  | G53: =IF($B53="","",IF(TYPE(VLOOKUP($A53,FB_1,S$5,0))=16,"",VLOOKUP($A53,FB_1,S$5,0))&IF(TYPE(VLOOKUP($A53,FB_2,S$5,0))=16,"",VLOOKUP($A53,FB_2,S$5,0))&IF(TYPE(VLOOKUP($A53,FB_3,S$5,0))=16,"",VLOOKUP($A53,FB_3,S$5,0))&IF(TYPE(VLOOKUP($A53,FB_4,S$5,0))=16,"",VLOOKUP($A53,FB_4,S$5,0))&IF(TYPE(VLOOKUP($A53,FB_5,S$5,0))=16,"",VLOOKUP($A53,FB_5,S$5,0))&IF(TYPE(VLOOKUP($A53,FB_6,S$5,0))=16,"",VLOOKUP($A53,FB_6,S$5,0))&IF(TYPE(VLOOKUP($A53,FB_7,S$5,0))=16,"",VLOOKUP($A53,FB_7,S$5,0))&IF(TYPE(VLOOKUP($A53,FB_8,S$5,0))=16,"",VLOOKUP($A53,FB_8,S$5,0))&IF(TYPE(VLOOKUP($A53,FB_9,S$5,0))=16,"",VLOOKUP($A53,FB_9,S$5,0))&IF(TYPE(VLOOKUP($A53,FB_10,S$5,0))=16,"",VLOOKUP($A53,FB_10,S$5,0))&IF(TYPE(VLOOKUP($A53,FB_11,S$5,0))=16,"",VLOOKUP($A53,FB_11,S$5,0))&IF(TYPE(VLOOKUP($A53,FB_12,S$5,0))=16,"",VLOOKUP($A53,FB_12,S$5,0))&IF(TYPE(VLOOKUP($A53,FB_13,S$5,0))=16,"",VLOOKUP($A53,FB_13,S$5,0))&IF(TYPE(VLOOKUP($A53,FB_14,S$5,0))=16,"",VLOOKUP($A53,FB_14,S$5,0))&IF(TYPE(VLOOKUP($A53,FB_15,S$5,0))=16,"",VLOOKUP($A53,FB_15,S$5,0))&IF(TYPE(VLOOKUP($A53,FB_16,S$5,0))=16,"",VLOOKUP($A53,FB_16,S$5,0))&IF(TYPE(VLOOKUP($A53,FB_17,S$5,0))=16,"",VLOOKUP($A53,FB_17,S$5,0))&IF(TYPE(VLOOKUP($A53,FB_18,S$5,0))=16,"",VLOOKUP($A53,FB_18,S$5,0))&IF(TYPE(VLOOKUP($A53,FB_19,S$5,0))=16,"",VLOOKUP($A53,FB_19,S$5,0))&IF(TYPE(VLOOKUP($A53,FB_20,S$5,0))=16,"",VLOOKUP($A53,FB_20,S$5,0))&IF(TYPE(VLOOKUP($A53,FB_21,S$5,0))=16,"",VLOOKUP($A53,FB_21,S$5,0))&IF(TYPE(VLOOKUP($A53,FB_22,S$5,0))=16,"",VLOOKUP($A53,FB_22,S$5,0))&IF(TYPE(VLOOKUP($A53,FB_23,S$5,0))=16,"",VLOOKUP($A53,FB_23,S$5,0))&IF(TYPE(VLOOKUP($A53,FB_24,S$5,0))=16,"",VLOOKUP($A53,FB_24,S$5,0))&IF(TYPE(VLOOKUP($A53,FB_25,S$5,0))=16,"",VLOOKUP($A53,FB_25,S$5,0))&IF(TYPE(VLOOKUP($A53,FB_26,S$5,0))=16,"",VLOOKUP($A53,FB_26,S$5,0))&IF(TYPE(VLOOKUP($A53,FB_27,S$5,0))=16,"",VLOOKUP($A53,FB_27,S$5,0))&IF(TYPE(VLOOKUP($A53,FB_28,S$5,0))=16,"",VLOOKUP($A53,FB_28,S$5,0))&IF(TYPE(VLOOKUP($A53,FB_29,S$5,0))=16,"",VLOOKUP($A53,FB_29,S$5,0))&IF(TYPE(VLOOKUP($A53,FB_30,S$5,0))=16,"",VLOOKUP($A53,FB_30,S$5,0))) ->  | Y53: :
A54: 25. | B54: =IF(TYPE(VLOOKUP($A54,FB_1,2,0))=16,"",VLOOKUP($A54,FB_1,2,0))&IF(TYPE(VLOOKUP($A54,FB_2,2,0))=16,"",VLOOKUP($A54,FB_2,2,0))&IF(TYPE(VLOOKUP($A54,FB_3,2,0))=16,"",VLOOKUP($A54,FB_3,2,0))&IF(TYPE(VLOOKUP($A54,FB_4,2,0))=16,"",VLOOKUP($A54,FB_4,2,0))&IF(TYPE(VLOOKUP($A54,FB_5,2,0))=16,"",VLOOKUP($A54,FB_5,2,0))&IF(TYPE(VLOOKUP($A54,FB_6,2,0))=16,"",VLOOKUP($A54,FB_6,2,0))&IF(TYPE(VLOOKUP($A54,FB_7,2,0))=16,"",VLOOKUP($A54,FB_7,2,0))&IF(TYPE(VLOOKUP($A54,FB_8,2,0))=16,"",VLOOKUP($A54,FB_8,2,0))&IF(TYPE(VLOOKUP($A54,FB_9,2,0))=16,"",VLOOKUP($A54,FB_9,2,0))&IF(TYPE(VLOOKUP($A54,FB_10,2,0))=16,"",VLOOKUP($A54,FB_10,2,0))&IF(TYPE(VLOOKUP($A54,FB_11,2,0))=16,"",VLOOKUP($A54,FB_11,2,0))&IF(TYPE(VLOOKUP($A54,FB_12,2,0))=16,"",VLOOKUP($A54,FB_12,2,0))&IF(TYPE(VLOOKUP($A54,FB_13,2,0))=16,"",VLOOKUP($A54,FB_13,2,0))&IF(TYPE(VLOOKUP($A54,FB_14,2,0))=16,"",VLOOKUP($A54,FB_14,2,0))&IF(TYPE(VLOOKUP($A54,FB_15,2,0))=16,"",VLOOKUP($A54,FB_15,2,0))&IF(TYPE(VLOOKUP($A54,FB_16,2,0))=16,"",VLOOKUP($A54,FB_16,2,0))&IF(TYPE(VLOOKUP($A54,FB_17,2,0))=16,"",VLOOKUP($A54,FB_17,2,0))&IF(TYPE(VLOOKUP($A54,FB_18,2,0))=16,"",VLOOKUP($A54,FB_18,2,0))&IF(TYPE(VLOOKUP($A54,FB_19,2,0))=16,"",VLOOKUP($A54,FB_19,2,0))&IF(TYPE(VLOOKUP($A54,FB_20,2,0))=16,"",VLOOKUP($A54,FB_20,2,0))&IF(TYPE(VLOOKUP($A54,FB_21,2,0))=16,"",VLOOKUP($A54,FB_21,2,0))&IF(TYPE(VLOOKUP($A54,FB_22,2,0))=16,"",VLOOKUP($A54,FB_22,2,0))&IF(TYPE(VLOOKUP($A54,FB_23,2,0))=16,"",VLOOKUP($A54,FB_23,2,0))&IF(TYPE(VLOOKUP($A54,FB_24,2,0))=16,"",VLOOKUP($A54,FB_24,2,0))&IF(TYPE(VLOOKUP($A54,FB_25,2,0))=16,"",VLOOKUP($A54,FB_25,2,0))&IF(TYPE(VLOOKUP($A54,FB_26,2,0))=16,"",VLOOKUP($A54,FB_26,2,0))&IF(TYPE(VLOOKUP($A54,FB_27,2,0))=16,"",VLOOKUP($A54,FB_27,2,0))&IF(TYPE(VLOOKUP($A54,FB_28,2,0))=16,"",VLOOKUP($A54,FB_28,2,0))&IF(TYPE(VLOOKUP($A54,FB_29,2,0))=16,"",VLOOKUP($A54,FB_29,2,0))&IF(TYPE(VLOOKUP($A54,FB_30,2,0))=16,"",VLOOKUP($A54,FB_30,2,0)) ->  | D54: =IF($B54="","",_xlfn.NUMBERVALUE(IF(TYPE(VLOOKUP($A54,FB_1,P$5,0))=16,"",VLOOKUP($A54,FB_1,P$5,0))&IF(TYPE(VLOOKUP($A54,FB_2,P$5,0))=16,"",VLOOKUP($A54,FB_2,P$5,0))&IF(TYPE(VLOOKUP($A54,FB_3,P$5,0))=16,"",VLOOKUP($A54,FB_3,P$5,0))&IF(TYPE(VLOOKUP($A54,FB_4,P$5,0))=16,"",VLOOKUP($A54,FB_4,P$5,0))&IF(TYPE(VLOOKUP($A54,FB_5,P$5,0))=16,"",VLOOKUP($A54,FB_5,P$5,0))&IF(TYPE(VLOOKUP($A54,FB_6,P$5,0))=16,"",VLOOKUP($A54,FB_6,P$5,0))&IF(TYPE(VLOOKUP($A54,FB_7,P$5,0))=16,"",VLOOKUP($A54,FB_7,P$5,0))&IF(TYPE(VLOOKUP($A54,FB_8,P$5,0))=16,"",VLOOKUP($A54,FB_8,P$5,0))&IF(TYPE(VLOOKUP($A54,FB_9,P$5,0))=16,"",VLOOKUP($A54,FB_9,P$5,0))&IF(TYPE(VLOOKUP($A54,FB_10,P$5,0))=16,"",VLOOKUP($A54,FB_10,P$5,0))&IF(TYPE(VLOOKUP($A54,FB_11,P$5,0))=16,"",VLOOKUP($A54,FB_11,P$5,0))&IF(TYPE(VLOOKUP($A54,FB_12,P$5,0))=16,"",VLOOKUP($A54,FB_12,P$5,0))&IF(TYPE(VLOOKUP($A54,FB_13,P$5,0))=16,"",VLOOKUP($A54,FB_13,P$5,0))&IF(TYPE(VLOOKUP($A54,FB_14,P$5,0))=16,"",VLOOKUP($A54,FB_14,P$5,0))&IF(TYPE(VLOOKUP($A54,FB_15,P$5,0))=16,"",VLOOKUP($A54,FB_15,P$5,0))&IF(TYPE(VLOOKUP($A54,FB_16,P$5,0))=16,"",VLOOKUP($A54,FB_16,P$5,0))&IF(TYPE(VLOOKUP($A54,FB_17,P$5,0))=16,"",VLOOKUP($A54,FB_17,P$5,0))&IF(TYPE(VLOOKUP($A54,FB_18,P$5,0))=16,"",VLOOKUP($A54,FB_18,P$5,0))&IF(TYPE(VLOOKUP($A54,FB_19,P$5,0))=16,"",VLOOKUP($A54,FB_19,P$5,0))&IF(TYPE(VLOOKUP($A54,FB_20,P$5,0))=16,"",VLOOKUP($A54,FB_20,P$5,0))&IF(TYPE(VLOOKUP($A54,FB_21,P$5,0))=16,"",VLOOKUP($A54,FB_21,P$5,0))&IF(TYPE(VLOOKUP($A54,FB_22,P$5,0))=16,"",VLOOKUP($A54,FB_22,P$5,0))&IF(TYPE(VLOOKUP($A54,FB_23,P$5,0))=16,"",VLOOKUP($A54,FB_23,P$5,0))&IF(TYPE(VLOOKUP($A54,FB_24,P$5,0))=16,"",VLOOKUP($A54,FB_24,P$5,0))&IF(TYPE(VLOOKUP($A54,FB_25,P$5,0))=16,"",VLOOKUP($A54,FB_25,P$5,0))&IF(TYPE(VLOOKUP($A54,FB_26,P$5,0))=16,"",VLOOKUP($A54,FB_26,P$5,0))&IF(TYPE(VLOOKUP($A54,FB_27,P$5,0))=16,"",VLOOKUP($A54,FB_27,P$5,0))&IF(TYPE(VLOOKUP($A54,FB_28,P$5,0))=16,"",VLOOKUP($A54,FB_28,P$5,0))&IF(TYPE(VLOOKUP($A54,FB_29,P$5,0))=16,"",VLOOKUP($A54,FB_29,P$5,0))&IF(TYPE(VLOOKUP($A54,FB_30,P$5,0))=16,"",VLOOKUP($A54,FB_30,P$5,0)))) ->  | F54: =IF($B54="","",_xlfn.NUMBERVALUE(IF(TYPE(VLOOKUP($A54,FB_1,R$5,0))=16,"",VLOOKUP($A54,FB_1,R$5,0))&IF(TYPE(VLOOKUP($A54,FB_2,R$5,0))=16,"",VLOOKUP($A54,FB_2,R$5,0))&IF(TYPE(VLOOKUP($A54,FB_3,R$5,0))=16,"",VLOOKUP($A54,FB_3,R$5,0))&IF(TYPE(VLOOKUP($A54,FB_4,R$5,0))=16,"",VLOOKUP($A54,FB_4,R$5,0))&IF(TYPE(VLOOKUP($A54,FB_5,R$5,0))=16,"",VLOOKUP($A54,FB_5,R$5,0))&IF(TYPE(VLOOKUP($A54,FB_6,R$5,0))=16,"",VLOOKUP($A54,FB_6,R$5,0))&IF(TYPE(VLOOKUP($A54,FB_7,R$5,0))=16,"",VLOOKUP($A54,FB_7,R$5,0))&IF(TYPE(VLOOKUP($A54,FB_8,R$5,0))=16,"",VLOOKUP($A54,FB_8,R$5,0))&IF(TYPE(VLOOKUP($A54,FB_9,R$5,0))=16,"",VLOOKUP($A54,FB_9,R$5,0))&IF(TYPE(VLOOKUP($A54,FB_10,R$5,0))=16,"",VLOOKUP($A54,FB_10,R$5,0))&IF(TYPE(VLOOKUP($A54,FB_11,R$5,0))=16,"",VLOOKUP($A54,FB_11,R$5,0))&IF(TYPE(VLOOKUP($A54,FB_12,R$5,0))=16,"",VLOOKUP($A54,FB_12,R$5,0))&IF(TYPE(VLOOKUP($A54,FB_13,R$5,0))=16,"",VLOOKUP($A54,FB_13,R$5,0))&IF(TYPE(VLOOKUP($A54,FB_14,R$5,0))=16,"",VLOOKUP($A54,FB_14,R$5,0))&IF(TYPE(VLOOKUP($A54,FB_15,R$5,0))=16,"",VLOOKUP($A54,FB_15,R$5,0))&IF(TYPE(VLOOKUP($A54,FB_16,R$5,0))=16,"",VLOOKUP($A54,FB_16,R$5,0))&IF(TYPE(VLOOKUP($A54,FB_17,R$5,0))=16,"",VLOOKUP($A54,FB_17,R$5,0))&IF(TYPE(VLOOKUP($A54,FB_18,R$5,0))=16,"",VLOOKUP($A54,FB_18,R$5,0))&IF(TYPE(VLOOKUP($A54,FB_19,R$5,0))=16,"",VLOOKUP($A54,FB_19,R$5,0))&IF(TYPE(VLOOKUP($A54,FB_20,R$5,0))=16,"",VLOOKUP($A54,FB_20,R$5,0))&IF(TYPE(VLOOKUP($A54,FB_21,R$5,0))=16,"",VLOOKUP($A54,FB_21,R$5,0))&IF(TYPE(VLOOKUP($A54,FB_22,R$5,0))=16,"",VLOOKUP($A54,FB_22,R$5,0))&IF(TYPE(VLOOKUP($A54,FB_23,R$5,0))=16,"",VLOOKUP($A54,FB_23,R$5,0))&IF(TYPE(VLOOKUP($A54,FB_24,R$5,0))=16,"",VLOOKUP($A54,FB_24,R$5,0))&IF(TYPE(VLOOKUP($A54,FB_25,R$5,0))=16,"",VLOOKUP($A54,FB_25,R$5,0))&IF(TYPE(VLOOKUP($A54,FB_26,R$5,0))=16,"",VLOOKUP($A54,FB_26,R$5,0))&IF(TYPE(VLOOKUP($A54,FB_27,R$5,0))=16,"",VLOOKUP($A54,FB_27,R$5,0))&IF(TYPE(VLOOKUP($A54,FB_28,R$5,0))=16,"",VLOOKUP($A54,FB_28,R$5,0))&IF(TYPE(VLOOKUP($A54,FB_29,R$5,0))=16,"",VLOOKUP($A54,FB_29,R$5,0))&IF(TYPE(VLOOKUP($A54,FB_30,R$5,0))=16,"",VLOOKUP($A54,FB_30,R$5,0)))) ->  | G54: =IF($B54="","",IF(TYPE(VLOOKUP($A54,FB_1,S$5,0))=16,"",VLOOKUP($A54,FB_1,S$5,0))&IF(TYPE(VLOOKUP($A54,FB_2,S$5,0))=16,"",VLOOKUP($A54,FB_2,S$5,0))&IF(TYPE(VLOOKUP($A54,FB_3,S$5,0))=16,"",VLOOKUP($A54,FB_3,S$5,0))&IF(TYPE(VLOOKUP($A54,FB_4,S$5,0))=16,"",VLOOKUP($A54,FB_4,S$5,0))&IF(TYPE(VLOOKUP($A54,FB_5,S$5,0))=16,"",VLOOKUP($A54,FB_5,S$5,0))&IF(TYPE(VLOOKUP($A54,FB_6,S$5,0))=16,"",VLOOKUP($A54,FB_6,S$5,0))&IF(TYPE(VLOOKUP($A54,FB_7,S$5,0))=16,"",VLOOKUP($A54,FB_7,S$5,0))&IF(TYPE(VLOOKUP($A54,FB_8,S$5,0))=16,"",VLOOKUP($A54,FB_8,S$5,0))&IF(TYPE(VLOOKUP($A54,FB_9,S$5,0))=16,"",VLOOKUP($A54,FB_9,S$5,0))&IF(TYPE(VLOOKUP($A54,FB_10,S$5,0))=16,"",VLOOKUP($A54,FB_10,S$5,0))&IF(TYPE(VLOOKUP($A54,FB_11,S$5,0))=16,"",VLOOKUP($A54,FB_11,S$5,0))&IF(TYPE(VLOOKUP($A54,FB_12,S$5,0))=16,"",VLOOKUP($A54,FB_12,S$5,0))&IF(TYPE(VLOOKUP($A54,FB_13,S$5,0))=16,"",VLOOKUP($A54,FB_13,S$5,0))&IF(TYPE(VLOOKUP($A54,FB_14,S$5,0))=16,"",VLOOKUP($A54,FB_14,S$5,0))&IF(TYPE(VLOOKUP($A54,FB_15,S$5,0))=16,"",VLOOKUP($A54,FB_15,S$5,0))&IF(TYPE(VLOOKUP($A54,FB_16,S$5,0))=16,"",VLOOKUP($A54,FB_16,S$5,0))&IF(TYPE(VLOOKUP($A54,FB_17,S$5,0))=16,"",VLOOKUP($A54,FB_17,S$5,0))&IF(TYPE(VLOOKUP($A54,FB_18,S$5,0))=16,"",VLOOKUP($A54,FB_18,S$5,0))&IF(TYPE(VLOOKUP($A54,FB_19,S$5,0))=16,"",VLOOKUP($A54,FB_19,S$5,0))&IF(TYPE(VLOOKUP($A54,FB_20,S$5,0))=16,"",VLOOKUP($A54,FB_20,S$5,0))&IF(TYPE(VLOOKUP($A54,FB_21,S$5,0))=16,"",VLOOKUP($A54,FB_21,S$5,0))&IF(TYPE(VLOOKUP($A54,FB_22,S$5,0))=16,"",VLOOKUP($A54,FB_22,S$5,0))&IF(TYPE(VLOOKUP($A54,FB_23,S$5,0))=16,"",VLOOKUP($A54,FB_23,S$5,0))&IF(TYPE(VLOOKUP($A54,FB_24,S$5,0))=16,"",VLOOKUP($A54,FB_24,S$5,0))&IF(TYPE(VLOOKUP($A54,FB_25,S$5,0))=16,"",VLOOKUP($A54,FB_25,S$5,0))&IF(TYPE(VLOOKUP($A54,FB_26,S$5,0))=16,"",VLOOKUP($A54,FB_26,S$5,0))&IF(TYPE(VLOOKUP($A54,FB_27,S$5,0))=16,"",VLOOKUP($A54,FB_27,S$5,0))&IF(TYPE(VLOOKUP($A54,FB_28,S$5,0))=16,"",VLOOKUP($A54,FB_28,S$5,0))&IF(TYPE(VLOOKUP($A54,FB_29,S$5,0))=16,"",VLOOKUP($A54,FB_29,S$5,0))&IF(TYPE(VLOOKUP($A54,FB_30,S$5,0))=16,"",VLOOKUP($A54,FB_30,S$5,0))) ->  | Y54: :
A55: 26. | B55: =IF(TYPE(VLOOKUP($A55,FB_1,2,0))=16,"",VLOOKUP($A55,FB_1,2,0))&IF(TYPE(VLOOKUP($A55,FB_2,2,0))=16,"",VLOOKUP($A55,FB_2,2,0))&IF(TYPE(VLOOKUP($A55,FB_3,2,0))=16,"",VLOOKUP($A55,FB_3,2,0))&IF(TYPE(VLOOKUP($A55,FB_4,2,0))=16,"",VLOOKUP($A55,FB_4,2,0))&IF(TYPE(VLOOKUP($A55,FB_5,2,0))=16,"",VLOOKUP($A55,FB_5,2,0))&IF(TYPE(VLOOKUP($A55,FB_6,2,0))=16,"",VLOOKUP($A55,FB_6,2,0))&IF(TYPE(VLOOKUP($A55,FB_7,2,0))=16,"",VLOOKUP($A55,FB_7,2,0))&IF(TYPE(VLOOKUP($A55,FB_8,2,0))=16,"",VLOOKUP($A55,FB_8,2,0))&IF(TYPE(VLOOKUP($A55,FB_9,2,0))=16,"",VLOOKUP($A55,FB_9,2,0))&IF(TYPE(VLOOKUP($A55,FB_10,2,0))=16,"",VLOOKUP($A55,FB_10,2,0))&IF(TYPE(VLOOKUP($A55,FB_11,2,0))=16,"",VLOOKUP($A55,FB_11,2,0))&IF(TYPE(VLOOKUP($A55,FB_12,2,0))=16,"",VLOOKUP($A55,FB_12,2,0))&IF(TYPE(VLOOKUP($A55,FB_13,2,0))=16,"",VLOOKUP($A55,FB_13,2,0))&IF(TYPE(VLOOKUP($A55,FB_14,2,0))=16,"",VLOOKUP($A55,FB_14,2,0))&IF(TYPE(VLOOKUP($A55,FB_15,2,0))=16,"",VLOOKUP($A55,FB_15,2,0))&IF(TYPE(VLOOKUP($A55,FB_16,2,0))=16,"",VLOOKUP($A55,FB_16,2,0))&IF(TYPE(VLOOKUP($A55,FB_17,2,0))=16,"",VLOOKUP($A55,FB_17,2,0))&IF(TYPE(VLOOKUP($A55,FB_18,2,0))=16,"",VLOOKUP($A55,FB_18,2,0))&IF(TYPE(VLOOKUP($A55,FB_19,2,0))=16,"",VLOOKUP($A55,FB_19,2,0))&IF(TYPE(VLOOKUP($A55,FB_20,2,0))=16,"",VLOOKUP($A55,FB_20,2,0))&IF(TYPE(VLOOKUP($A55,FB_21,2,0))=16,"",VLOOKUP($A55,FB_21,2,0))&IF(TYPE(VLOOKUP($A55,FB_22,2,0))=16,"",VLOOKUP($A55,FB_22,2,0))&IF(TYPE(VLOOKUP($A55,FB_23,2,0))=16,"",VLOOKUP($A55,FB_23,2,0))&IF(TYPE(VLOOKUP($A55,FB_24,2,0))=16,"",VLOOKUP($A55,FB_24,2,0))&IF(TYPE(VLOOKUP($A55,FB_25,2,0))=16,"",VLOOKUP($A55,FB_25,2,0))&IF(TYPE(VLOOKUP($A55,FB_26,2,0))=16,"",VLOOKUP($A55,FB_26,2,0))&IF(TYPE(VLOOKUP($A55,FB_27,2,0))=16,"",VLOOKUP($A55,FB_27,2,0))&IF(TYPE(VLOOKUP($A55,FB_28,2,0))=16,"",VLOOKUP($A55,FB_28,2,0))&IF(TYPE(VLOOKUP($A55,FB_29,2,0))=16,"",VLOOKUP($A55,FB_29,2,0))&IF(TYPE(VLOOKUP($A55,FB_30,2,0))=16,"",VLOOKUP($A55,FB_30,2,0)) ->  | D55: =IF($B55="","",_xlfn.NUMBERVALUE(IF(TYPE(VLOOKUP($A55,FB_1,P$5,0))=16,"",VLOOKUP($A55,FB_1,P$5,0))&IF(TYPE(VLOOKUP($A55,FB_2,P$5,0))=16,"",VLOOKUP($A55,FB_2,P$5,0))&IF(TYPE(VLOOKUP($A55,FB_3,P$5,0))=16,"",VLOOKUP($A55,FB_3,P$5,0))&IF(TYPE(VLOOKUP($A55,FB_4,P$5,0))=16,"",VLOOKUP($A55,FB_4,P$5,0))&IF(TYPE(VLOOKUP($A55,FB_5,P$5,0))=16,"",VLOOKUP($A55,FB_5,P$5,0))&IF(TYPE(VLOOKUP($A55,FB_6,P$5,0))=16,"",VLOOKUP($A55,FB_6,P$5,0))&IF(TYPE(VLOOKUP($A55,FB_7,P$5,0))=16,"",VLOOKUP($A55,FB_7,P$5,0))&IF(TYPE(VLOOKUP($A55,FB_8,P$5,0))=16,"",VLOOKUP($A55,FB_8,P$5,0))&IF(TYPE(VLOOKUP($A55,FB_9,P$5,0))=16,"",VLOOKUP($A55,FB_9,P$5,0))&IF(TYPE(VLOOKUP($A55,FB_10,P$5,0))=16,"",VLOOKUP($A55,FB_10,P$5,0))&IF(TYPE(VLOOKUP($A55,FB_11,P$5,0))=16,"",VLOOKUP($A55,FB_11,P$5,0))&IF(TYPE(VLOOKUP($A55,FB_12,P$5,0))=16,"",VLOOKUP($A55,FB_12,P$5,0))&IF(TYPE(VLOOKUP($A55,FB_13,P$5,0))=16,"",VLOOKUP($A55,FB_13,P$5,0))&IF(TYPE(VLOOKUP($A55,FB_14,P$5,0))=16,"",VLOOKUP($A55,FB_14,P$5,0))&IF(TYPE(VLOOKUP($A55,FB_15,P$5,0))=16,"",VLOOKUP($A55,FB_15,P$5,0))&IF(TYPE(VLOOKUP($A55,FB_16,P$5,0))=16,"",VLOOKUP($A55,FB_16,P$5,0))&IF(TYPE(VLOOKUP($A55,FB_17,P$5,0))=16,"",VLOOKUP($A55,FB_17,P$5,0))&IF(TYPE(VLOOKUP($A55,FB_18,P$5,0))=16,"",VLOOKUP($A55,FB_18,P$5,0))&IF(TYPE(VLOOKUP($A55,FB_19,P$5,0))=16,"",VLOOKUP($A55,FB_19,P$5,0))&IF(TYPE(VLOOKUP($A55,FB_20,P$5,0))=16,"",VLOOKUP($A55,FB_20,P$5,0))&IF(TYPE(VLOOKUP($A55,FB_21,P$5,0))=16,"",VLOOKUP($A55,FB_21,P$5,0))&IF(TYPE(VLOOKUP($A55,FB_22,P$5,0))=16,"",VLOOKUP($A55,FB_22,P$5,0))&IF(TYPE(VLOOKUP($A55,FB_23,P$5,0))=16,"",VLOOKUP($A55,FB_23,P$5,0))&IF(TYPE(VLOOKUP($A55,FB_24,P$5,0))=16,"",VLOOKUP($A55,FB_24,P$5,0))&IF(TYPE(VLOOKUP($A55,FB_25,P$5,0))=16,"",VLOOKUP($A55,FB_25,P$5,0))&IF(TYPE(VLOOKUP($A55,FB_26,P$5,0))=16,"",VLOOKUP($A55,FB_26,P$5,0))&IF(TYPE(VLOOKUP($A55,FB_27,P$5,0))=16,"",VLOOKUP($A55,FB_27,P$5,0))&IF(TYPE(VLOOKUP($A55,FB_28,P$5,0))=16,"",VLOOKUP($A55,FB_28,P$5,0))&IF(TYPE(VLOOKUP($A55,FB_29,P$5,0))=16,"",VLOOKUP($A55,FB_29,P$5,0))&IF(TYPE(VLOOKUP($A55,FB_30,P$5,0))=16,"",VLOOKUP($A55,FB_30,P$5,0)))) ->  | F55: =IF($B55="","",_xlfn.NUMBERVALUE(IF(TYPE(VLOOKUP($A55,FB_1,R$5,0))=16,"",VLOOKUP($A55,FB_1,R$5,0))&IF(TYPE(VLOOKUP($A55,FB_2,R$5,0))=16,"",VLOOKUP($A55,FB_2,R$5,0))&IF(TYPE(VLOOKUP($A55,FB_3,R$5,0))=16,"",VLOOKUP($A55,FB_3,R$5,0))&IF(TYPE(VLOOKUP($A55,FB_4,R$5,0))=16,"",VLOOKUP($A55,FB_4,R$5,0))&IF(TYPE(VLOOKUP($A55,FB_5,R$5,0))=16,"",VLOOKUP($A55,FB_5,R$5,0))&IF(TYPE(VLOOKUP($A55,FB_6,R$5,0))=16,"",VLOOKUP($A55,FB_6,R$5,0))&IF(TYPE(VLOOKUP($A55,FB_7,R$5,0))=16,"",VLOOKUP($A55,FB_7,R$5,0))&IF(TYPE(VLOOKUP($A55,FB_8,R$5,0))=16,"",VLOOKUP($A55,FB_8,R$5,0))&IF(TYPE(VLOOKUP($A55,FB_9,R$5,0))=16,"",VLOOKUP($A55,FB_9,R$5,0))&IF(TYPE(VLOOKUP($A55,FB_10,R$5,0))=16,"",VLOOKUP($A55,FB_10,R$5,0))&IF(TYPE(VLOOKUP($A55,FB_11,R$5,0))=16,"",VLOOKUP($A55,FB_11,R$5,0))&IF(TYPE(VLOOKUP($A55,FB_12,R$5,0))=16,"",VLOOKUP($A55,FB_12,R$5,0))&IF(TYPE(VLOOKUP($A55,FB_13,R$5,0))=16,"",VLOOKUP($A55,FB_13,R$5,0))&IF(TYPE(VLOOKUP($A55,FB_14,R$5,0))=16,"",VLOOKUP($A55,FB_14,R$5,0))&IF(TYPE(VLOOKUP($A55,FB_15,R$5,0))=16,"",VLOOKUP($A55,FB_15,R$5,0))&IF(TYPE(VLOOKUP($A55,FB_16,R$5,0))=16,"",VLOOKUP($A55,FB_16,R$5,0))&IF(TYPE(VLOOKUP($A55,FB_17,R$5,0))=16,"",VLOOKUP($A55,FB_17,R$5,0))&IF(TYPE(VLOOKUP($A55,FB_18,R$5,0))=16,"",VLOOKUP($A55,FB_18,R$5,0))&IF(TYPE(VLOOKUP($A55,FB_19,R$5,0))=16,"",VLOOKUP($A55,FB_19,R$5,0))&IF(TYPE(VLOOKUP($A55,FB_20,R$5,0))=16,"",VLOOKUP($A55,FB_20,R$5,0))&IF(TYPE(VLOOKUP($A55,FB_21,R$5,0))=16,"",VLOOKUP($A55,FB_21,R$5,0))&IF(TYPE(VLOOKUP($A55,FB_22,R$5,0))=16,"",VLOOKUP($A55,FB_22,R$5,0))&IF(TYPE(VLOOKUP($A55,FB_23,R$5,0))=16,"",VLOOKUP($A55,FB_23,R$5,0))&IF(TYPE(VLOOKUP($A55,FB_24,R$5,0))=16,"",VLOOKUP($A55,FB_24,R$5,0))&IF(TYPE(VLOOKUP($A55,FB_25,R$5,0))=16,"",VLOOKUP($A55,FB_25,R$5,0))&IF(TYPE(VLOOKUP($A55,FB_26,R$5,0))=16,"",VLOOKUP($A55,FB_26,R$5,0))&IF(TYPE(VLOOKUP($A55,FB_27,R$5,0))=16,"",VLOOKUP($A55,FB_27,R$5,0))&IF(TYPE(VLOOKUP($A55,FB_28,R$5,0))=16,"",VLOOKUP($A55,FB_28,R$5,0))&IF(TYPE(VLOOKUP($A55,FB_29,R$5,0))=16,"",VLOOKUP($A55,FB_29,R$5,0))&IF(TYPE(VLOOKUP($A55,FB_30,R$5,0))=16,"",VLOOKUP($A55,FB_30,R$5,0)))) ->  | G55: =IF($B55="","",IF(TYPE(VLOOKUP($A55,FB_1,S$5,0))=16,"",VLOOKUP($A55,FB_1,S$5,0))&IF(TYPE(VLOOKUP($A55,FB_2,S$5,0))=16,"",VLOOKUP($A55,FB_2,S$5,0))&IF(TYPE(VLOOKUP($A55,FB_3,S$5,0))=16,"",VLOOKUP($A55,FB_3,S$5,0))&IF(TYPE(VLOOKUP($A55,FB_4,S$5,0))=16,"",VLOOKUP($A55,FB_4,S$5,0))&IF(TYPE(VLOOKUP($A55,FB_5,S$5,0))=16,"",VLOOKUP($A55,FB_5,S$5,0))&IF(TYPE(VLOOKUP($A55,FB_6,S$5,0))=16,"",VLOOKUP($A55,FB_6,S$5,0))&IF(TYPE(VLOOKUP($A55,FB_7,S$5,0))=16,"",VLOOKUP($A55,FB_7,S$5,0))&IF(TYPE(VLOOKUP($A55,FB_8,S$5,0))=16,"",VLOOKUP($A55,FB_8,S$5,0))&IF(TYPE(VLOOKUP($A55,FB_9,S$5,0))=16,"",VLOOKUP($A55,FB_9,S$5,0))&IF(TYPE(VLOOKUP($A55,FB_10,S$5,0))=16,"",VLOOKUP($A55,FB_10,S$5,0))&IF(TYPE(VLOOKUP($A55,FB_11,S$5,0))=16,"",VLOOKUP($A55,FB_11,S$5,0))&IF(TYPE(VLOOKUP($A55,FB_12,S$5,0))=16,"",VLOOKUP($A55,FB_12,S$5,0))&IF(TYPE(VLOOKUP($A55,FB_13,S$5,0))=16,"",VLOOKUP($A55,FB_13,S$5,0))&IF(TYPE(VLOOKUP($A55,FB_14,S$5,0))=16,"",VLOOKUP($A55,FB_14,S$5,0))&IF(TYPE(VLOOKUP($A55,FB_15,S$5,0))=16,"",VLOOKUP($A55,FB_15,S$5,0))&IF(TYPE(VLOOKUP($A55,FB_16,S$5,0))=16,"",VLOOKUP($A55,FB_16,S$5,0))&IF(TYPE(VLOOKUP($A55,FB_17,S$5,0))=16,"",VLOOKUP($A55,FB_17,S$5,0))&IF(TYPE(VLOOKUP($A55,FB_18,S$5,0))=16,"",VLOOKUP($A55,FB_18,S$5,0))&IF(TYPE(VLOOKUP($A55,FB_19,S$5,0))=16,"",VLOOKUP($A55,FB_19,S$5,0))&IF(TYPE(VLOOKUP($A55,FB_20,S$5,0))=16,"",VLOOKUP($A55,FB_20,S$5,0))&IF(TYPE(VLOOKUP($A55,FB_21,S$5,0))=16,"",VLOOKUP($A55,FB_21,S$5,0))&IF(TYPE(VLOOKUP($A55,FB_22,S$5,0))=16,"",VLOOKUP($A55,FB_22,S$5,0))&IF(TYPE(VLOOKUP($A55,FB_23,S$5,0))=16,"",VLOOKUP($A55,FB_23,S$5,0))&IF(TYPE(VLOOKUP($A55,FB_24,S$5,0))=16,"",VLOOKUP($A55,FB_24,S$5,0))&IF(TYPE(VLOOKUP($A55,FB_25,S$5,0))=16,"",VLOOKUP($A55,FB_25,S$5,0))&IF(TYPE(VLOOKUP($A55,FB_26,S$5,0))=16,"",VLOOKUP($A55,FB_26,S$5,0))&IF(TYPE(VLOOKUP($A55,FB_27,S$5,0))=16,"",VLOOKUP($A55,FB_27,S$5,0))&IF(TYPE(VLOOKUP($A55,FB_28,S$5,0))=16,"",VLOOKUP($A55,FB_28,S$5,0))&IF(TYPE(VLOOKUP($A55,FB_29,S$5,0))=16,"",VLOOKUP($A55,FB_29,S$5,0))&IF(TYPE(VLOOKUP($A55,FB_30,S$5,0))=16,"",VLOOKUP($A55,FB_30,S$5,0))) ->  | Y55: :
A56: 27. | B56: =IF(TYPE(VLOOKUP($A56,FB_1,2,0))=16,"",VLOOKUP($A56,FB_1,2,0))&IF(TYPE(VLOOKUP($A56,FB_2,2,0))=16,"",VLOOKUP($A56,FB_2,2,0))&IF(TYPE(VLOOKUP($A56,FB_3,2,0))=16,"",VLOOKUP($A56,FB_3,2,0))&IF(TYPE(VLOOKUP($A56,FB_4,2,0))=16,"",VLOOKUP($A56,FB_4,2,0))&IF(TYPE(VLOOKUP($A56,FB_5,2,0))=16,"",VLOOKUP($A56,FB_5,2,0))&IF(TYPE(VLOOKUP($A56,FB_6,2,0))=16,"",VLOOKUP($A56,FB_6,2,0))&IF(TYPE(VLOOKUP($A56,FB_7,2,0))=16,"",VLOOKUP($A56,FB_7,2,0))&IF(TYPE(VLOOKUP($A56,FB_8,2,0))=16,"",VLOOKUP($A56,FB_8,2,0))&IF(TYPE(VLOOKUP($A56,FB_9,2,0))=16,"",VLOOKUP($A56,FB_9,2,0))&IF(TYPE(VLOOKUP($A56,FB_10,2,0))=16,"",VLOOKUP($A56,FB_10,2,0))&IF(TYPE(VLOOKUP($A56,FB_11,2,0))=16,"",VLOOKUP($A56,FB_11,2,0))&IF(TYPE(VLOOKUP($A56,FB_12,2,0))=16,"",VLOOKUP($A56,FB_12,2,0))&IF(TYPE(VLOOKUP($A56,FB_13,2,0))=16,"",VLOOKUP($A56,FB_13,2,0))&IF(TYPE(VLOOKUP($A56,FB_14,2,0))=16,"",VLOOKUP($A56,FB_14,2,0))&IF(TYPE(VLOOKUP($A56,FB_15,2,0))=16,"",VLOOKUP($A56,FB_15,2,0))&IF(TYPE(VLOOKUP($A56,FB_16,2,0))=16,"",VLOOKUP($A56,FB_16,2,0))&IF(TYPE(VLOOKUP($A56,FB_17,2,0))=16,"",VLOOKUP($A56,FB_17,2,0))&IF(TYPE(VLOOKUP($A56,FB_18,2,0))=16,"",VLOOKUP($A56,FB_18,2,0))&IF(TYPE(VLOOKUP($A56,FB_19,2,0))=16,"",VLOOKUP($A56,FB_19,2,0))&IF(TYPE(VLOOKUP($A56,FB_20,2,0))=16,"",VLOOKUP($A56,FB_20,2,0))&IF(TYPE(VLOOKUP($A56,FB_21,2,0))=16,"",VLOOKUP($A56,FB_21,2,0))&IF(TYPE(VLOOKUP($A56,FB_22,2,0))=16,"",VLOOKUP($A56,FB_22,2,0))&IF(TYPE(VLOOKUP($A56,FB_23,2,0))=16,"",VLOOKUP($A56,FB_23,2,0))&IF(TYPE(VLOOKUP($A56,FB_24,2,0))=16,"",VLOOKUP($A56,FB_24,2,0))&IF(TYPE(VLOOKUP($A56,FB_25,2,0))=16,"",VLOOKUP($A56,FB_25,2,0))&IF(TYPE(VLOOKUP($A56,FB_26,2,0))=16,"",VLOOKUP($A56,FB_26,2,0))&IF(TYPE(VLOOKUP($A56,FB_27,2,0))=16,"",VLOOKUP($A56,FB_27,2,0))&IF(TYPE(VLOOKUP($A56,FB_28,2,0))=16,"",VLOOKUP($A56,FB_28,2,0))&IF(TYPE(VLOOKUP($A56,FB_29,2,0))=16,"",VLOOKUP($A56,FB_29,2,0))&IF(TYPE(VLOOKUP($A56,FB_30,2,0))=16,"",VLOOKUP($A56,FB_30,2,0)) ->  | D56: =IF($B56="","",_xlfn.NUMBERVALUE(IF(TYPE(VLOOKUP($A56,FB_1,P$5,0))=16,"",VLOOKUP($A56,FB_1,P$5,0))&IF(TYPE(VLOOKUP($A56,FB_2,P$5,0))=16,"",VLOOKUP($A56,FB_2,P$5,0))&IF(TYPE(VLOOKUP($A56,FB_3,P$5,0))=16,"",VLOOKUP($A56,FB_3,P$5,0))&IF(TYPE(VLOOKUP($A56,FB_4,P$5,0))=16,"",VLOOKUP($A56,FB_4,P$5,0))&IF(TYPE(VLOOKUP($A56,FB_5,P$5,0))=16,"",VLOOKUP($A56,FB_5,P$5,0))&IF(TYPE(VLOOKUP($A56,FB_6,P$5,0))=16,"",VLOOKUP($A56,FB_6,P$5,0))&IF(TYPE(VLOOKUP($A56,FB_7,P$5,0))=16,"",VLOOKUP($A56,FB_7,P$5,0))&IF(TYPE(VLOOKUP($A56,FB_8,P$5,0))=16,"",VLOOKUP($A56,FB_8,P$5,0))&IF(TYPE(VLOOKUP($A56,FB_9,P$5,0))=16,"",VLOOKUP($A56,FB_9,P$5,0))&IF(TYPE(VLOOKUP($A56,FB_10,P$5,0))=16,"",VLOOKUP($A56,FB_10,P$5,0))&IF(TYPE(VLOOKUP($A56,FB_11,P$5,0))=16,"",VLOOKUP($A56,FB_11,P$5,0))&IF(TYPE(VLOOKUP($A56,FB_12,P$5,0))=16,"",VLOOKUP($A56,FB_12,P$5,0))&IF(TYPE(VLOOKUP($A56,FB_13,P$5,0))=16,"",VLOOKUP($A56,FB_13,P$5,0))&IF(TYPE(VLOOKUP($A56,FB_14,P$5,0))=16,"",VLOOKUP($A56,FB_14,P$5,0))&IF(TYPE(VLOOKUP($A56,FB_15,P$5,0))=16,"",VLOOKUP($A56,FB_15,P$5,0))&IF(TYPE(VLOOKUP($A56,FB_16,P$5,0))=16,"",VLOOKUP($A56,FB_16,P$5,0))&IF(TYPE(VLOOKUP($A56,FB_17,P$5,0))=16,"",VLOOKUP($A56,FB_17,P$5,0))&IF(TYPE(VLOOKUP($A56,FB_18,P$5,0))=16,"",VLOOKUP($A56,FB_18,P$5,0))&IF(TYPE(VLOOKUP($A56,FB_19,P$5,0))=16,"",VLOOKUP($A56,FB_19,P$5,0))&IF(TYPE(VLOOKUP($A56,FB_20,P$5,0))=16,"",VLOOKUP($A56,FB_20,P$5,0))&IF(TYPE(VLOOKUP($A56,FB_21,P$5,0))=16,"",VLOOKUP($A56,FB_21,P$5,0))&IF(TYPE(VLOOKUP($A56,FB_22,P$5,0))=16,"",VLOOKUP($A56,FB_22,P$5,0))&IF(TYPE(VLOOKUP($A56,FB_23,P$5,0))=16,"",VLOOKUP($A56,FB_23,P$5,0))&IF(TYPE(VLOOKUP($A56,FB_24,P$5,0))=16,"",VLOOKUP($A56,FB_24,P$5,0))&IF(TYPE(VLOOKUP($A56,FB_25,P$5,0))=16,"",VLOOKUP($A56,FB_25,P$5,0))&IF(TYPE(VLOOKUP($A56,FB_26,P$5,0))=16,"",VLOOKUP($A56,FB_26,P$5,0))&IF(TYPE(VLOOKUP($A56,FB_27,P$5,0))=16,"",VLOOKUP($A56,FB_27,P$5,0))&IF(TYPE(VLOOKUP($A56,FB_28,P$5,0))=16,"",VLOOKUP($A56,FB_28,P$5,0))&IF(TYPE(VLOOKUP($A56,FB_29,P$5,0))=16,"",VLOOKUP($A56,FB_29,P$5,0))&IF(TYPE(VLOOKUP($A56,FB_30,P$5,0))=16,"",VLOOKUP($A56,FB_30,P$5,0)))) ->  | F56: =IF($B56="","",_xlfn.NUMBERVALUE(IF(TYPE(VLOOKUP($A56,FB_1,R$5,0))=16,"",VLOOKUP($A56,FB_1,R$5,0))&IF(TYPE(VLOOKUP($A56,FB_2,R$5,0))=16,"",VLOOKUP($A56,FB_2,R$5,0))&IF(TYPE(VLOOKUP($A56,FB_3,R$5,0))=16,"",VLOOKUP($A56,FB_3,R$5,0))&IF(TYPE(VLOOKUP($A56,FB_4,R$5,0))=16,"",VLOOKUP($A56,FB_4,R$5,0))&IF(TYPE(VLOOKUP($A56,FB_5,R$5,0))=16,"",VLOOKUP($A56,FB_5,R$5,0))&IF(TYPE(VLOOKUP($A56,FB_6,R$5,0))=16,"",VLOOKUP($A56,FB_6,R$5,0))&IF(TYPE(VLOOKUP($A56,FB_7,R$5,0))=16,"",VLOOKUP($A56,FB_7,R$5,0))&IF(TYPE(VLOOKUP($A56,FB_8,R$5,0))=16,"",VLOOKUP($A56,FB_8,R$5,0))&IF(TYPE(VLOOKUP($A56,FB_9,R$5,0))=16,"",VLOOKUP($A56,FB_9,R$5,0))&IF(TYPE(VLOOKUP($A56,FB_10,R$5,0))=16,"",VLOOKUP($A56,FB_10,R$5,0))&IF(TYPE(VLOOKUP($A56,FB_11,R$5,0))=16,"",VLOOKUP($A56,FB_11,R$5,0))&IF(TYPE(VLOOKUP($A56,FB_12,R$5,0))=16,"",VLOOKUP($A56,FB_12,R$5,0))&IF(TYPE(VLOOKUP($A56,FB_13,R$5,0))=16,"",VLOOKUP($A56,FB_13,R$5,0))&IF(TYPE(VLOOKUP($A56,FB_14,R$5,0))=16,"",VLOOKUP($A56,FB_14,R$5,0))&IF(TYPE(VLOOKUP($A56,FB_15,R$5,0))=16,"",VLOOKUP($A56,FB_15,R$5,0))&IF(TYPE(VLOOKUP($A56,FB_16,R$5,0))=16,"",VLOOKUP($A56,FB_16,R$5,0))&IF(TYPE(VLOOKUP($A56,FB_17,R$5,0))=16,"",VLOOKUP($A56,FB_17,R$5,0))&IF(TYPE(VLOOKUP($A56,FB_18,R$5,0))=16,"",VLOOKUP($A56,FB_18,R$5,0))&IF(TYPE(VLOOKUP($A56,FB_19,R$5,0))=16,"",VLOOKUP($A56,FB_19,R$5,0))&IF(TYPE(VLOOKUP($A56,FB_20,R$5,0))=16,"",VLOOKUP($A56,FB_20,R$5,0))&IF(TYPE(VLOOKUP($A56,FB_21,R$5,0))=16,"",VLOOKUP($A56,FB_21,R$5,0))&IF(TYPE(VLOOKUP($A56,FB_22,R$5,0))=16,"",VLOOKUP($A56,FB_22,R$5,0))&IF(TYPE(VLOOKUP($A56,FB_23,R$5,0))=16,"",VLOOKUP($A56,FB_23,R$5,0))&IF(TYPE(VLOOKUP($A56,FB_24,R$5,0))=16,"",VLOOKUP($A56,FB_24,R$5,0))&IF(TYPE(VLOOKUP($A56,FB_25,R$5,0))=16,"",VLOOKUP($A56,FB_25,R$5,0))&IF(TYPE(VLOOKUP($A56,FB_26,R$5,0))=16,"",VLOOKUP($A56,FB_26,R$5,0))&IF(TYPE(VLOOKUP($A56,FB_27,R$5,0))=16,"",VLOOKUP($A56,FB_27,R$5,0))&IF(TYPE(VLOOKUP($A56,FB_28,R$5,0))=16,"",VLOOKUP($A56,FB_28,R$5,0))&IF(TYPE(VLOOKUP($A56,FB_29,R$5,0))=16,"",VLOOKUP($A56,FB_29,R$5,0))&IF(TYPE(VLOOKUP($A56,FB_30,R$5,0))=16,"",VLOOKUP($A56,FB_30,R$5,0)))) ->  | G56: =IF($B56="","",IF(TYPE(VLOOKUP($A56,FB_1,S$5,0))=16,"",VLOOKUP($A56,FB_1,S$5,0))&IF(TYPE(VLOOKUP($A56,FB_2,S$5,0))=16,"",VLOOKUP($A56,FB_2,S$5,0))&IF(TYPE(VLOOKUP($A56,FB_3,S$5,0))=16,"",VLOOKUP($A56,FB_3,S$5,0))&IF(TYPE(VLOOKUP($A56,FB_4,S$5,0))=16,"",VLOOKUP($A56,FB_4,S$5,0))&IF(TYPE(VLOOKUP($A56,FB_5,S$5,0))=16,"",VLOOKUP($A56,FB_5,S$5,0))&IF(TYPE(VLOOKUP($A56,FB_6,S$5,0))=16,"",VLOOKUP($A56,FB_6,S$5,0))&IF(TYPE(VLOOKUP($A56,FB_7,S$5,0))=16,"",VLOOKUP($A56,FB_7,S$5,0))&IF(TYPE(VLOOKUP($A56,FB_8,S$5,0))=16,"",VLOOKUP($A56,FB_8,S$5,0))&IF(TYPE(VLOOKUP($A56,FB_9,S$5,0))=16,"",VLOOKUP($A56,FB_9,S$5,0))&IF(TYPE(VLOOKUP($A56,FB_10,S$5,0))=16,"",VLOOKUP($A56,FB_10,S$5,0))&IF(TYPE(VLOOKUP($A56,FB_11,S$5,0))=16,"",VLOOKUP($A56,FB_11,S$5,0))&IF(TYPE(VLOOKUP($A56,FB_12,S$5,0))=16,"",VLOOKUP($A56,FB_12,S$5,0))&IF(TYPE(VLOOKUP($A56,FB_13,S$5,0))=16,"",VLOOKUP($A56,FB_13,S$5,0))&IF(TYPE(VLOOKUP($A56,FB_14,S$5,0))=16,"",VLOOKUP($A56,FB_14,S$5,0))&IF(TYPE(VLOOKUP($A56,FB_15,S$5,0))=16,"",VLOOKUP($A56,FB_15,S$5,0))&IF(TYPE(VLOOKUP($A56,FB_16,S$5,0))=16,"",VLOOKUP($A56,FB_16,S$5,0))&IF(TYPE(VLOOKUP($A56,FB_17,S$5,0))=16,"",VLOOKUP($A56,FB_17,S$5,0))&IF(TYPE(VLOOKUP($A56,FB_18,S$5,0))=16,"",VLOOKUP($A56,FB_18,S$5,0))&IF(TYPE(VLOOKUP($A56,FB_19,S$5,0))=16,"",VLOOKUP($A56,FB_19,S$5,0))&IF(TYPE(VLOOKUP($A56,FB_20,S$5,0))=16,"",VLOOKUP($A56,FB_20,S$5,0))&IF(TYPE(VLOOKUP($A56,FB_21,S$5,0))=16,"",VLOOKUP($A56,FB_21,S$5,0))&IF(TYPE(VLOOKUP($A56,FB_22,S$5,0))=16,"",VLOOKUP($A56,FB_22,S$5,0))&IF(TYPE(VLOOKUP($A56,FB_23,S$5,0))=16,"",VLOOKUP($A56,FB_23,S$5,0))&IF(TYPE(VLOOKUP($A56,FB_24,S$5,0))=16,"",VLOOKUP($A56,FB_24,S$5,0))&IF(TYPE(VLOOKUP($A56,FB_25,S$5,0))=16,"",VLOOKUP($A56,FB_25,S$5,0))&IF(TYPE(VLOOKUP($A56,FB_26,S$5,0))=16,"",VLOOKUP($A56,FB_26,S$5,0))&IF(TYPE(VLOOKUP($A56,FB_27,S$5,0))=16,"",VLOOKUP($A56,FB_27,S$5,0))&IF(TYPE(VLOOKUP($A56,FB_28,S$5,0))=16,"",VLOOKUP($A56,FB_28,S$5,0))&IF(TYPE(VLOOKUP($A56,FB_29,S$5,0))=16,"",VLOOKUP($A56,FB_29,S$5,0))&IF(TYPE(VLOOKUP($A56,FB_30,S$5,0))=16,"",VLOOKUP($A56,FB_30,S$5,0))) ->  | Y56: :
